Workbook

Sheet Portada

Sheet Indice
S1: 238
B3: Consejo Monetario Centroamericano
B4: Secretaría Ejecutiva
B5: www.secmca.org
B13: REPORTE EJECUTIVO MENSUAL
B14: DE INDICADORES MACROECONÓMICOS
B15: DE CENTROAMÉRICA, PANAMÁ Y REPÚBLICA DOMINICANA
J18: Con cifras al mes de:
B23: CONTENIDO
B26: INDICADORES REGIONALES
D27: Principales indicadores macroeconómicos región CARD y CAPARD
D28: CARD: evolución de los principales indicadores macroeconómicos
D29: CAPARD: evolución de los principales indicadores macroeconómicos
B31: INDICADORES POR PAÍS
D32: Cuadro comparativo por país
D33: Proyecciones 2020-2021
D34: Seguimiento de las proyecciones en 2019-2020
D35: Evolución de indicadores macroeconómicos seleccionados (series mensuales)
D36: Nota técnica
J46: Nº238
B47: Elaborado con información recibida al | G47: 2020-03-04 | J47: REM N° 239
J48: 2020-01-28 | K48: 2020
B52: ADVERTENCIA El Consejo Monetario Centroamericano y su Secretaría Ejecutiva autorizan la reproducción total, gráficos y cifras de esta publicación, siempre que se mencione la fuente. No obstante, no asumen responsabilidad legal alguna o de cualquier otra índole, por la manipulación, interpretación personal y uso de dicha información. Derechos Reservados © 2019

Sheet Regional-cuadro
A1: Consejo Monetario Centroamericano | G1: =CONCATENATE(Indice!$J$47,",") -> REM N° 239, | H1: =Indice!$J$48 -> 2020-01-28
A2: Secretaría Ejecutiva
A3: PRINCIPALES INDICADORES MACROECONÓMICOS REGIONALES
B5: Agregados Regionales | D5: Región CARD 1/ | G5: Región CAPARD 1/
B7: I. SECTOR REAL
B8: 1. Indice de Precios al Consumidor (IPC) | D8: =IF([1]EJECUTIVO!$J$7=[1]EJECUTIVO!$J$5,[1]EJECUTIVO!$G$7,CONCATENATE([1]EJECUTIVO!$G$7," ",[1]EJECUTIVO!$I$5," ",[1]EJECUTIVO!$J$5)) -> DICIEMBRE 2018 2019 | G8: =IF([1]EJECUTIVO!$J$7=[1]EJECUTIVO!$J$5,[1]EJECUTIVO!$G$7,CONCATENATE([1]EJECUTIVO!$G$7," ",[1]EJECUTIVO!$I$5," ",[1]EJECUTIVO!$J$5)) -> DICIEMBRE 2018 2019
B9: 1.1 Variación interanual | D9: =CONCATENATE(ROUND([1]EJECUTIVO!$I$7,1)," %") -> 2.3 % | E9: =CONCATENATE(ROUND([1]EJECUTIVO!$J$7,1)," %") -> 3.3 % | G9: =CONCATENATE(ROUND([1]EJECUTIVO!$I$8,1)," %") -> 2 % | H9: =CONCATENATE(ROUND([1]EJECUTIVO!$J$8,1)," %") -> 3.1 %
B11: 2. Índice Mensual de Actividad Económica (IMAE) | D11: =IF([1]EJECUTIVO!$J$12=[1]EJECUTIVO!$J$10,[1]EJECUTIVO!$G$10,CONCATENATE([1]EJECUTIVO!$G$12," ",[1]EJECUTIVO!$I$10," ",[1]EJECUTIVO!$J$10)) -> OCTUBRE 2018 2019 | G11: =IF([1]EJECUTIVO!$J$12=[1]EJECUTIVO!$J$10,[1]EJECUTIVO!$G$10,CONCATENATE([1]EJECUTIVO!$G$12," ",[1]EJECUTIVO!$I$10," ",[1]EJECUTIVO!$J$10)) -> OCTUBRE 2018 2019
B12: 2.1 Variación acumulada de la tendencia-ciclo | D12: =CONCATENATE(ROUND([1]EJECUTIVO!$I$12,1)," %") -> 4.4 % | E12: =CONCATENATE(ROUND([1]EJECUTIVO!$J$12,1)," %") -> 3.1 % | G12: =CONCATENATE(ROUND([1]EJECUTIVO!$I$13,1)," %") -> 4.2 % | H12: =CONCATENATE(ROUND([1]EJECUTIVO!$J$13,1)," %") -> 3.2 %
B14: 3. Producto Interno Bruto Trimestral (PIB) | D14: =CONCATENATE([1]EJECUTIVO!$G$17," TRIMESTRE "," ",[1]EJECUTIVO!$I$15," ",[1]EJECUTIVO!$J$15) -> III TRIMESTRE 2018 2019 | G14: =CONCATENATE([1]EJECUTIVO!$G$17," TRIMESTRE "," ",[1]EJECUTIVO!$I$15," ",[1]EJECUTIVO!$J$15) -> III TRIMESTRE 2018 2019
B15: 3.1 PIB nominal (millones de US$) | D15: =[1]EJECUTIVO!$I$17 -> 69157.62646 | E15: n.d. | G15: =[1]EJECUTIVO!$I$18 -> 85387.37946 | H15: n.d.
B16: 3.2 PIB real, tasa de variación interanual | D16: =CONCATENATE(ROUND([1]EJECUTIVO!$I$22,1)," %") -> 3.9 % | E16: =CONCATENATE(ROUND([1]EJECUTIVO!$J$22,1)," %") -> 3.3 % | G16: =CONCATENATE(ROUND([1]EJECUTIVO!$I$23,1)," %") -> 3.8 % | H16: =CONCATENATE(ROUND([1]EJECUTIVO!$J$23,1)," %") -> 3.2 %
B18: 4. Producto Interno Bruto anual (PIB) | D18: =IF([1]EJECUTIVO!$J$5=[1]EJECUTIVO!$J$25-1," ANUAL",CONCATENATE(" ANUAL"," ",[1]EJECUTIVO!$I$25," ",[1]EJECUTIVO!$J$25)) -> ANUAL 2018 2019 | G18: =IF([1]EJECUTIVO!$J$25-1=[1]EJECUTIVO!$J$5," ANUAL",CONCATENATE(" ANUAL"," ",[1]EJECUTIVO!$I$25," ",[1]EJECUTIVO!$J$25)) -> ANUAL 2018 2019
B19: 4.1 PIB nominal (millones de US$) | D19: =[1]EJECUTIVO!$I$27 -> 282215.1078 | E19: =[1]EJECUTIVO!$J$27 -> 288631.5333 | G19: =[1]EJECUTIVO!$I$28 -> 347343.2938 | H19: =[1]EJECUTIVO!$J$28 -> 359201.5333
B20: 4.2 PIB real, tasa de variación interanual | D20: =CONCATENATE(ROUND([1]EJECUTIVO!$I$32,1)," %") -> 3.9 % | E20: =CONCATENATE(ROUND([1]EJECUTIVO!$J$32,1)," %") -> 3.1 % | G20: =CONCATENATE(ROUND([1]EJECUTIVO!$I$33,1)," %") -> 3.8 % | H20: =CONCATENATE(ROUND([1]EJECUTIVO!$J$33,1)," %") -> 3.5 %
B22: II. SECTOR EXTERNO
B23: 1. Comercio Exterior 2/ | D23: =CONCATENATE("ACUMULADO A ",[1]EJECUTIVO!$G$55," ",[1]EJECUTIVO!$I$37," ",[1]EJECUTIVO!$J$37) -> ACUMULADO A ABRIL 2018 2019 | G23: =CONCATENATE("ACUMULADO A ",[1]EJECUTIVO!$G$55," ",[1]EJECUTIVO!$I$37," ",[1]EJECUTIVO!$J$37) -> ACUMULADO A ABRIL 2018 2019
B24: 1.1 Balanza de bienes (millones de US$) | D24: =[1]EJECUTIVO!$I$55 -> -10850.9207 | E24: =[1]EJECUTIVO!$J$55 -> -11368.0908 | G24: =[1]EJECUTIVO!$I$56 -> -14371.61402 | H24: =[1]EJECUTIVO!$J$56 -> -15294.57595
B25: 1.2 Exportaciones totales FOB (millones de US$) | D25: =[1]EJECUTIVO!$I$40 -> 16691.0317 | E25: =[1]EJECUTIVO!$J$40 -> 16370.17709 | G25: =[1]EJECUTIVO!$I$42 -> 20777.37537 | H25: =[1]EJECUTIVO!$J$42 -> 19703.18897
B26: 1.2.1 Tasa crecimiento interanual | D26: =CONCATENATE(ROUND([1]EJECUTIVO!$I$41,1)," %") -> 4 % | E26: =CONCATENATE(ROUND([1]EJECUTIVO!$J$41,1)," %") -> -1.9 % | G26: =CONCATENATE(ROUND([1]EJECUTIVO!$I$43,1)," %") -> 5.5 % | H26: =CONCATENATE(ROUND([1]EJECUTIVO!$J$43,1)," %") -> -5.2 %
B27: 1.3 Importaciones totales CIF (millones de US$) | D27: =[1]EJECUTIVO!$I$48 -> 27541.9524 | E27: =[1]EJECUTIVO!$J$48 -> 27738.26789 | G27: =[1]EJECUTIVO!$I$50 -> 35148.98939 | H27: =[1]EJECUTIVO!$J$50 -> 34997.76492
B28: 1.3.1 Tasa crecimiento interanual | D28: =CONCATENATE(ROUND([1]EJECUTIVO!$I$49,1)," %") -> 9.1 % | E28: =CONCATENATE(ROUND([1]EJECUTIVO!$J$49,1)," %") -> 0.7 % | G28: =CONCATENATE(ROUND([1]EJECUTIVO!$I$51,1)," %") -> 9.8 % | H28: =CONCATENATE(ROUND([1]EJECUTIVO!$J$51,1)," %") -> -0.4 %
B30: 2. Ingreso de Remesas familiares | D30: =CONCATENATE("ACUMULADO A ",[1]EJECUTIVO!$G$72," ",[1]EJECUTIVO!$I$63," ",[1]EJECUTIVO!$J$63) -> ACUMULADO A JUNIO 2018 2019 | G30: =CONCATENATE("ACUMULADO A ",[1]EJECUTIVO!$G$70," ",[1]EJECUTIVO!$I$68," ",[1]EJECUTIVO!$J$68) -> ACUMULADO A JUNIO 2018 2019
B31: 2.1 Ingreso de Remesas familiares (millones de US$) | D31: =[1]EJECUTIVO!$I$70 -> 13585.31186 | E31: =[1]EJECUTIVO!$J$70 -> 14745.48178 | G31: =[1]EJECUTIVO!$I$71 -> 13816.51186 | H31: =[1]EJECUTIVO!$J$71 -> 14988.58178
B33: 3. Inversión Extranjera Directa (IED) | D33: =CONCATENATE("ACUMULADO AL"," ",[1]EJECUTIVO!$G$81," ","TRIMESTRE") -> ACUMULADO AL I TRIMESTRE | G33: =CONCATENATE("ACUMULADO AL"," ",[1]EJECUTIVO!$G$81," ","TRIMESTRE") -> ACUMULADO AL I TRIMESTRE
D34: =[1]EJECUTIVO!$I$84 -> 2018 | E34: =[1]EJECUTIVO!$J$84 -> 2019 | G34: =[1]EJECUTIVO!$I$84 -> 2018 | H34: =[1]EJECUTIVO!$J$84 -> 2019
B35: 3.1. IED en la economía declarante, acumulado (millones de US$) | D35: =[1]EJECUTIVO!$I$86 -> 2331.938222 | E35: =[1]EJECUTIVO!$J$86 -> 2593.131555 | G35: =[1]EJECUTIVO!$I$87 -> 3815.294022 | H35: =[1]EJECUTIVO!$J$87 -> 3749.660161
B36: 3.2. Tasa de Variación interanual | D36: =CONCATENATE(ROUND((([1]EJECUTIVO!$I$86/[1]EJECUTIVO!$H$86)-1)*100,1)," %") -> -18.1 % | E36: =CONCATENATE(ROUND((([1]EJECUTIVO!$J$86/[1]EJECUTIVO!$I$86)-1)*100,1)," %") -> 11.2 % | G36: =CONCATENATE(ROUND((([1]EJECUTIVO!$I$87/[1]EJECUTIVO!$H$87)-1)*100,1)," %") -> -7.1 % | H36: =CONCATENATE(ROUND((([1]EJECUTIVO!$J$87/[1]EJECUTIVO!$I$87)-1)*100,1)," %") -> -1.7 %
B38: 4. Cuenta Corriente | D38: =CONCATENATE("ACUMULADO AL"," ",[1]EJECUTIVO!$G$76," ","TRIMESTRE") -> ACUMULADO AL I TRIMESTRE | G38: =CONCATENATE("ACUMULADO AL"," ",[1]EJECUTIVO!$G$76," ","TRIMESTRE") -> ACUMULADO AL I TRIMESTRE
D39: =[1]EJECUTIVO!$I$74 -> 2018 | E39: =[1]EJECUTIVO!$J$74 -> 2019 | G39: =[1]EJECUTIVO!$I$74 -> 2018 | H39: =[1]EJECUTIVO!$J$74 -> 2019
B40: 4.1. Cuenta Corriente (millones de US$) | D40: =[1]EJECUTIVO!$I$76 -> 684.396047 | E40: =[1]EJECUTIVO!$J$76 -> 506.6553941 | G40: =[1]EJECUTIVO!$I$77 -> -849.194453 | H40: =[1]EJECUTIVO!$J$77 -> -789.0305616
B42: 5. Reservas Internacionales Netas del Banco Central (RIN) 3/ | D42: =CONCATENATE("SALDO A ",[1]EJECUTIVO!$G$65," ",[1]EJECUTIVO!$I$63," ",[1]EJECUTIVO!$J$63) -> SALDO A DICIEMBRE 2018 2019 | G42: =CONCATENATE("SALDO A ",[1]EJECUTIVO!$G$66," ",[1]EJECUTIVO!$I$63," ",[1]EJECUTIVO!$J$63) -> SALDO A DICIEMBRE 2018 2019
B43: 5.1 RIN del Banco Central (millones de US$) | D43: =[1]EJECUTIVO!$I$65 -> 38123.29493 | E43: =[1]EJECUTIVO!$J$65 -> 44436.44693 | G43: =[1]EJECUTIVO!$I$66 -> 41030.35319 | H43: =[1]EJECUTIVO!$J$66 -> 48579.78735
D44: =CONCATENATE("ACUMULADO A ",[1]EJECUTIVO!$G$60," ",[1]EJECUTIVO!$I$58," ",[1]EJECUTIVO!$J$58) -> ACUMULADO A ABRIL 2018 2019 | G44: =CONCATENATE("ACUMULADO A ",[1]EJECUTIVO!$G$61," ",[1]EJECUTIVO!$I$58," ",[1]EJECUTIVO!$J$58) -> ACUMULADO A ABRIL 2018 2019
B45: 5.2 RIN Banco Central/ Importaciones (meses de importación promedio) | D45: =[1]EJECUTIVO!$I$60 -> 5.574519572 | E45: =[1]EJECUTIVO!$J$60 -> 5.608523752 | G45: =[1]EJECUTIVO!$I$61 -> 4.748691912 | H45: =[1]EJECUTIVO!$J$61 -> 4.785836468
B47: III. SECTOR FISCAL | D47: 2017 | E47: 2018 | G47: 2017 | H47: 2018
B48: 1. Resultado del Gobierno Central | D48: =CONCATENATE("ACUMULADO A ",[1]EJECUTIVO!$G$93," ",D47," ",E47) -> ACUMULADO A DICIEMBRE 2017 2018 | G48: =CONCATENATE("ACUMULADO A ",[1]EJECUTIVO!$G$94," ",[1]EJECUTIVO!$I$91," ",[1]EJECUTIVO!$J$91) -> ACUMULADO A DICIEMBRE 2017 2018
B49: 1.1 Ingresos totales del Gobierno Central, incluye donaciones (millones US$) | D49: =[1]EJECUTIVO!$I$93 -> 39635.71462 | E49: =[1]EJECUTIVO!$J$93 -> 40604.07354 | G49: =[1]EJECUTIVO!$I$94 -> 48310.71462 | H49: =[1]EJECUTIVO!$J$94 -> 49661.07354
B50: 1.2 Gastos totales del Gobierno Central (millones US$) | D50: =[1]EJECUTIVO!$I$98 -> 47590.38638 | E50: =[1]EJECUTIVO!$J$98 -> 48363.11209 | G50: =[1]EJECUTIVO!$I$99 -> 58212.38638 | H50: =[1]EJECUTIVO!$J$99 -> 59229.11209
B51: 1.3 Donaciones recibidas (millones US$) | D51: =[1]EJECUTIVO!$I$103 -> 360.7773955 | E51: =[1]EJECUTIVO!$J$103 -> 351.4950801 | G51: =[1]EJECUTIVO!$I$104 -> 364.7773955 | H51: =[1]EJECUTIVO!$J$104 -> 351.4950801
B52: 1.4 Resultado del Gobierno Central (millones US$) | D52: =[1]EJECUTIVO!$I$108 -> -7593.894363 | E52: =[1]EJECUTIVO!$J$108 -> -7407.543474 | G52: =[1]EJECUTIVO!$I$109 -> -9536.894363 | H52: =[1]EJECUTIVO!$J$109 -> -9216.543474
B53: 1.5 Resultado del Gobierno Central / PIB | D53: =[1]EJECUTIVO!$I$113 -> -0.02792161296 | E53: =[1]EJECUTIVO!$J$113 -> -0.02624786295 | G53: =[1]EJECUTIVO!$I$114 -> -0.02853726045 | H53: =[1]EJECUTIVO!$J$114 -> -0.02653439303
B56: 2. Deuda Pública | D56: =IF([1]EJECUTIVO!$J$49=[1]EJECUTIVO!$J$5,[1]EJECUTIVO!$G$118,CONCATENATE([1]EJECUTIVO!$G$118," ",D47," ",E47)) -> DICIEMBRE 2017 2018 | G56: =IF([1]EJECUTIVO!$J$49=[1]EJECUTIVO!$J$5,[1]EJECUTIVO!$G$119,CONCATENATE([1]EJECUTIVO!$G$119," ",G47," ",H47)) -> DICIEMBRE 2017 2018
B57: 2.1 Deuda Interna (millones de US$) 4/ | D57: =[1]EJECUTIVO!$I$118 -> 67884.09015 | E57: =[1]EJECUTIVO!$J$118 -> 71562.29484 | G57: =[1]EJECUTIVO!$I$119 -> 72867.62015 | H57: =[1]EJECUTIVO!$J$119 -> 76674.37594
B58: 2.2 Deuda Externa (millones de US$) | D58: =[1]EJECUTIVO!$I$123 -> 60609.45117 | E58: =[1]EJECUTIVO!$J$123 -> 64599.68798 | G58: =[1]EJECUTIVO!$I$124 -> 78999.49117 | H58: =[1]EJECUTIVO!$J$124 -> 85174.46668
B59: 2.3 Deuda Total (millones de US$) 4/ | D59: =[1]EJECUTIVO!$I$128 -> 128493.5413 | E59: =[1]EJECUTIVO!$J$128 -> 136161.9828 | G59: =[1]EJECUTIVO!$I$129 -> 151867.1113 | H59: =[1]EJECUTIVO!$J$129 -> 161848.8426
B60: 2.4 Deuda Total / PIB 4/ | D60: =IF(ISERROR([1]EJECUTIVO!$I$133/100),"n.d.",[1]EJECUTIVO!$I$133/100) -> 0.4724515193 | E60: =[1]EJECUTIVO!$J$133/100 -> 0.4824758812 | G60: =IF(ISERROR([1]EJECUTIVO!$I$134/100),"n.d.",[1]EJECUTIVO!$I$134/100) -> 0.4544321395 | H60: =[1]EJECUTIVO!$J$134/100 -> 0.4659621922
B62: Agregados Regionales | C62: Región CARD | F62: Región CAPARD
B63: IV. SECTOR MONETARIO | C63: =+[1]EJECUTIVO!$J$138 -> 2019 | D63: =+[1]EJECUTIVO!$I$138 -> 2018 | E63: =+[1]EJECUTIVO!$J$138 -> 2019 | F63: =+[1]EJECUTIVO!$J$146 -> 2019 | G63: =+[1]EJECUTIVO!$I$146 -> 2018 | H63: =+[1]EJECUTIVO!$J$146 -> 2019
B64: 1. Agregados Monetarios | C64: =CONCATENATE("Porcentaje respecto a M3 a ",[1]EJECUTIVO!$G$141) -> Porcentaje respecto a M3 a NOVIEMBRE | D64: =CONCATENATE("Variación Interanual a ",[1]EJECUTIVO!$G$141) -> Variación Interanual a NOVIEMBRE | F64: =CONCATENATE("Porcentaje respecto a M3 a ",[1]EJECUTIVO!$G$141) -> Porcentaje respecto a M3 a NOVIEMBRE | G64: =CONCATENATE("Variación Interanual a ",[1]EJECUTIVO!$G$141) -> Variación Interanual a NOVIEMBRE
B65: 1.1 M1 5/ | C65: =INDEX('[1]MONE(M)CARD'!$FA:$FJ,[1]EJECUTIVO!$E$149+6,3)/100 -> 0.3072625077 | D65: =INDEX('[1]MONE(M)CARD'!$EQ:$EZ,[1]EJECUTIVO!$E$149-6,3)/100 -> 0.005605773559 | E65: =INDEX('[1]MONE(M)CARD'!$EQ:$EZ,[1]EJECUTIVO!$E$149+6,3)/100 -> 0.1350155582 | F65: =INDEX('[1]MONE(M)CAPARD'!$FW:$GF,[1]EJECUTIVO!$E$149+6,3)/100 -> 0.2780276823 | G65: =INDEX('[1]MONE(M)CAPARD'!$FM:$FV,[1]EJECUTIVO!$E$149-6,3)/100 -> 0.004902413513 | H65: =INDEX('[1]MONE(M)CAPARD'!$FM:$FV,[1]EJECUTIVO!$E$149+6,3)/100 -> 0.09981592077
B66: 1.2 M2 6/ | C66: =INDEX('[1]MONE(M)CARD'!$FA:$FJ,[1]EJECUTIVO!$E$149+6,6)/100 -> 0.7584508785 | D66: =INDEX('[1]MONE(M)CARD'!$EQ:$EZ,[1]EJECUTIVO!$E$149-6,6)/100 -> 0.008289017448 | E66: =INDEX('[1]MONE(M)CARD'!$EQ:$EZ,[1]EJECUTIVO!$E$149+6,6)/100 -> 0.09343561235 | F66: =INDEX('[1]MONE(M)CAPARD'!$FW:$GF,[1]EJECUTIVO!$E$149+6,6)/100 -> 0.8165461144 | G66: =INDEX('[1]MONE(M)CAPARD'!$FM:$FV,[1]EJECUTIVO!$E$149-6,6)/100 -> 0.01462280812 | H66: =INDEX('[1]MONE(M)CAPARD'!$FM:$FV,[1]EJECUTIVO!$E$149+6,6)/100 -> 0.07134986681
B67: 1.3 M3 7/ | C67: =INDEX('[1]MONE(M)CARD'!$FA:$FJ,[1]EJECUTIVO!$E$149+6,10)/100 -> 1 | D67: =INDEX('[1]MONE(M)CARD'!$EQ:$EZ,[1]EJECUTIVO!$E$149-6,10)/100 -> 0.009405493646 | E67: =INDEX('[1]MONE(M)CARD'!$EQ:$EZ,[1]EJECUTIVO!$E$149+6,10)/100 -> 0.07679453741 | F67: =INDEX('[1]MONE(M)CAPARD'!$FW:$GF,[1]EJECUTIVO!$E$149+6,10)/100 -> 1 | G67: =INDEX('[1]MONE(M)CAPARD'!$FM:$FV,[1]EJECUTIVO!$E$149-6,10)/100 -> 0.01426017862 | H67: =INDEX('[1]MONE(M)CAPARD'!$FM:$FV,[1]EJECUTIVO!$E$149+6,10)/100 -> 0.06306352011
B68: 1.4 Base Monetaria Amplia 8/ | C68: =INDEX('[1]MONE(M)CARD'!$FM:$FM,[1]EJECUTIVO!$E$149+6,1)/100 -> 0.3125854793 | D68: =INDEX('[1]MONE(M)CARD'!$FN:$FN,[1]EJECUTIVO!$E$149-6,1)/100 -> -0.02893432648 | E68: =INDEX('[1]MONE(M)CARD'!$FN:$FN,[1]EJECUTIVO!$E$149+6,1)/100 -> 0.07937128348 | F68: =INDEX('[1]MONE(M)CAPARD'!$GI:$GI,[1]EJECUTIVO!$E$149+6,1)/100 -> 0.2488522435 | G68: =INDEX('[1]MONE(M)CAPARD'!$GJ:$GJ,[1]EJECUTIVO!$E$149-6,1)/100 -> -0.02781861974 | H68: =INDEX('[1]MONE(M)CAPARD'!$GJ:$GJ,[1]EJECUTIVO!$E$149+6,1)/100 -> 0.08311790024
B70: 2. Crédito Neto de las OSD 9/ con el Sector Público | C70: =CONCATENATE("Saldo en millones de US$ a ",[1]EJECUTIVO!$G$141) -> Saldo en millones de US$ a NOVIEMBRE | D70: =CONCATENATE("Variación Interanual a ",[1]EJECUTIVO!$G$141) -> Variación Interanual a NOVIEMBRE | F70: =CONCATENATE("Saldo en millones de US$ a ",[1]EJECUTIVO!$G$141) -> Saldo en millones de US$ a NOVIEMBRE | G70: =CONCATENATE("Variación Interanual a ",[1]EJECUTIVO!$G$141) -> Variación Interanual a NOVIEMBRE
B71: 2.1 Total Activos | C71: =INDEX('[1]MONE(M)CARD'!$FO:$FW,[1]EJECUTIVO!$E$149+6,9) -> 22663.30981 | D71: =INDEX('[1]MONE(M)CARD'!$GX:$HE,[1]EJECUTIVO!$E$149-6,8)/100 -> 0.05084520049 | E71: =INDEX('[1]MONE(M)CARD'!$GX:$HE,[1]EJECUTIVO!$E$149+6,8)/100 -> 0.1641207065 | F71: =INDEX('[1]MONE(M)CAPARD'!$GK:$GS,[1]EJECUTIVO!$E$149+6,9) -> 25611.26936 | G71: =INDEX('[1]MONE(M)CAPARD'!$HT:$IA,[1]EJECUTIVO!$E$149-6,8)/100 -> 0.04228800045 | H71: =INDEX('[1]MONE(M)CAPARD'!$HT:$IA,[1]EJECUTIVO!$E$149+6,8)/100 -> 0.1555726799
B72: 2.2 Total Pasivos | C72: =INDEX('[1]MONE(M)CARD'!$FX:$GF,[1]EJECUTIVO!$E$149+6,8) -> 13626.86107 | D72: =INDEX('[1]MONE(M)CARD'!$HF:$HN,[1]EJECUTIVO!$E$149-6,8)/100 -> -0.009876629222 | E72: =INDEX('[1]MONE(M)CARD'!$HF:$HN,[1]EJECUTIVO!$E$149+6,8)/100 -> 0.196844567 | F72: =INDEX('[1]MONE(M)CAPARD'!$GT:$HB,[1]EJECUTIVO!$E$149+6,8) -> 15989.00799 | G72: =INDEX('[1]MONE(M)CAPARD'!$IB:$IJ,[1]EJECUTIVO!$E$149-6,8)/100 -> 0.001010733018 | H72: =INDEX('[1]MONE(M)CAPARD'!$IB:$IJ,[1]EJECUTIVO!$E$149+6,8)/100 -> 0.2055017283
B73: 2.3 Crédito neto | C73: =INDEX('[1]MONE(M)CARD'!$FX:$GF,[1]EJECUTIVO!$E$149+6,9) -> 9036.448744 | D73: =INDEX('[1]MONE(M)CARD'!$HF:$HN,[1]EJECUTIVO!$E$149-6,9)/100 -> 0.1502128272 | E73: =INDEX('[1]MONE(M)CARD'!$HF:$HN,[1]EJECUTIVO!$E$149+6,9)/100 -> 0.1180233836 | F73: =INDEX('[1]MONE(M)CAPARD'!$GT:$HB,[1]EJECUTIVO!$E$149+6,9) -> 9622.26137 | G73: =INDEX('[1]MONE(M)CAPARD'!$IB:$IJ,[1]EJECUTIVO!$E$149-6,9)/100 -> 0.1105331823 | H73: =INDEX('[1]MONE(M)CAPARD'!$IB:$IJ,[1]EJECUTIVO!$E$149+6,9)/100 -> 0.08116435285
B75: 3. Crédito 10/ de las OSD 9/ con el Sector Privado | C75: =CONCATENATE("Saldo en millones de US$ a ",[1]EJECUTIVO!$G$141) -> Saldo en millones de US$ a NOVIEMBRE | D75: =CONCATENATE("Variación Interanual a ",[1]EJECUTIVO!$G$141) -> Variación Interanual a NOVIEMBRE | F75: =CONCATENATE("Saldo en millones de US$ a ",[1]EJECUTIVO!$G$141) -> Saldo en millones de US$ a NOVIEMBRE | G75: =CONCATENATE("Variación Interanual a ",[1]EJECUTIVO!$G$141) -> Variación Interanual a NOVIEMBRE
B76: 3.1 Otras Sociedades No Financieras 11/ | C76: =INDEX('Datos_Regional (M)'!AF:AK,[1]EJECUTIVO!$E$149-1,5) -> 56053.05178 | D76: =INDEX('Datos_Regional (M)'!AL:AR,[1]EJECUTIVO!$E$149-13,2)/100 -> 0.04421891043 | E76: =INDEX('Datos_Regional (M)'!AL:AR,[1]EJECUTIVO!$E$149-1,2)/100 -> 0.02319401313 | F76: =INDEX('Datos_Regional (M)'!AW:BB,[1]EJECUTIVO!$E$149-1,5) -> 82149.59024 | G76: =INDEX('Datos_Regional (M)'!BC:BI,[1]EJECUTIVO!$E$149-13,2)/100 -> 0.0373326159 | H76: =INDEX('Datos_Regional (M)'!BC:CI,[1]EJECUTIVO!$E$149-1,2)/100 -> 0.01125670342
B77: 3.2 Hogares e ISFLSH 12/ | C77: =INDEX('Datos_Regional (M)'!AF:AK,[1]EJECUTIVO!$E$149-1,4) -> 62164.71207 | D77: =INDEX('Datos_Regional (M)'!AL:AR,[1]EJECUTIVO!$E$149-13,5)/100 -> 0.01583985139 | E77: =INDEX('Datos_Regional (M)'!AL:AR,[1]EJECUTIVO!$E$149-1,5)/100 -> 0.05851527293 | F77: =INDEX('Datos_Regional (M)'!AW:BB,[1]EJECUTIVO!$E$149-1,4) -> 88152.37043 | G77: =INDEX('Datos_Regional (M)'!BC:BI,[1]EJECUTIVO!$E$149-13,5)/100 -> 0.03118765266 | H77: =INDEX('Datos_Regional (M)'!BC:CI,[1]EJECUTIVO!$E$149-1,5)/100 -> 0.0573704174
B78: 3.3 Otros 13/ | C78: =INDEX('Datos_Regional (M)'!AF:AK,[1]EJECUTIVO!$E$149-1,2) -> 1193.608397 | D78: =INDEX('Datos_Regional (M)'!AL:AR,[1]EJECUTIVO!$E$149-13,3)/100 -> 0.3633064606 | E78: =INDEX('Datos_Regional (M)'!AL:AR,[1]EJECUTIVO!$E$149-1,3)/100 -> -0.1843339016 | F78: =INDEX('Datos_Regional (M)'!AW:BB,[1]EJECUTIVO!$E$149-1,2) -> 1670.476793 | G78: =INDEX('Datos_Regional (M)'!BC:BI,[1]EJECUTIVO!$E$149-13,3)/100 -> 0.2243690854 | H78: =INDEX('Datos_Regional (M)'!BC:CI,[1]EJECUTIVO!$E$149-1,3)/100 -> -0.1231745542
B79: 3.4 Total | C79: =INDEX('Datos_Regional (M)'!AF:AK,[1]EJECUTIVO!$E$149-1,6) -> 119411.3722 | D79: =INDEX('Datos_Regional (M)'!AL:AR,[1]EJECUTIVO!$E$149-13,6)/100 -> 0.03256037831 | E79: =INDEX('Datos_Regional (M)'!AL:AR,[1]EJECUTIVO!$E$149-1,6)/100 -> 0.03859460579 | F79: =INDEX('Datos_Regional (M)'!AW:BB,[1]EJECUTIVO!$E$149-1,6) -> 171972.4375 | G79: =INDEX('Datos_Regional (M)'!BC:CI,[1]EJECUTIVO!$E$149-13,6)/100 -> 0.0360522453 | H79: =INDEX('Datos_Regional (M)'!BC:CI,[1]EJECUTIVO!$E$149-1,6)/100 -> 0.03280717767
B80: Fuente: Cálculos de la Secretaría Ejecutiva con base en la información proporcionada por los Bancos Centrales de la región.
B81: */ No incluye las remesas de Costa Rica debido a que se compilan trimestralmente. En 2013 Costa Rica recibió 229 millones de US$ de remesas netas (ingresos-egresos).
B82: Notas:
B83: 1/ La región CARD incluye a los países centroamericanos y a la República Dominicana. La región CAPARD incluye a los países centroamericanos, Panamá y la República Dominicana.
B84: 2/ Incluye comercio intrarregional. No incluye la maquila en el caso de Honduras. En Panamá incluye: exportación de mercancías generales, reexportaciones nacionales y reexportaciones de la Zona Libre de Colón.
B85: 3/ En Panamá, al no tener banco central, las RIN son administradas por el Banco Nacional de Panamá (BNP).
B86: 4/ Incluye la deuda interna consolidada en los casos de Guatemala, Honduras y República Dominicana, tal como lo recomienda la versión del 2001 del Manual de Estadísticas de Finanzas Públicas del FMI. En el resto de países se considera únicamente la deuda interna bruta.
B87: 5/ M1: incluye billetes y monedas en poder del público más los depósitos transferibles en MN.
B88: 6/ M2: incluye M1 más otros depósitos en MN, más valores distintos de acciones emitidos por las sociedades de depósito en moneda nacional.
B89: 7/ M3: incluye M2 más depósitos transferibles en ME, más otros depósitos en ME, más valores distintos de acciones emitidos por las sociedades de depósito en ME.
B90: 8/ Base Monetaria Amplia: incluye billetes y monedas en circulación, más depósitos transferibles por concepto de encaje en MN, más valores por concepto de encaje en MN, más pasivos frente a OSD de encaje legal en ME, más otros pasivos frente a OSD a corto plazo, más depósitos y valores de otros sectores.
B91: 9/ OSD corresponde a otras sociedades de depósito, por ejemplo: Bancos comerciales, cooperativas, y otras sociedades de depósito que reciben dinero de público.
B92: 10/ Incluye valores distintos de acciones y préstamos.
B93: 11/ Otras sociedades no Financieras abarca las sociedades y cuasisociedades que se dedican principalmente a la producción de bienes y servicios no financieros.
B94: 12/ ISFLSH corresponde a Instituciones sin fines de lucro que dan servicios a los hogares, en estas podemos encontrar organizaciones del tipo ONG´s.
B95: 13/ Incluye otros sectores residentes, por ejemplo otras sociedades financieras.

Sheet Región CARD-graficos
B1: Consejo Monetario Centroamericano | P1: =CONCATENATE(Indice!$J$47,",") -> REM N° 239, | Q1: =Indice!$J$48 -> 2020-01-28
B2: Secretaría Ejecutiva
B3: REGIÓN CARD: EVOLUCIÓN DE LOS PRINCIPALES INDICADORES MACROECONÓMICOS
B5: Región CARD: Inflación, serie original y tendencia de largo plazo | K5: Región CARD: Ciclo de crecimiento de la Actividad Económica
B6: (cálculos basados en el IPC, variación interanual) | K6: (cálculos basados en el IMAE, variación interanual)
B21: Región CARD: | K21: Región CARD:
B22: Reservas Internacionales Netas del Banco Central | K22: Flujos trimestrales de Inversión Extranjera Directa (IED) en la economía declarante
K36: Los datos de Nicaragua del II y III trimestre de 2019 no están disponibles. Los flujos negativos observados en El Salvador y Honduras surgen debido a amortizaciones netas de préstamos con el inversionista directo, mayores a lo registrado por acciones u otras aportaciones de capital, los cuales por metodología deben sumarse al valor de la IED.
B38: =CONCATENATE("Región CARD:") -> Región CARD: | K38: Región CARD:
B39: Flujos mensuales de comercio exterior | K39: Ingreso de Remesas , sin acumular
K54: Los datos de Nicaragua del III trimestre de 2019 no están disponibles.
B55: Región CARD: | K55: Región CARD: Saldo Operacional (con donaciones) del Gobierno Central con respecto al PIB
B56: Deuda Pública Bruta Total, Interna y Externa | K56: =CONCATENATE("Datos a ",'Saldo Operacional'!C4," de cada año") -> Datos a diciembre de cada año
B69: Incluye la deuda interna consolidada en los casos de Guatemala, Honduras y República Dominicana, tal como lo recomienda la versión del 2001 del Manual de Estadísticas de Finanzas Públicas del FMI. En el resto de países se considera únicamente la deuda interna bruta. | K69: En 2015 el saldo operacional disminuyó debido a que en enero de ese año República Dominicana registró dentro de las donaciones la suma de RD$ 93,157.2 millones, correspondiente al descuento generado por la transacción de deuda realizada con Petrocaribe.
B71: Región CARD: | K71: Región CARD:
B72: =CONCATENATE("Agregados Monetarios (Millones US$)"," ","y variación interanual") -> Agregados Monetarios (Millones US$) y variación interanual | K72: =CONCATENATE("Crédito Total (Millones US$)"," ","y variación interanual") -> Crédito Total (Millones US$) y variación interanual
B90: OJO, REVISAR AÑO DE INICIO DE TODOS ESTOS GRAFICOS PARA ARMONIZAR !!!
C92: deuda: a partir de diciembre 2011 mensual
C93: remesas: desde 2006
C94: ied:2008
C95: agregados monetarios:2002
C96: crédito osd:2003
C98: ***la serie mas corta es la de remesas 2008, la extensión se puede evaluar a partir de esta fecha para que se armonizado pero se perdería información en otras series
K101: OSD: Corresponde a Otras Sociedades de Depósito, por ejemplo: bancos comerciales y cooperativas.
B103: La región CARD la conforman los países de Centroamérica y República Dominicana

Sheet Región CAPARD-graficos
B1: Consejo Monetario Centroamericano | P1: =CONCATENATE(Indice!$J$47,",") -> REM N° 239, | Q1: =Indice!$J$48 -> 2020-01-28
B2: Secretaría Ejecutiva
B3: REGIÓN CAPARD: EVOLUCIÓN DE LOS PRINCIPALES INDICADORES MACROECONÓMICOS
B5: Región CAPARD: Inflación, serie original y tendencia de largo plazo | K5: Región CAPARD: Ciclo de crecimiento de la Actividad Económica
B6: (cálculos basados en el IPC, variación interanual) | K6: (cálculos basados en el IMAE, variación interanual)
B21: Región CAPARD: | K21: Región CAPARD:
B22: Reservas Internacionales Netas del Banco Central | K22: Flujos trimestrales de Inversión Extranjera Directa (IED) en la economía declarante
B35: En Panamá, el Banco Nacional de Panamá (BNP) funciona como receptor y gestor de las RIN que corresponden a los activos externos de reserva menos los pasivos de corto plazo frente a no residentes. Los primeros se componen de: billetes y depósitos en moneda extranjera e inversiones en títulos (incluidos los títulos de deuda y participaciones de capital); los pasivos se componen de los depósitos transferibles de no residentes en moneda extranjera. | K35: Los datos de Nicaragua del II y III trimestre de 2019 no están disponibles. Los flujos negativos observados en El Salvador y Honduras surgen debido a amortizaciones netas de préstamos con el inversionista directo, mayores a lo registrado por acciones u otras aportaciones de capital, los cuales por metodología deben sumarse al valor de la IED.
B38: =CONCATENATE("Región CAPARD:") -> Región CAPARD: | K38: Región CAPARD:
B39: Flujos mensuales de comercio exterior | K39: Ingreso de Remesas , sin acumular
K54: Los datos de Nicaragua del III trimestre de 2019 no están disponibles.
B55: Región CAPARD: | K55: Región CAPARD: Saldo Operacional (con donaciones) del Gobierno Central con respecto al PIB
B56: Deuda Pública Bruta Total, Interna y Externa | K56: =CONCATENATE("Datos a ",'Saldo Operacional'!G4," de cada año") -> Datos a diciembre de cada año
B69: Incluye la deuda interna consolidada en los casos de Guatemala, Honduras y República Dominicana, tal como lo recomienda la versión del 2001 del Manual de Estadísticas de Finanzas Públicas del FMI. En el resto de países se considera únicamente la deuda interna bruta. | K69: En 2015 el saldo operacional disminuyó debido a que en enero de ese año República Dominicana registró dentro de las donaciones la suma de RD$ 93,157.2 millones, correspondiente al descuento generado por la transacción de deuda realizada con Petrocaribe.
B71: Región CAPARD: | K71: Región CAPARD:
B72: =CONCATENATE("Agregados Monetarios (Millones US$)"," ","y variación interanual") -> Agregados Monetarios (Millones US$) y variación interanual | K72: =CONCATENATE("Crédito Total (Millones US$)"," ","y variación interanual") -> Crédito Total (Millones US$) y variación interanual
B90: OJO, REVISAR AÑO DE INICIO DE TODOS ESTOS GRAFICOS PARA ARMONIZAR !!!
C92: deuda: a partir de diciembre 2011 mensual
C93: remesas: desde 2006
C94: ied:2008
C95: agregados monetarios:2002
C96: crédito osd:2003
C98: ***la serie mas corta es la de remesas 2008, la extensión se puede evaluar a partir de esta fecha para que se armonizado pero se perdería información en otras series
K100: OSD: Corresponde a Otras Sociedades de Depósito, por ejemplo: bancos comerciales y cooperativas.
B101: Las disminuciones en créditos y depósitos al cierre de 2013 se deben a que durante los meses de septiembre y octubre de ese año se originó la venta del Banco HSBC Panamá al grupo Bancolombia; algunas operaciones financieras que mantenía el Banco HSBC no fueron adquiridas o cedidas a Bancolombia (Banistmo, S.A.), saliendo del sistema bancario panameño a otros centros financieros. | K101: Las disminuciones en créditos al cierre de 2013 se deben a que durante los meses de septiembre y octubre de ese año se originó la venta del Banco HSBC Panamá al grupo Bancolombia; algunas operaciones financieras que mantenía el Banco HSBC no fueron adquiridas o cedidas a Bancolombia (Banistmo, S.A.), saliendo del sistema bancario panameño a otros centros financieros.
B103: La región CAPARD la conforman los países de Centroamérica, Panamá y República Dominicana.

Sheet Comparativo
A1: Consejo Monetario Centroamericano
A2: Secretaría Ejecutiva
A3: CUADRO COMPARATIVO POR PAIS
E4: =CONCATENATE(Indice!$J$47,",") -> REM N° 239, | F4: =Indice!$J$48 -> 2020-01-28
A6: Indicadores | B6: Costa Rica | D6: El Salvador | F6: Guatemala | H6: Honduras | J6: Nicaragua | L6: Rep. Dominicana | N6: Panamá
A8: I. SECTOR REAL
A9: 1. Precios al Consumidor | B9: =IF([2]EJECUTIVO!$J$4=[2]EJECUTIVO!$J$8,[2]EJECUTIVO!$G$10,CONCATENATE([2]EJECUTIVO!$G$5," ",[2]EJECUTIVO!$I$4," ",[2]EJECUTIVO!$J$4)) -> ENERO 2019 2020 | D9: =IF([3]EJECUTIVO!$J$4=[3]EJECUTIVO!$J$8,[3]EJECUTIVO!$G$10,CONCATENATE([3]EJECUTIVO!$G$5," ",[3]EJECUTIVO!$I$4," ",[3]EJECUTIVO!$J$4)) -> ENERO 2019 2020 | F9: =IF([4]EJECUTIVO!$J$4=[4]EJECUTIVO!$J$8,[4]EJECUTIVO!$G$10,CONCATENATE([4]EJECUTIVO!$G$5," ",[4]EJECUTIVO!$I$4," ",[4]EJECUTIVO!$J$4)) -> ENERO 2019 2020 | H9: =IF([5]EJECUTIVO!$J$4=[5]EJECUTIVO!$J$8,[5]EJECUTIVO!$G$10,CONCATENATE([5]EJECUTIVO!$G$5," ",[5]EJECUTIVO!$I$4," ",[5]EJECUTIVO!$J$4)) -> ENERO 2019 2020 | J9: =IF([6]EJECUTIVO!$J$4=[6]EJECUTIVO!$J$8,[6]EJECUTIVO!$G$10,CONCATENATE([6]EJECUTIVO!$G$5," ",[6]EJECUTIVO!$I$4," ",[6]EJECUTIVO!$J$4)) -> DICIEMBRE 2018 2019 | L9: =IF([7]EJECUTIVO!$J$4=[7]EJECUTIVO!$J$8,[7]EJECUTIVO!$G$10,CONCATENATE([7]EJECUTIVO!$G$5," ",[7]EJECUTIVO!$I$4," ",[7]EJECUTIVO!$J$4)) -> ENERO 2019 2020 | N9: =IF([8]EJECUTIVO!$J$4=[8]EJECUTIVO!$J$8,[8]EJECUTIVO!$G$10,CONCATENATE([8]EJECUTIVO!$G$5," ",[8]EJECUTIVO!$I$4," ",[8]EJECUTIVO!$J$4)) -> ENERO 2019 2020
A10: 1.1 Tasa de variación interanual en el mes indicado | B10: =[2]EJECUTIVO!$I$6 -> 1.666375635 | C10: =[2]EJECUTIVO!$J$6 -> 1.582764337 | D10: =[3]EJECUTIVO!$I$6 -> 0.2500893176 | E10: =[3]EJECUTIVO!$J$6 -> -0.08018531718 | F10: =[4]EJECUTIVO!$I$6 -> 4.104868914 | G10: =[4]EJECUTIVO!$J$6 -> 1.784429414 | H10: =[5]EJECUTIVO!$I$6 -> 3.954983923 | I10: =[5]EJECUTIVO!$J$6 -> 4.299412311 | J10: =[6]EJECUTIVO!$I$6 -> 3.885054751 | K10: =[6]EJECUTIVO!$J$6 -> 6.12972437 | L10: =[7]EJECUTIVO!$I$6 -> 0.7081160999 | M10: =[7]EJECUTIVO!$J$6 -> 4.174007109 | N10: =[8]EJECUTIVO!$I$6 -> -0.3047755492 | O10: =[8]EJECUTIVO!$J$6 -> 0.3558122224
A11: 1.2 Tasa de variación acumulada al mes indicado respecto a diciembre | B11: =[2]EJECUTIVO!$I$7 -> 0.0513168808 | C11: =[2]EJECUTIVO!$J$7 -> 0.1107778128 | D11: =[3]EJECUTIVO!$I$7 -> -0.05342831701 | E11: =[3]EJECUTIVO!$J$7 -> -0.1246771752 | F11: =[4]EJECUTIVO!$I$7 -> 1.34908481 | G11: =[4]EJECUTIVO!$J$7 -> -0.23977433 | H11: =[5]EJECUTIVO!$I$7 -> 0.03094059406 | I11: =[5]EJECUTIVO!$J$7 -> 0.2378121284 | J11: =[6]EJECUTIVO!$I$7 -> 3.885054751 | K11: =[6]EJECUTIVO!$J$7 -> 6.12972437 | L11: =[7]EJECUTIVO!$I$7 -> -0.1697007097 | M11: =[7]EJECUTIVO!$J$7 -> 0.3253164956 | N11: =[8]EJECUTIVO!$I$7 -> -0.2719138589 | O11: =[8]EJECUTIVO!$J$7 -> 0.1456022945
A12: =CONCATENATE(" 1.3 Tasa de variación de los precios en el 2019 y proyectado para el 2020") -> 1.3 Tasa de variación de los precios en el 2019 y proyectado para el 2020 | B12: =[2]METAS!$H$7 -> 1.522429116 | C12: =[2]METAS!$K$7 -> 3.0 ± 1 | D12: =[3]METAS!$H$7 -> -0.008904719501 | E12: =[3]METAS!$K$7 -> n.d. | F12: =[4]METAS!$H$7 -> 3.405527602 | G12: =[4]METAS!$K$7 -> 4.0 ± 1 | H12: =[5]METAS!$H$7 -> 4.084158416 | I12: =[5]METAS!$K$7 -> 4.0 ± 1 | J12: =[6]METAS!$H$7 -> 6.12972437 | K12: =[6]METAS!$K$7 -> 3.0-4.0 | L12: =[7]METAS!$H$7 -> 3.66 | M12: =[7]METAS!$K$7 -> 4.0 ± 1 | N12: =[8]METAS!$H$7 -> -0.06258031539 | O12: =[8]METAS!$K$7 -> 2.1
A13: 1.4 Tasa de variación interanual del índice subyacente de inflación | B13: =[2]EJECUTIVO!$I$5 -> 2.164405407 | C13: =[2]EJECUTIVO!$J$5 -> 1.386861342 | D13: =[3]EJECUTIVO!$I$5 -> 0.06616882503 | E13: =[3]EJECUTIVO!$J$5 -> 0.02833931608 | F13: =[4]EJECUTIVO!$I$5 -> 3.027413172 | G13: =[4]EJECUTIVO!$J$5 -> 2.8314812 | H13: =[5]EJECUTIVO!$I$5 -> 4.251918159 | I13: =[5]EJECUTIVO!$J$5 -> 3.557191046 | J13: =[6]EJECUTIVO!$I$5 -> 4.00099499 | K13: =[6]EJECUTIVO!$J$5 -> 6.401666899 | L13: =[7]EJECUTIVO!$I$5 -> 2.376 | M13: =[7]EJECUTIVO!$J$5 -> 2.406814097 | N13: =[8]EJECUTIVO!$H$5 -> n.d. | O13: =[8]EJECUTIVO!$I$5 -> n.d.
A14: 2. Producción | B14: =IF([2]EJECUTIVO!$J$9=[2]EJECUTIVO!$J$2,[2]EJECUTIVO!$G$10,CONCATENATE([2]EJECUTIVO!$G$10," ",[2]EJECUTIVO!$I$9," ",[2]EJECUTIVO!$J$9)) -> DICIEMBRE 2018 2019 | D14: =IF([3]EJECUTIVO!$J$9=[3]EJECUTIVO!$J$2,[3]EJECUTIVO!$G$10,CONCATENATE([3]EJECUTIVO!$G$10," ",[3]EJECUTIVO!$I$9," ",[3]EJECUTIVO!$J$9)) -> DICIEMBRE 2018 2019 | F14: =IF([4]EJECUTIVO!$J$9=[4]EJECUTIVO!$J$2,[4]EJECUTIVO!$G$10,CONCATENATE([4]EJECUTIVO!$G$10," ",[4]EJECUTIVO!$I$9," ",[4]EJECUTIVO!$J$9)) -> DICIEMBRE 2018 2019 | H14: =IF([5]EJECUTIVO!$J$9=[5]EJECUTIVO!$J$2,[5]EJECUTIVO!$G$10,CONCATENATE([5]EJECUTIVO!$G$10," ",[5]EJECUTIVO!$I$9," ",[5]EJECUTIVO!$J$9)) -> NOVIEMBRE 2018 2019 | J14: =IF([6]EJECUTIVO!$J$9=[6]EJECUTIVO!$J$2,[6]EJECUTIVO!$G$10,CONCATENATE([6]EJECUTIVO!$G$10," ",[6]EJECUTIVO!$I$9," ",[6]EJECUTIVO!$J$9)) -> FEBRERO 2018 2019 | L14: =IF([7]EJECUTIVO!$J$9=[7]EJECUTIVO!$J$2,[7]EJECUTIVO!$G$10,CONCATENATE([7]EJECUTIVO!$G$10," ",[7]EJECUTIVO!$I$9," ",[7]EJECUTIVO!$J$9)) -> DICIEMBRE 2018 2019 | N14: =IF([8]EJECUTIVO!$J$9=[8]EJECUTIVO!$J$2,[8]EJECUTIVO!$G$10,CONCATENATE([8]EJECUTIVO!$G$10," ",[8]EJECUTIVO!$I$9," ",[8]EJECUTIVO!$J$9)) -> NOVIEMBRE 2018 2019
A15: 2.1 IMAE (variación acumulada Tendencia-Ciclo en el mes indicado) | B15: =[2]EJECUTIVO!$I$10 -> 2.630536493 | C15: =[2]EJECUTIVO!$J$10 -> 1.86892204 | D15: =[3]EJECUTIVO!$I$10 -> 2.412378298 | E15: =[3]EJECUTIVO!$J$10 -> 2.286185045 | F15: =[4]EJECUTIVO!$I$10 -> 3.047818104 | G15: =[4]EJECUTIVO!$J$10 -> 3.58703956 | H15: =[5]EJECUTIVO!$I$10 -> 3.666648666 | I15: =[5]EJECUTIVO!$J$10 -> 2.639396194 | J15: =[6]EJECUTIVO!$I$10 -> 3.377028243 | K15: =[6]EJECUTIVO!$J$10 -> -7.015222486 | L15: =[7]EJECUTIVO!$I$10 -> 6.914107429 | M15: =[7]EJECUTIVO!$J$10 -> 5.155957205 | N15: =[8]EJECUTIVO!$I$10 -> 3.229223464 | O15: =[8]EJECUTIVO!$J$10 -> 3.404377999
A16: 2.2 Tasa de variación del PIB real estimado para 2019 y 2020 | B16: =[2]METAS!$H$12 -> 2.1 | C16: =[2]METAS!$K$12 -> 2.5 | D16: =[3]METAS!$H$12 -> 2.3 | E16: =[3]METAS!$K$12 -> 2.5 | F16: =[4]METAS!$H$12 -> 3.5 | G16: =[4]METAS!$K$12 -> 3.1 – 4.1 | H16: =[5]METAS!$H$12 -> 3.0 -3.4 | I16: =[5]METAS!$K$12 -> 3.0 – 3.4 | J16: =[6]METAS!$H$12 -> -4.5 | K16: =[6]METAS!$K$12 -> 0.5 | L16: =[7]METAS!$H$12 -> 5 | M16: =[7]METAS!$K$12 -> 5.0-5.3 | N16: =[8]METAS!$H$12 -> 5.8 | O16: =[8]METAS!$K$12 -> 5.6
A17: 2.3 Tasa de variación interanual del PIB trimestral, a precios constantes a/ | B17: =CONCATENATE(" ",[2]EJECUTIVO!$G$11," ","TRIMESTRE 2018 2019") -> III TRIMESTRE 2018 2019 | D17: =CONCATENATE(" ",[3]EJECUTIVO!$G$11," ","TRIMESTRE 2018 2019") -> III TRIMESTRE 2018 2019 | F17: =CONCATENATE(" ",[4]EJECUTIVO!$G$11," ","TRIMESTRE 2018 2019") -> III TRIMESTRE 2018 2019 | H17: =CONCATENATE(" ",[5]EJECUTIVO!$G$11," ","TRIMESTRE 2018 2019") -> III TRIMESTRE 2018 2019 | J17: =CONCATENATE(" ",[6]EJECUTIVO!$G$11," ","TRIMESTRE 2017 2018") -> IV TRIMESTRE 2017 2018 | L17: =CONCATENATE(" ",[7]EJECUTIVO!$G$11," ","TRIMESTRE 2018 2019") -> III TRIMESTRE 2018 2019 | N17: =CONCATENATE(" ",[8]EJECUTIVO!$G$11," ","TRIMESTRE 2018 2019") -> III TRIMESTRE 2018 2019
B18: =[2]EJECUTIVO!I$11 -> 2.488222366 | C18: =[2]EJECUTIVO!J$11 -> 2.376718489 | D18: =[3]EJECUTIVO!I$11 -> 2.232854864 | E18: =[3]EJECUTIVO!J$11 -> 2.642929247 | F18: =[4]EJECUTIVO!I$11 -> 3.139500054 | G18: =[4]EJECUTIVO!J$11 -> 3.95916109 | H18: =[5]EJECUTIVO!I$11 -> 3.341882412 | I18: =[5]EJECUTIVO!J$11 -> 2.644100094 | J18: =[6]EJECUTIVO!I$11 -> 4.06355732 | K18: =[6]EJECUTIVO!J$11 -> -7.661062685 | L18: =[7]EJECUTIVO!I$11 -> 7.568318407 | M18: =[7]EJECUTIVO!J$11 -> 4.849585396 | N18: =[8]EJECUTIVO!I$11 -> 3.347504349 | O18: =[8]EJECUTIVO!J$11 -> 2.696617478
A19: 2.4 PIB a precios corrientes en millones de US dólares b/(estimado) | B19: 2019 | C19: 2020 | D19: 2019 | E19: 2020 | F19: 2019 | G19: 2020 | H19: 2019 | I19: 2020 | J19: 2019 | K19: 2020 | L19: 2019 | M19: 2020 | N19: 2019 | O19: 2020
B20: =[2]METAS!$H$14 -> 60600 | C20: =[2]METAS!$K$14 -> 66409.09091 | D20: =[3]METAS!$H$14 -> 26854.2 | E20: =[3]METAS!$K$14 -> n.d. | F20: =[4]METAS!$H$14 -> 75908.39595 | G20: =[4]METAS!$K$14 -> n.d. | H20: =[5]METAS!$H$14 -> 24789.47368 | I20: =[5]METAS!$K$14 -> 26245.94595 | J20: =[6]METAS!$H$14 -> n.d. | K20: =[6]METAS!$K$14 -> n.d. | L20: =[7]METAS!$H$14 -> 87369.38214 | M20: =[7]METAS!$K$14 -> n.d. | N20: =[8]METAS!$H$14 -> 70570 | O20: =[8]METAS!$K$14 -> 75663
A22: II. SECTOR EXTERNO
A23: 1.Indicadores de Balanza de Pagos y del comercio exterior
A24: 1.1 Comercio exterior, acumulado en millones de US$ c/ | B24: =IF([2]EJECUTIVO!$J$16=[2]EJECUTIVO!$J$4,[2]EJECUTIVO!$G$16,(CONCATENATE([2]EJECUTIVO!$G$16," ",[2]EJECUTIVO!$I$15," ",[2]EJECUTIVO!$J$15))) -> DICIEMBRE 2018 2019 | D24: =IF([3]EJECUTIVO!$J$16=[3]EJECUTIVO!$J$4,[3]EJECUTIVO!$G$16,(CONCATENATE([3]EJECUTIVO!$G$16," ",[3]EJECUTIVO!$I$15," ",[3]EJECUTIVO!$J$15))) -> ENERO 2019 2020 | F24: =IF([4]EJECUTIVO!$J$16=[4]EJECUTIVO!$J$4,[4]EJECUTIVO!$G$16,(CONCATENATE([4]EJECUTIVO!$G$16," ",[4]EJECUTIVO!$I$15," ",[4]EJECUTIVO!$J$15))) -> DICIEMBRE 2018 2019 | H24: =IF([5]EJECUTIVO!$J$16=[5]EJECUTIVO!$J$4,[5]EJECUTIVO!$G$16,(CONCATENATE([5]EJECUTIVO!$G$16," ",[5]EJECUTIVO!$I$15," ",[5]EJECUTIVO!$J$15))) -> DICIEMBRE 2018 2019 | J24: =IF([6]EJECUTIVO!$J$16=[6]EJECUTIVO!$J$4,[6]EJECUTIVO!$G$16,(CONCATENATE([6]EJECUTIVO!$G$16," ",[6]EJECUTIVO!$I$15," ",[6]EJECUTIVO!$J$15))) -> ABRIL 2018 2019 | L24: =IF([7]EJECUTIVO!$J$16=[7]EJECUTIVO!$J$4,[7]EJECUTIVO!$G$16,(CONCATENATE([7]EJECUTIVO!$G$16," ",[7]EJECUTIVO!$I$15," ",[7]EJECUTIVO!$J$15))) -> DICIEMBRE 2018 2019 | N24: =IF([8]EJECUTIVO!$J$16=[8]EJECUTIVO!$J$4,[8]EJECUTIVO!$G$16,(CONCATENATE([8]EJECUTIVO!$G$16," ",[8]EJECUTIVO!$I$15," ",[8]EJECUTIVO!$J$15))) -> DICIEMBRE 2018 2019
A25: 1.1.1 Exportaciones totales de bienes FOB | B25: =[2]EJECUTIVO!$I$17 -> 11661.33812 | C25: =[2]EJECUTIVO!$J$17 -> 11972.1159 | D25: =[3]EJECUTIVO!$I$17 -> 483.36 | E25: =[3]EJECUTIVO!$J$17 -> 509.84 | F25: =[4]EJECUTIVO!$I$17 -> 10969.4 | G25: =[4]EJECUTIVO!$J$17 -> 11183.9 | H25: =[5]EJECUTIVO!$I$17 -> 4272.384928 | I25: =[5]EJECUTIVO!$J$17 -> 4159.984394 | J25: =[6]EJECUTIVO!$I$17 -> 1933 | K25: =[6]EJECUTIVO!$J$17 -> 1812.107999 | L25: =[7]EJECUTIVO!$I$17 -> 10907.6 | M25: =[7]EJECUTIVO!$J$17 -> 11218.6 | N25: =[8]EJECUTIVO!$I$17 -> 11626.60183 | O25: =[8]EJECUTIVO!$J$17 -> 10684.04823
A26: 1.1.2 Importaciones totales de bienes CIF | B26: =[2]EJECUTIVO!$I$18 -> 17266.06422 | C26: =[2]EJECUTIVO!$J$18 -> 16832.05418 | D26: =[3]EJECUTIVO!$I$18 -> 967.46 | E26: =[3]EJECUTIVO!$J$18 -> 1001.54 | F26: =[4]EJECUTIVO!$I$18 -> 19674.4 | G26: =[4]EJECUTIVO!$J$18 -> 19881.4 | H26: =[5]EJECUTIVO!$I$18 -> 10505.38912 | I26: =[5]EJECUTIVO!$J$18 -> 10059.38337 | J26: =[6]EJECUTIVO!$I$18 -> 2600.9 | K26: =[6]EJECUTIVO!$J$18 -> 2156.819737 | L26: =[7]EJECUTIVO!$I$18 -> 20208.9 | M26: =[7]EJECUTIVO!$J$18 -> 20288 | N26: =[8]EJECUTIVO!$I$18 -> 23005.96323 | O26: =[8]EJECUTIVO!$J$18 -> 21491.77585
A27: 1.1.3 Saldo acumulado (exportaciones - importaciones) | B27: =[2]EJECUTIVO!$I$16 -> -5604.726102 | C27: =[2]EJECUTIVO!$J$16 -> -4859.938283 | D27: =[3]EJECUTIVO!$I$16 -> -484.1 | E27: =[3]EJECUTIVO!$J$16 -> -491.7 | F27: =[4]EJECUTIVO!$I$16 -> -8705 | G27: =[4]EJECUTIVO!$J$16 -> -8697.5 | H27: =[5]EJECUTIVO!$I$16 -> -6233.004195 | I27: =[5]EJECUTIVO!$J$16 -> -5899.398975 | J27: =[6]EJECUTIVO!$I$16 -> -667.9 | K27: =[6]EJECUTIVO!$J$16 -> -344.711738 | L27: =[7]EJECUTIVO!$I$16 -> -9301.3 | M27: =[7]EJECUTIVO!$J$16 -> -9069.4 | N27: =[8]EJECUTIVO!$I$16 -> -11379.3614 | O27: =[8]EJECUTIVO!$J$16 -> -10807.72762
A28: 1.1.4 Saldo en el 2019 (preliminar o estimado) y proyectado para el 2020 | B28: =[2]METAS!$H$22 -> -4859.938283 | C28: =[2]METAS!$K$22 -> -4705 | D28: =[3]METAS!$H$22 -> -6074.25 | E28: =[3]METAS!$K$22 -> n.d. | F28: =[4]METAS!$H$22 -> -8697.5 | G28: =[4]METAS!$K$22 -> -9014.3445 | H28: =[5]METAS!$H$22 -> -5899.398975 | I28: =[5]METAS!$K$22 -> n.d. | J28: =[6]METAS!$H$22 -> n.d. | K28: =[6]METAS!$K$22 -> n.d. | L28: =[7]METAS!$H$22 -> -9069.4 | M28: =[7]METAS!$K$22 -> n.d. | N28: =[8]METAS!$H$22 -> -10807.72762 | O28: =[8]METAS!$K$22 -> n.d.
A29: 2.5 Saldo RIN/ Importaciones (meses de importación promedio) | B29: =[2]EJECUTIVO!$I$19 -> 5.209060944 | C29: =[2]EJECUTIVO!$J$19 -> 6.353805593 | D29: =[3]EJECUTIVO!$I$19 -> 3.611053687 | E29: =[3]EJECUTIVO!$J$19 -> -0.35839078 | F29: =[4]EJECUTIVO!$I$19 -> 7.780018705 | G29: =[4]EJECUTIVO!$J$19 -> 8.926333156 | H29: =[5]EJECUTIVO!$I$19 -> 5.543598914 | I29: =[5]EJECUTIVO!$J$19 -> 6.929478735 | J29: =[6]EJECUTIVO!$I$19 -> 4.553571429 | K29: =[6]EJECUTIVO!$J$19 -> 3.604364633 | L29: =[7]EJECUTIVO!$I$19 -> 4.528959746 | M29: =[7]EJECUTIVO!$J$19 -> 5.194045741 | N29: =[7]EJECUTIVO!$I$19 -> 4.528959746 | O29: =[7]EJECUTIVO!$J$19 -> 5.194045741
A30: 1.2 Transferencias Corrientes, acumulado en millones de US$ | B30: =IF([2]EJECUTIVO!$J$38=[2]EJECUTIVO!$J$4,CONCATENATE([2]EJECUTIVO!$G$38," TRIMESTRE"," "),CONCATENATE([2]EJECUTIVO!$G$38," TRIMESTRE ",[2]EJECUTIVO!$I$37," ",[2]EJECUTIVO!$J$37)) -> III TRIMESTRE 2018 2019 | D30: =IF([3]EJECUTIVO!$J$38=[3]EJECUTIVO!$J$4,[3]EJECUTIVO!$G$38,(CONCATENATE([3]EJECUTIVO!$G$38," ",[3]EJECUTIVO!$I$37," ",[3]EJECUTIVO!$J$37))) -> ENERO 2019 2020 | F30: =IF([4]EJECUTIVO!$J$38=[4]EJECUTIVO!$J$4,[4]EJECUTIVO!$G$38,(CONCATENATE([4]EJECUTIVO!$G$38," ",[4]EJECUTIVO!$I$37," ",[4]EJECUTIVO!$J$37))) -> ENERO 2019 2020 | H30: =IF([5]EJECUTIVO!$J$38=[5]EJECUTIVO!$J$4,[5]EJECUTIVO!$G$38,(CONCATENATE([5]EJECUTIVO!$G$38," ",[5]EJECUTIVO!$I$37," ",[5]EJECUTIVO!$J$37))) -> ENERO 2019 2020 | J30: =IF([6]EJECUTIVO!$J$38=[6]EJECUTIVO!$J$4,[6]EJECUTIVO!$G$38,(CONCATENATE([6]EJECUTIVO!$G$38," ",[6]EJECUTIVO!$I$37," ",[6]EJECUTIVO!$J$37))) -> JUNIO 2018 2019 | L30: =IF([7]EJECUTIVO!$J$38=[7]EJECUTIVO!$J$4,[7]EJECUTIVO!$G$38,(CONCATENATE([7]EJECUTIVO!$G$38," ",[7]EJECUTIVO!$I$37," ",[7]EJECUTIVO!$J$37))) -> SEPTIEMBRE 2018 2019 | N30: =IF([8]EJECUTIVO!$J$38=[8]EJECUTIVO!$J$4,CONCATENATE([8]EJECUTIVO!$G$38," TRIMESTRE"," "),CONCATENATE([8]EJECUTIVO!$G$38," TRIMESTRE ",[8]EJECUTIVO!$I$37," ",[8]EJECUTIVO!$J$37)) -> III TRIMESTRE 2018 2019
A31: 1.2.1 Ingreso de remesas familiares d/ | B31: =[2]EJECUTIVO!$I$38 -> 368.0018657 | C31: =[2]EJECUTIVO!$J$38 -> 383.3417691 | D31: =[3]EJECUTIVO!$I$38 -> 400.62 | E31: =[3]EJECUTIVO!$J$38 -> 424.53 | F31: =[4]EJECUTIVO!$I$38 -> 688.0764 | G31: =[4]EJECUTIVO!$J$38 -> 834.6104 | H31: =[5]EJECUTIVO!$I$38 -> 386.0253914 | I31: =[5]EJECUTIVO!$J$38 -> 420.9340616 | J31: =[6]EJECUTIVO!$I$38 -> 724.6 | K31: =[6]EJECUTIVO!$J$38 -> 796.6 | L31: =[7]EJECUTIVO!$I$38 -> 4866.434489 | M31: =[7]EJECUTIVO!$J$38 -> 5292.91886 | N31: =[8]EJECUTIVO!$I$38 -> 334.7 | O31: =[8]EJECUTIVO!$J$38 -> 365.38498
A32: 1.2.2 Saldo en el 2019 (preliminar o estimado) y proyectado para el 2020 | B32: =+[2]METAS!$H$27 -> n.d. | C32: =[2]METAS!$K$27 -> n.d | D32: =+[3]METAS!$H$27 -> 5650.21 | E32: =[3]METAS!$K$27 -> n.d. | F32: =+[4]METAS!$H$27 -> 10508.3074 | G32: =[4]METAS!$K$27 -> 11664.213 | H32: =+[5]METAS!$H$27 -> 5523.57091 | I32: =[5]METAS!$K$27 -> 5429 | J32: =+[6]METAS!$H$27 -> n.d. | K32: =[6]METAS!$K$27 -> n.d. | L32: =+[7]METAS!$H$27 -> n.d. | M32: =+[7]METAS!$K$27 -> n.d. | N32: =+[8]METAS!$H$27 -> n.d. | O32: =[8]METAS!$K$27 -> n.d.
A33: 1.3 Inversión directa, saldo en millones de US$ | B33: =CONCATENATE([2]EJECUTIVO!$G$44," ","TRIMESTRE 2018 2019") -> III TRIMESTRE 2018 2019 | D33: =CONCATENATE([3]EJECUTIVO!$G$44," ","TRIMESTRE 2018 2019") -> III TRIMESTRE 2018 2019 | F33: =CONCATENATE([4]EJECUTIVO!$G$44," ","TRIMESTRE 2018 2019") -> III TRIMESTRE 2018 2019 | H33: =CONCATENATE([5]EJECUTIVO!$G$44," ","TRIMESTRE 2018 2019") -> III TRIMESTRE 2018 2019 | J33: =CONCATENATE([6]EJECUTIVO!$G$44," ","TRIMESTRE 2018 2019") -> I TRIMESTRE 2018 2019 | L33: =CONCATENATE([7]EJECUTIVO!$G$44," ","TRIMESTRE 2018 2019") -> III TRIMESTRE 2018 2019 | N33: =CONCATENATE([8]EJECUTIVO!$G$44," ","TRIMESTRE 2018 2019") -> III TRIMESTRE 2018 2019
A34: 1.3.1 Inversión Extranjera Directa en la economía declarante e/ | B34: =+[2]EJECUTIVO!$I$44 -> 1049.21785 | C34: =+[2]EJECUTIVO!$J$44 -> 1694.965269 | D34: =+[3]EJECUTIVO!$I$44 -> 551.0151841 | E34: =+[3]EJECUTIVO!$J$44 -> 437.6638822 | F34: =+[4]EJECUTIVO!$I$44 -> 632.22732 | G34: =+[4]EJECUTIVO!$J$44 -> 644.39247 | H34: =+[5]EJECUTIVO!$I$44 -> 574.3 | I34: =+[5]EJECUTIVO!$J$44 -> 183.9 | J34: =+[6]EJECUTIVO!$I$44 -> 419.2 | K34: =+[6]EJECUTIVO!$J$44 -> 128.8 | L34: =+[7]EJECUTIVO!$I$44 -> 1706.2 | M34: =+[7]EJECUTIVO!$J$44 -> 2273.2 | N34: =+[8]EJECUTIVO!$I$44 -> 4085.6635 | O34: =+[8]EJECUTIVO!$J$44 -> 4735.184566
A35: 1.4 Balanza en cuenta corriente, saldo en millones de US$ | B35: =CONCATENATE([2]EJECUTIVO!$G$41," ","TRIMESTRE 2018 2019") -> III TRIMESTRE 2018 2019 | D35: =CONCATENATE([3]EJECUTIVO!$G$41," ","TRIMESTRE 2018 2019") -> III TRIMESTRE 2018 2019 | F35: =CONCATENATE([4]EJECUTIVO!$G$41," ","TRIMESTRE 2018 2019") -> III TRIMESTRE 2018 2019 | H35: =CONCATENATE([5]EJECUTIVO!$G$41," ","TRIMESTRE 2018 2019") -> III TRIMESTRE 2018 2019 | J35: =CONCATENATE([6]EJECUTIVO!$G$41," ","TRIMESTRE 2018 2019") -> I TRIMESTRE 2018 2019 | L35: =CONCATENATE([7]EJECUTIVO!$G$41," ","TRIMESTRE 2018 2019") -> III TRIMESTRE 2018 2019 | N35: =CONCATENATE([8]EJECUTIVO!$G$41," ","TRIMESTRE 2018 2019") -> III TRIMESTRE 2018 2019
A36: 1.4.1 Saldo de Balanza en Cuenta Corriente | B36: =[2]EJECUTIVO!$I$41 -> -1022.021558 | C36: =[2]EJECUTIVO!$J$41 -> -974.0367951 | D36: =[3]EJECUTIVO!$I$41 -> -935.5434502 | E36: =[3]EJECUTIVO!$J$41 -> -469.8106363 | F36: =[4]EJECUTIVO!$I$41 -> 659.84803 | G36: =[4]EJECUTIVO!$J$41 -> 1554.37866 | H36: =[5]EJECUTIVO!$I$41 -> -130.6043571 | I36: =[5]EJECUTIVO!$J$41 -> 384.9152452 | J36: =[6]EJECUTIVO!$I$41 -> -8.6 | K36: =[6]EJECUTIVO!$J$41 -> 194.8 | L36: =[7]EJECUTIVO!$I$41 -> -470.7 | M36: =[7]EJECUTIVO!$J$41 -> -709.1 | N36: =[8]EJECUTIVO!$I$41 -> -4189.85292 | O36: =[8]EJECUTIVO!$J$41 -> -3371.030312
A37: 1.4.2 Saldo proyectado en el 2019 y 2020 | B37: =+[2]METAS!$H$23 -> -1456 | C37: =+[2]METAS!$K$23 -> -1461 | D37: =+[3]METAS!$H$23 -> n.d. | E37: =+[3]METAS!$K$23 -> n.d. | F37: =+[4]METAS!$H$23 -> 1337.691277 | G37: =+[4]METAS!$K$23 -> 1482.475472 | H37: =+[5]METAS!$H$23 -> n.d. | I37: =+[5]METAS!$K$23 -> n.d. | J37: =+[6]METAS!$H$23 -> n.d. | K37: =+[6]METAS!$K$23 -> n.d. | L37: =+[7]METAS!$H$23 -> -1397.910114 | M37: =+[7]METAS!$K$23 -> n.d. | N37: =+[8]METAS!$H$23 -> n.d. | O37: =+[8]METAS!$K$23 -> n.d.
A39: 1.5 Saldo RIN del Banco Central, en millones de US$ | B39: =IF([2]EJECUTIVO!$G$22=[2]EJECUTIVO!$J$4,[2]EJECUTIVO!$G$22,(CONCATENATE([2]EJECUTIVO!$G$22," ",[2]EJECUTIVO!$I$21," ",[2]EJECUTIVO!$J$21))) -> ENERO 2019 2020 | D39: =IF([3]EJECUTIVO!$G$22=[3]EJECUTIVO!$J$4,[3]EJECUTIVO!$G$22,(CONCATENATE([3]EJECUTIVO!$G$22," ",[3]EJECUTIVO!$I$21," ",[3]EJECUTIVO!$J$21))) -> ENERO 2019 2020 | F39: =IF([4]EJECUTIVO!$G$22=[4]EJECUTIVO!$J$4,[4]EJECUTIVO!$G$22,(CONCATENATE([4]EJECUTIVO!$G$22," ",[4]EJECUTIVO!$I$21," ",[4]EJECUTIVO!$J$21))) -> ENERO 2019 2020 | H39: =IF([2]EJECUTIVO!$G$22=[5]EJECUTIVO!$J$4,[5]EJECUTIVO!$G$22,(CONCATENATE([5]EJECUTIVO!$G$22," ",[5]EJECUTIVO!$I$21," ",[5]EJECUTIVO!$J$21))) -> ENERO 2019 2020 | J39: =IF([2]EJECUTIVO!$G$22=[6]EJECUTIVO!$J$4,[6]EJECUTIVO!$G$22,(CONCATENATE([6]EJECUTIVO!$G$22," ",[6]EJECUTIVO!$I$21," ",[6]EJECUTIVO!$J$21))) -> DICIEMBRE 2018 2019 | L39: =IF([2]EJECUTIVO!$G$22=[7]EJECUTIVO!$J$4,[7]EJECUTIVO!$G$22,(CONCATENATE([7]EJECUTIVO!$G$22," ",[7]EJECUTIVO!$I$21," ",[7]EJECUTIVO!$J$21))) -> ENERO 2019 2020 | N39: =IF([2]EJECUTIVO!$G$22=[8]EJECUTIVO!$J$4,[8]EJECUTIVO!$G$22,(CONCATENATE([8]EJECUTIVO!$G$22," ",[8]EJECUTIVO!$I$21," ",[8]EJECUTIVO!$J$21))) -> DICIEMBRE 2018 2019
A40: 1.5.1 Saldo RIN a fines de mes | B40: =[2]EJECUTIVO!$I$22 -> 7571.5875 | C40: =ROUND([2]EJECUTIVO!$J$22,0) -> 8211 | D40: =[3]EJECUTIVO!$I$22 -> 3493.55 | E40: =[3]EJECUTIVO!$J$22 -> 3948.04 | F40: =[4]EJECUTIVO!$I$22 -> 12452.4 | G40: =ROUND([4]EJECUTIVO!$J$22,0) -> 14895 | H40: =[5]EJECUTIVO!$I$22 -> 4788.9 | I40: =ROUND([5]EJECUTIVO!$J$22,0) -> 5764 | J40: =[6]EJECUTIVO!$I$22 -> 2038.9 | K40: =ROUND([6]EJECUTIVO!$J$22,0) -> 2208 | L40: =[7]EJECUTIVO!$I$22 -> 7046.504965 | M40: =ROUND([7]EJECUTIVO!$J$22,0) -> 10408 | N40: =[8]EJECUTIVO!$I$22 -> 2907.058265 | O40: =ROUND([8]EJECUTIVO!$J$22,0) -> 4143
A41: 1.5.2 Saldo en el 2019 y proyectado para el 2020 | B41: =+[2]METAS!$H$25 -> 8912.3 | C41: =[2]METAS!$K$25 -> 9031.636364 | D41: =+[3]METAS!$H$25 -> 3936.49 | E41: =[3]METAS!$K$25 -> n.d. | F41: =+[4]METAS!$H$25 -> 14789 | G41: =[4]METAS!$K$25 -> 15789 | H41: =+[5]METAS!$H$25 -> 5808.856929 | I41: =[5]METAS!$K$25 -> n.d | J41: =+[6]METAS!$H$25 -> 2208.4 | K41: =[6]METAS!$K$25 -> n.d. | L41: =+[7]METAS!$H$25 -> 8781.4 | M41: =[7]METAS!$K$25 -> n.d. | N41: =+[8]METAS!$H$25 -> 4143.34042 | O41: =[8]METAS!$K$25 -> n.d.
B42: =IF([2]EJECUTIVO!$J$16=[2]EJECUTIVO!$J$4,[2]EJECUTIVO!$G$16,(CONCATENATE([2]EJECUTIVO!$G$16," ",[2]EJECUTIVO!$I$15," ",[2]EJECUTIVO!$J$15))) -> DICIEMBRE 2018 2019 | D42: =IF([3]EJECUTIVO!$J$16=[3]EJECUTIVO!$J$4,[3]EJECUTIVO!$G$16,(CONCATENATE([3]EJECUTIVO!$G$16," ",[3]EJECUTIVO!$I$15," ",[3]EJECUTIVO!$J$15))) -> ENERO 2019 2020 | F42: =IF([4]EJECUTIVO!$J$16=[4]EJECUTIVO!$J$4,[4]EJECUTIVO!$G$16,(CONCATENATE([4]EJECUTIVO!$G$16," ",[4]EJECUTIVO!$I$15," ",[4]EJECUTIVO!$J$15))) -> DICIEMBRE 2018 2019 | H42: =IF([5]EJECUTIVO!$J$16=[5]EJECUTIVO!$J$4,[5]EJECUTIVO!$G$16,(CONCATENATE([5]EJECUTIVO!$G$16," ",[5]EJECUTIVO!$I$15," ",[5]EJECUTIVO!$J$15))) -> DICIEMBRE 2018 2019 | J42: =IF([6]EJECUTIVO!$J$16=[6]EJECUTIVO!$J$4,[6]EJECUTIVO!$G$16,(CONCATENATE([6]EJECUTIVO!$G$16," ",[6]EJECUTIVO!$I$15," ",[6]EJECUTIVO!$J$15))) -> ABRIL 2018 2019 | L42: =IF([7]EJECUTIVO!$J$16=[7]EJECUTIVO!$J$4,[7]EJECUTIVO!$G$16,(CONCATENATE([7]EJECUTIVO!$G$16," ",[7]EJECUTIVO!$I$15," ",[7]EJECUTIVO!$J$15))) -> DICIEMBRE 2018 2019 | N42: =IF([8]EJECUTIVO!$J$16=[8]EJECUTIVO!$J$4,[8]EJECUTIVO!$G$16,(CONCATENATE([8]EJECUTIVO!$G$16," ",[8]EJECUTIVO!$I$15," ",[8]EJECUTIVO!$J$15))) -> DICIEMBRE 2018 2019
A43: 1.5.3 Saldo RIN/ Importaciones (importación promedio al mes indicado) | B43: =[2]EJECUTIVO!$I$19 -> 5.209060944 | C43: =[2]EJECUTIVO!$J$19 -> 6.353805593 | D43: =[3]EJECUTIVO!$I$19 -> 3.611053687 | E43: =[3]EJECUTIVO!$J$19 -> -0.35839078 | F43: =[4]EJECUTIVO!$I$19 -> 7.780018705 | G43: =[4]EJECUTIVO!$J$19 -> 8.926333156 | H43: =[5]EJECUTIVO!$I$19 -> 5.543598914 | I43: =[5]EJECUTIVO!$J$19 -> 6.929478735 | J43: =[6]EJECUTIVO!$I$19 -> 4.553571429 | K43: =[6]EJECUTIVO!$J$19 -> 3.604364633 | L43: =[7]EJECUTIVO!$I$19 -> 4.528959746 | M43: =[7]EJECUTIVO!$J$19 -> 5.194045741 | N43: =[8]EJECUTIVO!$I$19 -> 1.51633291 | O43: =[8]EJECUTIVO!$J$19 -> 2.313447031
A44: 1.5.3 Saldo RIN/ Importaciones (importación promedio al mes indicado) | B44: =IF([2]EJECUTIVO!$J$37=[2]EJECUTIVO!$J$4,CONCATENATE([2]EJECUTIVO!$G$38," TRIMESTRE"," "),CONCATENATE([2]EJECUTIVO!$G$38," TRIMESTRE ",[2]EJECUTIVO!$I$37," ",[2]EJECUTIVO!$J$37)) -> III TRIMESTRE 2018 2019 | D44: =IF([3]EJECUTIVO!$J$37=[3]EJECUTIVO!$J$4,[3]EJECUTIVO!$G$38,(CONCATENATE([3]EJECUTIVO!$G$38," ",[3]EJECUTIVO!$I$37," ",[3]EJECUTIVO!$J$37))) -> ENERO | F44: =IF([4]EJECUTIVO!$J$37=[4]EJECUTIVO!$J$4,CONCATENATE([4]EJECUTIVO!$G$38," TRIMESTRE"," "),CONCATENATE([4]EJECUTIVO!$G$38," TRIMESTRE ",[4]EJECUTIVO!$I$37," ",[4]EJECUTIVO!$J$37)) -> ENERO TRIMESTRE | H44: =IF([5]EJECUTIVO!$J$37=[5]EJECUTIVO!$J$4,CONCATENATE([5]EJECUTIVO!$G$38," TRIMESTRE"," "),CONCATENATE([5]EJECUTIVO!$G$38," TRIMESTRE ",[5]EJECUTIVO!$I$37," ",[5]EJECUTIVO!$J$37)) -> ENERO TRIMESTRE | J44: =IF([6]EJECUTIVO!$J$37=[6]EJECUTIVO!$J$4,CONCATENATE([6]EJECUTIVO!$G$38," TRIMESTRE"," "),CONCATENATE([6]EJECUTIVO!$G$38," TRIMESTRE ",[6]EJECUTIVO!$I$37," ",[6]EJECUTIVO!$J$37)) -> JUNIO TRIMESTRE | L44: =IF([7]EJECUTIVO!$J$37=[7]EJECUTIVO!$J$4,CONCATENATE([7]EJECUTIVO!$G$38," TRIMESTRE"," "),CONCATENATE([7]EJECUTIVO!$G$38," TRIMESTRE ",[7]EJECUTIVO!$I$37," ",[7]EJECUTIVO!$J$37)) -> SEPTIEMBRE TRIMESTRE 2018 2019 | N44: =IF([7]EJECUTIVO!$J$37=[7]EJECUTIVO!$J$4,CONCATENATE([7]EJECUTIVO!$G$38," TRIMESTRE"," "),CONCATENATE([7]EJECUTIVO!$G$38," TRIMESTRE ",[7]EJECUTIVO!$I$37," ",[7]EJECUTIVO!$J$37)) -> SEPTIEMBRE TRIMESTRE 2018 2019
A45: 1.5.3 Saldo RIN/ Importaciones (importación promedio al mes indicado) | B45: =[2]EJECUTIVO!$I$38 -> 368.0018657 | C45: =[2]EJECUTIVO!$J$38 -> 383.3417691 | D45: =[3]EJECUTIVO!$I$38 -> 400.62 | E45: =[3]EJECUTIVO!$J$38 -> 424.53 | F45: =[4]EJECUTIVO!$I$38 -> 688.0764 | G45: =[4]EJECUTIVO!$J$38 -> 834.6104 | H45: =[5]EJECUTIVO!$I$38 -> 386.0253914 | I45: =[5]EJECUTIVO!$J$38 -> 420.9340616 | J45: =[6]EJECUTIVO!$I$38 -> 724.6 | K45: =[6]EJECUTIVO!$J$38 -> 796.6 | L45: =[7]EJECUTIVO!$I$38 -> 4866.434489 | M45: =[7]EJECUTIVO!$J$38 -> 5292.91886 | N45: =[7]EJECUTIVO!$I$38 -> 4866.434489 | O45: =[7]EJECUTIVO!$J$38 -> 5292.91886
A46: 1.5.3 Saldo RIN/ Importaciones (importación promedio al mes indicado) | B46: =[2]METAS!$H$27 -> n.d. | C46: =[2]METAS!$M$27 -> n.d | D46: =[3]METAS!$H$27 -> 5650.21 | E46: =[3]METAS!$M$27 ->  | F46: =[4]METAS!$H$27 -> 10508.3074 | G46: =[4]METAS!$M$27 -> 11664.213 | H46: =[5]METAS!$H$27 -> 5523.57091 | I46: =[5]METAS!$M$27 -> 5429 | J46: =[6]METAS!$H$27 -> n.d. | K46: =[6]METAS!$M$27 -> n.d. | L46: =[7]METAS!$H$27 -> n.d. | M46: =[7]METAS!$M$27 -> n.d. | N46: =[7]METAS!$H$27 -> n.d. | O46: =[7]METAS!$M$27 -> n.d.
A47: 2. Tipo de Cambio | B47: =IF([2]EJECUTIVO!$J$4=[2]EJECUTIVO!$J$8,[2]EJECUTIVO!$G$10,CONCATENATE([2]EJECUTIVO!$G$31," ",[2]EJECUTIVO!$I$30," ",[2]EJECUTIVO!$J$30)) -> DICIEMBRE 2018 2019 | D47: =IF([3]EJECUTIVO!$J$4=[3]EJECUTIVO!$J$8,[3]EJECUTIVO!$G$10,CONCATENATE([3]EJECUTIVO!$G$31," ",[3]EJECUTIVO!$I$30," ",[3]EJECUTIVO!$J$30)) -> DICIEMBRE 2018 2019 | F47: =IF([4]EJECUTIVO!$J$4=[4]EJECUTIVO!$J$8,[4]EJECUTIVO!$G$10,CONCATENATE([4]EJECUTIVO!$G$31," ",[4]EJECUTIVO!$I$30," ",[4]EJECUTIVO!$J$30)) -> DICIEMBRE 2018 2019 | H47: =IF([5]EJECUTIVO!$J$4=[5]EJECUTIVO!$J$8,[5]EJECUTIVO!$G$10,CONCATENATE([5]EJECUTIVO!$G$31," ",[5]EJECUTIVO!$I$30," ",[5]EJECUTIVO!$J$30)) -> DICIEMBRE 2018 2019 | J47: =IF([6]EJECUTIVO!$J$4=[6]EJECUTIVO!$J$8,[6]EJECUTIVO!$G$10,CONCATENATE([6]EJECUTIVO!$G$31," ",[6]EJECUTIVO!$I$30," ",[6]EJECUTIVO!$J$30)) -> DICIEMBRE 2018 2019 | L47: =IF([7]EJECUTIVO!$J$4=[7]EJECUTIVO!$J$8,[7]EJECUTIVO!$G$10,CONCATENATE([7]EJECUTIVO!$G$31," ",[7]EJECUTIVO!$I$30," ",[7]EJECUTIVO!$J$30)) -> DICIEMBRE 2018 2019 | N47: =IF([8]EJECUTIVO!$J$4=[8]EJECUTIVO!$J$8,[8]EJECUTIVO!$G$10,CONCATENATE([8]EJECUTIVO!$G$31," ",[8]EJECUTIVO!$I$30," ",[8]EJECUTIVO!$J$30)) -> DICIEMBRE 2018 2019
A48: 2.1 Unidades Moneda Nacional por US$, promedio compra | B48: =[2]EJECUTIVO!$I$31 -> 597.9225806 | C48: =[2]EJECUTIVO!$J$31 -> 565.0916129 | D48: =[3]EJECUTIVO!$I$31 -> 8.75 | E48: =[3]EJECUTIVO!$J$31 -> 8.75 | F48: =[4]EJECUTIVO!$I$31 -> 7.71333 | G48: =[4]EJECUTIVO!$J$31 -> 7.66984 | H48: =[5]EJECUTIVO!$I$31 -> 24.32865789 | I48: =[5]EJECUTIVO!$J$31 -> 24.64541429 | J48: =[6]EJECUTIVO!$I$31 -> 32.44291128 | K48: =[6]EJECUTIVO!$J$31 -> 33.60783629 | L48: =[7]EJECUTIVO!$I$31 -> 50.147175 | M48: =[7]EJECUTIVO!$J$31 -> 52.8421 | N48: =[8]EJECUTIVO!$I$31 -> 1 | O48: =[8]EJECUTIVO!$J$31 -> 1
A49: 2.2 ITCER-USA, 2000=100, tasa de variación interanual | B49: =[2]EJECUTIVO!$I$32 -> 5.962840335 | C49: =[2]EJECUTIVO!$J$32 -> -4.780826729 | D49: =[3]EJECUTIVO!$I$32 -> 1.465492973 | E49: =[3]EJECUTIVO!$J$32 -> 2.294238755 | F49: =[4]EJECUTIVO!$I$32 -> 4.917278071 | G49: =[4]EJECUTIVO!$J$32 -> -1.641219032 | H49: =[5]EJECUTIVO!$I$32 -> 0.9784034653 | I49: =[5]EJECUTIVO!$J$32 -> -0.4489518786 | J49: =[6]EJECUTIVO!$I$32 -> 3.72642259 | K49: =[6]EJECUTIVO!$J$32 -> -0.03008078784 | L49: =[7]EJECUTIVO!$I$32 -> 4.988733699 | M49: =[7]EJECUTIVO!$J$32 -> 3.97642762 | N49: =[8]EJECUTIVO!$I$32 -> 1.749015671 | O49: =[8]EJECUTIVO!$J$32 -> 2.34918018
A50: 2.3 ITCER-Global f/, 2000=100, tasa de variación interanual | B50: =[2]EJECUTIVO!$I$33 -> 3.828529171 | C50: =[2]EJECUTIVO!$J$33 -> -5.054861711 | D50: =[3]EJECUTIVO!$I$33 -> -0.4214309694 | E50: =[3]EJECUTIVO!$J$33 -> 2.773953425 | F50: =[4]EJECUTIVO!$I$33 -> 2.914502607 | G50: =[4]EJECUTIVO!$J$33 -> -1.741202332 | H50: =[5]EJECUTIVO!$I$33 -> -1.031574956 | I50: =[5]EJECUTIVO!$J$33 -> -1.188307453 | J50: =[6]EJECUTIVO!$I$33 -> 2.216152623 | K50: =[6]EJECUTIVO!$J$33 -> 0.2546567958 | L50: =[7]EJECUTIVO!$I$33 -> 0.0346704399 | M50: =[7]EJECUTIVO!$J$33 -> 2.969084044 | N50: =[8]EJECUTIVO!$I$33 -> -0.615087174 | O50: =[8]EJECUTIVO!$J$33 -> 1.498315637
A51: 2.4 ITCER-Región g/, 2000=100, tasa de variación interanual | B51: =[2]EJECUTIVO!$I$34 -> 2.91008185 | C51: =[2]EJECUTIVO!$J$34 -> -5.121130903 | D51: =[3]EJECUTIVO!$I$34 -> -2.227266257 | E51: =[3]EJECUTIVO!$J$34 -> 3.949554015 | F51: =[4]EJECUTIVO!$I$34 -> 2.479942093 | G51: =[4]EJECUTIVO!$J$34 -> -2.176933533 | H51: =[5]EJECUTIVO!$I$34 -> -2.535186183 | I51: =[5]EJECUTIVO!$J$34 -> -2.181389946 | J51: =[6]EJECUTIVO!$I$34 -> 0.3230170894 | K51: =[6]EJECUTIVO!$J$34 -> 0.1228410932 | L51: =[7]EJECUTIVO!$I$34 -> 1.691534485 | M51: =[7]EJECUTIVO!$J$34 -> 7.401986526 | N51: =[8]EJECUTIVO!$I$34 -> -2.790962266 | O51: =[8]EJECUTIVO!$J$34 -> 5.860393804
A52: 2.5 ITCER-Global f/, tasa de variación con el año base (2000) | B52: =[2]EJECUTIVO!$I$35 -> -14.11029998 | C52: =[2]EJECUTIVO!$J$35 -> -18.45190554 | D52: =[3]EJECUTIVO!$I$35 -> 3.983341151 | E52: =[3]EJECUTIVO!$J$35 -> 6.867790604 | F52: =[4]EJECUTIVO!$I$35 -> -45.08749247 | G52: =[4]EJECUTIVO!$J$35 -> -46.04363033 | H52: =[5]EJECUTIVO!$I$35 -> -15.05367989 | I52: =[5]EJECUTIVO!$J$35 -> -16.06310335 | J52: =[6]EJECUTIVO!$I$35 -> 12.9460347 | K52: =[6]EJECUTIVO!$J$35 -> 13.23365945 | L52: =[7]EJECUTIVO!$I$35 -> 31.43631582 | M52: =[7]EJECUTIVO!$J$35 -> 35.3387705 | N52: =[8]EJECUTIVO!$I$35 -> -11.38649836 | O52: =[8]EJECUTIVO!$J$35 -> -10.0587884
A54: III. SECTOR FISCAL
A55: 1. Resultado del Gobierno Central, en millones de US$ | B55: =IF([2]EJECUTIVO!$J$49=[2]EJECUTIVO!$J$4,[2]EJECUTIVO!$G$49,(CONCATENATE([2]EJECUTIVO!$G$49," ",[2]EJECUTIVO!$I$48," ",[2]EJECUTIVO!$J$48))) -> DICIEMBRE 2018 2019 | D55: =IF([3]EJECUTIVO!$J$49=[3]EJECUTIVO!$J$4,[3]EJECUTIVO!$G$49,(CONCATENATE([3]EJECUTIVO!$G$49," ",[3]EJECUTIVO!$I$48," ",[3]EJECUTIVO!$J$48))) -> ENERO 2019 2020 | F55: =IF([4]EJECUTIVO!$J$49=[4]EJECUTIVO!$J$4,[4]EJECUTIVO!$G$49,(CONCATENATE([4]EJECUTIVO!$G$49," ",[4]EJECUTIVO!$I$48," ",[4]EJECUTIVO!$J$48))) -> DICIEMBRE 2018 2019 | H55: =IF([5]EJECUTIVO!$J$49=[5]EJECUTIVO!$J$4,[5]EJECUTIVO!$G$49,(CONCATENATE([5]EJECUTIVO!$G$49," ",[5]EJECUTIVO!$I$48," ",[5]EJECUTIVO!$J$48))) -> NOVIEMBRE 2018 2019 | J55: =IF([6]EJECUTIVO!$J$49=[6]EJECUTIVO!$J$4,[6]EJECUTIVO!$G$49,(CONCATENATE([6]EJECUTIVO!$G$49," ",[6]EJECUTIVO!$I$48," ",[6]EJECUTIVO!$J$48))) -> DICIEMBRE 2017 2018 | L55: =IF([7]EJECUTIVO!$J$49=[7]EJECUTIVO!$J$4,[7]EJECUTIVO!$G$49,(CONCATENATE([7]EJECUTIVO!$G$49," ",[7]EJECUTIVO!$I$48," ",[7]EJECUTIVO!$J$48))) -> NOVIEMBRE 2018 2019 | N55: =IF([8]EJECUTIVO!$J$49=[8]EJECUTIVO!$J$4,[8]EJECUTIVO!$G$49,(CONCATENATE([8]EJECUTIVO!$G$49," ",[8]EJECUTIVO!$I$48," ",[8]EJECUTIVO!$J$48))) -> DICIEMBRE 2018 2019
A56: 1.1 Ingresos totales, acumulado | B56: =[2]EJECUTIVO!$I49 -> 8289.794541 | C56: =[2]EJECUTIVO!$J49 -> 9490.455271 | D56: =[3]EJECUTIVO!$I49 -> 457.46 | E56: =[3]EJECUTIVO!$J49 -> 507.09 | F56: =[4]EJECUTIVO!$I49 -> 8286.828283 | G56: =[4]EJECUTIVO!$J49 -> 8653.848743 | H56: =[5]EJECUTIVO!$I49 -> 4228.205091 | I56: =[5]EJECUTIVO!$J49 -> 4121.740978 | J56: =[6]EJECUTIVO!$I49 -> 2457.771513 | K56: =[6]EJECUTIVO!$J49 -> 2215.982804 | L56: =[7]EJECUTIVO!$I49 -> 11167.83582 | M56: =[7]EJECUTIVO!$J49 -> 11731.40144 | N56: =[8]EJECUTIVO!$I49 -> 9057 | O56: =[8]EJECUTIVO!$J49 -> 3319.2
A57: 1.2 Ingresos tributarios, acumulado | B57: =[2]EJECUTIVO!$I50 -> 7638.332766 | C57: =[2]EJECUTIVO!$J50 -> 8652.702664 | D57: =[3]EJECUTIVO!$I50 -> 440.44 | E57: =[3]EJECUTIVO!$J50 -> 461.42 | F57: =[4]EJECUTIVO!$I50 -> 7845.658037 | G57: =[4]EJECUTIVO!$J50 -> 8150.842923 | H57: =[5]EJECUTIVO!$I50 -> 3960.665865 | I57: =[5]EJECUTIVO!$J50 -> 3892.947156 | J57: =[6]EJECUTIVO!$I50 -> 2285.439666 | K57: =[6]EJECUTIVO!$J50 -> 2046.008893 | L57: =[7]EJECUTIVO!$I50 -> 10348.38409 | M57: =[7]EJECUTIVO!$J50 -> 10806.25656 | N57: =[8]EJECUTIVO!$I50 -> 6015 | O57: =[8]EJECUTIVO!$J50 -> 1437.8
A58: 1.3 Gastos totales, acumulado | B58: =[2]EJECUTIVO!$I51 -> 11699.11827 | C58: =[2]EJECUTIVO!$J51 -> 13945.3557 | D58: =[3]EJECUTIVO!$I51 -> 469.36 | E58: =[3]EJECUTIVO!$J51 -> 539.88 | F58: =[4]EJECUTIVO!$I51 -> 9665.310088 | G58: =[4]EJECUTIVO!$J51 -> 10398.57319 | H58: =[5]EJECUTIVO!$I51 -> 4458.746573 | I58: =[5]EJECUTIVO!$J51 -> 4710.314294 | J58: =[6]EJECUTIVO!$I51 -> 2659.015505 | K58: =[6]EJECUTIVO!$J51 -> 2547.153363 | L58: =[7]EJECUTIVO!$I51 -> 11936.75462 | M58: =[7]EJECUTIVO!$J51 -> 13229.63132 | N58: =[8]EJECUTIVO!$I51 -> 10866 | O58: =[8]EJECUTIVO!$J51 -> 2516.1
A59: 1.4 Donaciones, acumulado | B59: =[2]EJECUTIVO!$I52 -> 0 | C59: =[2]EJECUTIVO!$J52 -> 0 | D59: =[3]EJECUTIVO!$I52 -> 4.27 | E59: =[3]EJECUTIVO!$J52 -> 10.08 | F59: =[4]EJECUTIVO!$I52 -> 26.1494232 | G59: =[4]EJECUTIVO!$J52 -> 11.27380697 | H59: =[5]EJECUTIVO!$I52 -> 127.879466 | I59: =[5]EJECUTIVO!$J52 -> 124.0080236 | J59: =[6]EJECUTIVO!$I52 -> 123.9401325 | K59: =[6]EJECUTIVO!$J52 -> 78.60671632 | L59: =[7]EJECUTIVO!$I52 -> 7.297580573 | M59: =[7]EJECUTIVO!$J52 -> 14.09971587 | N59: =[8]EJECUTIVO!$I52 -> 0 | O59: =[8]EJECUTIVO!$J52 -> 0
A60: 1.5 Déficit (-) superávit (+) con donaciones | B60: =[2]EJECUTIVO!$I56 -> -3409.323728 | C60: =[2]EJECUTIVO!$J56 -> -4454.900431 | D60: =[3]EJECUTIVO!$I56 -> -7.63 | E60: =[3]EJECUTIVO!$J56 -> -22.71 | F60: =[4]EJECUTIVO!$I56 -> -1352.332382 | G60: =[4]EJECUTIVO!$J56 -> -1733.450638 | H60: =[5]EJECUTIVO!$I56 -> -102.6620157 | I60: =[5]EJECUTIVO!$J56 -> -464.5652928 | J60: =[6]EJECUTIVO!$I56 -> -77.30385891 | K60: =[6]EJECUTIVO!$J56 -> -252.5638424 | L60: =[7]EJECUTIVO!$I56 -> -761.6212196 | M60: =[7]EJECUTIVO!$J56 -> -1484.130172 | N60: =[8]EJECUTIVO!$I56 -> -1809 | O60: =[8]EJECUTIVO!$J56 -> 803.1
A61: 1.5.1 Financiamiento interno | B61: =[2]EJECUTIVO!$I57 -> 3159.100286 | C61: =[2]EJECUTIVO!$J57 -> 2475.648183 | D61: =[3]EJECUTIVO!$I57 -> 13.9 | E61: =[3]EJECUTIVO!$J57 -> 35.51 | F61: =[4]EJECUTIVO!$I57 -> 1291.634372 | G61: =[4]EJECUTIVO!$J57 -> 828.9056035 | H61: =[5]EJECUTIVO!$I57 -> 93.94398688 | I61: =[5]EJECUTIVO!$J57 -> 468.4739949 | J61: =[6]EJECUTIVO!$I57 -> -247.5751598 | K61: =[6]EJECUTIVO!$J57 -> 114.4544947 | L61: =[7]EJECUTIVO!$I57 -> -1718.126184 | M61: =[7]EJECUTIVO!$J57 -> -212.804207 | N61: =[8]EJECUTIVO!$I57 -> n.d. | O61: =[8]EJECUTIVO!$J57 -> n.d.
A62: 1.5.2 Financiamiento externo | B62: =[2]EJECUTIVO!$I58 -> 250.2231149 | C62: =[2]EJECUTIVO!$J58 -> 1979.252677 | D62: =[3]EJECUTIVO!$I58 -> -6.26 | E62: =[3]EJECUTIVO!$J58 -> -12.79 | F62: =[4]EJECUTIVO!$I58 -> 60.69734899 | G62: =[4]EJECUTIVO!$J58 -> 904.5450346 | H62: =[5]EJECUTIVO!$I58 -> 8.71826374 | I62: =[5]EJECUTIVO!$J58 -> -3.90896723 | J62: =[6]EJECUTIVO!$I58 -> 324.8790187 | K62: =[6]EJECUTIVO!$J58 -> 138.1093477 | L62: =[7]EJECUTIVO!$I58 -> 2479.747404 | M62: =[7]EJECUTIVO!$J58 -> 1458.276525 | N62: =[8]EJECUTIVO!$I58 -> n.d. | O62: =[8]EJECUTIVO!$J58 -> n.d.
A63: 1.6 Déficit (-) superávit (+) en el 2019 y estimado 2020, con donaciones | B63: =[2]METAS!$H$39 -> -4454.900431 | C63: =[2]METAS!$K$39 -> -3918.136364 | D63: =[3]METAS!$H$39 -> -436.04 | E63: =[3]METAS!$K$39 -> n.d. | F63: =[4]METAS!$H$39 -> -1733.450638 | G63: =[4]METAS!$K$39 -> 1621.464631 | H63: =[5]METAS!$H$39 -> n.d. | I63: n.d. | J63: =[6]METAS!$H$39 -> n.d. | K63: =[6]METAS!$K$39 -> n.d. | L63: =[7]METAS!$H$39 -> n.d. | M63: =[7]METAS!$K$39 -> n.d. | N63: =[8]METAS!$H$39 -> n.d. | O63: =[8]METAS!$K$39 -> n.d.
A64: 1.7 Ingresos Corrientes, tasa de variación interanual | B64: =[2]EJECUTIVO!$I53 -> 3.935686295 | C64: =[2]EJECUTIVO!$J53 -> 6.849501789 | D64: =[3]EJECUTIVO!$I53 -> 5.008722799 | E64: =[3]EJECUTIVO!$J53 -> 10.84903598 | F64: =[4]EJECUTIVO!$I53 -> 3.845331192 | G64: =[4]EJECUTIVO!$J53 -> 6.935570681 | H64: =[5]EJECUTIVO!$I53 -> 7.089302542 | I64: =[5]EJECUTIVO!$J53 -> 0.07208557114 | J64: =[6]EJECUTIVO!$I53 -> 11.72180288 | K64: =[6]EJECUTIVO!$J53 -> -5.437856042 | L64: =[7]EJECUTIVO!$I53 -> 12.80656473 | M64: =[7]EJECUTIVO!$J53 -> 8.631106112 | N64: =[8]EJECUTIVO!$I53 -> 15.36277603 | O64: =0.057*100 -> 5.7
A65: 1.8 Relación Gasto Capital / Gasto Total, en porcentajes | B65: =[2]EJECUTIVO!$I54 -> 6.85501153 | C65: =[2]EJECUTIVO!$J54 -> 9.121677097 | D65: =[3]EJECUTIVO!$I54 -> 9.508692688 | E65: =[3]EJECUTIVO!$J54 -> 9.450248203 | F65: =[4]EJECUTIVO!$I54 -> 19.74267816 | G65: =[4]EJECUTIVO!$J54 -> 20.3988929 | H65: =[5]EJECUTIVO!$I54 -> 22.7153961 | I65: =[5]EJECUTIVO!$J54 -> 21.00516799 | J65: =[6]EJECUTIVO!$I54 -> 24.75770719 | K65: =[6]EJECUTIVO!$J54 -> 23.57129457 | L65: =[7]EJECUTIVO!$I54 -> 15.08102517 | M65: =[7]EJECUTIVO!$J54 -> 13.0712341 | N65: =[8]EJECUTIVO!$I54 -> 26.20169651 | O65: =[8]EJECUTIVO!$J54 -> 38.62326617
A66: 1.9 Ahorro Corriente, en millones de US$ | B66: =[2]EJECUTIVO!$I55 -> -2658.752518 | C66: =[2]EJECUTIVO!$J55 -> -3304.014727 | D66: =[3]EJECUTIVO!$I55 -> 32.71 | E66: =[3]EJECUTIVO!$J55 -> 18.23 | F66: =[4]EJECUTIVO!$I55 -> 521.5772734 | G66: =[4]EJECUTIVO!$J55 -> 376.2989408 | H66: =[5]EJECUTIVO!$I55 -> 781.3548245 | I66: =[5]EJECUTIVO!$J55 -> 401.0353806 | J66: =[6]EJECUTIVO!$I55 -> 456.9731987 | K66: =[6]EJECUTIVO!$J55 -> 269.2037934 | L66: =[7]EJECUTIVO!$I55 -> 1029.178952 | M66: =[7]EJECUTIVO!$J55 -> 233.54151 | N66: =[8]EJECUTIVO!$I55 -> 1894 | O66: =[8]EJECUTIVO!$J55 -> 1770.9
A67: 2. Saldo Deuda Pública, en millones de US$ | B67: =IF([2]EJECUTIVO!$J$62=[2]EJECUTIVO!$J$4,[2]EJECUTIVO!$G$62,CONCATENATE([2]EJECUTIVO!$G$62," ",[2]EJECUTIVO!$I$61," ",[2]EJECUTIVO!$J$61)) -> DICIEMBRE 2018 2019 | D67: =IF([3]EJECUTIVO!$J$62=[3]EJECUTIVO!$J$4,[3]EJECUTIVO!$G$62,CONCATENATE([3]EJECUTIVO!$G$62," ",[3]EJECUTIVO!$I$61," ",[3]EJECUTIVO!$J$61)) -> ENERO 2019 2020 | F67: =IF([4]EJECUTIVO!$J$62=[4]EJECUTIVO!$J$4,[4]EJECUTIVO!$G$62,CONCATENATE([4]EJECUTIVO!$G$62," ",[4]EJECUTIVO!$I$61," ",[4]EJECUTIVO!$J$61)) -> DICIEMBRE 2018 2019 | H67: =IF([5]EJECUTIVO!$J$62=[5]EJECUTIVO!$J$4,[5]EJECUTIVO!$G$62,CONCATENATE([5]EJECUTIVO!$G$62," ",[5]EJECUTIVO!$I$61," ",[5]EJECUTIVO!$J$61)) -> DICIEMBRE 2018 2019 | J67: =IF([6]EJECUTIVO!$J$62=[6]EJECUTIVO!$J$4,[6]EJECUTIVO!$G$62,CONCATENATE([6]EJECUTIVO!$G$62," ",[6]EJECUTIVO!$I$61," ",[6]EJECUTIVO!$J$61)) -> DICIEMBRE 2017 2018 | L67: =IF([7]EJECUTIVO!$J$62=[7]EJECUTIVO!$J$4,[7]EJECUTIVO!$G$62,CONCATENATE([7]EJECUTIVO!$G$62," ",[7]EJECUTIVO!$I$61," ",[7]EJECUTIVO!$J$61)) -> DICIEMBRE 2018 2019 | N67: =IF([8]EJECUTIVO!$J$62=[8]EJECUTIVO!$J$4,[8]EJECUTIVO!$G$62,CONCATENATE([8]EJECUTIVO!$G$62," ",[8]EJECUTIVO!$I$61," ",[8]EJECUTIVO!$J$61)) -> DICIEMBRE 2018 2019
A68: 2.1 Saldo Deuda Pública Total h/ | B68: =[2]EJECUTIVO!$I$62 -> 39840.43764 | C68: =[2]EJECUTIVO!$J62 -> 46949.05497 | D68: =[3]EJECUTIVO!$I62 -> 19115.15 | E68: =[3]EJECUTIVO!$J62 -> 19854.42 | F68: =[4]EJECUTIVO!$I62 -> 18991.32682 | G68: =[4]EJECUTIVO!$J62 -> 21163.09784 | H68: =[5]EJECUTIVO!$I62 -> 10496.93801 | I68: =[5]EJECUTIVO!$J62 -> 11055.52623 | J68: =[6]EJECUTIVO!$I62 -> 6490.063884 | K68: =[6]EJECUTIVO!$J62 -> 6883.120352 | L68: =[7]EJECUTIVO!$I62 -> 40975.49 | M68: =[7]EJECUTIVO!$J62 -> 44928.22029 | N68: =[8]EJECUTIVO!$I62 -> 25686.8598 | O68: =[8]EJECUTIVO!$J62 -> 31018.48
A69: 2.1.1 Saldo Deuda Interna Bruta | B69: =[2]EJECUTIVO!$I$63 -> 28214.11664 | C69: =[2]EJECUTIVO!$J63 -> 33831.43497 | D69: =[3]EJECUTIVO!$I63 -> 9513.18 | E69: =[3]EJECUTIVO!$J63 -> 9877.63 | F69: =[4]EJECUTIVO!$I63 -> 15183.91161 | G69: =[4]EJECUTIVO!$J63 -> 17051.91704 | H69: =[5]EJECUTIVO!$I63 -> 7864.082173 | I69: =[5]EJECUTIVO!$J63 -> 8465.296414 | J69: =[6]EJECUTIVO!$I63 -> 944.0085148 | K69: =[6]EJECUTIVO!$J63 -> 933.5610699 | L69: =[7]EJECUTIVO!$I63 -> 21828.85 | M69: =[7]EJECUTIVO!$J63 -> 23753.36029 | N69: =[8]EJECUTIVO!$I63 -> 5112.0811 | O69: =[8]EJECUTIVO!$J63 -> 6795.32
A70: 2.1.1.1 Sector Público No Financiero | B70: =[2]EJECUTIVO!$I$64 -> 24782.61413 | C70: =[2]EJECUTIVO!$J64 -> 29335.81533 | D70: =[3]EJECUTIVO!$I64 -> 4186.25 | E70: =[3]EJECUTIVO!$J64 -> 4259.56 | F70: =[4]EJECUTIVO!$I64 -> 10686.44498 | G70: =[4]EJECUTIVO!$J64 -> 11358.48296 | H70: =[5]EJECUTIVO!$I64 -> 6566.159876 | I70: =[5]EJECUTIVO!$J64 -> 7075.632312 | J70: =[6]EJECUTIVO!$I64 -> 658.1188026 | K70: =[6]EJECUTIVO!$J64 -> 632.9272154 | L70: =[7]EJECUTIVO!$I64 -> 10593.61 | M70: =[7]EJECUTIVO!$J64 -> 12559.34 | N70: =[8]EJECUTIVO!$I64 -> 5112.0811 | O70: =[8]EJECUTIVO!$J64 -> 6795.32
A71: a) Gobierno Central | B71: =[2]EJECUTIVO!$I$65 -> 24540.13659 | C71: =[2]EJECUTIVO!$J65 -> 29085.12333 | D71: =[3]EJECUTIVO!$I65 -> 3795.04 | E71: =[3]EJECUTIVO!$J65 -> 3812.11 | F71: =[4]EJECUTIVO!$I65 -> 10686.44498 | G71: =[4]EJECUTIVO!$J65 -> 11358.48296 | H71: =[5]EJECUTIVO!$I65 -> 4513.180091 | I71: =[5]EJECUTIVO!$J65 -> 4829.841131 | J71: =[6]EJECUTIVO!$I65 -> 658.1188026 | K71: =[6]EJECUTIVO!$J65 -> 632.9272154 | L71: =[7]EJECUTIVO!$I65 -> 9939.11 | M71: =[7]EJECUTIVO!$J65 -> 11832.5 | N71: =[8]EJECUTIVO!$I65 -> 5007.936 | O71: =[8]EJECUTIVO!$J65 -> 6791.5
A72: b) Resto del Sector Público No Financiero | B72: =[2]EJECUTIVO!$I$66 -> 242.4775393 | C72: =[2]EJECUTIVO!$J66 -> 250.691996 | D72: =[3]EJECUTIVO!$I66 -> 391.21 | E72: =[3]EJECUTIVO!$J66 -> 447.45 | F72: =[4]EJECUTIVO!$I66 -> n.d. | G72: =[4]EJECUTIVO!$J66 -> n.d. | H72: =[5]EJECUTIVO!$I66 -> 2052.979786 | I72: =[5]EJECUTIVO!$J66 -> 2245.791181 | J72: =[6]EJECUTIVO!$I66 -> n.d. | K72: =[6]EJECUTIVO!$J66 -> n.d. | L72: =[7]EJECUTIVO!$I66 -> 654.5 | M72: =[7]EJECUTIVO!$J66 -> 726.84 | N72: =[8]EJECUTIVO!$I66 -> 104.1451 | O72: =[8]EJECUTIVO!$J66 -> 3.82
A73: 2.1.1.2 Sector Público Financiero | B73: =[2]EJECUTIVO!$I$67 -> 3431.502514 | C73: =[2]EJECUTIVO!$J67 -> 4495.619639 | D73: =[3]EJECUTIVO!$I67 -> 5326.93 | E73: =[3]EJECUTIVO!$J67 -> 5618.07 | F73: =[4]EJECUTIVO!$I67 -> 4497.466627 | G73: =[4]EJECUTIVO!$J67 -> 5693.434075 | H73: =[5]EJECUTIVO!$I67 -> 1297.922297 | I73: =[5]EJECUTIVO!$J67 -> 1389.664102 | J73: =[6]EJECUTIVO!$I67 -> 285.8897122 | K73: =[6]EJECUTIVO!$J67 -> 300.6338545 | L73: =[7]EJECUTIVO!$I67 -> 11235.24 | M73: =[7]EJECUTIVO!$J67 -> 11194.02029 | N73: =[8]EJECUTIVO!$I67 -> n.d. | O73: =[8]EJECUTIVO!$J67 -> n.d.
A74: a) Banco Central | B74: =[2]EJECUTIVO!$I$68 -> 3431.502514 | C74: =[2]EJECUTIVO!$J68 -> 4495.619639 | D74: =[3]EJECUTIVO!$I68 -> 0 | E74: =[3]EJECUTIVO!$J68 -> 0 | F74: =[4]EJECUTIVO!$I68 -> 4497.466627 | G74: =[4]EJECUTIVO!$J68 -> 5693.434075 | H74: =[5]EJECUTIVO!$I68 -> 1237.620589 | I74: =[5]EJECUTIVO!$J68 -> 1330.914356 | J74: =[6]EJECUTIVO!$I68 -> 285.8897122 | K74: =[6]EJECUTIVO!$J68 -> 300.6338545 | L74: =[7]EJECUTIVO!$I68 -> 11235.24 | M74: =[7]EJECUTIVO!$J68 -> 11194.02029 | N74: =[8]EJECUTIVO!$I68 -> n.d. | O74: =[8]EJECUTIVO!$J68 -> n.d.
A75: b) Resto del Sector Público Financiero | B75: =[2]EJECUTIVO!$I$69 -> n.d. | C75: =[2]EJECUTIVO!$J69 -> n.d. | D75: =[3]EJECUTIVO!$I69 -> 5326.93 | E75: =[3]EJECUTIVO!$J69 -> 5618.07 | F75: =[4]EJECUTIVO!$I69 -> n.d. | G75: =[4]EJECUTIVO!$J69 -> n.d. | H75: =[5]EJECUTIVO!$I69 -> 60.30170756 | I75: =[5]EJECUTIVO!$J69 -> 58.7497463 | J75: =[6]EJECUTIVO!$I69 -> n.d. | K75: =[6]EJECUTIVO!$J69 -> n.d. | L75: =[7]EJECUTIVO!$I69 -> n.d. | M75: =[7]EJECUTIVO!$J69 -> n.d. | N75: =[8]EJECUTIVO!$I69 -> n.d. | O75: =[8]EJECUTIVO!$J69 -> n.d.
A76: 2.1.2 Deuda Intragubernamental | B76: =[2]EJECUTIVO!$I$70 -> n.d. | C76: =[2]EJECUTIVO!$J70 -> n.d. | D76: =[3]EJECUTIVO!$I70 -> n.d. | E76: =[3]EJECUTIVO!$J70 -> n.d. | F76: =[4]EJECUTIVO!$I70 -> 4415.35249 | G76: =[4]EJECUTIVO!$J70 -> 4995.694099 | H76: =[5]EJECUTIVO!$I70 -> 4742.444163 | I76: =[5]EJECUTIVO!$J70 -> 5108.770184 | J76: =[6]EJECUTIVO!$I70 -> n.d. | K76: =[6]EJECUTIVO!$J70 -> n.d. | L76: =[7]EJECUTIVO!$I70 -> 2713.68 | M76: =[7]EJECUTIVO!$J70 -> 2502.02 | N76: =[8]EJECUTIVO!$I70 -> n.d. | O76: =[8]EJECUTIVO!$J70 -> n.d.
A77: a) Deuda Intragubernamental SPNF | B77: =[2]EJECUTIVO!$I$71 -> n.d. | C77: =[2]EJECUTIVO!$J71 -> n.d. | D77: =[3]EJECUTIVO!$I71 -> n.d. | E77: =[3]EJECUTIVO!$J71 -> n.d. | F77: =[4]EJECUTIVO!$I71 -> 2408.057826 | G77: =[4]EJECUTIVO!$J71 -> 2479.823066 | H77: =[5]EJECUTIVO!$I71 -> 3388.408631 | I77: =[5]EJECUTIVO!$J71 -> 3542.478323 | J77: =[6]EJECUTIVO!$I71 -> n.d. | K77: =[6]EJECUTIVO!$J71 -> n.d. | L77: =[7]EJECUTIVO!$I71 -> 2713.68 | M77: =[7]EJECUTIVO!$J71 -> 2502.02 | N77: =[8]EJECUTIVO!$I71 -> n.d. | O77: =[8]EJECUTIVO!$J71 -> n.d.
A78: b) Deuda Intragubernamental del BC | B78: =[2]EJECUTIVO!$I$72 -> n.d. | C78: =[2]EJECUTIVO!$J72 -> n.d. | D78: =[3]EJECUTIVO!$I72 -> n.d. | E78: =[3]EJECUTIVO!$J72 -> n.d. | F78: =[4]EJECUTIVO!$I72 -> 2007.294663 | G78: =[4]EJECUTIVO!$J72 -> 2515.871034 | H78: =[5]EJECUTIVO!$I72 -> 1354.035532 | I78: =[5]EJECUTIVO!$J72 -> 1566.291861 | J78: =[6]EJECUTIVO!$I72 -> n.d. | K78: =[6]EJECUTIVO!$J72 -> n.d. | L78: =[7]EJECUTIVO!$I72 -> n.d. | M78: =[7]EJECUTIVO!$J72 -> n.d. | N78: =[8]EJECUTIVO!$I72 -> n.d. | O78: =[8]EJECUTIVO!$J72 -> n.d.
A79: 2.1.3 Saldo Deuda Interna Consolidada (2.1.1 - 2.1.2) | B79: =[2]EJECUTIVO!$I$73 -> n.d. | C79: =[2]EJECUTIVO!$J73 -> n.d. | D79: =[3]EJECUTIVO!$I73 -> n.d. | E79: =[3]EJECUTIVO!$J73 -> n.d. | F79: =[4]EJECUTIVO!$I73 -> 10768.55912 | G79: =[4]EJECUTIVO!$J73 -> 12056.22294 | H79: =[5]EJECUTIVO!$I73 -> 3121.63801 | I79: =[5]EJECUTIVO!$J73 -> 3356.526229 | J79: =[6]EJECUTIVO!$I73 -> n.d. | K79: =[6]EJECUTIVO!$J73 -> n.d. | L79: =[7]EJECUTIVO!$I73 -> 19115.17 | M79: =[7]EJECUTIVO!$J73 -> 21251.34029 | N79: =[8]EJECUTIVO!$I73 -> n.d. | O79: =[8]EJECUTIVO!$J73 -> n.d.
A80: 2.1.4 Saldo Deuda Externa | B80: =[2]EJECUTIVO!$I74 -> 11626.321 | C80: =[2]EJECUTIVO!$J74 -> 13117.62 | D80: =[3]EJECUTIVO!$I74 -> 9601.97 | E80: =[3]EJECUTIVO!$J74 -> 9976.79 | F80: =[4]EJECUTIVO!$I74 -> 8222.7677 | G80: =[4]EJECUTIVO!$J74 -> 9106.8749 | H80: =[5]EJECUTIVO!$I74 -> 7375.3 | I80: =[5]EJECUTIVO!$J74 -> 7699 | J80: =[6]EJECUTIVO!$I74 -> 5546.055369 | K80: =[6]EJECUTIVO!$J74 -> 5949.559282 | L80: =[7]EJECUTIVO!$I74 -> 21860.32 | M80: =[7]EJECUTIVO!$J74 -> 23676.88 | N80: =[8]EJECUTIVO!$I74 -> 20574.7787 | O80: =[8]EJECUTIVO!$J74 -> 24223.16
A81: 2.1.4.1 Sector Público No Financiero | B81: =[2]EJECUTIVO!$I75 -> 8733.681 | C81: =[2]EJECUTIVO!$J75 -> 10876.84 | D81: =[3]EJECUTIVO!$I75 -> 9218.66 | E81: =[3]EJECUTIVO!$J75 -> 9654.4 | F81: =[4]EJECUTIVO!$I75 -> 8222.7677 | G81: =[4]EJECUTIVO!$J75 -> 9106.8749 | H81: =[5]EJECUTIVO!$I75 -> 7258.7 | I81: =[5]EJECUTIVO!$J75 -> 7608.9 | J81: =[6]EJECUTIVO!$I75 -> 3988.674552 | K81: =[6]EJECUTIVO!$J75 -> 4215.006059 | L81: =[7]EJECUTIVO!$I75 -> 21564.56 | M81: =[7]EJECUTIVO!$J75 -> 23383.17 | N81: =[8]EJECUTIVO!$I75 -> 20574.7787 | O81: =[8]EJECUTIVO!$J75 -> 24223.16
A82: a) Gobierno Central | B82: =[2]EJECUTIVO!$I76 -> 6142.501 | C82: =[2]EJECUTIVO!$J76 -> 8083.13 | D82: =[3]EJECUTIVO!$I76 -> 8642.09 | E82: =[3]EJECUTIVO!$J76 -> 9081.24 | F82: =[4]EJECUTIVO!$I76 -> 8171.2636 | G82: =[4]EJECUTIVO!$J76 -> 9063.5654 | H82: =[5]EJECUTIVO!$I76 -> 6967.7 | I82: =[5]EJECUTIVO!$J76 -> 7327.3 | J82: =[6]EJECUTIVO!$I76 -> 3931.40005 | K82: =[6]EJECUTIVO!$J76 -> 4161.815901 | L82: =[7]EJECUTIVO!$I76 -> 21558.58 | M82: =[7]EJECUTIVO!$J76 -> 23377.2 | N82: =[8]EJECUTIVO!$I76 -> 20553.5299 | O82: =[8]EJECUTIVO!$J76 -> 24204.28
A83: b) Resto del Sector Público No Financiero | B83: =[2]EJECUTIVO!$I77 -> 2591.18 | C83: =[2]EJECUTIVO!$J77 -> 2793.71 | D83: =[3]EJECUTIVO!$I77 -> 576.57 | E83: =[3]EJECUTIVO!$J77 -> 573.16 | F83: =[4]EJECUTIVO!$I77 -> 51.5041 | G83: =[4]EJECUTIVO!$J77 -> 43.3095 | H83: =[5]EJECUTIVO!$I77 -> 291 | I83: =[5]EJECUTIVO!$J77 -> 281.6 | J83: =[6]EJECUTIVO!$I77 -> 57.27450184 | K83: =[6]EJECUTIVO!$J77 -> 53.19015847 | L83: =[7]EJECUTIVO!$I77 -> 5.98 | M83: =[7]EJECUTIVO!$J77 -> 5.97 | N83: =[8]EJECUTIVO!$I77 -> 21.2488 | O83: =[8]EJECUTIVO!$J77 -> 18.88
A84: 2.1.4.2 Sector Público Financiero | B84: =[2]EJECUTIVO!$I78 -> 2892.64 | C84: =[2]EJECUTIVO!$J78 -> 2240.78 | D84: =[3]EJECUTIVO!$I78 -> 383.31 | E84: =[3]EJECUTIVO!$J78 -> 322.39 | F84: =[4]EJECUTIVO!$I78 -> n.d. | G84: =[4]EJECUTIVO!$J78 -> n.d. | H84: =[5]EJECUTIVO!$I78 -> 116.6 | I84: =[5]EJECUTIVO!$J78 -> 90.1 | J84: =[6]EJECUTIVO!$I78 -> 1557.380817 | K84: =[6]EJECUTIVO!$J78 -> 1734.553222 | L84: =[7]EJECUTIVO!$I78 -> 295.76 | M84: =[7]EJECUTIVO!$J78 -> 293.71 | N84: =[8]EJECUTIVO!$I78 -> 0 | O84: =[8]EJECUTIVO!$J78 -> 0
A85: a) Banco Central | B85: =[2]EJECUTIVO!$I79 -> 1011.68 | C85: =[2]EJECUTIVO!$J79 -> 634.5 | D85: =[3]EJECUTIVO!$I79 -> 138.63 | E85: =[3]EJECUTIVO!$J79 -> 90.29 | F85: =[4]EJECUTIVO!$I79 -> 0 | G85: =[4]EJECUTIVO!$J79 -> 0 | H85: =[5]EJECUTIVO!$I79 -> 87.9 | I85: =[5]EJECUTIVO!$J79 -> 63.8 | J85: =[6]EJECUTIVO!$I79 -> 1557.380817 | K85: =[6]EJECUTIVO!$J79 -> 1734.553222 | L85: =[7]EJECUTIVO!$I79 -> 295.76 | M85: =[7]EJECUTIVO!$J79 -> 293.71 | N85: =[8]EJECUTIVO!$I79 -> 0 | O85: =[8]EJECUTIVO!$J79 -> 0
A86: b) Resto del Sector Público Financiero | B86: =[2]EJECUTIVO!$I80 -> 1880.96 | C86: =[2]EJECUTIVO!$J80 -> 1606.28 | D86: =[3]EJECUTIVO!$I80 -> 244.68 | E86: =[3]EJECUTIVO!$J80 -> 232.1 | F86: =[4]EJECUTIVO!$I80 -> n.d. | G86: =[4]EJECUTIVO!$J80 -> n.d. | H86: =[5]EJECUTIVO!$I80 -> 28.7 | I86: =[5]EJECUTIVO!$J80 -> 26.3 | J86: =[6]EJECUTIVO!$I80 -> 0 | K86: =[6]EJECUTIVO!$J80 -> 0 | L86: =[7]EJECUTIVO!$I80 -> n.d. | M86: =[7]EJECUTIVO!$J80 -> n.d. | N86: =[8]EJECUTIVO!$I80 -> 0 | O86: =[8]EJECUTIVO!$J80 -> 0
A87: 2.2 Relación Deuda Pública Total/PIB h/ | B87: =[2]EJECUTIVO!$I81 -> 65.79334575 | C87: =[2]EJECUTIVO!$J81 -> 77.47368806 | D87: =[3]EJECUTIVO!$I81 -> 71.1812305 | E87: =[3]EJECUTIVO!$J81 -> 73.93413321 | F87: =[4]EJECUTIVO!$I81 -> 26.04191851 | G87: =[4]EJECUTIVO!$J81 -> 29.01996657 | H87: =[5]EJECUTIVO!$I81 -> 43.69191167 | I87: =[5]EJECUTIVO!$J81 -> 44.59766419 | J87: =[6]EJECUTIVO!$I81 -> 46.88591917 | K87: =[6]EJECUTIVO!$J81 -> 52.47691667 | L87: =[7]EJECUTIVO!$I81 -> 47.90387851 | M87: =[7]EJECUTIVO!$J81 -> 51.42330092 | N87: =[8]EJECUTIVO!$I81 -> 39.44046561 | O87: =[8]EJECUTIVO!$J81 -> 43.9542015
A88: 2.2.1.a Deuda Interna/PIB (bruta) | B88: =[2]EJECUTIVO!$I82 -> 46.59339207 | C88: =[2]EJECUTIVO!$J82 -> 55.82745044 | D88: =[3]EJECUTIVO!$I82 -> 35.4252966 | E88: =[3]EJECUTIVO!$J82 -> 36.78243999 | F88: =[4]EJECUTIVO!$I82 -> 20.82098805 | G88: =[4]EJECUTIVO!$J82 -> 23.38249656 | H88: =[5]EJECUTIVO!$I82 -> 32.73304876 | I88: =[5]EJECUTIVO!$J82 -> 34.14875411 | J88: =[6]EJECUTIVO!$I82 -> 6.819764446 | K88: =[6]EJECUTIVO!$J82 -> 7.117470561 | L88: =[7]EJECUTIVO!$I82 -> 25.51980656 | M88: =[7]EJECUTIVO!$J82 -> 27.18728198 | N88: =[8]EJECUTIVO!$I82 -> 7.849260687 | O88: =[8]EJECUTIVO!$J82 -> 9.629190874
A89: 2.2.1.b Deuda Interna/PIB (consolidada) | B89: =[2]EJECUTIVO!$I83 -> n.d. | C89: =[2]EJECUTIVO!$J83 -> n.d. | D89: =[3]EJECUTIVO!$I83 -> n.d. | E89: =[3]EJECUTIVO!$J83 -> n.d. | F89: =[4]EJECUTIVO!$I83 -> 14.76642162 | G89: =[4]EJECUTIVO!$J83 -> 16.53213482 | H89: =[5]EJECUTIVO!$I83 -> 12.99334454 | I89: =[5]EJECUTIVO!$J83 -> 13.54012704 | J89: =[6]EJECUTIVO!$I83 -> n.d. | K89: =[6]EJECUTIVO!$J83 -> n.d. | L89: =[7]EJECUTIVO!$I83 -> 22.34728081 | M89: =[7]EJECUTIVO!$J83 -> 24.32355565 | N89: =[8]EJECUTIVO!$I83 -> n.d. | O89: =[8]EJECUTIVO!$J83 -> n.d.
A90: 2.2.2 Deuda Externa/PIB | B90: =[2]EJECUTIVO!$I84 -> 19.19995368 | C90: =[2]EJECUTIVO!$J84 -> 21.64623762 | D90: =[3]EJECUTIVO!$I84 -> 35.75593389 | E90: =[3]EJECUTIVO!$J84 -> 37.15169322 | F90: =[4]EJECUTIVO!$I84 -> 11.27549688 | G90: =[4]EJECUTIVO!$J84 -> 12.48783175 | H90: =[5]EJECUTIVO!$I84 -> 30.69856713 | I90: =[5]EJECUTIVO!$J84 -> 31.05753715 | J90: =[6]EJECUTIVO!$I84 -> 40.06615473 | K90: =[6]EJECUTIVO!$J84 -> 45.35944611 | L90: =[7]EJECUTIVO!$I84 -> 25.5565977 | M90: =[7]EJECUTIVO!$J84 -> 27.09974527 | N90: =[8]EJECUTIVO!$I84 -> 31.59120492 | O90: =[8]EJECUTIVO!$J84 -> 34.32501063
A92: IV. SECTOR MONEDA Y CREDITO i/
A93: 1. Principales variables monetarias, tasas de variación | B93: =IF([2]EJECUTIVO!$J$100=[2]EJECUTIVO!$J$4,[2]EJECUTIVO!$G$101,CONCATENATE([2]EJECUTIVO!$G$101," ",[2]EJECUTIVO!$I$99," ",[2]EJECUTIVO!$J$99)) -> DICIEMBRE 2018 2019 | D93: =IF([3]EJECUTIVO!$J$100=[3]EJECUTIVO!$J$4,[3]EJECUTIVO!$G$101,CONCATENATE([3]EJECUTIVO!$G$101," ",[3]EJECUTIVO!$I$99," ",[3]EJECUTIVO!$J$99)) -> NOVIEMBRE 2018 2019 | F93: =IF([4]EJECUTIVO!$J$100=[4]EJECUTIVO!$J$4,[4]EJECUTIVO!$G$101,CONCATENATE([4]EJECUTIVO!$G$101," ",[4]EJECUTIVO!$I$99," ",[4]EJECUTIVO!$J$99)) -> NOVIEMBRE 2018 2019 | H93: =IF([5]EJECUTIVO!$J$100=[5]EJECUTIVO!$J$4,[5]EJECUTIVO!$G$101,CONCATENATE([5]EJECUTIVO!$G$101," ",[5]EJECUTIVO!$I$99," ",[5]EJECUTIVO!$J$99)) -> NOVIEMBRE 2018 2019 | J93: =IF([6]EJECUTIVO!$J$100=[6]EJECUTIVO!$J$4,[6]EJECUTIVO!$G$101,CONCATENATE([6]EJECUTIVO!$G$101," ",[6]EJECUTIVO!$I$99," ",[6]EJECUTIVO!$J$99)) -> NOVIEMBRE 2018 2019 | L93: =IF([7]EJECUTIVO!$J$100=[7]EJECUTIVO!$J$4,[7]EJECUTIVO!$G$101,CONCATENATE([7]EJECUTIVO!$G$101," ",[7]EJECUTIVO!$I$99," ",[7]EJECUTIVO!$J$99)) -> DICIEMBRE 2018 2019 | N93: =IF([8]EJECUTIVO!$J$100=[8]EJECUTIVO!$J$4,[8]EJECUTIVO!$G$101,CONCATENATE([8]EJECUTIVO!$G$101," ",[8]EJECUTIVO!$I$99," ",[8]EJECUTIVO!$J$99)) -> DICIEMBRE 2018 2019
A94: 1.1 Base Monetaria Restringida, tasa interanual ponderada para los componentes | B94: =[2]EJECUTIVO!$I100 -> 2.292609516 | C94: =[2]EJECUTIVO!$J100 -> -5.159157378 | D94: =[3]EJECUTIVO!$I100 -> 4.282492444 | E94: =[3]EJECUTIVO!$J100 -> 17.40699927 | F94: =[4]EJECUTIVO!$I100 -> 11.08316598 | G94: =[4]EJECUTIVO!$J100 -> 11.87197079 | H94: =[5]EJECUTIVO!$I100 -> 2.17525714 | I94: =[5]EJECUTIVO!$J100 -> 20.78929505 | J94: =[6]EJECUTIVO!$I100 -> -7.807119914 | K94: =[6]EJECUTIVO!$J100 -> 8.495300426 | L94: =[7]EJECUTIVO!$I100 -> 5.935951769 | M94: =[7]EJECUTIVO!$J100 -> 9.050616571 | N94: =[8]EJECUTIVO!$I100 -> 3.782335734 | O94: =[8]EJECUTIVO!$J100 -> 3.579260369
A95: 1.1.1 Billetes y monedas en circulación | B95: =[2]EJECUTIVO!$I101 -> 1.499805576 | C95: =[2]EJECUTIVO!$J101 -> 2.403948075 | D95: =[3]EJECUTIVO!$I101 -> -0.01133699885 | E95: =[3]EJECUTIVO!$J101 -> -0.01000042582 | F95: =[4]EJECUTIVO!$I101 -> 7.410272355 | G95: =[4]EJECUTIVO!$J101 -> 10.23093121 | H95: =[5]EJECUTIVO!$I101 -> 1.445143876 | I95: =[5]EJECUTIVO!$J101 -> 6.698373242 | J95: =[6]EJECUTIVO!$I101 -> -4.21103749 | K95: =[6]EJECUTIVO!$J101 -> 8.286881904 | L95: =[7]EJECUTIVO!$I101 -> 5.682279355 | M95: =[7]EJECUTIVO!$J101 -> 8.190520938 | N95: =[8]EJECUTIVO!$I101 -> 3.782335734 | O95: =[8]EJECUTIVO!$J101 -> 3.579260369
A96: 1.1.2 Depósitos transferibles por concepto de encaje en MN | B96: =[2]EJECUTIVO!$I102 -> 0.7928039399 | C96: =[2]EJECUTIVO!$J102 -> -7.563105453 | D96: =[3]EJECUTIVO!$I102 -> 4.293829443 | E96: =[3]EJECUTIVO!$J102 -> 17.41699969 | F96: =[4]EJECUTIVO!$I102 -> 3.540097447 | G96: =[4]EJECUTIVO!$J102 -> 1.467592942 | H96: =[5]EJECUTIVO!$I102 -> 2.939996426 | I96: =[5]EJECUTIVO!$J102 -> 12.50311015 | J96: =[6]EJECUTIVO!$I102 -> -3.596082425 | K96: =[6]EJECUTIVO!$J102 -> 0.2084185215 | L96: =[7]EJECUTIVO!$I102 -> 0.2536724142 | M96: =[7]EJECUTIVO!$J102 -> 0.8600956332 | N96: =[8]EJECUTIVO!$I102 -> n.a. | O96: =[8]EJECUTIVO!$J102 -> n.a.
A97: 1.1.3 Valores por concepto de encaje en MN j/ | B97: =[2]EJECUTIVO!$I103 -> n.a. | C97: =[2]EJECUTIVO!$J103 -> n.a. | D97: =[3]EJECUTIVO!$I103 -> n.d. | E97: =[3]EJECUTIVO!$J103 -> n.d. | F97: =[4]EJECUTIVO!$I103 -> 0.1327961768 | G97: =[4]EJECUTIVO!$J103 -> 0.1734466452 | H97: =[5]EJECUTIVO!$I103 -> -2.209883162 | I97: =[5]EJECUTIVO!$J103 -> 1.587811664 | J97: =[6]EJECUTIVO!$I103 -> n.a. | K97: =[6]EJECUTIVO!$J103 -> n.a. | L97: =[7]EJECUTIVO!$I103 -> n.a. | M97: =[7]EJECUTIVO!$J103 -> n.a. | N97: =[8]EJECUTIVO!$I103 -> n.a. | O97: =[8]EJECUTIVO!$J103 -> n.a.
A98: 1.2. Agregados monetarios, tasa interanual ponderada para los componentes
A99: 1.2.1 Agregado Monetario M1, tasa de variación interanual | B99: =[2]EJECUTIVO!$I104 -> 5.762789946 | C99: =[2]EJECUTIVO!$J104 -> 10.6736449 | D99: =[3]EJECUTIVO!$I104 -> -0.8431973836 | E99: =[3]EJECUTIVO!$J104 -> 14.09057376 | F99: =[4]EJECUTIVO!$I104 -> 8.041724129 | G99: =[4]EJECUTIVO!$J104 -> 13.63439401 | H99: =[5]EJECUTIVO!$I104 -> 3.872484484 | I99: =[5]EJECUTIVO!$J104 -> 15.19822258 | J99: =[6]EJECUTIVO!$I104 -> -11.32994214 | K99: =[6]EJECUTIVO!$J104 -> 7.717315764 | L99: =[7]EJECUTIVO!$I104 -> 6.602920679 | M99: =[7]EJECUTIVO!$J104 -> 20.72718407 | N99: =[8]EJECUTIVO!$I104 -> 4.537529826 | O99: =[8]EJECUTIVO!$J104 -> -9.361923954
A100: 1.2.1.1 Billetes y monedas en poder del público | B100: =[2]EJECUTIVO!$I105 -> 0.5415651798 | C100: =[2]EJECUTIVO!$J105 -> 0.3908712297 | D100: =[3]EJECUTIVO!$I105 -> -0.008870254795 | E100: =[3]EJECUTIVO!$J105 -> -0.008070334423 | F100: =[4]EJECUTIVO!$I105 -> 4.288806397 | G100: =[4]EJECUTIVO!$J105 -> 6.825641533 | H100: =[5]EJECUTIVO!$I105 -> 2.039281335 | I100: =[5]EJECUTIVO!$J105 -> 5.908931669 | J100: =[6]EJECUTIVO!$I105 -> -5.352245014 | K100: =[6]EJECUTIVO!$J105 -> 10.10768275 | L100: =[7]EJECUTIVO!$I105 -> 4.300066133 | M100: =[7]EJECUTIVO!$J105 -> 4.667614405 | N100: =[8]EJECUTIVO!$I105 -> n.a. | O100: =[8]EJECUTIVO!$J105 -> n.a.
A101: 1.2.1.2 Depósitos transferibles en MN | B101: =[2]EJECUTIVO!$I106 -> 5.221224766 | C101: =[2]EJECUTIVO!$J106 -> 10.28277367 | D101: =[3]EJECUTIVO!$I106 -> -0.8343271288 | E101: =[3]EJECUTIVO!$J106 -> 14.09864409 | F101: =[4]EJECUTIVO!$I106 -> 3.752917732 | G101: =[4]EJECUTIVO!$J106 -> 6.808752474 | H101: =[5]EJECUTIVO!$I106 -> 1.833203149 | I101: =[5]EJECUTIVO!$J106 -> 9.289290907 | J101: =[6]EJECUTIVO!$I106 -> -5.977697122 | K101: =[6]EJECUTIVO!$J106 -> -2.390366988 | L101: =[7]EJECUTIVO!$I106 -> 2.302854546 | M101: =[7]EJECUTIVO!$J106 -> 16.05956967 | N101: =[8]EJECUTIVO!$I106 -> 4.537529826 | O101: =[8]EJECUTIVO!$J106 -> -9.361923954
A102: 1.2.2 Agregado Monetario M2, tasa de variación interanual | B102: =[2]EJECUTIVO!$I107 -> -0.1868606588 | C102: =[2]EJECUTIVO!$J107 -> 6.0112828 | D102: =[3]EJECUTIVO!$I107 -> 4.337090668 | E102: =[3]EJECUTIVO!$J107 -> 11.38575507 | F102: =[4]EJECUTIVO!$I107 -> 8.586470538 | G102: =[4]EJECUTIVO!$J107 -> 11.95511587 | H102: =[5]EJECUTIVO!$I107 -> 7.767361339 | I102: =[5]EJECUTIVO!$J107 -> 13.62589377 | J102: =[6]EJECUTIVO!$I107 -> -11.32994214 | K102: =[6]EJECUTIVO!$J107 -> 7.717315764 | L102: =[7]EJECUTIVO!$I107 -> 4.52392616 | M102: =[7]EJECUTIVO!$J107 -> 10.28508054 | N102: =[8]EJECUTIVO!$I107 -> 2.97541688 | O102: =[8]EJECUTIVO!$J107 -> 2.483752768
A103: 1.2.2.1 Otros depósitos en MN | B103: =[2]EJECUTIVO!$I108 -> 0.03785150131 | C103: =[2]EJECUTIVO!$J108 -> 0.2168525564 | D103: =[3]EJECUTIVO!$I108 -> 4.062351814 | E103: =[3]EJECUTIVO!$J108 -> 7.067787917 | F103: =[4]EJECUTIVO!$I108 -> 5.033497257 | G103: =[4]EJECUTIVO!$J108 -> 5.973266164 | H103: =[5]EJECUTIVO!$I108 -> 6.43758927 | I103: =[5]EJECUTIVO!$J108 -> 9.511966377 | J103: =[6]EJECUTIVO!$I108 -> n.a. | K103: =[6]EJECUTIVO!$J108 -> n.a. | L103: =[7]EJECUTIVO!$I108 -> 2.385365501 | M103: =[7]EJECUTIVO!$J108 -> 3.289242554 | N103: =[8]EJECUTIVO!$I108 -> 2.05832725 | O103: =[8]EJECUTIVO!$J108 -> 3.564816528
A104: 1.2.2.2 Valores distintos de acciones emitidos por las sociedades de depósitos en MN | B104: =[2]EJECUTIVO!$I109 -> -3.393688024 | C104: =[2]EJECUTIVO!$J109 -> -0.4249065454 | D104: =[3]EJECUTIVO!$I109 -> 0.5128584764 | E104: =[3]EJECUTIVO!$J109 -> 0.5363426476 | F104: =[4]EJECUTIVO!$I109 -> 0.218563163 | G104: =[4]EJECUTIVO!$J109 -> 0.3568633534 | H104: =[5]EJECUTIVO!$I109 -> 0.3197752116 | I104: =[5]EJECUTIVO!$J109 -> 0.2932848576 | J104: =[6]EJECUTIVO!$I109 -> n.a. | K104: =[6]EJECUTIVO!$J109 -> n.a. | L104: =[7]EJECUTIVO!$I109 -> -0.06087010135 | M104: =[7]EJECUTIVO!$J109 -> -0.04570618896 | N104: =[8]EJECUTIVO!$I109 -> -0.02908039419 | O104: =[8]EJECUTIVO!$J109 -> 0.9007072734
A105: 1.2.2.3 Agregado Monetario M1 | B105: =[2]EJECUTIVO!$I110 -> 3.168975864 | C105: =[2]EJECUTIVO!$J110 -> 6.219336789 | D105: =[3]EJECUTIVO!$I110 -> -0.238119622 | E105: =[3]EJECUTIVO!$J110 -> 3.781624503 | F105: =[4]EJECUTIVO!$I110 -> 3.334410118 | G105: =[4]EJECUTIVO!$J110 -> 5.624986357 | H105: =[5]EJECUTIVO!$I110 -> 1.009996858 | I105: =[5]EJECUTIVO!$J110 -> 3.82064254 | J105: =[6]EJECUTIVO!$I110 -> -11.32994214 | K105: =[6]EJECUTIVO!$J110 -> 7.717315764 | L105: =[7]EJECUTIVO!$I110 -> 2.199430761 | M105: =[7]EJECUTIVO!$J110 -> 7.041544171 | N105: =[8]EJECUTIVO!$I110 -> 0.9461700245 | O105: =[8]EJECUTIVO!$J110 -> -1.981771033
A106: 1.2.3 Agregado Monetario M3, tasa de variación interanual k/ | B106: =[2]EJECUTIVO!$I111 -> 2.292368444 | C106: =[2]EJECUTIVO!$J111 -> 4.713211705 | D106: =[3]EJECUTIVO!$I111 -> 4.337090668 | E106: =[3]EJECUTIVO!$J111 -> 11.38575507 | F106: =[4]EJECUTIVO!$I111 -> 9.125689968 | G106: =[4]EJECUTIVO!$J111 -> 10.11627008 | H106: =[5]EJECUTIVO!$I111 -> 6.520082866 | I106: =[5]EJECUTIVO!$J111 -> 11.13943238 | J106: =[6]EJECUTIVO!$I111 -> -17.23708281 | K106: =[6]EJECUTIVO!$J111 -> 1.873664378 | L106: =[7]EJECUTIVO!$I111 -> 6.636940293 | M106: =[7]EJECUTIVO!$J111 -> 11.58546504 | N106: =[8]EJECUTIVO!$I111 -> 2.97541688 | O106: =[8]EJECUTIVO!$J111 -> 2.483752768
A107: 1.2.3.1 Depósitos transferibles en ME | B107: =[2]EJECUTIVO!$I112 -> 2.455145966 | C107: =[2]EJECUTIVO!$J112 -> 1.345492376 | D107: =[3]EJECUTIVO!$I112 -> n.a. | E107: =[3]EJECUTIVO!$J112 -> n.a. | F107: =[4]EJECUTIVO!$I112 -> 0.6501931539 | G107: =[4]EJECUTIVO!$J112 -> -0.20649599 | H107: =[5]EJECUTIVO!$I112 -> 0.01514682505 | I107: =[5]EJECUTIVO!$J112 -> 0.2293251585 | J107: =[6]EJECUTIVO!$I112 -> -1.931973113 | K107: =[6]EJECUTIVO!$J112 -> -1.454131629 | L107: =[7]EJECUTIVO!$I112 -> n.a. | M107: =[7]EJECUTIVO!$J112 -> n.a. | N107: =[8]EJECUTIVO!$I112 -> n.a. | O107: =[8]EJECUTIVO!$J112 -> n.a.
A108: 1.2.3.2 Otros depósitos en ME | B108: =[2]EJECUTIVO!$I113 -> 0.07351579237 | C108: =[2]EJECUTIVO!$J113 -> 0.009327630954 | D108: =[3]EJECUTIVO!$I113 -> n.a. | E108: =[3]EJECUTIVO!$J113 -> n.a. | F108: =[4]EJECUTIVO!$I113 -> 1.812553614 | G108: =[4]EJECUTIVO!$J113 -> 0.967983255 | H108: =[5]EJECUTIVO!$I113 -> 0.8000660639 | I108: =[5]EJECUTIVO!$J113 -> 0.7159254896 | J108: =[6]EJECUTIVO!$I113 -> -13.05892543 | K108: =[6]EJECUTIVO!$J113 -> 1.688621613 | L108: =[7]EJECUTIVO!$I113 -> 3.120816451 | M108: =[7]EJECUTIVO!$J113 -> 3.750006966 | N108: =[8]EJECUTIVO!$I113 -> n.a. | O108: =[8]EJECUTIVO!$J113 -> n.a.
A109: 1.2.3.3 Valores distintos de acciones emitidos por las sociedades de depósito en ME | B109: =[2]EJECUTIVO!$I114 -> -0.108301739 | C109: =[2]EJECUTIVO!$J114 -> -0.6592865065 | D109: =[3]EJECUTIVO!$I114 -> n.a. | E109: =[3]EJECUTIVO!$J114 -> n.a. | F109: =[4]EJECUTIVO!$I114 -> -0.04483979461 | G109: =[4]EJECUTIVO!$J114 -> 0.06154984751 | H109: =[5]EJECUTIVO!$I114 -> -0.01404188263 | I109: =[5]EJECUTIVO!$J114 -> 0.04430783367 | J109: =[6]EJECUTIVO!$I114 -> n.a. | K109: =[6]EJECUTIVO!$J114 -> n.a. | L109: =[7]EJECUTIVO!$I114 -> n.a. | M109: =[7]EJECUTIVO!$J114 -> n.a. | N109: =[8]EJECUTIVO!$I114 -> n.a. | O109: =[8]EJECUTIVO!$J114 -> n.a.
A110: 1.2.3.4 Agregado Monetario M2 | B110: =[2]EJECUTIVO!$I115 -> -0.1279915752 | C110: =[2]EJECUTIVO!$J115 -> 4.017678205 | D110: =[3]EJECUTIVO!$I115 -> 4.337090668 | E110: =[3]EJECUTIVO!$J115 -> 11.38575507 | F110: =[4]EJECUTIVO!$I115 -> 6.707782995 | G110: =[4]EJECUTIVO!$J115 -> 9.29323297 | H110: =[5]EJECUTIVO!$I115 -> 5.718911859 | I110: =[5]EJECUTIVO!$J115 -> 10.1498739 | J110: =[6]EJECUTIVO!$I115 -> -2.246184267 | K110: =[6]EJECUTIVO!$J115 -> 1.639174394 | L110: =[7]EJECUTIVO!$I115 -> 3.516123842 | M110: =[7]EJECUTIVO!$J115 -> 7.835458072 | N110: =[8]EJECUTIVO!$I115 -> 2.97541688 | O110: =[8]EJECUTIVO!$J115 -> 2.483752768
A111: 1.3. Titulos emitidos por el Banco Central, tasa de variación interanual | B111: =[2]EJECUTIVO!$I116 -> -4.91741254 | C111: =[2]EJECUTIVO!$J116 -> -3.908636778 | D111: =[3]EJECUTIVO!$I116 -> -2.881150298 | E111: =[3]EJECUTIVO!$J116 -> 76.54922624 | F111: =[4]EJECUTIVO!$I116 -> -2.964574737 | G111: =[4]EJECUTIVO!$J116 -> 25.50914996 | H111: =[5]EJECUTIVO!$I116 -> -9.929062038 | I111: =[5]EJECUTIVO!$J116 -> 10.42128425 | J111: =[6]EJECUTIVO!$I116 -> -2.02241945 | K111: =[6]EJECUTIVO!$J116 -> -46.67985673 | L111: =[7]EJECUTIVO!$I116 -> 15.0360012 | M111: =[7]EJECUTIVO!$J116 -> 5.170360451 | N111: =[8]EJECUTIVO!$I116 -> n.a. | O111: =[8]EJECUTIVO!$I116 -> n.a.
A112: 1.3.1 Títulos emitidos por el BC en MN | B112: =[2]EJECUTIVO!$I117 -> -4.91741254 | C112: =[2]EJECUTIVO!$J117 -> -3.908636778 | D112: =[3]EJECUTIVO!$I117 -> -5.996340252 | E112: =[3]EJECUTIVO!$J117 -> 0.1034844577 | F112: =[4]EJECUTIVO!$I117 -> -0.8402274044 | G112: =[4]EJECUTIVO!$J117 -> 26.78769262 | H112: =[5]EJECUTIVO!$I117 -> -10.79921289 | I112: =[5]EJECUTIVO!$J117 -> 9.525075688 | J112: =[6]EJECUTIVO!$I117 -> n.a. | K112: =[6]EJECUTIVO!$J117 -> n.a. | L112: =[7]EJECUTIVO!$I117 -> 15.0360012 | M112: =[7]EJECUTIVO!$J117 -> 5.170360451 | N112: =[8]EJECUTIVO!$I117 -> n.a. | O112: =[8]EJECUTIVO!$I117 -> n.a.
A113: 1.3.2 Títulos emitidos por el BC en ME | B113: =[2]EJECUTIVO!$I118 -> n.d. | C113: =[2]EJECUTIVO!$J118 -> n.d. | D113: =[3]EJECUTIVO!$I118 -> 3.115189955 | E113: =[3]EJECUTIVO!$J118 -> 76.44574178 | F113: =[4]EJECUTIVO!$I118 -> -2.124347333 | G113: =[4]EJECUTIVO!$J118 -> -1.278542661 | H113: =[5]EJECUTIVO!$I118 -> 0.8701508549 | I113: =[5]EJECUTIVO!$J118 -> 0.8962085648 | J113: =[6]EJECUTIVO!$I118 -> -2.02241945 | K113: =[6]EJECUTIVO!$J118 -> -46.67985673 | L113: =[7]EJECUTIVO!$I118 -> n.d. | M113: =[7]EJECUTIVO!$J118 -> n.d. | N113: =[8]EJECUTIVO!$I118 -> n.a. | O113: =[8]EJECUTIVO!$J118 -> n.a.
A114: 1.4. Saldo de los créditos de las Otras Sociedades de Depósito, tasa de variación interanual | B114: =[2]EJECUTIVO!$I119 -> 3.795988395 | C114: =[2]EJECUTIVO!$J119 -> 0.2723129307 | D114: =[3]EJECUTIVO!$I119 -> 7.03696237 | E114: =[3]EJECUTIVO!$J119 -> 6.002253351 | F114: =[4]EJECUTIVO!$I119 -> 6.156898352 | G114: =[4]EJECUTIVO!$J119 -> 7.902492196 | H114: =[5]EJECUTIVO!$I119 -> 11.05809229 | I114: =[5]EJECUTIVO!$J119 -> 10.99080836 | J114: =[6]EJECUTIVO!$I119 -> -4.480779309 | K114: =[6]EJECUTIVO!$J119 -> -11.20442067 | L114: =[7]EJECUTIVO!$I119 -> 10.8959658 | M114: =[7]EJECUTIVO!$J119 -> 12.91241957 | N114: =[8]EJECUTIVO!$I119 -> 3.707235688 | O114: =[8]EJECUTIVO!$J119 -> 0.8228464324
A115: 1.4.1 Al Sector Público neto | B115: =[2]EJECUTIVO!$I120 -> -0.4841404796 | C115: =[2]EJECUTIVO!$J120 -> 1.522334493 | D115: =[3]EJECUTIVO!$I120 -> 1.396316578 | E115: =[3]EJECUTIVO!$J120 -> 1.617755515 | F115: =[4]EJECUTIVO!$I120 -> 2.539437785 | G115: =[4]EJECUTIVO!$J120 -> 4.272981184 | H115: =[5]EJECUTIVO!$I120 -> 0.2131014497 | I115: =[5]EJECUTIVO!$J120 -> 2.750443432 | J115: =[6]EJECUTIVO!$I120 -> -3.272760394 | K115: =[6]EJECUTIVO!$J120 -> 0.3902816375 | L115: =[7]EJECUTIVO!$I120 -> 2.363953209 | M115: =[7]EJECUTIVO!$J120 -> 2.979107387 | N115: =[8]EJECUTIVO!$I120 -> -0.09734613502 | O115: =[8]EJECUTIVO!$J120 -> 0.5191340841
A116: 1.4.2 Al Sector Privado | B116: =[2]EJECUTIVO!$I121 -> 3.511399237 | C116: =[2]EJECUTIVO!$J121 -> -0.8908710565 | D116: =[3]EJECUTIVO!$I121 -> 5.854847263 | E116: =[3]EJECUTIVO!$J121 -> 4.044030756 | F116: =[4]EJECUTIVO!$I121 -> 3.266044358 | G116: =[4]EJECUTIVO!$J121 -> 2.903162504 | H116: =[5]EJECUTIVO!$I121 -> 10.88261291 | I116: =[5]EJECUTIVO!$J121 -> 7.325907488 | J116: =[6]EJECUTIVO!$I121 -> -5.382985163 | K116: =[6]EJECUTIVO!$J121 -> -13.86276108 | L116: =[7]EJECUTIVO!$I121 -> 8.119476377 | M116: =[7]EJECUTIVO!$J121 -> 9.871098981 | N116: =[8]EJECUTIVO!$I121 -> 2.274311312 | O116: =[8]EJECUTIVO!$J121 -> 1.476481074
A117: 1.4.3 A no residentes y otros | B117: =[2]EJECUTIVO!$I122 -> 0.7687296375 | C117: =[2]EJECUTIVO!$J122 -> -0.3591505061 | D117: =[3]EJECUTIVO!$I122 -> -0.2142014706 | E117: =[3]EJECUTIVO!$J122 -> 0.3404670804 | F117: =[4]EJECUTIVO!$I122 -> 0.3514162093 | G117: =[4]EJECUTIVO!$J122 -> 0.726348507 | H117: =[5]EJECUTIVO!$I122 -> -0.03762207047 | I117: =[5]EJECUTIVO!$J122 -> 0.9144574406 | J117: =[6]EJECUTIVO!$I122 -> 4.174966248 | K117: =[6]EJECUTIVO!$J122 -> 2.268058775 | L117: =[7]EJECUTIVO!$I122 -> 0.4125362117 | M117: =[7]EJECUTIVO!$J122 -> 0.06221320215 | N117: =[8]EJECUTIVO!$I122 -> 1.530270511 | O117: =[8]EJECUTIVO!$J122 -> -1.172768725
A118: 2. Relaciones Analíticas | B118: =IF([2]EJECUTIVO!$J$120=[2]EJECUTIVO!$J$4,[2]EJECUTIVO!$G$121,CONCATENATE([2]EJECUTIVO!$G$121," ",[2]EJECUTIVO!$I$124," ",[2]EJECUTIVO!$J$124)) -> DICIEMBRE 2018 2019 | D118: =IF([3]EJECUTIVO!$J$121=[3]EJECUTIVO!$J$4,[3]EJECUTIVO!$G$122,CONCATENATE([3]EJECUTIVO!$G$122," ",[3]EJECUTIVO!$I$124," ",[3]EJECUTIVO!$J$124)) -> NOVIEMBRE 2018 2019 | F118: =IF([4]EJECUTIVO!$J$120=[4]EJECUTIVO!$J$4,[4]EJECUTIVO!$G$121,CONCATENATE([4]EJECUTIVO!$G$121," ",[4]EJECUTIVO!$I$124," ",[4]EJECUTIVO!$J$124)) -> NOVIEMBRE 2018 2019 | H118: =IF([5]EJECUTIVO!$J$120=[5]EJECUTIVO!$J$4,[5]EJECUTIVO!$G$121,CONCATENATE([5]EJECUTIVO!$G$121," ",[5]EJECUTIVO!$I$124," ",[5]EJECUTIVO!$J$124)) -> NOVIEMBRE 2018 2019 | J118: =IF([6]EJECUTIVO!$J$120=[6]EJECUTIVO!$J$4,[6]EJECUTIVO!$G$121,CONCATENATE([6]EJECUTIVO!$G$121," ",[6]EJECUTIVO!$I$124," ",[6]EJECUTIVO!$J$124)) -> NOVIEMBRE 2018 2019 | L118: =IF([7]EJECUTIVO!$J$120=[7]EJECUTIVO!$J$4,[7]EJECUTIVO!$G$121,CONCATENATE([7]EJECUTIVO!$G$121," ",[7]EJECUTIVO!$I$124," ",[7]EJECUTIVO!$J$124)) -> DICIEMBRE 2018 2019 | N118: =IF([8]EJECUTIVO!$J$120=[8]EJECUTIVO!$J$4,[8]EJECUTIVO!$G$121,CONCATENATE([8]EJECUTIVO!$G$121," ",[8]EJECUTIVO!$I$124," ",[8]EJECUTIVO!$J$124)) -> DICIEMBRE 2018 2019
A119: 2.1 Multiplicador Monetario (M2/BMAmplia) | B119: =[2]EJECUTIVO!$I125 -> 1.654032305 | C119: =[2]EJECUTIVO!$J125 -> 1.694283936 | D119: =[3]EJECUTIVO!$I125 -> 4.092552403 | E119: =[3]EJECUTIVO!$J125 -> 3.903795168 | F119: =[4]EJECUTIVO!$I125 -> 2.781554456 | G119: =[4]EJECUTIVO!$J125 -> 2.70482234 | H119: =[5]EJECUTIVO!$I125 -> 2.12190981 | I119: =[5]EJECUTIVO!$J125 -> 2.149808089 | J119: =[6]EJECUTIVO!$I125 -> 0.488175611 | K119: =[6]EJECUTIVO!$J125 -> 0.568140109 | L119: =[7]EJECUTIVO!$I125 -> 2.758751672 | M119: =[7]EJECUTIVO!$J125 -> 2.507430456 | N119: =[8]EJECUTIVO!$I125 -> 22.69819779 | O119: =[8]EJECUTIVO!$J125 -> 20.27999006
A120: 2.2 Relación RIN / BMAmplia, en porcentajes | B120: =[2]EJECUTIVO!$I126 -> 68.51778365 | C120: =[2]EJECUTIVO!$J126 -> 74.25707316 | D120: =[3]EJECUTIVO!$I126 -> 102.3498446 | E120: =[3]EJECUTIVO!$J126 -> 101.6180401 | F120: =[4]EJECUTIVO!$I126 -> 121.2423488 | G120: =[4]EJECUTIVO!$J126 -> 123.3288616 | H120: =[5]EJECUTIVO!$I126 -> 93.37942026 | I120: =[5]EJECUTIVO!$J126 -> 96.95694441 | J120: =[6]EJECUTIVO!$I126 -> 105.3157911 | K120: =[6]EJECUTIVO!$J126 -> 127.2199906 | L120: =[7]EJECUTIVO!$I126 -> 98.93732777 | M120: =[7]EJECUTIVO!$J126 -> 98.9257525 | N120: =[8]EJECUTIVO!$I126 -> 160.0785017 | O120: =[8]EJECUTIVO!$J126 -> 198.9075339
A121: 2.3 Relación Cuasidinero / M2, en porcentajes L/ | B121: =[2]EJECUTIVO!$I127 -> 41.7318372 | C121: =[2]EJECUTIVO!$J127 -> 39.16921116 | D121: =[3]EJECUTIVO!$I127 -> 73.16202613 | E121: =[3]EJECUTIVO!$J127 -> 72.51031036 | F121: =[4]EJECUTIVO!$I127 -> 58.74414107 | G121: =[4]EJECUTIVO!$J127 -> 58.1253211 | H121: =[5]EJECUTIVO!$I127 -> 74.8612542 | I121: =[5]EJECUTIVO!$J127 -> 74.51339005 | J121: =[6]EJECUTIVO!$I127 -> 0 | K121: =[6]EJECUTIVO!$J127 -> 0 | L121: =[7]EJECUTIVO!$I127 -> 66.02749246 | M121: =[7]EJECUTIVO!$J127 -> 62.81087931 | N121: =[8]EJECUTIVO!$I127 -> 78.83158373 | O121: =[8]EJECUTIVO!$J127 -> 81.27835416
A122: 2.4 Relación Depósitos en ME / Depósitos Totales, en porcentajes m/ | B122: =[2]EJECUTIVO!$I128 -> 42.3402695 | C122: =[2]EJECUTIVO!$J128 -> 40.82596379 | D122: =[3]EJECUTIVO!$I128 -> n.a. | E122: =[3]EJECUTIVO!$J128 -> n.a. | F122: =[4]EJECUTIVO!$I128 -> 25.58522818 | G122: =[4]EJECUTIVO!$J128 -> 24.30638687 | H122: =[5]EJECUTIVO!$I128 -> 27.5064302 | I122: =[5]EJECUTIVO!$J128 -> 25.77863426 | J122: =[6]EJECUTIVO!$I128 -> 88.27170683 | K122: =[6]EJECUTIVO!$J128 -> 88.80646612 | L122: =[7]EJECUTIVO!$I128 -> 36.88914518 | M122: =[7]EJECUTIVO!$J128 -> 36.76779613 | N122: =[8]EJECUTIVO!$I128 -> n.a. | O122: =[8]EJECUTIVO!$J128 -> n.a.
A123: 2.5 Relación Créditos en ME / Créditos Totales, en porcentajes m/ n/ | B123: =[2]EJECUTIVO!$I129 -> 38.47431205 | C123: =[2]EJECUTIVO!$J129 -> 36.07858894 | D123: =[3]EJECUTIVO!$I129 -> n.a. | E123: =[3]EJECUTIVO!$J129 -> n.a. | F123: =[4]EJECUTIVO!$I129 -> 32.01805422 | G123: =[4]EJECUTIVO!$J129 -> 29.62337436 | H123: =[5]EJECUTIVO!$I129 -> 25.4601757 | I123: =[5]EJECUTIVO!$J129 -> 24.93693007 | J123: =[6]EJECUTIVO!$I129 -> 100 | K123: =[6]EJECUTIVO!$J129 -> 100 | L123: =[7]EJECUTIVO!$I129 -> 20.95522718 | M123: =[7]EJECUTIVO!$J129 -> 21.44390051 | N123: =[8]EJECUTIVO!$I129 -> n.a. | O123: =[8]EJECUTIVO!$J129 -> n.a.
A124: 2.6 Relación Crédito-sector privado / PIB, en porcentajes | B124: =[2]EJECUTIVO!$I130 -> 63.94562853 | C124: =[2]EJECUTIVO!$J130 -> 60.89767932 | D124: =[3]EJECUTIVO!$I130 -> 49.89987321 | E124: =[3]EJECUTIVO!$J130 -> 50.64428286 | F124: =[4]EJECUTIVO!$I130 -> 37.36436475 | G124: =[4]EJECUTIVO!$J130 -> 36.61771092 | H124: =[5]EJECUTIVO!$I130 -> 60.50872734 | I124: =[5]EJECUTIVO!$J130 -> 62.86271117 | J124: =[6]EJECUTIVO!$I130 -> 36.60040548 | K124: =[6]EJECUTIVO!$J130 -> 30.50182521 | L124: =[7]EJECUTIVO!$I130 -> 26.58628934 | M124: =[7]EJECUTIVO!$J130 -> 27.83377295 | N124: =[8]EJECUTIVO!$I130 -> 73.97531666 | O124: =[8]EJECUTIVO!$J130 -> 75.59162144
A125: 2.7 Relación Saldo de OMA's / M3, en porcentajes | B125: =[2]EJECUTIVO!$I131 -> 11.82209326 | C125: =[2]EJECUTIVO!$J131 -> 10.8486889 | D125: =[3]EJECUTIVO!$I131 -> 3.46229148 | E125: =[3]EJECUTIVO!$J131 -> 5.487819168 | F125: =[4]EJECUTIVO!$I131 -> 13.41608726 | G125: =[4]EJECUTIVO!$J131 -> 15.29148877 | H125: =[5]EJECUTIVO!$I131 -> 12.48872703 | I125: =[5]EJECUTIVO!$J131 -> 12.4080288 | J125: =[6]EJECUTIVO!$I131 -> 9.568022423 | K125: =[6]EJECUTIVO!$J131 -> 5.007852908 | L125: =[7]EJECUTIVO!$I131 -> 41.13699754 | M125: =[7]EJECUTIVO!$J131 -> 38.77201083 | N125: =[8]EJECUTIVO!$I131 -> 0.005598085128 | O125: =[8]EJECUTIVO!$J131 -> 0.4921810611
A126: 3. Tasas de Interés y de encaje ñ/ | B126: =IF([2]EJECUTIVO!$J$84=[2]EJECUTIVO!$J$4,[2]EJECUTIVO!$G$85,CONCATENATE([2]EJECUTIVO!$G$89," ",[2]EJECUTIVO!$I$88," ",[2]EJECUTIVO!$J$88)) -> DICIEMBRE 2018 2019 | D126: =IF([3]EJECUTIVO!$J$85=[3]EJECUTIVO!$J$4,[3]EJECUTIVO!$G$86,CONCATENATE([3]EJECUTIVO!$G$89," ",[3]EJECUTIVO!$I$88," ",[3]EJECUTIVO!$J$88)) -> DICIEMBRE 2018 2019 | F126: =IF([4]EJECUTIVO!$J$84=[4]EJECUTIVO!$J$4,[4]EJECUTIVO!$G$85,CONCATENATE([4]EJECUTIVO!$G$89," ",[4]EJECUTIVO!$I$88," ",[4]EJECUTIVO!$J$88)) -> ENERO 2019 2020 | H126: =IF([5]EJECUTIVO!$J$84=[5]EJECUTIVO!$J$4,[5]EJECUTIVO!$G$85,CONCATENATE([5]EJECUTIVO!$G$89," ",[5]EJECUTIVO!$I$88," ",[5]EJECUTIVO!$J$88)) -> DICIEMBRE 2018 2019 | J126: =IF([6]EJECUTIVO!$J$84=[6]EJECUTIVO!$J$4,[6]EJECUTIVO!$G$85,CONCATENATE([6]EJECUTIVO!$G$89," ",[6]EJECUTIVO!$I$88," ",[6]EJECUTIVO!$J$88)) -> AGOSTO 2018 2019 | L126: =IF([7]EJECUTIVO!$J$84=[7]EJECUTIVO!$J$4,[7]EJECUTIVO!$G$85,CONCATENATE([7]EJECUTIVO!$G$89," ",[7]EJECUTIVO!$I$88," ",[7]EJECUTIVO!$J$88)) -> ENERO 2019 2020 | N126: =IF([8]EJECUTIVO!$J$84=[8]EJECUTIVO!$J$4,[8]EJECUTIVO!$G$85,CONCATENATE([8]EJECUTIVO!$G$89," ",[8]EJECUTIVO!$I$88," ",[8]EJECUTIVO!$J$88)) -> DICIEMBRE 2018 2019
A127: 3.1 Tasa interés activa nominal promedio corto plazo en MN | B127: =[2]EJECUTIVO!$I91 -> 15.88794717 | C127: =[2]EJECUTIVO!$J91 -> 10.53 | D127: =[3]EJECUTIVO!$I91 -> 6.5 | E127: =[3]EJECUTIVO!$J91 -> 6.45 | F127: =[4]EJECUTIVO!$I91 -> 12.74 | G127: =[4]EJECUTIVO!$J91 -> 12.64 | H127: =[5]EJECUTIVO!$I91 -> 17.43 | I127: =[5]EJECUTIVO!$J91 -> 17.39 | J127: =[6]EJECUTIVO!$I91 -> 10.17 | K127: =[6]EJECUTIVO!$J91 -> 12.97039575 | L127: =[7]EJECUTIVO!$I91 -> 12.6222 | M127: =[7]EJECUTIVO!J91 -> 12.5199 | N127: =[8]EJECUTIVO!$I91 -> 6.56 | O127: =[8]EJECUTIVO!J91 -> 8.46
A128: 3.2 Tasa interés activa real promedio corto plazo en MN | B128: =[2]EJECUTIVO!$I92 -> 13.58527585 | C128: =[2]EJECUTIVO!$J92 -> 8.87249346 | D128: =[3]EJECUTIVO!$I92 -> 6.035307213 | E128: =[3]EJECUTIVO!$J92 -> 6.459479918 | F128: =[4]EJECUTIVO!$I92 -> 8.294646712 | G128: =[4]EJECUTIVO!$J92 -> 10.66525661 | H128: =[5]EJECUTIVO!$I92 -> 12.67030631 | I128: =[5]EJECUTIVO!$J92 -> 12.78373365 | J128: =[6]EJECUTIVO!$I92 -> 10.57222019 | K128: =[6]EJECUTIVO!$J92 -> 10.71414856 | L128: =[7]EJECUTIVO!$I92 -> 11.83031156 | M128: =[7]EJECUTIVO!J92 -> 8.01149262 | N128: =[8]EJECUTIVO!$I92 -> 6.391504364 | O128: =[8]EJECUTIVO!J92 -> 8.527917113
A129: 3.3 Tasa interés activa promedio corto plazo en ME | B129: =[2]EJECUTIVO!$I93 -> 10.81296259 | C129: =[2]EJECUTIVO!$J93 -> 6.95 | D129: =[3]EJECUTIVO!$I93 -> 6.5 | E129: =[3]EJECUTIVO!$J93 -> 6.45 | F129: =[4]EJECUTIVO!$I93 -> 6.55 | G129: =[4]EJECUTIVO!$J93 -> 6.37 | H129: =[5]EJECUTIVO!$I93 -> 8.12 | I129: =[5]EJECUTIVO!$J93 -> 8.19 | J129: =[6]EJECUTIVO!$I93 -> 9.89 | K129: =[6]EJECUTIVO!$J93 -> 11.9000818 | L129: =[7]EJECUTIVO!$I93 -> 6.1733 | M129: =[7]EJECUTIVO!J93 -> 5.1389 | N129: =[8]EJECUTIVO!$I93 -> 6.56 | O129: =[8]EJECUTIVO!J93 -> 8.46
A130: 3.4 Tasa interés pasiva nominal promedio 180 días en MN | B130: =[2]EJECUTIVO!$I94 -> 6 | C130: =[2]EJECUTIVO!$J94 -> 5.75 | D130: =[3]EJECUTIVO!$I94 -> 4.25 | E130: =[3]EJECUTIVO!$J94 -> 4.25 | F130: =[4]EJECUTIVO!$I94 -> 5.05 | G130: =[4]EJECUTIVO!$J94 -> 4.87 | H130: =[5]EJECUTIVO!$I94 -> 8.28 | I130: =[5]EJECUTIVO!$J94 -> 8.5 | J130: =[6]EJECUTIVO!$I94 -> 5.11 | K130: =[6]EJECUTIVO!$J94 -> 7.525031156 | L130: =[7]EJECUTIVO!$I94 -> 7.87 | M130: =[7]EJECUTIVO!J94 -> 6.4365 | N130: =[8]EJECUTIVO!$I94 -> 1.98 | O130: =[8]EJECUTIVO!J94 -> 2.17
A131: 3.5 Tasa interés pasiva real promedio 180 días en MN | B131: =[2]EJECUTIVO!$I95 -> 3.893800299 | C131: =[2]EJECUTIVO!$J95 -> 4.164174282 | D131: =[3]EJECUTIVO!$I95 -> 3.795124666 | E131: =[3]EJECUTIVO!$J95 -> 4.259283997 | F131: =[4]EJECUTIVO!$I95 -> 0.9078644409 | G131: =[4]EJECUTIVO!$J95 -> 3.031476036 | H131: =[5]EJECUTIVO!$I95 -> 3.891175743 | I131: =[5]EJECUTIVO!$J95 -> 4.242568371 | J131: =[6]EJECUTIVO!$I95 -> 5.493746608 | K131: =[6]EJECUTIVO!$J95 -> 5.377538909 | L131: =[7]EJECUTIVO!$I95 -> 7.111526039 | M131: =[7]EJECUTIVO!J95 -> 2.17184013 | N131: =[8]EJECUTIVO!$I95 -> 1.818746387 | O131: =[8]EJECUTIVO!J95 -> 2.233978346
A132: 3.6 Tasa interés pasiva promedio 180 días en ME | B132: =[2]EJECUTIVO!$I96 -> 3.54401082 | C132: =[2]EJECUTIVO!$J96 -> 3.29 | D132: =[3]EJECUTIVO!$I96 -> 4.25 | E132: =[3]EJECUTIVO!$J96 -> 4.25 | F132: =[4]EJECUTIVO!$I96 -> 3.16 | G132: =[4]EJECUTIVO!$J96 -> 3.21 | H132: =[5]EJECUTIVO!$I96 -> 3.65 | I132: =[5]EJECUTIVO!$J96 -> 3.72 | J132: =[6]EJECUTIVO!$I96 -> 4.85 | K132: =[6]EJECUTIVO!$J96 -> 5.939003151 | L132: =[7]EJECUTIVO!$I96 -> 2.2853 | M132: =[7]EJECUTIVO!J96 -> 1.6912 | N132: =[8]EJECUTIVO!$I96 -> 1.98 | O132: =[8]EJECUTIVO!J96 -> 2.17
A133: 3.7 Tasa de interés de Política Monetaria de fin de mes o/ | B133: =[2]EJECUTIVO!$I97 -> 5.25 | C133: =[2]EJECUTIVO!$J97 -> 2.75 | D133: =[3]EJECUTIVO!$I97 -> n.a. | E133: =[3]EJECUTIVO!$J97 -> n.a. | F133: =[4]EJECUTIVO!$I97 -> 2.75 | G133: =[4]EJECUTIVO!$J97 -> 2.75 | H133: =[5]EJECUTIVO!$I97 -> 5.5 | I133: =[5]EJECUTIVO!$J97 -> 5.5 | J133: =[6]EJECUTIVO!$I97 -> n.a. | K133: =[6]EJECUTIVO!$J97 -> n.a. | L133: =[7]EJECUTIVO!$I97 -> 5.5 | M133: =[7]EJECUTIVO!J97 -> 4.5 | N133: =[8]EJECUTIVO!$I97 -> n.a. | O133: =[8]EJECUTIVO!J97 -> n.a.
A134: 3.8 Tasa de encaje efectivo promedio (Obligaciones MN) | B134: =[2]EJECUTIVO!$I89 -> 15.68541391 | C134: =[2]EJECUTIVO!$J89 -> 12.90547085 | D134: =[3]EJECUTIVO!$I89 -> 21.67960169 | E134: =[3]EJECUTIVO!$J89 -> 23.02215818 | F134: =[4]EJECUTIVO!$I89 -> 14.67879501 | G134: =[4]EJECUTIVO!$J89 -> 14.79399564 | H134: =[5]EJECUTIVO!$I89 -> 17.4797456 | I134: =[5]EJECUTIVO!$J89 -> 17.39465678 | J134: =[6]EJECUTIVO!$I89 -> 26.89355432 | K134: =[6]EJECUTIVO!$J89 -> 23.34153677 | L134: =[7]EJECUTIVO!$I89 -> 12.30877443 | M134: =[7]EJECUTIVO!J89 -> 10.80700661 | N134: =[8]EJECUTIVO!$I89 -> n.a. | O134: =[8]EJECUTIVO!J89 -> n.a.
A135: 3.9 Tasa de encaje efectivo promedio (Obligaciones ME) | B135: =[2]EJECUTIVO!$I90 -> 16.13912094 | C135: =[2]EJECUTIVO!$J90 -> 16.14226461 | D135: =[3]EJECUTIVO!$I90 -> 21.67960169 | E135: =[3]EJECUTIVO!$J90 -> 23.02215818 | F135: =[4]EJECUTIVO!$I90 -> 15.40380338 | G135: =[4]EJECUTIVO!$J90 -> 15.60234883 | H135: =[5]EJECUTIVO!$I90 -> 28.7 | I135: =[5]EJECUTIVO!$J90 -> 28.2 | J135: =[6]EJECUTIVO!$I90 -> 20.41320088 | K135: =[6]EJECUTIVO!$J90 -> 19.0922887 | L135: =[7]EJECUTIVO!$I90 -> 24.9085242 | M135: =[7]EJECUTIVO!J90 -> 23.32776263 | N135: =[8]EJECUTIVO!$I90 -> n.a. | O135: =[8]EJECUTIVO!J90 -> n.a.
A137: V. SECTOR BURSÁTIL | B137: =IF([2]EJECUTIVO!$J$135=[2]EJECUTIVO!$J$8,[2]EJECUTIVO!$G$136,CONCATENATE([2]EJECUTIVO!$G$136," ",[2]EJECUTIVO!$I$135," ",[2]EJECUTIVO!$J$135)) -> ENERO 2019 2020 | D137: =IF([3]EJECUTIVO!$J$135=[3]EJECUTIVO!$J$8,[3]EJECUTIVO!$G$136,CONCATENATE([3]EJECUTIVO!$G$136," ",[3]EJECUTIVO!$I$135," ",[3]EJECUTIVO!$J$135)) -> ENERO 2019 2020 | F137: =IF([4]EJECUTIVO!$J$135=[4]EJECUTIVO!$J$8,[4]EJECUTIVO!$G$136,CONCATENATE([4]EJECUTIVO!$G$136," ",[4]EJECUTIVO!$I$135," ",[4]EJECUTIVO!$J$135)) -> ENERO 2019 2020 | H137: =IF([5]EJECUTIVO!$J$135=[5]EJECUTIVO!$J$8,[5]EJECUTIVO!$G$136,CONCATENATE([5]EJECUTIVO!$G$136," ",[5]EJECUTIVO!$I$135," ",[5]EJECUTIVO!$J$135)) -> ENERO 2019 2020 | J137: =IF([6]EJECUTIVO!$J$135=[6]EJECUTIVO!$J$8,[6]EJECUTIVO!$G$136,CONCATENATE([6]EJECUTIVO!$G$136," ",[6]EJECUTIVO!$I$135," ",[6]EJECUTIVO!$J$135)) -> ABRIL 2018 2019 | L137: =IF([7]EJECUTIVO!$J$135=[7]EJECUTIVO!$J$8,[7]EJECUTIVO!$G$136,CONCATENATE([7]EJECUTIVO!$G$136," ",[7]EJECUTIVO!$I$135," ",[7]EJECUTIVO!$J$135)) -> ENERO 2019 2020 | N137: =IF([8]EJECUTIVO!$J$135=[8]EJECUTIVO!$J$8,[8]EJECUTIVO!$G$136,CONCATENATE([8]EJECUTIVO!$G$136," ",[8]EJECUTIVO!$I$135," ",[8]EJECUTIVO!$J$135)) -> DICIEMBRE 2018 2019
A138: 1. Volúmen Total Negociado, en millones de US$
A139: 1.1 Volúmen Total Negociado por tipo de emisor, acumulado | B139: =[2]EJECUTIVO!$I136 -> 2669.729374 | C139: =[2]EJECUTIVO!$J136 -> 2233.617254 | D139: =[3]EJECUTIVO!$I136 -> 348.9577024 | E139: =[3]EJECUTIVO!$J136 -> 366.0671153 | F139: =[4]EJECUTIVO!$I136 -> 11610.85138 | G139: =[4]EJECUTIVO!$J136 -> 114723.487 | H139: =[5]EJECUTIVO!$I136 -> 1080.123545 | I139: =[5]EJECUTIVO!$J136 -> 11395.59159 | J139: =[6]EJECUTIVO!$I136 -> 2245.322417 | K139: =[6]EJECUTIVO!$J136 -> 25.33395001 | L139: =[7]EJECUTIVO!$I136 -> 164.8019651 | M139: =[7]EJECUTIVO!$J136 -> 109.1458366 | N139: =[8]EJECUTIVO!$I136 -> 6099.750773 | O139: =[8]EJECUTIVO!$J136 -> 8529.708337
A140: 1.1.1 Público | B140: =[2]EJECUTIVO!$I137 -> 2490.590533 | C140: =[2]EJECUTIVO!$J137 -> 2037.505659 | D140: =[3]EJECUTIVO!$I137 -> 295.862884 | E140: =[3]EJECUTIVO!$J137 -> 207.1595572 | F140: =[4]EJECUTIVO!$I137 -> 11591.63766 | G140: =[4]EJECUTIVO!$J137 -> 114424.4049 | H140: =[5]EJECUTIVO!$I137 -> 1069.069464 | I140: =[5]EJECUTIVO!$J137 -> 11125.44489 | J140: =[6]EJECUTIVO!$I137 -> 2228.815984 | K140: =[6]EJECUTIVO!$J137 -> 18.27888014 | L140: =[7]EJECUTIVO!$I137 -> 139.7719416 | M140: =[7]EJECUTIVO!$J137 -> 92.61375732 | N140: =[8]EJECUTIVO!$I137 -> 1507.010573 | O140: =[8]EJECUTIVO!$J137 -> 3510.837995
A141: 1.1.2 Privado | B141: =[2]EJECUTIVO!$I138 -> 179.138841 | C141: =[2]EJECUTIVO!$J138 -> 196.1115949 | D141: =[3]EJECUTIVO!$I138 -> 53.09481839 | E141: =[3]EJECUTIVO!$J138 -> 158.9075581 | F141: =[4]EJECUTIVO!$I138 -> 19.21372013 | G141: =[4]EJECUTIVO!$J138 -> 299.0820611 | H141: =[5]EJECUTIVO!$I138 -> 11.0540813 | I141: =[5]EJECUTIVO!$J138 -> 270.1466986 | J141: =[6]EJECUTIVO!$I138 -> 16.50643311 | K141: =[6]EJECUTIVO!$J138 -> 7.055069869 | L141: =[7]EJECUTIVO!$I138 -> 25.03002352 | M141: =[7]EJECUTIVO!$J138 -> 16.53207929 | N141: =[8]EJECUTIVO!$I138 -> 4592.740201 | O141: =[8]EJECUTIVO!$J138 -> 5018.870342
A142: 2. Relaciones Analíticas
A143: 2.1 Reportos / volúmen total negociado, en porcentajes | B143: =[2]EJECUTIVO!$I140 -> 77.84170866 | C143: =[2]EJECUTIVO!$J140 -> 73.41649358 | D143: =[3]EJECUTIVO!$I140 -> 287.2898596 | E143: =[3]EJECUTIVO!$J140 -> 108.3333412 | F143: =[4]EJECUTIVO!$I140 -> 17.34621881 | G143: =[4]EJECUTIVO!$J140 -> 32.98968619 | H143: =[5]EJECUTIVO!$I140 -> 0 | I143: =[5]EJECUTIVO!$J140 -> 0 | J143: =[6]EJECUTIVO!$I140 -> 15.92038465 | K143: =[6]EJECUTIVO!$J140 -> 237.220967 | L143: =[7]EJECUTIVO!$I140 -> n.d. | M143: =[7]EJECUTIVO!$J140 -> n.d. | N143: =[8]EJECUTIVO!$I140 -> 11.03076723 | O143: =[8]EJECUTIVO!$J140 -> 3.691291449
A144: 2.2 Mercado Secundario / Mercado Primario, (número de veces) | B144: =[2]EJECUTIVO!$I141 -> 3.926108374 | C144: =[2]EJECUTIVO!$J141 -> 7.250825083 | D144: =[3]EJECUTIVO!$I141 -> 0.1863779438 | E144: =[3]EJECUTIVO!$J141 -> 4.6697106 | F144: =[4]EJECUTIVO!$I141 -> 0.2168119021 | G144: =[4]EJECUTIVO!$J141 -> 0.5292369968 | H144: =[5]EJECUTIVO!$I141 -> 0.01623726407 | I144: =[5]EJECUTIVO!$J141 -> 0.01893524198 | J144: =[6]EJECUTIVO!$I141 -> 0.008463396392 | K144: =[6]EJECUTIVO!$J141 -> 0.1212391193 | L144: =[7]EJECUTIVO!$I141 ->  | M144: =[7]EJECUTIVO!$J141 ->  | N144: =[8]EJECUTIVO!$I141 -> 0.354221958 | O144: =[8]EJECUTIVO!$J141 -> 0.1970251224
A145: 2.3 Volúmen negociado en MN / Volúmen Total, en porcentajes | B145: =[2]EJECUTIVO!$I142 -> 45.66 | C145: =[2]EJECUTIVO!$J142 -> 49.49 | D145: =[3]EJECUTIVO!$I142 -> 100 | E145: =[3]EJECUTIVO!$J142 -> 100 | F145: =[4]EJECUTIVO!$I142 -> 96.17521324 | G145: =[4]EJECUTIVO!$J142 -> 88.78084324 | H145: =[5]EJECUTIVO!$I142 -> 100 | I145: =[5]EJECUTIVO!$J142 -> 98.54975048 | J145: =[6]EJECUTIVO!$I142 -> 98.20117181 | K145: =[6]EJECUTIVO!$J142 -> 8.462330119 | L145: =[7]EJECUTIVO!$I142 -> 76.65118634 | M145: =[7]EJECUTIVO!$J142 -> 44.77552122 | N145: =[8]EJECUTIVO!$I142 -> 100 | O145: =[8]EJECUTIVO!$J142 -> 100
A146: 2.4 Rendimiento Promedio: Operaciones de Reporto de 1 semana | B146: =[2]EJECUTIVO!$I139 -> n.d. | C146: =[2]EJECUTIVO!$J139 -> n.d. | D146: =[3]EJECUTIVO!$I139 -> 4.073143904 | E146: =[3]EJECUTIVO!$J139 -> 2.18 | F146: =[4]EJECUTIVO!$I139 -> n.a. | G146: =[4]EJECUTIVO!$J139 -> n.a. | H146: =[5]EJECUTIVO!$I139 -> n.a. | I146: =[5]EJECUTIVO!$J139 -> n.a. | J146: =[6]EJECUTIVO!$I139 -> n.a. | K146: =[6]EJECUTIVO!$J139 -> n.a. | L146: =[7]EJECUTIVO!$I139 -> n.a. | M146: =[7]EJECUTIVO!$J139 -> n.a. | N146: =[8]EJECUTIVO!$I139 -> n.d. | O146: =[8]EJECUTIVO!$J139 -> n.d.
A148: Notas:
A149: Notación: n.a.=no aplica , n.d.=no disponible, n.o.=No hubo transacción ese mes.
A151: a/ En El Salvador corresponde a la nueva serie del PIB año base 2005 divulgada en marzo 2018; b/ Datos estimados de 2018 y 2019; c/ Los datos de Honduras no incluyen la maquila; d/ Las remesas provienen de la Balanza Cambiaria en Guatemala y Honduras y de la Balanza de Pagos para el resto de países; e/ Los flujos negativos de IED que se pudieran observar en El Salvador surgen debido a que en algunos periodos hay amortizaciones netas de préstamos con el inversionista directo, mayores a lo registrado por acciones u otras aportaciones de capital, los cuales por razones metodológicas deben sumarse al valor de la IED; f/ Incluye dentro de los socios comerciales al resto de países centroamericanos, República Dominicana, Panamá, Brasil, Canadá, China, Colombia, Corea del Sur, Haití, Japón, México, Estados Unidos y Zona Euro. Valores sobre (bajo) 100 significan una depreciación (apreciación) real de la moneda. Ver nota metodológica en http://www.secmca.org/nota/propuesta-de-actualizacion-del-indice-de-tipo-de-cambio-efectivo-real-itcer/; g/ Incluye dentro de los socios comerciales al resto de países Centroamericanos, República Dominicana y Panamá. Valores sobre (bajo) 100 significan una depreciación (apreciación) real de la moneda; h/ En Guatemala, Honduras y República Dominicana se refiere a la Deuda Pública Consolidada tal como lo recomienda la versión del 2001 del Manual de Estadísticas de Finanzas Públicas del FMI. En el resto de países se compila únicamente la deuda bruta. La Deuda Intragubernamental es la obligación contraída por una institución del gobierno con otra, por ejemplo los bonos emitidos por el Gobierno Central y que son comprados por una institución pública. Se resta de la deuda bruta para obtener la deuda consolidada; i/ Las estadísticas monetarias responden a los conceptos definidos en los cuadros armonizados que fueron aprobados por el CMCA en diciembre de 2007. Las tasas de variación de los componentes de cada concepto están ponderadas, de modo que la suma de las tasas coincide con la tasa de variación interanual de dicho concepto; j/ Costa Rica, Nicaragua y República Dominicana no tienen encaje remunerado; k/ En El Salvador el agregado monetario M3 es igual a M2 debido a que no existen pasivos de las Sociedades de Depósito en otra moneda que no sea el US dólar; L/ Esta relación es cero para Nicaragua debido a que todo el cuasidinero en MN se registra como cuasidinero en ME, dado que los depósitos y valores distintos de acciones en MN poseen cláusulas de mantenimiento de valor; m/ Esta relación no aplica a El Salvador debido a que no existen depósitos en una moneda distinta al US dólar, dada la vigencia de la Ley de Integración Monetaria; n/ Esta relación es 100 en Nicaragua debido a que los créditos en MN están indexados al tipo de cambio (mantenimiento de valor). Para efectos prácticos, están dolarizados; ñ/ En El Salvador desde el 2001 las tasas en MN y ME son las mismas, debido a la Ley de Integración Monetaria que circula el US dólar como la moneda local; o/ Para Costa Rica la Tasa de Política Monetaria (TPM) corresponde a la tasa de interés que utiliza el BCCR como referencia para conducir el costo de las operaciones a un día plazo en el Mercado Integrado de Liquidez dentro de un corredor formado por las tasas de interés de sus facilidades permanentes de crédito y de depósito en este mercado; en República Dominicana corresponde a la tasa de referencia para las operaciones de expansión y contracción al plazo de un día hábil; en Honduras la Tasa de Política Monetaria corresponde a la tasa máxima permitida para las posturas de compra y la tasa mínima para las posturas de venta, en las subastas de Letras del Banco Central de Honduras dirigidas a las instituciones del sistema financiero nacional; en Guatemala corresponde a la tasa de interés de los depósitos a plazo a un día (overnight); en El Salvador no aplica por no tener política monetaria y Nicaragua no define tasa de política monetaria.

Sheet Proyecciones
A2: Consejo Monetario Centroamericano | K2: =CONCATENATE(Indice!$J$47,",") -> REM N° 239, | L2: =Indice!$J$48 -> 2020-01-28
A3: Secretaría Ejecutiva
A4: PROYECCIONES/METAS 2020-2021 DE LOS PRINCIPALES INDICADORES MACROECONÓMICOS
A6: Cuadro 1 | I6: Cuadro 2
A7: Inflación (IPC) porcentajes | B7: 2017 | C7: =B7+1 -> 2018 | D7: =C7+1 -> 2019 | E7: =CONCATENATE("Proyección inicial ", D7+1) -> Proyección inicial 2020 | F7: =CONCATENATE("Proyección revisada ", D7+1) -> Proyección revisada 2020 | G7: =CONCATENATE("Proyección ",D7+2) -> Proyección 2021 | I7: PIB real variación anual | J7: =B7 -> 2017 | K7: =C7 -> 2018 | L7: =+D7 -> 2019 | M7: =CONCATENATE("Proyección inicial ", L7+1) -> Proyección inicial 2020 | N7: =CONCATENATE("Proyección revisada ", L7+1) -> Proyección revisada 2020 | O7: =CONCATENATE("Proyección ",L7+2) -> Proyección 2021
A8: Costa Rica | B8: =+'[1]Cuadros anuales'!H8 -> 2.574109938 | C8: =+'[1]Cuadros anuales'!I8 -> 2.027262161 | D8: =[1]METAS!H8 -> 1.522429116 | E8: =CONCATENATE([1]METAS!I8,"") -> 3.0 ± 1 | F8: =CONCATENATE([1]METAS!L8,"") ->  | G8: =CONCATENATE([1]METAS!P8,"") -> 3.0 ± 1 | I8: Costa Rica | J8: =+'[1]Cuadros anuales'!H33 -> 3.860198454 | K8: =+'[1]Cuadros anuales'!I33 -> 2.660375294 | L8: =+[1]METAS!$H33 -> 2.1 | M8: =+[1]METAS!I33 -> 2.5 | N8: =+[1]METAS!L33 ->  | O8: =[1]METAS!P33 -> 3
A9: El Salvador | B9: =+'[1]Cuadros anuales'!H9 -> 2.035042891 | C9: =+'[1]Cuadros anuales'!I9 -> 0.4382434487 | D9: =[1]METAS!H9 -> -0.008904719501 | E9: n.d. | F9: =CONCATENATE([1]METAS!L9,"") ->  | G9: =CONCATENATE([1]METAS!P9,"") -> n.d. | H9: os | I9: El Salvador | J9: =+'[1]Cuadros anuales'!H34 -> 2.307967131 | K9: =+'[1]Cuadros anuales'!I34 -> 2.537598361 | L9: =+[1]METAS!$H34 -> 2.3 | M9: =+[1]METAS!I34 -> 2.5 | N9: =+[1]METAS!L34 ->  | O9: =[1]METAS!P34 -> n.d.
A10: Guatemala | B10: =+'[1]Cuadros anuales'!H10 -> 5.676890326 | C10: =+'[1]Cuadros anuales'!I10 -> 2.312915019 | D10: =[1]METAS!H10 -> 3.405527602 | E10: =CONCATENATE([1]METAS!I10,"") -> 4.0 ± 1 | F10: =CONCATENATE([1]METAS!L10,"") ->  | G10: =CONCATENATE([1]METAS!P10,"") -> 4.0 ± 1 | I10: Guatemala | J10: =+'[1]Cuadros anuales'!H35 -> 3.002525271 | K10: =+'[1]Cuadros anuales'!I35 -> 3.05576772 | L10: =+[1]METAS!$H35 -> 3.5 | M10: =+[1]METAS!I35 -> 3.1 – 4.1 | N10: =+[1]METAS!L35 ->  | O10: =[1]METAS!P35 -> n.d.
A11: Honduras | B11: =+'[1]Cuadros anuales'!H11 -> 4.728132388 | C11: =+'[1]Cuadros anuales'!I11 -> 4.224443728 | D11: =[1]METAS!H11 -> 4.084158416 | E11: =CONCATENATE([1]METAS!I11,"") -> 4.0 ± 1 | F11: =CONCATENATE([1]METAS!L11,"") ->  | G11: =CONCATENATE([1]METAS!P11,"") -> n.d. | I11: Honduras | J11: =+'[1]Cuadros anuales'!H36 -> 4.842810191 | K11: =+'[1]Cuadros anuales'!I36 -> 3.696779649 | L11: =+[1]METAS!$H36 -> 3.0 -3.4 | M11: =+[1]METAS!I36 -> 3.0 – 3.4 | N11: =+[1]METAS!L36 ->  | O11: =[1]METAS!P36 -> n.d.
A12: Nicaragua | B12: =+'[1]Cuadros anuales'!H12 -> 5.678498434 | C12: =+'[1]Cuadros anuales'!I12 -> 3.885054751 | D12: =[1]METAS!H12 -> 6.12972437 | E12: =CONCATENATE([1]METAS!I12,"") -> 3.0-4.0 | F12: =CONCATENATE([1]METAS!L12,"") ->  | G12: =CONCATENATE([1]METAS!P12,"") -> n.d. | I12: Nicaragua | J12: =+'[1]Cuadros anuales'!H37 -> 4.675475377 | K12: =+'[1]Cuadros anuales'!I37 -> -3.815710169 | L12: =+[1]METAS!$H37 -> -4.5 | M12: =+[1]METAS!I37 -> 0.5 | N12: =+[1]METAS!L37 ->  | O12: =[1]METAS!P37 -> n.d.
A13: Rep Dominicana | B13: =+'[1]Cuadros anuales'!H13 -> 4.204277466 | C13: =+'[1]Cuadros anuales'!I13 -> 1.170594662 | D13: =[1]METAS!H13 -> 3.66 | E13: =CONCATENATE([1]METAS!I13,"") -> 4.0 ± 1 | F13: =CONCATENATE([1]METAS!L13,"") ->  | G13: =CONCATENATE([1]METAS!P13,"") -> 4.0 ± 1 | I13: Rep Dominicana | J13: =+'[1]Cuadros anuales'!H38 -> 4.666704676 | K13: =+'[1]Cuadros anuales'!I38 -> 6.982527584 | L13: =+[1]METAS!$H38 -> 5 | M13: =+[1]METAS!I38 -> 5.0-5.3 | N13: =+[1]METAS!L38 ->  | O13: =[1]METAS!P38 -> n.d.
A14: Promedio región CARD | B14: =+'[1]Cuadros anuales'!H16 -> 4.397548694 | C14: =+'[1]Cuadros anuales'!I16 -> 2.252502672 | D14: =[1]METAS!H16 -> 3.113733877 | E14: =[1]METAS!I16 -> n.d. | F14: =[1]METAS!L16 ->  | G14: =[1]METAS!P16 -> n.d. | I14: Promedio región CARD | J14: =+'[1]Cuadros anuales'!H41 -> 3.885192074 | K14: =+'[1]Cuadros anuales'!I41 -> 3.870665839 | L14: =+[1]METAS!$H41 -> n.d | M14: =+[1]METAS!I41 -> n.d. | N14: =+[1]METAS!L41 ->  | O14: =CONCATENATE([1]METAS!P41,"") -> n.d.
A16: Cuadro 3 | I16: Cuadro 4
A17: Cuenta Corriente/PIB porcentajes | B17: =B7 -> 2017 | C17: =C7 -> 2018 | D17: =+CONCATENATE("Proyectado ",D7) -> Proyectado 2019 | E17: =+E7 -> Proyección inicial 2020 | F17: =+F7 -> Proyección revisada 2020 | G17: Proyección 2021 | I17: RIN del Banco Central en millones de US$ | J17: =B7 -> 2017 | K17: =C7 -> 2018 | L17: =D7 -> 2019 | M17: =E7 -> Proyección inicial 2020 | N17: =F7 -> Proyección revisada 2020 | O17: Proyección 2021
A18: Costa Rica | B18: =+'[1]Cuadros anuales'!H154 -> -3.35340564 | C18: =+'[1]Cuadros anuales'!I154 -> -3.30039557 | D18: =+[1]METAS!H154 -> -2.4 | E18: =[1]METAS!I154 -> -2.2 | F18: =[1]METAS!L154 ->  | G18: =[1]METAS!P154 -> -2.2 | I18: Costa Rica | J18: =+'[1]Cuadros anuales'!H118 -> 7149.8 | K18: =+'[1]Cuadros anuales'!I118 -> 7494.9984 | L18: =+[1]METAS!H118 -> 8912.3 | M18: =+[1]METAS!I118 -> 9031.636364 | N18: =[1]METAS!$L$118 ->  | O18: =[1]METAS!P118 -> 8934.545455
A19: El Salvador | B19: =+'[1]Cuadros anuales'!H155 -> -1.863728925 | C19: =+'[1]Cuadros anuales'!I155 -> -4.765541249 | D19: =+[1]METAS!H155 -> n.d. | E19: n.d. | F19: =+[1]METAS!L155 ->  | G19: =[1]METAS!P155 -> n.d. | I19: El Salvador | J19: =+'[1]Cuadros anuales'!H119 -> 3273.16 | K19: =+'[1]Cuadros anuales'!I119 -> 3353.55 | L19: =+[1]METAS!H119 -> 3936.49 | M19: n.d. | N19: =[1]METAS!L119 ->  | O19: =[1]METAS!P119 -> n.d.
A20: Guatemala | B20: =+'[1]Cuadros anuales'!H156 -> 1.110637258 | C20: =+'[1]Cuadros anuales'!I156 -> 0.7442657164 | D20: =+[1]METAS!H156 -> 1.763015596 | E20: =[1]METAS!I156 -> 1.835402213 | F20: =[1]METAS!L156 ->  | G20: =[1]METAS!P156 -> 1.527634215 | I20: Guatemala | J20: =+'[1]Cuadros anuales'!H120 -> 11769.5 | K20: =+'[1]Cuadros anuales'!I120 -> 12755.6 | L20: =+[1]METAS!H120 -> 14789 | M20: =+[1]METAS!I120 -> 15789 | N20: =[1]METAS!L120 ->  | O20: =[1]METAS!P120 -> 15789 | P20: =+M20 -> 15789
A21: Honduras | B21: =+'[1]Cuadros anuales'!H157 -> 0.5336499528 | C21: =+'[1]Cuadros anuales'!I157 -> -3.085849096 | D21: =+[1]METAS!H157 -> -3.8 | E21: =[1]METAS!I157 -> -3.8 | F21: =[1]METAS!L157 ->  | G21: =[1]METAS!P157 -> n.d. | I21: Honduras | J21: =+'[1]Cuadros anuales'!H121 -> 4785.640786 | K21: =+'[1]Cuadros anuales'!I121 -> 4853.138645 | L21: =+[1]METAS!H121 -> 5808.856929 | M21: =+[1]METAS!I121 -> n.d | N21: =[1]METAS!L121 ->  | O21: =[1]METAS!P121 -> n.d. | P21: =+N21 -> 
A22: Nicaragua | B22: =+'[1]Cuadros anuales'!H158 -> -4.877098993 | C22: =+'[1]Cuadros anuales'!I158 -> 0.6327920857 | D22: =+[1]METAS!H158 -> n.d | E22: =[1]METAS!I158 -> n.d. | F22: =[1]METAS!L158 ->  | G22: =[1]METAS!P158 -> n.d. | I22: Nicaragua | J22: =+'[1]Cuadros anuales'!H122 -> 2716.2 | K22: =+'[1]Cuadros anuales'!I122 -> 2038.9 | L22: =+[1]METAS!H122 -> 2208.4 | M22: =+[1]METAS!I122 -> n.d. | N22: =[1]METAS!L122 ->  | O22: =[1]METAS!P122 -> n.d.
A23: Rep Dominicana | B23: =+'[1]Cuadros anuales'!H159 -> -0.1663240187 | C23: =+'[1]Cuadros anuales'!I159 -> -1.355672318 | D23: =+[1]METAS!H159 -> n.d. | E23: =[1]METAS!I159 -> -1.7 | F23: =[1]METAS!L159 ->  | G23: =[1]METAS!P159 -> n.d. | I23: Rep Dominicana | J23: =+'[1]Cuadros anuales'!H123 -> 6780.40308 | K23: =+'[1]Cuadros anuales'!I123 -> 7627.107884 | L23: =+[1]METAS!H123 -> 8781.4 | M23: =+[1]METAS!I123 -> n.d. | N23: =[1]METAS!L123 ->  | O23: =[1]METAS!P123 -> n.d. | P23: =+M23 -> n.d.
A24: Promedio región CARD | B24: =+'[1]Cuadros anuales'!H162 -> -0.4410275281 | C24: =+'[1]Cuadros anuales'!I162 -> -1.433347768 | D24: =+[1]METAS!H162 -> n.d | E24: =[1]METAS!I162 -> n.d | F24: =[1]METAS!L162 -> 0 | G24: =[1]METAS!P162 -> n.d. | I24: Total región CARD | J24: =+'[1]Cuadros anuales'!H126 -> 36474.70387 | K24: =+'[1]Cuadros anuales'!I126 -> 38123.29493 | L24: =+[1]METAS!H126 -> 44436.44693 | M24: =+[1]METAS!I126 -> n.d. | N24: =[1]METAS!L126 ->  | O24: =CONCATENATE([1]METAS!P126,"") -> n.d. | P24: =+SUM(P18:P23) -> 15789
A26: Cuadro 5 | I26: Cuadro 6
A27: Exportaciones variación anual | B27: =B7 -> 2017 | C27: =C7 -> 2018 | D27: 2019 | E27: Proyección inicial 2020 | F27: Proyección revisada 2020 | G27: Proyección 2021 | I27: Importaciones variación anual | J27: =B7 -> 2017 | K27: =C7 -> 2018 | L27: 2019 | M27: Proyección inicial 2020 | N27: Proyección revisada 2020 | O27: Proyección 2021
A28: Costa Rica | B28: =+'[1]Cuadros anuales'!H70 -> 6.602928088 | C28: =+'[1]Cuadros anuales'!I70 -> 5.395523688 | D28: =[1]METAS!H70 -> 2.665026742 | E28: =[1]METAS!I70 -> 3.8 | F28: =([1]METAS!L70) ->  | G28: =[1]METAS!$P70 -> 3.3 | H28: =+E28 -> 3.8 | I28: Costa Rica | J28: =+'[1]Cuadros anuales'!H94 -> 4.05428553 | K28: =+'[1]Cuadros anuales'!I94 -> 4.069918408 | L28: =[1]METAS!H94 -> -2.51365936 | M28: =[1]METAS!I94 -> 3.6 | N28: =[1]METAS!$L94 ->  | O28: =[1]METAS!$P94 -> 3.8
A29: El Salvador | B29: =+'[1]Cuadros anuales'!H71 -> 6.270306172 | C29: =+'[1]Cuadros anuales'!I71 -> 2.510238698 | D29: =[1]METAS!H71 -> 0.6555905565 | E29: n.d. | F29: =([1]METAS!L71) ->  | G29: =[1]METAS!$P71 -> n.d. | H29: =+E29 -> n.d. | I29: El Salvador | J29: =+'[1]Cuadros anuales'!H95 -> 7.589313429 | K29: =+'[1]Cuadros anuales'!I95 -> 11.90256823 | L29: =[1]METAS!H95 -> 1.587349892 | M29: n.d. | N29: =[1]METAS!$L95 ->  | O29: =[1]METAS!$P95 -> n.d.
A30: Guatemala | B30: =+'[1]Cuadros anuales'!H72 -> 5.101777153 | C30: =+'[1]Cuadros anuales'!I72 -> -0.1183712121 | D30: =[1]METAS!H72 -> 1.955439678 | E30: =[1]METAS!I72 -> 1.0 - 4.0 | F30: =([1]METAS!L72) ->  | G30: =[1]METAS!$P72 -> 1.5 - 4.5 | H30: 11.9 | I30: Guatemala | J30: =+'[1]Cuadros anuales'!H96 -> 8.159832498 | K30: =+'[1]Cuadros anuales'!I96 -> 6.983067068 | L30: =[1]METAS!H96 -> 1.052128654 | M30: =[1]METAS!I96 -> 1.5 - 4.5 | N30: =[1]METAS!$L96 ->  | O30: =[1]METAS!$P96 -> 2.0 - 5.0
A31: Honduras | B31: =+'[1]Cuadros anuales'!H73 -> 16.32099289 | C31: =+'[1]Cuadros anuales'!I73 -> -5.994620533 | D31: =[1]METAS!H73 -> -2.63086159 | E31: =[1]METAS!I73 -> 3.3 | F31: =([1]METAS!L73) ->  | G31: =[1]METAS!$P73 -> n.d. | H31: 13.6 | I31: Honduras | J31: =+'[1]Cuadros anuales'!H97 -> 8.641930883 | K31: =+'[1]Cuadros anuales'!I97 -> 8.493296294 | L31: =[1]METAS!H97 -> -4.245494846 | M31: =[1]METAS!I97 -> 4.4 | N31: =[1]METAS!$L97 ->  | O31: =[1]METAS!$P97 -> n.d.
A32: Nicaragua | B32: =+'[1]Cuadros anuales'!H74 -> 7.174739626 | C32: =+'[1]Cuadros anuales'!I74 -> 3.871664353 | D32: =[1]METAS!H74 -> n.d. | E32: =[1]METAS!I74 -> n.d. | F32: =([1]METAS!L74) ->  | G32: =[1]METAS!$P74 -> n.d. | H32: 8.2 | I32: Nicaragua | J32: =+'[1]Cuadros anuales'!H98 -> 3.211055998 | K32: =+'[1]Cuadros anuales'!I98 -> -9.531811484 | L32: =[1]METAS!H98 -> n.d. | M32: =[1]METAS!I98 -> n.d. | N32: =[1]METAS!$L98 ->  | O32: =[1]METAS!$P98 -> n.d.
A33: Rep Dominicana | B33: =+'[1]Cuadros anuales'!H75 -> 2.998089353 | C33: =+'[1]Cuadros anuales'!I75 -> 7.627336057 | D33: =[1]METAS!H75 -> 3.6 | E33: =[1]METAS!I75 -> 4.3 | F33: =([1]METAS!L75) ->  | G33: =[1]METAS!$P75 -> n.d. | H33: 47 | I33: Rep Dominicana | J33: =+'[1]Cuadros anuales'!H99 -> 1.734047567 | K33: =+'[1]Cuadros anuales'!I99 -> 14.17264114 | L33: =[1]METAS!H99 -> 2.4 | M33: =[1]METAS!I99 -> n.d. | N33: =[1]METAS!$L99 ->  | O33: =[1]METAS!$P99 -> n.d.
A34: Promedio región CARD | B34: =+'[1]Cuadros anuales'!H78 -> 5.865444328 | C34: =+'[1]Cuadros anuales'!I78 -> 3.334274507 | D34: =[1]METAS!H78 -> n.d | E34: =[1]METAS!I78 -> n.d. | F34: =[1]METAS!L78 -> 0 | G34: =[1]METAS!$P78 -> n.d. | I34: Promedio región CARD | J34: =+'[1]Cuadros anuales'!H102 -> 5.068459034 | K34: =+'[1]Cuadros anuales'!I102 -> 8.459305939 | L34: =[1]METAS!H102 -> n.d | M34: =[1]METAS!I102 -> n.d. | N34: =[1]METAS!$L102 -> 0 | O34: =[1]METAS!$P102 -> n.d.
A36: Cuadro 7 | I36: Cuadro 8
A37: Remesas (Ingreso) en millones de US$ | B37: =B7 -> 2017 | C37: =C7 -> 2018 | D37: 2019 | E37: Proyección inicial 2020 | F37: Proyección revisada 2020 | G37: Proyección 2021 | I37: Saldo Operacional del Gobierno Central/PIB | J37: =B7 -> 2017 | K37: =C7 -> 2018 | L37: 2019 | M37: Proyección inicial 2020 | N37: Proyección revisada 2020 | O37: Proyección 2021
A38: Costa Rica | B38: =+'[1]Cuadros anuales'!H130 -> 530.8862109 | C38: =+'[1]Cuadros anuales'!I130 -> 499.0383213 | D38: =+[1]METAS!H130 -> n.d. | E38: =+[1]METAS!I130 -> n.d | F38: =[1]METAS!L130 ->  | G38: =[1]METAS!P130 -> n.d. | H38: =+E38 -> n.d | I38: Costa Rica | J38: =+'[1]Cuadros anuales'!H191 -> -6.082931091 | K38: =+'[1]Cuadros anuales'!I191 -> -5.834665358 | L38: =+[1]METAS!H179 -> -6.938883323 | M38: =+[1]METAS!I179 -> -5.9 | N38: =[1]METAS!L179 ->  | O38: =[1]METAS!P179 -> -5.7 | P38: =+N38 -> 
A39: El Salvador | B39: =+'[1]Cuadros anuales'!H131 -> 4985.37 | C39: =+'[1]Cuadros anuales'!I131 -> 5390.78 | D39: =+[1]METAS!H131 -> 5650.21 | E39: n.d. | F39: =[1]METAS!L131 ->  | G39: =[1]METAS!P131 -> n.d. | H39: =+E39 -> n.d. | I39: El Salvador | J39: =+'[1]Cuadros anuales'!H192 -> -0.06639128657 | K39: =+'[1]Cuadros anuales'!I192 -> -1.05307797 | L39: =+[1]METAS!H180 -> -1.623731111 | M39: n.d. | N39: =[1]METAS!L180 ->  | O39: =[1]METAS!P180 -> n.d. | P39: =+M39 -> n.d.
A40: Guatemala | B40: =+'[1]Cuadros anuales'!H132 -> 8192.2161 | C40: =+'[1]Cuadros anuales'!I132 -> 9287.77 | D40: =+[1]METAS!H132 -> 10508.3074 | E40: =+[1]METAS!I132 -> 11664.213 | F40: =[1]METAS!L132 ->  | G40: =[1]METAS!P132 -> 12655.6711 | H40: =+E40 -> 11664.213 | I40: Guatemala | J40: =+'[1]Cuadros anuales'!H193 -> -1.398814767 | K40: =+'[1]Cuadros anuales'!I193 -> -1.854390166 | L40: =+[1]METAS!H181 -> -2.283608574 | M40: =+[1]METAS!I181 -> 2.007479941 | N40: =[1]METAS!L181 ->  | O40: =[1]METAS!P181 -> n.d. | P40: =+M40 -> 2.007479941
A41: Honduras | B41: =+'[1]Cuadros anuales'!H133 -> 4438.320862 | C41: =+'[1]Cuadros anuales'!I133 -> 4884.248415 | D41: =+[1]METAS!H133 -> 5523.57091 | E41: =+[1]METAS!I133 -> 5429 | F41: =[1]METAS!L133 ->  | G41: =[1]METAS!P133 -> n.d. | H41: =+F41 ->  | I41: Honduras | J41: =+'[1]Cuadros anuales'!H194 -> -2.713669206 | K41: =+'[1]Cuadros anuales'!I194 -> -2.093141775 | L41: =+[1]METAS!H182 -> -2.4 | M41: =+[1]METAS!I182 -> -2.3 | N41: =[1]METAS!L182 ->  | O41: =[1]METAS!P182 -> n.d. | P41: -3.7
A42: Nicaragua | B42: =+'[1]Cuadros anuales'!H134 -> 1390.8 | C42: =+'[1]Cuadros anuales'!I134 -> 1501.2 | D42: =+[1]METAS!H134 -> n.d. | E42: =+[1]METAS!I134 -> n.d. | F42: =[1]METAS!L134 ->  | G42: =[1]METAS!P134 -> n.d. | I42: Nicaragua | J42: =+'[1]Cuadros anuales'!H195 -> -0.558463298 | K42: =+'[1]Cuadros anuales'!I195 -> -1.925546995 | L42: =+[1]METAS!H183 -> n.d. | M42: =+[1]METAS!I183 -> n.d. | N42: =[1]METAS!L183 ->  | O42: =[1]METAS!P183 -> n.d. | P42: =+M42 -> n.d.
A43: Rep Dominicana | B43: =+'[1]Cuadros anuales'!H135 -> 5911.757681 | C43: =+'[1]Cuadros anuales'!I135 -> 6494.063654 | D43: =+[1]METAS!H135 -> n.d. | E43: =+[1]METAS!I135 -> n.d. | F43: =[1]METAS!L135 ->  | G43: =[1]METAS!P135 -> n.d. | I43: Rep Dominicana | J43: =+'[1]Cuadros anuales'!H196 -> -2.860683347 | K43: =+'[1]Cuadros anuales'!I196 -> -1.889299719 | L43: =+[1]METAS!H184 -> n.d. | M43: =+[1]METAS!I184 -> n.d. | N43: =[1]METAS!L184 ->  | O43: =[1]METAS!P184 -> n.d. | P43: =+M43 -> n.d.
A44: Total región CARD | B44: =+'[1]Cuadros anuales'!H138 -> 25449.35085 | C44: =+'[1]Cuadros anuales'!I138 -> 28057.10039 | D44: =+[1]METAS!H138 -> n.d. | E44: =+[1]METAS!I138 -> n.d. | F44: =[1]METAS!L138 ->  | G44: =CONCATENATE([1]METAS!P138,"") -> n.d. | I44: Promedio región CARD | J44: =+'[1]Cuadros anuales'!H199 -> -2.537810315 | K44: =+'[1]Cuadros anuales'!I199 -> -2.432562689 | L44: =+[1]METAS!H187 -> n.d | M44: =+[1]METAS!I187 -> n.d | N44: =[1]METAS!L187 -> 0 | O44: =[1]METAS!P187 -> n.d.
I45: Incluye donaciones
A46: Fuente: Bancos Centrales Centroamericanos y de República Dominicana.
A47: NOTAS:
A48: La región CARD incluye a los países de Centroamérica y República Dominicana
A49: Los promedios regionales están ponderados conforme al tamaño de cada economía.

Sheet Seguimiento proyecciones
A2: CONSEJO MONETARIO CENTROAMERICANO | M2: =CONCATENATE(Indice!$J$47,",") -> REM N° 239, | N2: =Indice!$J$48 -> 2020-01-28
A3: SECRETARIA EJECUTIVA
A4: SEGUIMIENTO DE LAS PROYECCIONES EN 2019-2020
A6: Inflación Acumulada en 2020 | I6: Resultado operacional del Gobierno Central 2019
I7: (incluye las donaciones)
A25: Cuando se especifica un rango en las metas de inflación, se toma el límite superior. | I25: El saldo positivo de República Dominicana se debe a que en enero del 2015 se incluye dentro de las donaciones la suma de RD$ 93,157.2 millones, correspondiente al descuento generado por la transacción de deuda realizada con Petrocaribe.
A28: Saldo en la Cuenta Corriente 2019 | I28: Reservas Internacionales Netas
I29: del Banco Central 2020
A50: Exportaciones Totales con Maquila 2020 | I50: Importaciones Totales con Maquila 2020
A72: Ingresos por Remesas Familiares 2020
A93: Los datos de Costa Rica al mes de junio no están disponibles. Anualmente Costa Rica recibe aproximadamente 500 millones de US dólares por concepto de remesas.

Sheet Gráficos-pais
S2: Seleccione el país
A3: CONSEJO MONETARIO CENTROAMERICANO | O3: =CONCATENATE(Indice!$J$47,",") -> REM N° 239, | P3: =Indice!$J$48 -> 2020-01-28
A4: SECRETARIA EJECUTIVA
A5: EVOLUCIÓN POR PAÍS DE INDICADORES MACROECONÓMICOS SELECCIONADOS
A10: Tasa de Inflación Interanual | J10: IMAE | S10: Nota: Se le recuerda habilitar las macros para hacer uso de las herramientas dinámicas presentes en este informe.
J11: Variación Interanual de la Tendencia-Ciclo
A34: ITCER bilateral USA año base 2000 | J34: Tipo de Cambio Nominal Tasa de variación interanual
A35: 2000=100 | J35: Tasa de Variación Interanual
A58: RIN Banco Central | J58: RIN Banco Central/ Base Monetaria Amplia
A81: En Panamá, el Banco Nacional de Panamá (BNP) funciona como receptor y gestor de las RIN que corresponden a los activos externos de reserva menos los pasivos de corto plazo frente a no residentes. Los primeros se componen de: billetes y depósitos en moneda extranjera e inversiones en títulos (incluidos los títulos de deuda y participaciones de capital); los pasivos se componen de los depósitos transferibles de no residentes en moneda extranjera. En Costa Rica se dió un aumento en las RIN en marzo de 2018 de US$ 1.000 millones provenientes del FLAR. | J81: República Dominicana presenta un incremento de US$1,246 millones en febrero de 2018 debido a la colocación de bonos soberanos en el mercado global de capitales. En El Salvador al cierre de febrero de 2017 las Reservas Internacionales Netas (RIN) alcanzaron un nivel de US$3,510.9 millones, un incremento de US$607 millones respecto al mes de enero de 2017, explicado por la colocación de bonos del Gobierno de El Salvador ($601 millones). La relación RIN a Base Monetaria es alta en Panamá (escala derecha) debido a que la base monetaria es pequeña; esto es consecuencia de que no existe encaje legal debido a la ausencia de Banco Central.
A85: Exportaciones totales FOB, del mes | J85: Importaciones totales CIF, del mes
A86: Promedio móvil de los últimos 12 meses | J86: Promedio móvil de los últimos 12 meses
A107: Las cifras de Honduras no incluyen la maquila. | J107: Las cifras de Honduras no incluyen la maquila.
A109: Tasa de interés pasiva real en MN a 180 días | J109: Tasa de interés activa real en MN de corto plazo
A132: La tasa real se obtiene deflatando con la tasa de variación interanual del IPC al mes indicado. | J132: La tasa real se obtiene deflatando con la tasa de variación interanual del IPC al mes indicado.
A134: Tasa de interés pasiva en ME a 180 días | J134: Tasa de interés activa en ME de corto plazo
J158: En Honduras, a partir de enero 2017, la CNBS implementó las Normas Internacionales de Información Financiera (NIIF) en los balances contables de los Bancos Comerciales, Sociedades Financieras y Banhprovi, permitiendo cambios en el cálculo de las tasas de interés activas y pasivas.
J159: En Costa Rica a partir de enero 2019 cambia la metodología de cálculo de tasas de interés para utilizar tasas ponderadas por el monto de la operación.
A160: Tasa de interés lider de Política Monetaria | J160: Créditos de las OSD al sector Privado, Variación Interanual
A161: evolución mensual

Sheet Nota Técnica
K1: Consejo Monetario Centroamericano
K2: Secretaría Ejecutiva
D5: REPORTE EJECUTIVO MENSUAL
D7: DE INDICADORES MACROECONÓMICOS
D8: DE CENTROAMÉRICA, REPÚBLICA DOMINICANA y
D9: PANAMÁ
B12: Glosario de Términos
B13: PIB | D13: Producto Interno Bruto
B14: IMAE | D14: Índice Mensual de Actividad Económica
B15: IPC | D15: Índice de Precios al Consumidor
B16: ISI | D16: Índice Subyacente de Inflación. En algunos países se utiliza el Indice del Nucleo Inflacionario (INI)
B17: Región CARD | D17: La región incluye los siguientes países: Costa Rica, El Salvador, Guatemala, Honduras, Nicaragua y República Dominicana
B18: Región CAPARD | D18: La región incluye los siguientes países: Costa Rica, El Salvador, Guatemala, Honduras, Nicaragua, Panamá y República Dominicana
B20: Nota Técnica
B22: Variación Interanual | E22: Variación porcentual del nivel del mes respecto al mismo mes del año anterior.
B23: Variación acumulada | E23: Variación porcentual del nivel del mes vigente respecto al mes de diciembre del año anterior.
B24: Aceleración | E24: Diferencia en valor absoluto entre la variación (interanual) de un mes respecto al mes anterior. Su interpretación se realiza en puntos porcentuales.
B25: Metas de Inflación | E25: Esquema donde el Banco Central hace explícita su meta de inflación puntual o rango, y los instrumentos de política monetaria se direccionan en la obtención de dicha meta.
B26: Inflación Subyacente | E26: El Índice subyacente de Inflación (ISI) se define como el componente del cambio total de precios común a todos los bienes y servicios, cuya persistencia se mantendría en el mediano y largo plazo. El ISI constituye una medida alternativa del IPC, al que se le han eliminado algunos de los bienes y servicios cuyos precios son, por lo general, los más volátiles. El algunos países se denomina índice del nucleo inflacionario.
B27: Tendencia-Ciclo | E27: Serie de tiempo que excluye los componentes de estacionalidad e irregularidad.
B28: RIN/meses de importación promedio | E28: Tanto en el cuadro regional como en el compartivo por país se calcula la relación de RIN a importaciones promedio. En ambos casos el denominador corresponde al promedio de importaciones observadas de enero al mes indicado. En el cálculo regional se suman las importaciones totales y las RIN de todos los países de la región.
B31: Periodos base de los principales indicadores del sector real
D32: Año Base del Indicador Mensual de Actividad Económica IMAE | H32: Año Base del Producto Interno Bruto en términos constantes | L32: Periodo base de los Índices de los Precios al Consumidor
B33: País
B34: Costa Rica | E34: 2012 | I34: 2012 | M34: Junio 2015
B35: El Salvador | E35: 1990 | I35: 1990 | M35: Diciembre 2009
B36: Guatemala | E36: 2001 | I36: 2001 | M36: Diciembre 2010
B37: Honduras | E37: 2000 | I37: 2000 | M37: Diciembre 1999
B38: Nicaragua | E38: 2006 | I38: 2006 | M38: 2006
B39: República Dominicana | E39: 2007 | I39: 2007 | M39: Diciembre 2010
B40: Panamá | E40: 1996 | I40: 2007 | M40: 2013
B44: Nota Técnica Ponderadores
B46: Para los cálculos regionales se utiliza como ponderador el peso de cada economía con respecto a la región. Para esto se utiliza el Ingreso Nacional Bruto (INB) por Paridad del Poder Adquisitivo (PPA), publicado anualmente por el Banco Mundial en el cuadro 1.1 “Size of the economy” del “World development indicators” (http://datos.bancomundial.org/indicador/NY.GNP.MKTP.PP.CD). Los pesos son actualizados anualmente basados en los últimos resultados disponibles. Para 2015 y 2016 los ponderadores que se utilizan corresponden a las cifras del año 2015 y que vienen dados en la siguiente tabla:
D51: País | F51: INB PPA (en miles de millones de US$ ) | H51: Ponderador CA | J51: Ponderador Región CARD | L51: Ponderador Región CAPARD
D52: Costa Rica | F52: =[1]Ponderadores!$C$28 -> 72.3419007 | H52: =[1]Ponderadores!$M$28 -> 0.2326611062 | J52: =[1]Ponderadores!$S$28 -> 0.1589478697 | L52: =[1]Ponderadores!Z$28 -> 0.1353066652
D53: El Salvador | F53: =[1]Ponderadores!$D$28 -> 44.94520395 | H53: =[1]Ponderadores!$N$28 -> 0.1445497114 | J53: =[1]Ponderadores!$T$28 -> 0.09875251207 | L53: =[1]Ponderadores!AA$28 -> 0.08406449931
D54: Guatemala | F54: =[1]Ponderadores!$E$28 -> 123.8057157 | H54: =[1]Ponderadores!$O$28 -> 0.3981755314 | J54: =[1]Ponderadores!$U$28 -> 0.2720229158 | L54: =[1]Ponderadores!AB$28 -> 0.231563428
D55: Honduras | F55: =[1]Ponderadores!$F$28 -> 38.50739381 | H55: =[1]Ponderadores!$P$28 -> 0.1238448638 | J55: =[1]Ponderadores!$V$28 -> 0.08460751176 | L55: =[1]Ponderadores!AC$28 -> 0.07202336391
D56: Nicaragua | F56: =[1]Ponderadores!$G$28 -> 31.3322915 | H56: =[1]Ponderadores!$Q$28 -> 0.1007687872 | J56: =[1]Ponderadores!$W$28 -> 0.06884255098 | L56: =[1]Ponderadores!AD$28 -> 0.05860321381
D57: Rep. Dominicana | F57: =[1]Ponderadores!$H$28 -> 144.1972223 | J57: =[1]Ponderadores!$X$28 -> 0.3168266397 | L57: =[1]Ponderadores!AE$28 -> 0.2697032438
D58: Panamá | F58: =[1]Ponderadores!$I$28 -> 79.52169232 | L58: =[1]Ponderadores!AF$28 -> 0.148735586

Sheet Gráfico Seguimiento (hidden)
B1: INFLACIÓN | D1: RIN | F1: RESULTADO OPERACIONAL GC | H1: CUENTA CORRIENTE | J1: Exportaciones | L1: Importaciones | N1: Remesas acumuladas | P1: Remesas sin CR a | Q1: =+[1]EJECUTIVO!$G$72 -> JUNIO
B2: =[1]METAS!O7 -> Proy.dic/20 | C2: =[1]METAS!S19 -> ENE.20 | D2: =[1]METAS!O117 -> Proy.dic/20 | E2: =+[1]METAS!$S117 -> ENE.20 | F2: Proy.dic/19 | G2: =+[1]METAS!$S$166 -> NOV.19 | H2: Proy.dic/19 | I2: =[1]METAS!S141 -> III TRIM19 | J2: =+[1]METAS!$M57 -> Proy.dic/20 | K2: =+[1]METAS!$S57 -> ENE.20 | L2: =+[1]METAS!$M81 -> Proy.dic/20 | M2: =+[1]METAS!$S81 -> ENE.20 | N2: =+[1]METAS!$M129 -> Proy.dic/20 | O2: =+[1]METAS!$S129 -> ENE.20 | P2: =+[1]METAS!$M129 -> Proy.dic/20 | Q2: =+[1]METAS!$V129 -> ENE.20
A3: CR | B3: =+[1]METAS!$O8 -> 4 | C3: =[1]METAS!S20 -> 0.1107778128 | D3: =+[1]METAS!$M118 -> 9031.636364 | E3: =+[1]METAS!$S118 -> 8211 | F3: =+'[2]HIST METAS'!$AF$39 -> -3822 | G3: =+[1]METAS!$S167 -> -3769.595347 | H3: =+'[2]HIST METAS'!$AF$23 -> -1456 | I3: =[1]METAS!S142 -> -974.0367951 | J3: =+[1]METAS!$M58 -> 12243 | L3: =+[1]METAS!$M82 -> 16948 | P3: =+[1]METAS!$M130 -> n.d | Q3: =+[1]METAS!$V130 -> 0
A4: ES | C4: =[1]METAS!S21 -> -0.1246771752 | E4: =+[1]METAS!$S119 -> 3948 | G4: =+[1]METAS!$S168 -> -276.88 | I4: =[1]METAS!S143 -> -469.8106363 | K4: =+[1]METAS!$S59 -> 509.84 | M4: =+[1]METAS!$S83 -> 1001.54 | O4: =+[1]METAS!$S131 -> 424.53 | P4: =+[1]METAS!$M131 -> n.d. | Q4: =+[1]METAS!$V131 -> 424.53
A5: GT | B5: =+[1]METAS!$O10 -> 5 | C5: =[1]METAS!S22 -> -0.23977433 | D5: =+[1]METAS!$M120 -> 15789 | E5: =+[1]METAS!$S120 -> 14895 | F5: =+'[4]HIST METAS'!$AF$39 -> -1671.944035 | G5: =+[1]METAS!$S169 -> -1182.149883 | H5: =+'[4]HIST METAS'!$AF$23 -> 1337.691277 | I5: =[1]METAS!S144 -> 1554.37866 | J5: =+[1]METAS!$M60 -> 11463.4975 | L5: =+[1]METAS!$M84 -> 20477.842 | N5: =+[1]METAS!$M132 -> 11664.213 | O5: =+[1]METAS!$S132 -> 834.6104 | P5: =+[1]METAS!$M132 -> 11664.213 | Q5: =+[1]METAS!$V132 -> 834.6104
A6: HO | B6: =+[1]METAS!$O11 -> 5 | C6: =[1]METAS!S23 -> 0.2378121284 | E6: =+[1]METAS!$S121 -> 5764 | G6: =+[1]METAS!$S170 -> -464.5652928 | H6: =+'[5]HIST METAS'!$AF$23 -> -942 | I6: =[1]METAS!S145 -> 384.9152452 | N6: =+[1]METAS!$M133 -> 5429 | O6: =+[1]METAS!$S133 -> 420.9340616 | P6: =+[1]METAS!$M133 -> 5429 | Q6: =+[1]METAS!$V133 -> 420.9340616
A7: NI | B7: 4 | P7: =+[1]METAS!$M134 -> n.d. | Q7: =+[1]METAS!$V134 -> 0
A8: RD | B8: =+[1]METAS!$O13 -> 5 | C8: =[1]METAS!S25 -> 0.3253164956 | E8: =+[1]METAS!$S123 -> 10408 | G8: =+[1]METAS!$S172 -> -1484.130172 | H8: =+'[7]HIST METAS'!$AF$23 -> -1397.910114 | I8: =[1]METAS!S147 -> -709.1 | P8: =+[1]METAS!$M135 -> n.d. | Q8: =+[1]METAS!$V135 -> n.d.
B10: ver DO | C10: poner datos de ENE 20 | F10: cambiar a 2020 el próx REM | Q10: poner datos de ENE 20

Sheet Datos_Regional (M) (hidden)
A1: Variables Mensuales Regional | D1: IPC CARD | E1: IPC CARD_T | F1: IPC CAPARD | G1: IPC CAPARD_T | H1: IMAER_TC | I1: IMAER_T | J1: IMAER CARD_TC | K1: IMAER CAPARD_T | L1: RIN_CARD | M1: RIN Diciembres | N1: RIN_CAPARD | O1: RIN Diciembres | P1: CARD | V1: CAPARD | AB1: Crédito de las OSD con SPNF | AF1: Créditos de las OSD con el sector privado, saldo en millones de USD | AL1: Tasa de variación Interanual | AS1: Crédito de las OSD con SPNF | AW1: Créditos de las OSD con el sector privado, saldo en millones de USD | BC1: Tasa de variación Interanual | BJ1: Tasa de Política Monetaria | BQ1: CARD Saldo operacional GC | BR1: CAPARD Saldo operacional GC | BS1: CARD | BV1: CAPARD | BY1: Crédito de las OSD con el Sector Privado MN | CM1: Mill-US$ | CN1: Mill-US$ | CO1: % | CP1: Mill-US$ | CQ1: Mill-US$ | CR1: % | CS1: CARD | DA1: CAPARD
P2: M1 | Q2: M2 | R2: M3 | S2: M1_% | T2: M2_% | U2: M3_% | V2: M1 | W2: M2 | X2: M3 | Y2: M1_% | Z2: M2_% | AA2: M3_% | AB2: Activos | AC2: Pasivos | AD2: Crédito Neto | AE2: %Interanual | AF2: Otras sociedades no financieras | AG2: Otros sectores 1/ | AH2: Otras sociedades no financieras | AI2: Hogares e ISFLSH | AK2: TOTAL | AL2: Otras sociedades no financieras | AN2: Otros sectores 1/ | AO2: Otras sociedades no financieras | AP2: Hogares e ISFLSH | AQ2: TOTAL | AR2: Aceleración | AS2: Activos | AT2: Pasivos | AU2: Crédito Neto | AV2: %Interanual | AW2: Otras sociedades no financieras | AX2: Otros sectores 1/ | AY2: Otras sociedades no financieras | AZ2: Hogares e ISFLSH | BB2: TOTAL | BC2: Otras sociedades no financieras | BE2: Otros sectores 1/ | BF2: Otras sociedades no financieras | BG2: Hogares e ISFLSH | BH2: TOTAL | BI2: Aceleración | BJ2: CR | BK2: SV | BL2: GT | BM2: HO | BN2: NI | BO2: RD | BP2: PA | BS2: Deuda Pública total | BT2: Deuda Interna | BU2: Deuda Externa | BV2: Deuda Pública total | BW2: Deuda Interna | BX2: Deuda Externa | BY2: CR | BZ2: SV | CA2: GT | CB2: HO | CC2: NI | CD2: RD | CE2: PA | CF2: CR % | CG2: SV % | CH2: GT % | CI2: HO % | CJ2: NI % | CK2: RD % | CL2: PA % | CM2: CARD Saldo Operacional con donaciones | CN2: CARD PIB a precios corrientes | CO2: CARD Saldo operacional/PIB | CP2: CAPARD Saldo Operacional con donaciones | CQ2: CAPARD PIB a precios corrientes | CR2: CAPARD Saldo operacional/PIB | CS2: Credito TOTAL | CT2: Créditos de las OSD a sector Público | CU2: Créditos de las OSD a sector Privado | CV2: Créditos de las OSD a no residentes y otros | CW2: Credito TOTAL % | CX2: Créditos de las OSD a sector Público % | CY2: Créditos de las OSD a sector Privado % | CZ2: Créditos de las OSD a no residentes y otros % | DA2: Credito TOTAL | DB2: Créditos de las OSD a sector Público | DC2: Créditos de las OSD a sector Privado | DD2: Créditos de las OSD a no residentes y otros | DE2: Credito TOTAL % | DF2: Créditos de las OSD a sector Público % | DG2: Créditos de las OSD a sector Privado % | DH2: Créditos de las OSD a no residentes y otros %
A3: 1990 | B3: enero | C3: =A3&"-"&B3 -> 1990-enero | D3: =IF('[1]REAL IPC(M)'!$AL10="","",+'[1]REAL IPC(M)'!$AL10) -> n.d. | E3: =IF('[1]REAL IPC(M)'!$BE10="","",+'[1]REAL IPC(M)'!$BE10) -> n.d. | F3: =IF('[1]REAL IPC(M)'!$AM10="","",+'[1]REAL IPC(M)'!$AM10) -> n.d. | G3: =IF('[1]REAL IPC(M)'!$BI10="","",+'[1]REAL IPC(M)'!$BI10) -> n.d. | H3: =IF('[1]REAL IMAE(M)'!BJ10="","",'[1]REAL IMAE(M)'!BJ10) -> n.d. | I3: =IF('[1]REAL IMAE(M)'!BK10="","",'[1]REAL IMAE(M)'!BK10) -> n.d. | J3: =IF('[1]REAL IMAE(M)'!BN10="","",'[1]REAL IMAE(M)'!BN10) -> n.d. | K3: =IF('[1]REAL IMAE(M)'!BO10="","",'[1]REAL IMAE(M)'!BO10) -> n.d. | L3: =IF('[1]EXT RIN(M)'!$K10="","",'[1]EXT RIN(M)'!$K10) -> n.d. | M3: =IF(B3<>"diciembre","",L3) ->  | N3: =IF('[1]EXT RIN(M)'!$L10="","",'[1]EXT RIN(M)'!$L10) -> n.d. | O3: =IF(B3<>"diciembre","",N3) ->  | P3: =IF('[1]MONE(M)CARD'!EG10="","",'[1]MONE(M)CARD'!EG10) -> n.d. | Q3: =IF('[1]MONE(M)CARD'!EK10="","",'[1]MONE(M)CARD'!EK10) -> n.d. | R3: =IF('[1]MONE(M)CARD'!EP10="","",'[1]MONE(M)CARD'!EP10) -> n.d. | S3: =IF('[1]MONE(M)CARD'!ES10="","",'[1]MONE(M)CARD'!ES10) -> n.d. | T3: =IF('[1]MONE(M)CARD'!EV10="","",'[1]MONE(M)CARD'!EV10) -> n.d. | U3: =IF('[1]MONE(M)CARD'!EZ10="","",'[1]MONE(M)CARD'!EZ10) -> n.d. | V3: =IF('[1]MONE(M)CAPARD'!FC10="","",'[1]MONE(M)CAPARD'!FC10) -> n.d. | W3: =IF('[1]MONE(M)CAPARD'!FG10="","",'[1]MONE(M)CAPARD'!FG10) -> n.d. | X3: =IF('[1]MONE(M)CAPARD'!FL10="","",'[1]MONE(M)CAPARD'!FL10) -> n.d. | Y3: =IF('[1]MONE(M)CAPARD'!FO10="","",'[1]MONE(M)CAPARD'!FO10) -> n.d. | Z3: =IF('[1]MONE(M)CAPARD'!FR10="","",'[1]MONE(M)CAPARD'!FR10) -> n.d. | AA3: =IF('[1]MONE(M)CAPARD'!FV10="","",'[1]MONE(M)CAPARD'!FV10) -> n.d. | AB3: =IF('[1]MONE(M)CARD'!FV10="","",'[1]MONE(M)CARD'!FV10) ->  | AC3: =IF('[1]MONE(M)CARD'!GD10="","",'[1]MONE(M)CARD'!GD10) -> n.d. | AD3: =IF('[1]MONE(M)CARD'!GE10="","",'[1]MONE(M)CARD'!GE10) -> n.d. | AE3: n.d. | AF3: n.d. | AG3: n.d. | AH3: n.d. | AI3: n.d. | AK3: n.d. | AL3: n.d. | AN3: n.d. | AO3: n.d. | AP3: n.d. | AQ3: n.d. | AR3: n.d. | AS3: =IF('[1]MONE(M)CAPARD'!GS10="","",'[1]MONE(M)CAPARD'!GS10) -> n.d. | AT3: =IF('[1]MONE(M)CARD'!HA10="","",'[1]MONE(M)CAPARD'!HA10) -> n.d. | AU3: =IF('[1]MONE(M)CAPARD'!HB10="","",'[1]MONE(M)CAPARD'!HB10) -> n.d. | AV3: n.d. | AW3: n.d. | AX3: n.d. | AY3: n.d. | AZ3: n.d. | BA3: n.d. | BB3: n.d. | BC3: n.d. | BD3: n.d. | BE3: n.d. | BF3: n.d. | BG3: n.d. | BH3: n.d. | BI3: n.d. | BJ3: =IF('[1]MONE(M)CAPARD'!AS10="","",'[1]MONE(M)CAPARD'!AS10) -> n.d. | BK3: =IF('[1]MONE(M)CAPARD'!AT10="","",'[1]MONE(M)CAPARD'!AT10) -> n.a. | BL3: =IF('[1]MONE(M)CAPARD'!AU10="","",'[1]MONE(M)CAPARD'!AU10) -> n.d. | BM3: =IF('[1]MONE(M)CAPARD'!AV10="","",'[1]MONE(M)CAPARD'!AV10) -> n.d. | BN3: =IF('[1]MONE(M)CAPARD'!AW10="","",'[1]MONE(M)CAPARD'!AW10) -> n.a. | BO3: =IF('[1]MONE(M)CAPARD'!AX10="","",'[1]MONE(M)CAPARD'!AX10) -> n.d. | BP3: =IF('[1]MONE(M)CAPARD'!AY10="","",'[1]MONE(M)CAPARD'!AY10) -> n.a. | BQ3: =IF('[1]FISCAL(M)'!$K10="","",'[1]FISCAL(M)'!$K10) -> n.d. | BR3: =IF('[1]FISCAL(M)'!$L10="","",'[1]FISCAL(M)'!$L10) -> n.d. | BS3: =IF('[1]FISCAL(M)'!$AY10="","",'[1]FISCAL(M)'!$AY10) -> n.d. | BT3: =IF('[1]FISCAL(M)'!$BI10="","",'[1]FISCAL(M)'!$BI10) -> n.d. | BU3: =IF('[1]FISCAL(M)'!$BS10="","",'[1]FISCAL(M)'!$BS10) -> n.d. | BV3: =IF('[1]FISCAL(M)'!$AZ10="","",'[1]FISCAL(M)'!$AZ10) -> n.d. | BW3: =IF('[1]FISCAL(M)'!$BJ10="","",'[1]FISCAL(M)'!$BJ10) -> n.d. | BX3: =IF('[1]FISCAL(M)'!$BT10="","",'[1]FISCAL(M)'!$BT10) -> n.d. | BY3: =IF('[2]MONE(M)'!$AO10="","",'[2]MONE(M)'!$AO10) -> n.d. | BZ3: =IF('[3]MONE(M)'!$AO10="","",'[3]MONE(M)'!$AO10) -> n.d. | CA3: =IF('[4]MONE(M)'!$AO10="","",'[4]MONE(M)'!$AO10) -> n.d. | CB3: =IF('[5]MONE(M)'!$AO10="","",'[5]MONE(M)'!$AO10) -> n.d. | CC3: =IF('[6]MONE(M)'!$AO10="","",'[6]MONE(M)'!$AO10) -> n.d. | CD3: =IF('[7]MONE(M)'!$AO10="","",'[7]MONE(M)'!$AO10) -> n.d. | CE3: =IF('[8]MONE(M)'!$AO10="","",'[8]MONE(M)'!$AO10) -> n.d. | CF3: n.d. | CG3: n.d. | CH3: n.d. | CI3: n.d. | CJ3: n.d. | CK3: n.d. | CL3: n.d. | CM3: ='[1]FISCAL(M)'!$K10 -> n.d. | CN3: n.d. | CO3: =IF(OR(CM3="n.d.",CM3="",CN3="",CN3="n.d."),"n.d.",(CM3/CN3)*100) -> n.d. | CP3: =IF('[1]FISCAL(M)'!$L10="","",'[1]FISCAL(M)'!$L10) -> n.d. | CQ3: n.d. | CR3: =IF(OR(CP3="n.d.",CP3="",CQ3="",CQ3="n.d."),"n.d.",(CP3/CQ3)*100) -> n.d. | CS3: n.d. | CT3: n.d. | CU3: n.d. | CV3: n.d. | CW3: n.d. | CX3: n.d. | CY3: n.d. | CZ3: n.d. | DA3: n.d. | DB3: n.d. | DC3: n.d. | DD3: n.d. | DE3: n.d. | DF3: n.d. | DG3: n.d. | DH3: n.d.
A4: 1990 | B4: febrero | C4: =A4&"-"&B4 -> 1990-febrero | D4: =IF('[1]REAL IPC(M)'!$AL11="","",+'[1]REAL IPC(M)'!$AL11) -> n.d. | E4: =IF('[1]REAL IPC(M)'!$BE11="","",+'[1]REAL IPC(M)'!$BE11) -> n.d. | F4: =IF('[1]REAL IPC(M)'!$AM11="","",+'[1]REAL IPC(M)'!$AM11) -> n.d. | G4: =IF('[1]REAL IPC(M)'!$BI11="","",+'[1]REAL IPC(M)'!$BI11) -> n.d. | H4: =IF('[1]REAL IMAE(M)'!BJ11="","",'[1]REAL IMAE(M)'!BJ11) -> n.d. | I4: =IF('[1]REAL IMAE(M)'!BK11="","",'[1]REAL IMAE(M)'!BK11) -> n.d. | J4: =IF('[1]REAL IMAE(M)'!BN11="","",'[1]REAL IMAE(M)'!BN11) -> n.d. | K4: =IF('[1]REAL IMAE(M)'!BO11="","",'[1]REAL IMAE(M)'!BO11) -> n.d. | L4: =IF('[1]EXT RIN(M)'!$K11="","",'[1]EXT RIN(M)'!$K11) -> n.d. | M4: =IF(B4<>"diciembre","",L4) ->  | N4: =IF('[1]EXT RIN(M)'!$L11="","",'[1]EXT RIN(M)'!$L11) -> n.d. | O4: =IF(B4<>"diciembre","",N4) ->  | P4: =IF('[1]MONE(M)CARD'!EG11="","",'[1]MONE(M)CARD'!EG11) -> n.d. | Q4: =IF('[1]MONE(M)CARD'!EK11="","",'[1]MONE(M)CARD'!EK11) -> n.d. | R4: =IF('[1]MONE(M)CARD'!EP11="","",'[1]MONE(M)CARD'!EP11) -> n.d. | S4: =IF('[1]MONE(M)CARD'!ES11="","",'[1]MONE(M)CARD'!ES11) -> n.d. | T4: =IF('[1]MONE(M)CARD'!EV11="","",'[1]MONE(M)CARD'!EV11) -> n.d. | U4: =IF('[1]MONE(M)CARD'!EZ11="","",'[1]MONE(M)CARD'!EZ11) -> n.d. | V4: =IF('[1]MONE(M)CAPARD'!FC11="","",'[1]MONE(M)CAPARD'!FC11) -> n.d. | W4: =IF('[1]MONE(M)CAPARD'!FG11="","",'[1]MONE(M)CAPARD'!FG11) -> n.d. | X4: =IF('[1]MONE(M)CAPARD'!FL11="","",'[1]MONE(M)CAPARD'!FL11) -> n.d. | Y4: =IF('[1]MONE(M)CAPARD'!FO11="","",'[1]MONE(M)CAPARD'!FO11) -> n.d. | Z4: =IF('[1]MONE(M)CAPARD'!FR11="","",'[1]MONE(M)CAPARD'!FR11) -> n.d. | AA4: =IF('[1]MONE(M)CAPARD'!FV11="","",'[1]MONE(M)CAPARD'!FV11) -> n.d. | AB4: =IF('[1]MONE(M)CARD'!FV11="","",'[1]MONE(M)CARD'!FV11) ->  | AC4: =IF('[1]MONE(M)CARD'!GD11="","",'[1]MONE(M)CARD'!GD11) -> n.d. | AD4: =IF('[1]MONE(M)CARD'!GE11="","",'[1]MONE(M)CARD'!GE11) -> n.d. | AE4: n.d. | AF4: n.d. | AG4: n.d. | AH4: n.d. | AI4: n.d. | AJ4: =IFERROR(+AF4+AH4,"") ->  | AK4: n.d. | AL4: n.d. | AN4: n.d. | AO4: n.d. | AP4: n.d. | AQ4: n.d. | AR4: n.d. | AS4: =IF('[1]MONE(M)CAPARD'!GS11="","",'[1]MONE(M)CAPARD'!GS11) -> n.d. | AT4: =IF('[1]MONE(M)CARD'!HA11="","",'[1]MONE(M)CAPARD'!HA11) -> n.d. | AU4: =IF('[1]MONE(M)CAPARD'!HB11="","",'[1]MONE(M)CAPARD'!HB11) -> n.d. | AV4: n.d. | AW4: n.d. | AX4: n.d. | AY4: n.d. | AZ4: n.d. | BA4: n.d. | BB4: n.d. | BC4: n.d. | BD4: n.d. | BE4: n.d. | BF4: n.d. | BG4: n.d. | BH4: n.d. | BI4: n.d. | BJ4: =IF('[1]MONE(M)CAPARD'!AS11="","",'[1]MONE(M)CAPARD'!AS11) -> n.d. | BK4: =IF('[1]MONE(M)CAPARD'!AT11="","",'[1]MONE(M)CAPARD'!AT11) -> n.a. | BL4: =IF('[1]MONE(M)CAPARD'!AU11="","",'[1]MONE(M)CAPARD'!AU11) -> n.d. | BM4: =IF('[1]MONE(M)CAPARD'!AV11="","",'[1]MONE(M)CAPARD'!AV11) -> n.d. | BN4: =IF('[1]MONE(M)CAPARD'!AW11="","",'[1]MONE(M)CAPARD'!AW11) -> n.a. | BO4: =IF('[1]MONE(M)CAPARD'!AX11="","",'[1]MONE(M)CAPARD'!AX11) -> n.d. | BP4: =IF('[1]MONE(M)CAPARD'!AY11="","",'[1]MONE(M)CAPARD'!AY11) -> n.a. | BQ4: =IF('[1]FISCAL(M)'!$K11="","",'[1]FISCAL(M)'!$K11) -> n.d. | BR4: =IF('[1]FISCAL(M)'!$L11="","",'[1]FISCAL(M)'!$L11) -> n.d. | BS4: =IF('[1]FISCAL(M)'!$AY11="","",'[1]FISCAL(M)'!$AY11) -> n.d. | BT4: =IF('[1]FISCAL(M)'!$BI11="","",'[1]FISCAL(M)'!$BI11) -> n.d. | BU4: =IF('[1]FISCAL(M)'!$BS11="","",'[1]FISCAL(M)'!$BS11) -> n.d. | BV4: =IF('[1]FISCAL(M)'!$AZ11="","",'[1]FISCAL(M)'!$AZ11) -> n.d. | BW4: =IF('[1]FISCAL(M)'!$BJ11="","",'[1]FISCAL(M)'!$BJ11) -> n.d. | BX4: =IF('[1]FISCAL(M)'!$BT11="","",'[1]FISCAL(M)'!$BT11) -> n.d. | BY4: =IF('[2]MONE(M)'!$AO11="","",'[2]MONE(M)'!$AO11) -> n.d. | BZ4: =IF('[3]MONE(M)'!$AO11="","",'[3]MONE(M)'!$AO11) -> n.d. | CA4: =IF('[4]MONE(M)'!$AO11="","",'[4]MONE(M)'!$AO11) -> n.d. | CB4: =IF('[5]MONE(M)'!$AO11="","",'[5]MONE(M)'!$AO11) -> n.d. | CC4: =IF('[6]MONE(M)'!$AO11="","",'[6]MONE(M)'!$AO11) -> n.d. | CD4: =IF('[7]MONE(M)'!$AO11="","",'[7]MONE(M)'!$AO11) -> n.d. | CE4: =IF('[8]MONE(M)'!$AO11="","",'[8]MONE(M)'!$AO11) -> n.d. | CF4: n.d. | CG4: n.d. | CH4: n.d. | CI4: n.d. | CJ4: n.d. | CK4: n.d. | CL4: n.d. | CM4: ='[1]FISCAL(M)'!$K11 -> n.d. | CN4: n.d. | CO4: n.d. | CP4: =IF('[1]FISCAL(M)'!$L11="","",'[1]FISCAL(M)'!$L11) -> n.d. | CQ4: n.d. | CR4: =IF(OR(CP4="n.d.",CP4="",CQ4="",CQ4="n.d."),"n.d.",(CP4/CQ4)*100) -> n.d. | CS4: n.d. | CT4: n.d. | CU4: n.d. | CV4: n.d. | CW4: n.d. | CX4: n.d. | CY4: n.d. | CZ4: n.d. | DA4: n.d. | DB4: n.d. | DC4: n.d. | DD4: n.d. | DE4: n.d. | DF4: n.d. | DG4: n.d. | DH4: n.d.
A5: 1990 | B5: marzo | C5: 1990-marzo | D5: =IF('[1]REAL IPC(M)'!$AL12="","",+'[1]REAL IPC(M)'!$AL12) -> n.d. | E5: =IF('[1]REAL IPC(M)'!$BE12="","",+'[1]REAL IPC(M)'!$BE12) -> n.d. | F5: =IF('[1]REAL IPC(M)'!$AM12="","",+'[1]REAL IPC(M)'!$AM12) -> n.d. | G5: =IF('[1]REAL IPC(M)'!$BI12="","",+'[1]REAL IPC(M)'!$BI12) -> n.d. | H5: =IF('[1]REAL IMAE(M)'!BJ12="","",'[1]REAL IMAE(M)'!BJ12) -> n.d. | I5: =IF('[1]REAL IMAE(M)'!BK12="","",'[1]REAL IMAE(M)'!BK12) -> n.d. | J5: =IF('[1]REAL IMAE(M)'!BN12="","",'[1]REAL IMAE(M)'!BN12) -> n.d. | K5: =IF('[1]REAL IMAE(M)'!BO12="","",'[1]REAL IMAE(M)'!BO12) -> n.d. | L5: =IF('[1]EXT RIN(M)'!$K12="","",'[1]EXT RIN(M)'!$K12) -> n.d. | N5: =IF('[1]EXT RIN(M)'!$L12="","",'[1]EXT RIN(M)'!$L12) -> n.d. | P5: =IF('[1]MONE(M)CARD'!EG12="","",'[1]MONE(M)CARD'!EG12) -> n.d. | Q5: =IF('[1]MONE(M)CARD'!EK12="","",'[1]MONE(M)CARD'!EK12) -> n.d. | R5: =IF('[1]MONE(M)CARD'!EP12="","",'[1]MONE(M)CARD'!EP12) -> n.d. | S5: =IF('[1]MONE(M)CARD'!ES12="","",'[1]MONE(M)CARD'!ES12) -> n.d. | T5: =IF('[1]MONE(M)CARD'!EV12="","",'[1]MONE(M)CARD'!EV12) -> n.d. | U5: =IF('[1]MONE(M)CARD'!EZ12="","",'[1]MONE(M)CARD'!EZ12) -> n.d. | V5: =IF('[1]MONE(M)CAPARD'!FC12="","",'[1]MONE(M)CAPARD'!FC12) -> n.d. | W5: =IF('[1]MONE(M)CAPARD'!FG12="","",'[1]MONE(M)CAPARD'!FG12) -> n.d. | X5: =IF('[1]MONE(M)CAPARD'!FL12="","",'[1]MONE(M)CAPARD'!FL12) -> n.d. | Y5: =IF('[1]MONE(M)CAPARD'!FO12="","",'[1]MONE(M)CAPARD'!FO12) -> n.d. | Z5: =IF('[1]MONE(M)CAPARD'!FR12="","",'[1]MONE(M)CAPARD'!FR12) -> n.d. | AA5: =IF('[1]MONE(M)CAPARD'!FV12="","",'[1]MONE(M)CAPARD'!FV12) -> n.d. | AB5: =IF('[1]MONE(M)CARD'!FV12="","",'[1]MONE(M)CARD'!FV12) ->  | AC5: =IF('[1]MONE(M)CARD'!GD12="","",'[1]MONE(M)CARD'!GD12) -> n.d. | AD5: =IF('[1]MONE(M)CARD'!GE12="","",'[1]MONE(M)CARD'!GE12) -> n.d. | AE5: n.d. | AF5: n.d. | AG5: n.d. | AH5: n.d. | AI5: n.d. | AK5: n.d. | AL5: n.d. | AN5: n.d. | AO5: n.d. | AP5: n.d. | AQ5: n.d. | AR5: n.d. | AS5: =IF('[1]MONE(M)CAPARD'!GS12="","",'[1]MONE(M)CAPARD'!GS12) -> n.d. | AT5: =IF('[1]MONE(M)CARD'!HA12="","",'[1]MONE(M)CAPARD'!HA12) -> n.d. | AU5: =IF('[1]MONE(M)CAPARD'!HB12="","",'[1]MONE(M)CAPARD'!HB12) -> n.d. | AV5: n.d. | AW5: n.d. | AX5: n.d. | AY5: n.d. | AZ5: n.d. | BA5: n.d. | BB5: n.d. | BC5: n.d. | BD5: n.d. | BE5: n.d. | BF5: n.d. | BG5: n.d. | BH5: n.d. | BI5: n.d. | BJ5: =IF('[1]MONE(M)CAPARD'!AS12="","",'[1]MONE(M)CAPARD'!AS12) -> n.d. | BK5: =IF('[1]MONE(M)CAPARD'!AT12="","",'[1]MONE(M)CAPARD'!AT12) -> n.a. | BL5: =IF('[1]MONE(M)CAPARD'!AU12="","",'[1]MONE(M)CAPARD'!AU12) -> n.d. | BM5: =IF('[1]MONE(M)CAPARD'!AV12="","",'[1]MONE(M)CAPARD'!AV12) -> n.d. | BN5: =IF('[1]MONE(M)CAPARD'!AW12="","",'[1]MONE(M)CAPARD'!AW12) -> n.a. | BO5: =IF('[1]MONE(M)CAPARD'!AX12="","",'[1]MONE(M)CAPARD'!AX12) -> n.d. | BP5: =IF('[1]MONE(M)CAPARD'!AY12="","",'[1]MONE(M)CAPARD'!AY12) -> n.a. | BQ5: =IF('[1]FISCAL(M)'!$K12="","",'[1]FISCAL(M)'!$K12) -> n.d. | BR5: =IF('[1]FISCAL(M)'!$L12="","",'[1]FISCAL(M)'!$L12) -> n.d. | BS5: =IF('[1]FISCAL(M)'!$AY12="","",'[1]FISCAL(M)'!$AY12) -> n.d. | BT5: =IF('[1]FISCAL(M)'!$BI12="","",'[1]FISCAL(M)'!$BI12) -> n.d. | BU5: =IF('[1]FISCAL(M)'!$BS12="","",'[1]FISCAL(M)'!$BS12) -> n.d. | BV5: =IF('[1]FISCAL(M)'!$AZ12="","",'[1]FISCAL(M)'!$AZ12) -> n.d. | BW5: =IF('[1]FISCAL(M)'!$BJ12="","",'[1]FISCAL(M)'!$BJ12) -> n.d. | BX5: =IF('[1]FISCAL(M)'!$BT12="","",'[1]FISCAL(M)'!$BT12) -> n.d. | BY5: =IF('[2]MONE(M)'!$AO12="","",'[2]MONE(M)'!$AO12) -> n.d. | BZ5: =IF('[3]MONE(M)'!$AO12="","",'[3]MONE(M)'!$AO12) -> n.d. | CA5: =IF('[4]MONE(M)'!$AO12="","",'[4]MONE(M)'!$AO12) -> n.d. | CB5: =IF('[5]MONE(M)'!$AO12="","",'[5]MONE(M)'!$AO12) -> n.d. | CC5: =IF('[6]MONE(M)'!$AO12="","",'[6]MONE(M)'!$AO12) -> n.d. | CD5: =IF('[7]MONE(M)'!$AO12="","",'[7]MONE(M)'!$AO12) -> n.d. | CE5: =IF('[8]MONE(M)'!$AO12="","",'[8]MONE(M)'!$AO12) -> n.d. | CF5: n.d. | CG5: n.d. | CH5: n.d. | CI5: n.d. | CJ5: n.d. | CK5: n.d. | CL5: n.d. | CM5: =IF('[1]FISCAL(M)'!$K12="","",'[1]FISCAL(M)'!$K12) -> n.d. | CN5: n.d. | CO5: n.d. | CP5: =IF('[1]FISCAL(M)'!$L12="","",'[1]FISCAL(M)'!$L12) -> n.d. | CQ5: n.d. | CR5: n.d. | CS5: n.d. | CT5: n.d. | CU5: n.d. | CV5: n.d. | CW5: n.d. | CX5: n.d. | CY5: n.d. | CZ5: n.d. | DA5: n.d. | DB5: n.d. | DC5: n.d. | DD5: n.d. | DE5: n.d. | DF5: n.d. | DG5: n.d. | DH5: n.d.
A6: 1990 | B6: abril | C6: 1990-abril | D6: =IF('[1]REAL IPC(M)'!$AL13="","",+'[1]REAL IPC(M)'!$AL13) -> n.d. | E6: =IF('[1]REAL IPC(M)'!$BE13="","",+'[1]REAL IPC(M)'!$BE13) -> n.d. | F6: =IF('[1]REAL IPC(M)'!$AM13="","",+'[1]REAL IPC(M)'!$AM13) -> n.d. | G6: =IF('[1]REAL IPC(M)'!$BI13="","",+'[1]REAL IPC(M)'!$BI13) -> n.d. | H6: =IF('[1]REAL IMAE(M)'!BJ13="","",'[1]REAL IMAE(M)'!BJ13) -> n.d. | I6: =IF('[1]REAL IMAE(M)'!BK13="","",'[1]REAL IMAE(M)'!BK13) -> n.d. | J6: =IF('[1]REAL IMAE(M)'!BN13="","",'[1]REAL IMAE(M)'!BN13) -> n.d. | K6: =IF('[1]REAL IMAE(M)'!BO13="","",'[1]REAL IMAE(M)'!BO13) -> n.d. | L6: =IF('[1]EXT RIN(M)'!$K13="","",'[1]EXT RIN(M)'!$K13) -> n.d. | N6: =IF('[1]EXT RIN(M)'!$L13="","",'[1]EXT RIN(M)'!$L13) -> n.d. | P6: =IF('[1]MONE(M)CARD'!EG13="","",'[1]MONE(M)CARD'!EG13) -> n.d. | Q6: =IF('[1]MONE(M)CARD'!EK13="","",'[1]MONE(M)CARD'!EK13) -> n.d. | R6: =IF('[1]MONE(M)CARD'!EP13="","",'[1]MONE(M)CARD'!EP13) -> n.d. | S6: =IF('[1]MONE(M)CARD'!ES13="","",'[1]MONE(M)CARD'!ES13) -> n.d. | T6: =IF('[1]MONE(M)CARD'!EV13="","",'[1]MONE(M)CARD'!EV13) -> n.d. | U6: =IF('[1]MONE(M)CARD'!EZ13="","",'[1]MONE(M)CARD'!EZ13) -> n.d. | V6: =IF('[1]MONE(M)CAPARD'!FC13="","",'[1]MONE(M)CAPARD'!FC13) -> n.d. | W6: =IF('[1]MONE(M)CAPARD'!FG13="","",'[1]MONE(M)CAPARD'!FG13) -> n.d. | X6: =IF('[1]MONE(M)CAPARD'!FL13="","",'[1]MONE(M)CAPARD'!FL13) -> n.d. | Y6: =IF('[1]MONE(M)CAPARD'!FO13="","",'[1]MONE(M)CAPARD'!FO13) -> n.d. | Z6: =IF('[1]MONE(M)CAPARD'!FR13="","",'[1]MONE(M)CAPARD'!FR13) -> n.d. | AA6: =IF('[1]MONE(M)CAPARD'!FV13="","",'[1]MONE(M)CAPARD'!FV13) -> n.d. | AB6: =IF('[1]MONE(M)CARD'!FV13="","",'[1]MONE(M)CARD'!FV13) ->  | AC6: =IF('[1]MONE(M)CARD'!GD13="","",'[1]MONE(M)CARD'!GD13) -> n.d. | AD6: =IF('[1]MONE(M)CARD'!GE13="","",'[1]MONE(M)CARD'!GE13) -> n.d. | AE6: n.d. | AF6: n.d. | AG6: n.d. | AH6: n.d. | AI6: n.d. | AJ6: =IFERROR(+AF6+AH6,"n.d.") -> n.d. | AK6: n.d. | AL6: n.d. | AN6: n.d. | AO6: n.d. | AP6: n.d. | AQ6: n.d. | AR6: n.d. | AS6: =IF('[1]MONE(M)CAPARD'!GS13="","",'[1]MONE(M)CAPARD'!GS13) -> n.d. | AT6: =IF('[1]MONE(M)CARD'!HA13="","",'[1]MONE(M)CAPARD'!HA13) -> n.d. | AU6: =IF('[1]MONE(M)CAPARD'!HB13="","",'[1]MONE(M)CAPARD'!HB13) -> n.d. | AV6: n.d. | AW6: n.d. | AX6: n.d. | AY6: n.d. | AZ6: n.d. | BA6: n.d. | BB6: n.d. | BC6: n.d. | BD6: n.d. | BE6: n.d. | BF6: n.d. | BG6: n.d. | BH6: n.d. | BI6: n.d. | BJ6: =IF('[1]MONE(M)CAPARD'!AS13="","",'[1]MONE(M)CAPARD'!AS13) -> n.d. | BK6: =IF('[1]MONE(M)CAPARD'!AT13="","",'[1]MONE(M)CAPARD'!AT13) -> n.a. | BL6: =IF('[1]MONE(M)CAPARD'!AU13="","",'[1]MONE(M)CAPARD'!AU13) -> n.d. | BM6: =IF('[1]MONE(M)CAPARD'!AV13="","",'[1]MONE(M)CAPARD'!AV13) -> n.d. | BN6: =IF('[1]MONE(M)CAPARD'!AW13="","",'[1]MONE(M)CAPARD'!AW13) -> n.a. | BO6: =IF('[1]MONE(M)CAPARD'!AX13="","",'[1]MONE(M)CAPARD'!AX13) -> n.d. | BP6: =IF('[1]MONE(M)CAPARD'!AY13="","",'[1]MONE(M)CAPARD'!AY13) -> n.a. | BQ6: =IF('[1]FISCAL(M)'!$K13="","",'[1]FISCAL(M)'!$K13) -> n.d. | BR6: =IF('[1]FISCAL(M)'!$L13="","",'[1]FISCAL(M)'!$L13) -> n.d. | BS6: =IF('[1]FISCAL(M)'!$AY13="","",'[1]FISCAL(M)'!$AY13) -> n.d. | BT6: =IF('[1]FISCAL(M)'!$BI13="","",'[1]FISCAL(M)'!$BI13) -> n.d. | BU6: =IF('[1]FISCAL(M)'!$BS13="","",'[1]FISCAL(M)'!$BS13) -> n.d. | BV6: =IF('[1]FISCAL(M)'!$AZ13="","",'[1]FISCAL(M)'!$AZ13) -> n.d. | BW6: =IF('[1]FISCAL(M)'!$BJ13="","",'[1]FISCAL(M)'!$BJ13) -> n.d. | BX6: =IF('[1]FISCAL(M)'!$BT13="","",'[1]FISCAL(M)'!$BT13) -> n.d. | BY6: =IF('[2]MONE(M)'!$AO13="","",'[2]MONE(M)'!$AO13) -> n.d. | BZ6: =IF('[3]MONE(M)'!$AO13="","",'[3]MONE(M)'!$AO13) -> n.d. | CA6: =IF('[4]MONE(M)'!$AO13="","",'[4]MONE(M)'!$AO13) -> n.d. | CB6: =IF('[5]MONE(M)'!$AO13="","",'[5]MONE(M)'!$AO13) -> n.d. | CC6: =IF('[6]MONE(M)'!$AO13="","",'[6]MONE(M)'!$AO13) -> n.d. | CD6: =IF('[7]MONE(M)'!$AO13="","",'[7]MONE(M)'!$AO13) -> n.d. | CE6: =IF('[8]MONE(M)'!$AO13="","",'[8]MONE(M)'!$AO13) -> n.d. | CF6: n.d. | CG6: n.d. | CH6: n.d. | CI6: n.d. | CJ6: n.d. | CK6: n.d. | CL6: n.d. | CM6: =IF('[1]FISCAL(M)'!$K13="","",'[1]FISCAL(M)'!$K13) -> n.d. | CN6: n.d. | CO6: n.d. | CP6: =IF('[1]FISCAL(M)'!$L13="","",'[1]FISCAL(M)'!$L13) -> n.d. | CQ6: n.d. | CR6: n.d. | CS6: n.d. | CT6: n.d. | CU6: n.d. | CV6: n.d. | CW6: n.d. | CX6: n.d. | CY6: n.d. | CZ6: n.d. | DA6: n.d. | DB6: n.d. | DC6: n.d. | DD6: n.d. | DE6: n.d. | DF6: n.d. | DG6: n.d. | DH6: n.d.
A7: 1990 | B7: mayo | C7: 1990-mayo | D7: =IF('[1]REAL IPC(M)'!$AL14="","",+'[1]REAL IPC(M)'!$AL14) -> n.d. | E7: =IF('[1]REAL IPC(M)'!$BE14="","",+'[1]REAL IPC(M)'!$BE14) -> n.d. | F7: =IF('[1]REAL IPC(M)'!$AM14="","",+'[1]REAL IPC(M)'!$AM14) -> n.d. | G7: =IF('[1]REAL IPC(M)'!$BI14="","",+'[1]REAL IPC(M)'!$BI14) -> n.d. | H7: =IF('[1]REAL IMAE(M)'!BJ14="","",'[1]REAL IMAE(M)'!BJ14) -> n.d. | I7: =IF('[1]REAL IMAE(M)'!BK14="","",'[1]REAL IMAE(M)'!BK14) -> n.d. | J7: =IF('[1]REAL IMAE(M)'!BN14="","",'[1]REAL IMAE(M)'!BN14) -> n.d. | K7: =IF('[1]REAL IMAE(M)'!BO14="","",'[1]REAL IMAE(M)'!BO14) -> n.d. | L7: =IF('[1]EXT RIN(M)'!$K14="","",'[1]EXT RIN(M)'!$K14) -> n.d. | N7: =IF('[1]EXT RIN(M)'!$L14="","",'[1]EXT RIN(M)'!$L14) -> n.d. | P7: =IF('[1]MONE(M)CARD'!EG14="","",'[1]MONE(M)CARD'!EG14) -> n.d. | Q7: =IF('[1]MONE(M)CARD'!EK14="","",'[1]MONE(M)CARD'!EK14) -> n.d. | R7: =IF('[1]MONE(M)CARD'!EP14="","",'[1]MONE(M)CARD'!EP14) -> n.d. | S7: =IF('[1]MONE(M)CARD'!ES14="","",'[1]MONE(M)CARD'!ES14) -> n.d. | T7: =IF('[1]MONE(M)CARD'!EV14="","",'[1]MONE(M)CARD'!EV14) -> n.d. | U7: =IF('[1]MONE(M)CARD'!EZ14="","",'[1]MONE(M)CARD'!EZ14) -> n.d. | V7: =IF('[1]MONE(M)CAPARD'!FC14="","",'[1]MONE(M)CAPARD'!FC14) -> n.d. | W7: =IF('[1]MONE(M)CAPARD'!FG14="","",'[1]MONE(M)CAPARD'!FG14) -> n.d. | X7: =IF('[1]MONE(M)CAPARD'!FL14="","",'[1]MONE(M)CAPARD'!FL14) -> n.d. | Y7: =IF('[1]MONE(M)CAPARD'!FO14="","",'[1]MONE(M)CAPARD'!FO14) -> n.d. | Z7: =IF('[1]MONE(M)CAPARD'!FR14="","",'[1]MONE(M)CAPARD'!FR14) -> n.d. | AA7: =IF('[1]MONE(M)CAPARD'!FV14="","",'[1]MONE(M)CAPARD'!FV14) -> n.d. | AB7: =IF('[1]MONE(M)CARD'!FV14="","",'[1]MONE(M)CARD'!FV14) ->  | AC7: =IF('[1]MONE(M)CARD'!GD14="","",'[1]MONE(M)CARD'!GD14) -> n.d. | AD7: =IF('[1]MONE(M)CARD'!GE14="","",'[1]MONE(M)CARD'!GE14) -> n.d. | AE7: n.d. | AF7: n.d. | AG7: n.d. | AH7: n.d. | AI7: n.d. | AJ7: =IFERROR(+AF7+AH7,"n.d.") -> n.d. | AK7: n.d. | AL7: n.d. | AN7: n.d. | AO7: n.d. | AP7: n.d. | AQ7: n.d. | AR7: n.d. | AS7: =IF('[1]MONE(M)CAPARD'!GS14="","",'[1]MONE(M)CAPARD'!GS14) -> n.d. | AT7: =IF('[1]MONE(M)CARD'!HA14="","",'[1]MONE(M)CAPARD'!HA14) -> n.d. | AU7: =IF('[1]MONE(M)CAPARD'!HB14="","",'[1]MONE(M)CAPARD'!HB14) -> n.d. | AV7: n.d. | AW7: n.d. | AX7: n.d. | AY7: n.d. | AZ7: n.d. | BA7: n.d. | BB7: n.d. | BC7: n.d. | BD7: n.d. | BE7: n.d. | BF7: n.d. | BG7: n.d. | BH7: n.d. | BI7: n.d. | BJ7: =IF('[1]MONE(M)CAPARD'!AS14="","",'[1]MONE(M)CAPARD'!AS14) -> n.d. | BK7: =IF('[1]MONE(M)CAPARD'!AT14="","",'[1]MONE(M)CAPARD'!AT14) -> n.a. | BL7: =IF('[1]MONE(M)CAPARD'!AU14="","",'[1]MONE(M)CAPARD'!AU14) -> n.d. | BM7: =IF('[1]MONE(M)CAPARD'!AV14="","",'[1]MONE(M)CAPARD'!AV14) -> n.d. | BN7: =IF('[1]MONE(M)CAPARD'!AW14="","",'[1]MONE(M)CAPARD'!AW14) -> n.a. | BO7: =IF('[1]MONE(M)CAPARD'!AX14="","",'[1]MONE(M)CAPARD'!AX14) -> n.d. | BP7: =IF('[1]MONE(M)CAPARD'!AY14="","",'[1]MONE(M)CAPARD'!AY14) -> n.a. | BQ7: =IF('[1]FISCAL(M)'!$K14="","",'[1]FISCAL(M)'!$K14) -> n.d. | BR7: =IF('[1]FISCAL(M)'!$L14="","",'[1]FISCAL(M)'!$L14) -> n.d. | BS7: =IF('[1]FISCAL(M)'!$AY14="","",'[1]FISCAL(M)'!$AY14) -> n.d. | BT7: =IF('[1]FISCAL(M)'!$BI14="","",'[1]FISCAL(M)'!$BI14) -> n.d. | BU7: =IF('[1]FISCAL(M)'!$BS14="","",'[1]FISCAL(M)'!$BS14) -> n.d. | BV7: =IF('[1]FISCAL(M)'!$AZ14="","",'[1]FISCAL(M)'!$AZ14) -> n.d. | BW7: =IF('[1]FISCAL(M)'!$BJ14="","",'[1]FISCAL(M)'!$BJ14) -> n.d. | BX7: =IF('[1]FISCAL(M)'!$BT14="","",'[1]FISCAL(M)'!$BT14) -> n.d. | BY7: =IF('[2]MONE(M)'!$AO14="","",'[2]MONE(M)'!$AO14) -> n.d. | BZ7: =IF('[3]MONE(M)'!$AO14="","",'[3]MONE(M)'!$AO14) -> n.d. | CA7: =IF('[4]MONE(M)'!$AO14="","",'[4]MONE(M)'!$AO14) -> n.d. | CB7: =IF('[5]MONE(M)'!$AO14="","",'[5]MONE(M)'!$AO14) -> n.d. | CC7: =IF('[6]MONE(M)'!$AO14="","",'[6]MONE(M)'!$AO14) -> n.d. | CD7: =IF('[7]MONE(M)'!$AO14="","",'[7]MONE(M)'!$AO14) -> n.d. | CE7: =IF('[8]MONE(M)'!$AO14="","",'[8]MONE(M)'!$AO14) -> n.d. | CF7: n.d. | CG7: n.d. | CH7: n.d. | CI7: n.d. | CJ7: n.d. | CK7: n.d. | CL7: n.d. | CM7: =IF('[1]FISCAL(M)'!$K14="","",'[1]FISCAL(M)'!$K14) -> n.d. | CN7: n.d. | CO7: n.d. | CP7: =IF('[1]FISCAL(M)'!$L14="","",'[1]FISCAL(M)'!$L14) -> n.d. | CQ7: n.d. | CR7: n.d. | CS7: n.d. | CT7: n.d. | CU7: n.d. | CV7: n.d. | CW7: n.d. | CX7: n.d. | CY7: n.d. | CZ7: n.d. | DA7: n.d. | DB7: n.d. | DC7: n.d. | DD7: n.d. | DE7: n.d. | DF7: n.d. | DG7: n.d. | DH7: n.d.
A8: 1990 | B8: junio | C8: 1990-junio | D8: =IF('[1]REAL IPC(M)'!$AL15="","",+'[1]REAL IPC(M)'!$AL15) -> n.d. | E8: =IF('[1]REAL IPC(M)'!$BE15="","",+'[1]REAL IPC(M)'!$BE15) -> n.d. | F8: =IF('[1]REAL IPC(M)'!$AM15="","",+'[1]REAL IPC(M)'!$AM15) -> n.d. | G8: =IF('[1]REAL IPC(M)'!$BI15="","",+'[1]REAL IPC(M)'!$BI15) -> n.d. | H8: =IF('[1]REAL IMAE(M)'!BJ15="","",'[1]REAL IMAE(M)'!BJ15) -> n.d. | I8: =IF('[1]REAL IMAE(M)'!BK15="","",'[1]REAL IMAE(M)'!BK15) -> n.d. | J8: =IF('[1]REAL IMAE(M)'!BN15="","",'[1]REAL IMAE(M)'!BN15) -> n.d. | K8: =IF('[1]REAL IMAE(M)'!BO15="","",'[1]REAL IMAE(M)'!BO15) -> n.d. | L8: =IF('[1]EXT RIN(M)'!$K15="","",'[1]EXT RIN(M)'!$K15) -> n.d. | N8: =IF('[1]EXT RIN(M)'!$L15="","",'[1]EXT RIN(M)'!$L15) -> n.d. | P8: =IF('[1]MONE(M)CARD'!EG15="","",'[1]MONE(M)CARD'!EG15) -> n.d. | Q8: =IF('[1]MONE(M)CARD'!EK15="","",'[1]MONE(M)CARD'!EK15) -> n.d. | R8: =IF('[1]MONE(M)CARD'!EP15="","",'[1]MONE(M)CARD'!EP15) -> n.d. | S8: =IF('[1]MONE(M)CARD'!ES15="","",'[1]MONE(M)CARD'!ES15) -> n.d. | T8: =IF('[1]MONE(M)CARD'!EV15="","",'[1]MONE(M)CARD'!EV15) -> n.d. | U8: =IF('[1]MONE(M)CARD'!EZ15="","",'[1]MONE(M)CARD'!EZ15) -> n.d. | V8: =IF('[1]MONE(M)CAPARD'!FC15="","",'[1]MONE(M)CAPARD'!FC15) -> n.d. | W8: =IF('[1]MONE(M)CAPARD'!FG15="","",'[1]MONE(M)CAPARD'!FG15) -> n.d. | X8: =IF('[1]MONE(M)CAPARD'!FL15="","",'[1]MONE(M)CAPARD'!FL15) -> n.d. | Y8: =IF('[1]MONE(M)CAPARD'!FO15="","",'[1]MONE(M)CAPARD'!FO15) -> n.d. | Z8: =IF('[1]MONE(M)CAPARD'!FR15="","",'[1]MONE(M)CAPARD'!FR15) -> n.d. | AA8: =IF('[1]MONE(M)CAPARD'!FV15="","",'[1]MONE(M)CAPARD'!FV15) -> n.d. | AB8: =IF('[1]MONE(M)CARD'!FV15="","",'[1]MONE(M)CARD'!FV15) ->  | AC8: =IF('[1]MONE(M)CARD'!GD15="","",'[1]MONE(M)CARD'!GD15) -> n.d. | AD8: =IF('[1]MONE(M)CARD'!GE15="","",'[1]MONE(M)CARD'!GE15) -> n.d. | AE8: n.d. | AF8: n.d. | AG8: n.d. | AH8: n.d. | AI8: n.d. | AJ8: n.d. | AK8: n.d. | AL8: n.d. | AN8: n.d. | AO8: n.d. | AP8: n.d. | AQ8: n.d. | AR8: n.d. | AS8: =IF('[1]MONE(M)CAPARD'!GS15="","",'[1]MONE(M)CAPARD'!GS15) -> n.d. | AT8: =IF('[1]MONE(M)CARD'!HA15="","",'[1]MONE(M)CAPARD'!HA15) -> n.d. | AU8: =IF('[1]MONE(M)CAPARD'!HB15="","",'[1]MONE(M)CAPARD'!HB15) -> n.d. | AV8: n.d. | AW8: n.d. | AX8: n.d. | AY8: n.d. | AZ8: n.d. | BA8: n.d. | BB8: n.d. | BC8: n.d. | BD8: n.d. | BE8: n.d. | BF8: n.d. | BG8: n.d. | BH8: n.d. | BI8: n.d. | BJ8: =IF('[1]MONE(M)CAPARD'!AS15="","",'[1]MONE(M)CAPARD'!AS15) -> n.d. | BK8: =IF('[1]MONE(M)CAPARD'!AT15="","",'[1]MONE(M)CAPARD'!AT15) -> n.a. | BL8: =IF('[1]MONE(M)CAPARD'!AU15="","",'[1]MONE(M)CAPARD'!AU15) -> n.d. | BM8: =IF('[1]MONE(M)CAPARD'!AV15="","",'[1]MONE(M)CAPARD'!AV15) -> n.d. | BN8: =IF('[1]MONE(M)CAPARD'!AW15="","",'[1]MONE(M)CAPARD'!AW15) -> n.a. | BO8: =IF('[1]MONE(M)CAPARD'!AX15="","",'[1]MONE(M)CAPARD'!AX15) -> n.d. | BP8: =IF('[1]MONE(M)CAPARD'!AY15="","",'[1]MONE(M)CAPARD'!AY15) -> n.a. | BQ8: =IF('[1]FISCAL(M)'!$K15="","",'[1]FISCAL(M)'!$K15) -> n.d. | BR8: =IF('[1]FISCAL(M)'!$L15="","",'[1]FISCAL(M)'!$L15) -> n.d. | BS8: =IF('[1]FISCAL(M)'!$AY15="","",'[1]FISCAL(M)'!$AY15) -> n.d. | BT8: =IF('[1]FISCAL(M)'!$BI15="","",'[1]FISCAL(M)'!$BI15) -> n.d. | BU8: =IF('[1]FISCAL(M)'!$BS15="","",'[1]FISCAL(M)'!$BS15) -> n.d. | BV8: =IF('[1]FISCAL(M)'!$AZ15="","",'[1]FISCAL(M)'!$AZ15) -> n.d. | BW8: =IF('[1]FISCAL(M)'!$BJ15="","",'[1]FISCAL(M)'!$BJ15) -> n.d. | BX8: =IF('[1]FISCAL(M)'!$BT15="","",'[1]FISCAL(M)'!$BT15) -> n.d. | BY8: =IF('[2]MONE(M)'!$AO15="","",'[2]MONE(M)'!$AO15) -> n.d. | BZ8: =IF('[3]MONE(M)'!$AO15="","",'[3]MONE(M)'!$AO15) -> n.d. | CA8: =IF('[4]MONE(M)'!$AO15="","",'[4]MONE(M)'!$AO15) -> n.d. | CB8: =IF('[5]MONE(M)'!$AO15="","",'[5]MONE(M)'!$AO15) -> n.d. | CC8: =IF('[6]MONE(M)'!$AO15="","",'[6]MONE(M)'!$AO15) -> n.d. | CD8: =IF('[7]MONE(M)'!$AO15="","",'[7]MONE(M)'!$AO15) -> n.d. | CE8: =IF('[8]MONE(M)'!$AO15="","",'[8]MONE(M)'!$AO15) -> n.d. | CF8: n.d. | CG8: n.d. | CH8: n.d. | CI8: n.d. | CJ8: n.d. | CK8: n.d. | CL8: n.d. | CM8: =IF('[1]FISCAL(M)'!$K15="","",'[1]FISCAL(M)'!$K15) -> n.d. | CN8: n.d. | CO8: n.d. | CP8: =IF('[1]FISCAL(M)'!$L15="","",'[1]FISCAL(M)'!$L15) -> n.d. | CQ8: n.d. | CR8: n.d. | CS8: n.d. | CT8: n.d. | CU8: n.d. | CV8: n.d. | CW8: n.d. | CX8: n.d. | CY8: n.d. | CZ8: n.d. | DA8: n.d. | DB8: n.d. | DC8: n.d. | DD8: n.d. | DE8: n.d. | DF8: n.d. | DG8: n.d. | DH8: n.d.
A9: 1990 | B9: julio | C9: 1990-julio | D9: =IF('[1]REAL IPC(M)'!$AL16="","",+'[1]REAL IPC(M)'!$AL16) -> n.d. | E9: =IF('[1]REAL IPC(M)'!$BE16="","",+'[1]REAL IPC(M)'!$BE16) -> n.d. | F9: =IF('[1]REAL IPC(M)'!$AM16="","",+'[1]REAL IPC(M)'!$AM16) -> n.d. | G9: =IF('[1]REAL IPC(M)'!$BI16="","",+'[1]REAL IPC(M)'!$BI16) -> n.d. | H9: =IF('[1]REAL IMAE(M)'!BJ16="","",'[1]REAL IMAE(M)'!BJ16) -> n.d. | I9: =IF('[1]REAL IMAE(M)'!BK16="","",'[1]REAL IMAE(M)'!BK16) -> n.d. | J9: =IF('[1]REAL IMAE(M)'!BN16="","",'[1]REAL IMAE(M)'!BN16) -> n.d. | K9: =IF('[1]REAL IMAE(M)'!BO16="","",'[1]REAL IMAE(M)'!BO16) -> n.d. | L9: =IF('[1]EXT RIN(M)'!$K16="","",'[1]EXT RIN(M)'!$K16) -> n.d. | N9: =IF('[1]EXT RIN(M)'!$L16="","",'[1]EXT RIN(M)'!$L16) -> n.d. | P9: =IF('[1]MONE(M)CARD'!EG16="","",'[1]MONE(M)CARD'!EG16) -> n.d. | Q9: =IF('[1]MONE(M)CARD'!EK16="","",'[1]MONE(M)CARD'!EK16) -> n.d. | R9: =IF('[1]MONE(M)CARD'!EP16="","",'[1]MONE(M)CARD'!EP16) -> n.d. | S9: =IF('[1]MONE(M)CARD'!ES16="","",'[1]MONE(M)CARD'!ES16) -> n.d. | T9: =IF('[1]MONE(M)CARD'!EV16="","",'[1]MONE(M)CARD'!EV16) -> n.d. | U9: =IF('[1]MONE(M)CARD'!EZ16="","",'[1]MONE(M)CARD'!EZ16) -> n.d. | V9: =IF('[1]MONE(M)CAPARD'!FC16="","",'[1]MONE(M)CAPARD'!FC16) -> n.d. | W9: =IF('[1]MONE(M)CAPARD'!FG16="","",'[1]MONE(M)CAPARD'!FG16) -> n.d. | X9: =IF('[1]MONE(M)CAPARD'!FL16="","",'[1]MONE(M)CAPARD'!FL16) -> n.d. | Y9: =IF('[1]MONE(M)CAPARD'!FO16="","",'[1]MONE(M)CAPARD'!FO16) -> n.d. | Z9: =IF('[1]MONE(M)CAPARD'!FR16="","",'[1]MONE(M)CAPARD'!FR16) -> n.d. | AA9: =IF('[1]MONE(M)CAPARD'!FV16="","",'[1]MONE(M)CAPARD'!FV16) -> n.d. | AB9: =IF('[1]MONE(M)CARD'!FV16="","",'[1]MONE(M)CARD'!FV16) ->  | AC9: =IF('[1]MONE(M)CARD'!GD16="","",'[1]MONE(M)CARD'!GD16) -> n.d. | AD9: =IF('[1]MONE(M)CARD'!GE16="","",'[1]MONE(M)CARD'!GE16) -> n.d. | AE9: n.d. | AF9: n.d. | AG9: n.d. | AH9: n.d. | AI9: n.d. | AJ9: n.d. | AK9: n.d. | AL9: n.d. | AN9: n.d. | AO9: n.d. | AP9: n.d. | AQ9: n.d. | AR9: n.d. | AS9: =IF('[1]MONE(M)CAPARD'!GS16="","",'[1]MONE(M)CAPARD'!GS16) -> n.d. | AT9: =IF('[1]MONE(M)CARD'!HA16="","",'[1]MONE(M)CAPARD'!HA16) -> n.d. | AU9: =IF('[1]MONE(M)CAPARD'!HB16="","",'[1]MONE(M)CAPARD'!HB16) -> n.d. | AV9: n.d. | AW9: n.d. | AX9: n.d. | AY9: n.d. | AZ9: n.d. | BA9: n.d. | BB9: n.d. | BC9: n.d. | BD9: n.d. | BE9: n.d. | BF9: n.d. | BG9: n.d. | BH9: n.d. | BI9: n.d. | BJ9: =IF('[1]MONE(M)CAPARD'!AS16="","",'[1]MONE(M)CAPARD'!AS16) -> n.d. | BK9: =IF('[1]MONE(M)CAPARD'!AT16="","",'[1]MONE(M)CAPARD'!AT16) -> n.a. | BL9: =IF('[1]MONE(M)CAPARD'!AU16="","",'[1]MONE(M)CAPARD'!AU16) -> n.d. | BM9: =IF('[1]MONE(M)CAPARD'!AV16="","",'[1]MONE(M)CAPARD'!AV16) -> n.d. | BN9: =IF('[1]MONE(M)CAPARD'!AW16="","",'[1]MONE(M)CAPARD'!AW16) -> n.a. | BO9: =IF('[1]MONE(M)CAPARD'!AX16="","",'[1]MONE(M)CAPARD'!AX16) -> n.d. | BP9: =IF('[1]MONE(M)CAPARD'!AY16="","",'[1]MONE(M)CAPARD'!AY16) -> n.a. | BQ9: =IF('[1]FISCAL(M)'!$K16="","",'[1]FISCAL(M)'!$K16) -> n.d. | BR9: =IF('[1]FISCAL(M)'!$L16="","",'[1]FISCAL(M)'!$L16) -> n.d. | BS9: =IF('[1]FISCAL(M)'!$AY16="","",'[1]FISCAL(M)'!$AY16) -> n.d. | BT9: =IF('[1]FISCAL(M)'!$BI16="","",'[1]FISCAL(M)'!$BI16) -> n.d. | BU9: =IF('[1]FISCAL(M)'!$BS16="","",'[1]FISCAL(M)'!$BS16) -> n.d. | BV9: =IF('[1]FISCAL(M)'!$AZ16="","",'[1]FISCAL(M)'!$AZ16) -> n.d. | BW9: =IF('[1]FISCAL(M)'!$BJ16="","",'[1]FISCAL(M)'!$BJ16) -> n.d. | BX9: =IF('[1]FISCAL(M)'!$BT16="","",'[1]FISCAL(M)'!$BT16) -> n.d. | BY9: =IF('[2]MONE(M)'!$AO16="","",'[2]MONE(M)'!$AO16) -> n.d. | BZ9: =IF('[3]MONE(M)'!$AO16="","",'[3]MONE(M)'!$AO16) -> n.d. | CA9: =IF('[4]MONE(M)'!$AO16="","",'[4]MONE(M)'!$AO16) -> n.d. | CB9: =IF('[5]MONE(M)'!$AO16="","",'[5]MONE(M)'!$AO16) -> n.d. | CC9: =IF('[6]MONE(M)'!$AO16="","",'[6]MONE(M)'!$AO16) -> n.d. | CD9: =IF('[7]MONE(M)'!$AO16="","",'[7]MONE(M)'!$AO16) -> n.d. | CE9: =IF('[8]MONE(M)'!$AO16="","",'[8]MONE(M)'!$AO16) -> n.d. | CF9: n.d. | CG9: n.d. | CH9: n.d. | CI9: n.d. | CJ9: n.d. | CK9: n.d. | CL9: n.d. | CM9: =IF('[1]FISCAL(M)'!$K16="","",'[1]FISCAL(M)'!$K16) -> n.d. | CN9: n.d. | CO9: n.d. | CP9: =IF('[1]FISCAL(M)'!$L16="","",'[1]FISCAL(M)'!$L16) -> n.d. | CQ9: n.d. | CR9: n.d. | CS9: n.d. | CT9: n.d. | CU9: n.d. | CV9: n.d. | CW9: n.d. | CX9: n.d. | CY9: n.d. | CZ9: n.d. | DA9: n.d. | DB9: n.d. | DC9: n.d. | DD9: n.d. | DE9: n.d. | DF9: n.d. | DG9: n.d. | DH9: n.d.
A10: 1990 | B10: agosto | C10: 1990-agosto | D10: =IF('[1]REAL IPC(M)'!$AL17="","",+'[1]REAL IPC(M)'!$AL17) -> n.d. | E10: =IF('[1]REAL IPC(M)'!$BE17="","",+'[1]REAL IPC(M)'!$BE17) -> n.d. | F10: =IF('[1]REAL IPC(M)'!$AM17="","",+'[1]REAL IPC(M)'!$AM17) -> n.d. | G10: =IF('[1]REAL IPC(M)'!$BI17="","",+'[1]REAL IPC(M)'!$BI17) -> n.d. | H10: =IF('[1]REAL IMAE(M)'!BJ17="","",'[1]REAL IMAE(M)'!BJ17) -> n.d. | I10: =IF('[1]REAL IMAE(M)'!BK17="","",'[1]REAL IMAE(M)'!BK17) -> n.d. | J10: =IF('[1]REAL IMAE(M)'!BN17="","",'[1]REAL IMAE(M)'!BN17) -> n.d. | K10: =IF('[1]REAL IMAE(M)'!BO17="","",'[1]REAL IMAE(M)'!BO17) -> n.d. | L10: =IF('[1]EXT RIN(M)'!$K17="","",'[1]EXT RIN(M)'!$K17) -> n.d. | N10: =IF('[1]EXT RIN(M)'!$L17="","",'[1]EXT RIN(M)'!$L17) -> n.d. | P10: =IF('[1]MONE(M)CARD'!EG17="","",'[1]MONE(M)CARD'!EG17) -> n.d. | Q10: =IF('[1]MONE(M)CARD'!EK17="","",'[1]MONE(M)CARD'!EK17) -> n.d. | R10: =IF('[1]MONE(M)CARD'!EP17="","",'[1]MONE(M)CARD'!EP17) -> n.d. | S10: =IF('[1]MONE(M)CARD'!ES17="","",'[1]MONE(M)CARD'!ES17) -> n.d. | T10: =IF('[1]MONE(M)CARD'!EV17="","",'[1]MONE(M)CARD'!EV17) -> n.d. | U10: =IF('[1]MONE(M)CARD'!EZ17="","",'[1]MONE(M)CARD'!EZ17) -> n.d. | V10: =IF('[1]MONE(M)CAPARD'!FC17="","",'[1]MONE(M)CAPARD'!FC17) -> n.d. | W10: =IF('[1]MONE(M)CAPARD'!FG17="","",'[1]MONE(M)CAPARD'!FG17) -> n.d. | X10: =IF('[1]MONE(M)CAPARD'!FL17="","",'[1]MONE(M)CAPARD'!FL17) -> n.d. | Y10: =IF('[1]MONE(M)CAPARD'!FO17="","",'[1]MONE(M)CAPARD'!FO17) -> n.d. | Z10: =IF('[1]MONE(M)CAPARD'!FR17="","",'[1]MONE(M)CAPARD'!FR17) -> n.d. | AA10: =IF('[1]MONE(M)CAPARD'!FV17="","",'[1]MONE(M)CAPARD'!FV17) -> n.d. | AB10: =IF('[1]MONE(M)CARD'!FV17="","",'[1]MONE(M)CARD'!FV17) ->  | AC10: =IF('[1]MONE(M)CARD'!GD17="","",'[1]MONE(M)CARD'!GD17) -> n.d. | AD10: =IF('[1]MONE(M)CARD'!GE17="","",'[1]MONE(M)CARD'!GE17) -> n.d. | AE10: n.d. | AF10: n.d. | AG10: n.d. | AH10: n.d. | AI10: n.d. | AJ10: n.d. | AK10: n.d. | AL10: n.d. | AN10: n.d. | AO10: n.d. | AP10: n.d. | AQ10: n.d. | AR10: n.d. | AS10: =IF('[1]MONE(M)CAPARD'!GS17="","",'[1]MONE(M)CAPARD'!GS17) -> n.d. | AT10: =IF('[1]MONE(M)CARD'!HA17="","",'[1]MONE(M)CAPARD'!HA17) -> n.d. | AU10: =IF('[1]MONE(M)CAPARD'!HB17="","",'[1]MONE(M)CAPARD'!HB17) -> n.d. | AV10: n.d. | AW10: n.d. | AX10: n.d. | AY10: n.d. | AZ10: n.d. | BA10: n.d. | BB10: n.d. | BC10: n.d. | BD10: n.d. | BE10: n.d. | BF10: n.d. | BG10: n.d. | BH10: n.d. | BI10: n.d. | BJ10: =IF('[1]MONE(M)CAPARD'!AS17="","",'[1]MONE(M)CAPARD'!AS17) -> n.d. | BK10: =IF('[1]MONE(M)CAPARD'!AT17="","",'[1]MONE(M)CAPARD'!AT17) -> n.a. | BL10: =IF('[1]MONE(M)CAPARD'!AU17="","",'[1]MONE(M)CAPARD'!AU17) -> n.d. | BM10: =IF('[1]MONE(M)CAPARD'!AV17="","",'[1]MONE(M)CAPARD'!AV17) -> n.d. | BN10: =IF('[1]MONE(M)CAPARD'!AW17="","",'[1]MONE(M)CAPARD'!AW17) -> n.a. | BO10: =IF('[1]MONE(M)CAPARD'!AX17="","",'[1]MONE(M)CAPARD'!AX17) -> n.d. | BP10: =IF('[1]MONE(M)CAPARD'!AY17="","",'[1]MONE(M)CAPARD'!AY17) -> n.a. | BQ10: =IF('[1]FISCAL(M)'!$K17="","",'[1]FISCAL(M)'!$K17) -> n.d. | BR10: =IF('[1]FISCAL(M)'!$L17="","",'[1]FISCAL(M)'!$L17) -> n.d. | BS10: =IF('[1]FISCAL(M)'!$AY17="","",'[1]FISCAL(M)'!$AY17) -> n.d. | BT10: =IF('[1]FISCAL(M)'!$BI17="","",'[1]FISCAL(M)'!$BI17) -> n.d. | BU10: =IF('[1]FISCAL(M)'!$BS17="","",'[1]FISCAL(M)'!$BS17) -> n.d. | BV10: =IF('[1]FISCAL(M)'!$AZ17="","",'[1]FISCAL(M)'!$AZ17) -> n.d. | BW10: =IF('[1]FISCAL(M)'!$BJ17="","",'[1]FISCAL(M)'!$BJ17) -> n.d. | BX10: =IF('[1]FISCAL(M)'!$BT17="","",'[1]FISCAL(M)'!$BT17) -> n.d. | BY10: =IF('[2]MONE(M)'!$AO17="","",'[2]MONE(M)'!$AO17) -> n.d. | BZ10: =IF('[3]MONE(M)'!$AO17="","",'[3]MONE(M)'!$AO17) -> n.d. | CA10: =IF('[4]MONE(M)'!$AO17="","",'[4]MONE(M)'!$AO17) -> n.d. | CB10: =IF('[5]MONE(M)'!$AO17="","",'[5]MONE(M)'!$AO17) -> n.d. | CC10: =IF('[6]MONE(M)'!$AO17="","",'[6]MONE(M)'!$AO17) -> n.d. | CD10: =IF('[7]MONE(M)'!$AO17="","",'[7]MONE(M)'!$AO17) -> n.d. | CE10: =IF('[8]MONE(M)'!$AO17="","",'[8]MONE(M)'!$AO17) -> n.d. | CF10: n.d. | CG10: n.d. | CH10: n.d. | CI10: n.d. | CJ10: n.d. | CK10: n.d. | CL10: n.d. | CM10: =IF('[1]FISCAL(M)'!$K17="","",'[1]FISCAL(M)'!$K17) -> n.d. | CN10: n.d. | CO10: n.d. | CP10: =IF('[1]FISCAL(M)'!$L17="","",'[1]FISCAL(M)'!$L17) -> n.d. | CQ10: n.d. | CR10: n.d. | CS10: n.d. | CT10: n.d. | CU10: n.d. | CV10: n.d. | CW10: n.d. | CX10: n.d. | CY10: n.d. | CZ10: n.d. | DA10: n.d. | DB10: n.d. | DC10: n.d. | DD10: n.d. | DE10: n.d. | DF10: n.d. | DG10: n.d. | DH10: n.d.
A11: 1990 | B11: septiembre | C11: 1990-septiembre | D11: =IF('[1]REAL IPC(M)'!$AL18="","",+'[1]REAL IPC(M)'!$AL18) -> n.d. | E11: =IF('[1]REAL IPC(M)'!$BE18="","",+'[1]REAL IPC(M)'!$BE18) -> n.d. | F11: =IF('[1]REAL IPC(M)'!$AM18="","",+'[1]REAL IPC(M)'!$AM18) -> n.d. | G11: =IF('[1]REAL IPC(M)'!$BI18="","",+'[1]REAL IPC(M)'!$BI18) -> n.d. | H11: =IF('[1]REAL IMAE(M)'!BJ18="","",'[1]REAL IMAE(M)'!BJ18) -> n.d. | I11: =IF('[1]REAL IMAE(M)'!BK18="","",'[1]REAL IMAE(M)'!BK18) -> n.d. | J11: =IF('[1]REAL IMAE(M)'!BN18="","",'[1]REAL IMAE(M)'!BN18) -> n.d. | K11: =IF('[1]REAL IMAE(M)'!BO18="","",'[1]REAL IMAE(M)'!BO18) -> n.d. | L11: =IF('[1]EXT RIN(M)'!$K18="","",'[1]EXT RIN(M)'!$K18) -> n.d. | N11: =IF('[1]EXT RIN(M)'!$L18="","",'[1]EXT RIN(M)'!$L18) -> n.d. | P11: =IF('[1]MONE(M)CARD'!EG18="","",'[1]MONE(M)CARD'!EG18) -> n.d. | Q11: =IF('[1]MONE(M)CARD'!EK18="","",'[1]MONE(M)CARD'!EK18) -> n.d. | R11: =IF('[1]MONE(M)CARD'!EP18="","",'[1]MONE(M)CARD'!EP18) -> n.d. | S11: =IF('[1]MONE(M)CARD'!ES18="","",'[1]MONE(M)CARD'!ES18) -> n.d. | T11: =IF('[1]MONE(M)CARD'!EV18="","",'[1]MONE(M)CARD'!EV18) -> n.d. | U11: =IF('[1]MONE(M)CARD'!EZ18="","",'[1]MONE(M)CARD'!EZ18) -> n.d. | V11: =IF('[1]MONE(M)CAPARD'!FC18="","",'[1]MONE(M)CAPARD'!FC18) -> n.d. | W11: =IF('[1]MONE(M)CAPARD'!FG18="","",'[1]MONE(M)CAPARD'!FG18) -> n.d. | X11: =IF('[1]MONE(M)CAPARD'!FL18="","",'[1]MONE(M)CAPARD'!FL18) -> n.d. | Y11: =IF('[1]MONE(M)CAPARD'!FO18="","",'[1]MONE(M)CAPARD'!FO18) -> n.d. | Z11: =IF('[1]MONE(M)CAPARD'!FR18="","",'[1]MONE(M)CAPARD'!FR18) -> n.d. | AA11: =IF('[1]MONE(M)CAPARD'!FV18="","",'[1]MONE(M)CAPARD'!FV18) -> n.d. | AB11: =IF('[1]MONE(M)CARD'!FV18="","",'[1]MONE(M)CARD'!FV18) ->  | AC11: =IF('[1]MONE(M)CARD'!GD18="","",'[1]MONE(M)CARD'!GD18) -> n.d. | AD11: =IF('[1]MONE(M)CARD'!GE18="","",'[1]MONE(M)CARD'!GE18) -> n.d. | AE11: n.d. | AF11: n.d. | AG11: n.d. | AH11: n.d. | AI11: n.d. | AJ11: n.d. | AK11: n.d. | AL11: n.d. | AN11: n.d. | AO11: n.d. | AP11: n.d. | AQ11: n.d. | AR11: n.d. | AS11: =IF('[1]MONE(M)CAPARD'!GS18="","",'[1]MONE(M)CAPARD'!GS18) -> n.d. | AT11: =IF('[1]MONE(M)CARD'!HA18="","",'[1]MONE(M)CAPARD'!HA18) -> n.d. | AU11: =IF('[1]MONE(M)CAPARD'!HB18="","",'[1]MONE(M)CAPARD'!HB18) -> n.d. | AV11: n.d. | AW11: n.d. | AX11: n.d. | AY11: n.d. | AZ11: n.d. | BA11: n.d. | BB11: n.d. | BC11: n.d. | BD11: n.d. | BE11: n.d. | BF11: n.d. | BG11: n.d. | BH11: n.d. | BI11: n.d. | BJ11: =IF('[1]MONE(M)CAPARD'!AS18="","",'[1]MONE(M)CAPARD'!AS18) -> n.d. | BK11: =IF('[1]MONE(M)CAPARD'!AT18="","",'[1]MONE(M)CAPARD'!AT18) -> n.a. | BL11: =IF('[1]MONE(M)CAPARD'!AU18="","",'[1]MONE(M)CAPARD'!AU18) -> n.d. | BM11: =IF('[1]MONE(M)CAPARD'!AV18="","",'[1]MONE(M)CAPARD'!AV18) -> n.d. | BN11: =IF('[1]MONE(M)CAPARD'!AW18="","",'[1]MONE(M)CAPARD'!AW18) -> n.a. | BO11: =IF('[1]MONE(M)CAPARD'!AX18="","",'[1]MONE(M)CAPARD'!AX18) -> n.d. | BP11: =IF('[1]MONE(M)CAPARD'!AY18="","",'[1]MONE(M)CAPARD'!AY18) -> n.a. | BQ11: =IF('[1]FISCAL(M)'!$K18="","",'[1]FISCAL(M)'!$K18) -> n.d. | BR11: =IF('[1]FISCAL(M)'!$L18="","",'[1]FISCAL(M)'!$L18) -> n.d. | BS11: =IF('[1]FISCAL(M)'!$AY18="","",'[1]FISCAL(M)'!$AY18) -> n.d. | BT11: =IF('[1]FISCAL(M)'!$BI18="","",'[1]FISCAL(M)'!$BI18) -> n.d. | BU11: =IF('[1]FISCAL(M)'!$BS18="","",'[1]FISCAL(M)'!$BS18) -> n.d. | BV11: =IF('[1]FISCAL(M)'!$AZ18="","",'[1]FISCAL(M)'!$AZ18) -> n.d. | BW11: =IF('[1]FISCAL(M)'!$BJ18="","",'[1]FISCAL(M)'!$BJ18) -> n.d. | BX11: =IF('[1]FISCAL(M)'!$BT18="","",'[1]FISCAL(M)'!$BT18) -> n.d. | BY11: =IF('[2]MONE(M)'!$AO18="","",'[2]MONE(M)'!$AO18) -> n.d. | BZ11: =IF('[3]MONE(M)'!$AO18="","",'[3]MONE(M)'!$AO18) -> n.d. | CA11: =IF('[4]MONE(M)'!$AO18="","",'[4]MONE(M)'!$AO18) -> n.d. | CB11: =IF('[5]MONE(M)'!$AO18="","",'[5]MONE(M)'!$AO18) -> n.d. | CC11: =IF('[6]MONE(M)'!$AO18="","",'[6]MONE(M)'!$AO18) -> n.d. | CD11: =IF('[7]MONE(M)'!$AO18="","",'[7]MONE(M)'!$AO18) -> n.d. | CE11: =IF('[8]MONE(M)'!$AO18="","",'[8]MONE(M)'!$AO18) -> n.d. | CF11: n.d. | CG11: n.d. | CH11: n.d. | CI11: n.d. | CJ11: n.d. | CK11: n.d. | CL11: n.d. | CM11: =IF('[1]FISCAL(M)'!$K18="","",'[1]FISCAL(M)'!$K18) -> n.d. | CN11: n.d. | CO11: n.d. | CP11: =IF('[1]FISCAL(M)'!$L18="","",'[1]FISCAL(M)'!$L18) -> n.d. | CQ11: n.d. | CR11: n.d. | CS11: n.d. | CT11: n.d. | CU11: n.d. | CV11: n.d. | CW11: n.d. | CX11: n.d. | CY11: n.d. | CZ11: n.d. | DA11: n.d. | DB11: n.d. | DC11: n.d. | DD11: n.d. | DE11: n.d. | DF11: n.d. | DG11: n.d. | DH11: n.d.
A12: 1990 | B12: octubre | C12: 1990-octubre | D12: =IF('[1]REAL IPC(M)'!$AL19="","",+'[1]REAL IPC(M)'!$AL19) -> n.d. | E12: =IF('[1]REAL IPC(M)'!$BE19="","",+'[1]REAL IPC(M)'!$BE19) -> n.d. | F12: =IF('[1]REAL IPC(M)'!$AM19="","",+'[1]REAL IPC(M)'!$AM19) -> n.d. | G12: =IF('[1]REAL IPC(M)'!$BI19="","",+'[1]REAL IPC(M)'!$BI19) -> n.d. | H12: =IF('[1]REAL IMAE(M)'!BJ19="","",'[1]REAL IMAE(M)'!BJ19) -> n.d. | I12: =IF('[1]REAL IMAE(M)'!BK19="","",'[1]REAL IMAE(M)'!BK19) -> n.d. | J12: =IF('[1]REAL IMAE(M)'!BN19="","",'[1]REAL IMAE(M)'!BN19) -> n.d. | K12: =IF('[1]REAL IMAE(M)'!BO19="","",'[1]REAL IMAE(M)'!BO19) -> n.d. | L12: =IF('[1]EXT RIN(M)'!$K19="","",'[1]EXT RIN(M)'!$K19) -> n.d. | N12: =IF('[1]EXT RIN(M)'!$L19="","",'[1]EXT RIN(M)'!$L19) -> n.d. | P12: =IF('[1]MONE(M)CARD'!EG19="","",'[1]MONE(M)CARD'!EG19) -> n.d. | Q12: =IF('[1]MONE(M)CARD'!EK19="","",'[1]MONE(M)CARD'!EK19) -> n.d. | R12: =IF('[1]MONE(M)CARD'!EP19="","",'[1]MONE(M)CARD'!EP19) -> n.d. | S12: =IF('[1]MONE(M)CARD'!ES19="","",'[1]MONE(M)CARD'!ES19) -> n.d. | T12: =IF('[1]MONE(M)CARD'!EV19="","",'[1]MONE(M)CARD'!EV19) -> n.d. | U12: =IF('[1]MONE(M)CARD'!EZ19="","",'[1]MONE(M)CARD'!EZ19) -> n.d. | V12: =IF('[1]MONE(M)CAPARD'!FC19="","",'[1]MONE(M)CAPARD'!FC19) -> n.d. | W12: =IF('[1]MONE(M)CAPARD'!FG19="","",'[1]MONE(M)CAPARD'!FG19) -> n.d. | X12: =IF('[1]MONE(M)CAPARD'!FL19="","",'[1]MONE(M)CAPARD'!FL19) -> n.d. | Y12: =IF('[1]MONE(M)CAPARD'!FO19="","",'[1]MONE(M)CAPARD'!FO19) -> n.d. | Z12: =IF('[1]MONE(M)CAPARD'!FR19="","",'[1]MONE(M)CAPARD'!FR19) -> n.d. | AA12: =IF('[1]MONE(M)CAPARD'!FV19="","",'[1]MONE(M)CAPARD'!FV19) -> n.d. | AB12: =IF('[1]MONE(M)CARD'!FV19="","",'[1]MONE(M)CARD'!FV19) ->  | AC12: =IF('[1]MONE(M)CARD'!GD19="","",'[1]MONE(M)CARD'!GD19) -> n.d. | AD12: =IF('[1]MONE(M)CARD'!GE19="","",'[1]MONE(M)CARD'!GE19) -> n.d. | AE12: n.d. | AF12: n.d. | AG12: n.d. | AH12: n.d. | AI12: n.d. | AJ12: n.d. | AK12: n.d. | AL12: n.d. | AN12: n.d. | AO12: n.d. | AP12: n.d. | AQ12: n.d. | AR12: n.d. | AS12: =IF('[1]MONE(M)CAPARD'!GS19="","",'[1]MONE(M)CAPARD'!GS19) -> n.d. | AT12: =IF('[1]MONE(M)CARD'!HA19="","",'[1]MONE(M)CAPARD'!HA19) -> n.d. | AU12: =IF('[1]MONE(M)CAPARD'!HB19="","",'[1]MONE(M)CAPARD'!HB19) -> n.d. | AV12: n.d. | AW12: n.d. | AX12: n.d. | AY12: n.d. | AZ12: n.d. | BA12: n.d. | BB12: n.d. | BC12: n.d. | BD12: n.d. | BE12: n.d. | BF12: n.d. | BG12: n.d. | BH12: n.d. | BI12: n.d. | BJ12: =IF('[1]MONE(M)CAPARD'!AS19="","",'[1]MONE(M)CAPARD'!AS19) -> n.d. | BK12: =IF('[1]MONE(M)CAPARD'!AT19="","",'[1]MONE(M)CAPARD'!AT19) -> n.a. | BL12: =IF('[1]MONE(M)CAPARD'!AU19="","",'[1]MONE(M)CAPARD'!AU19) -> n.d. | BM12: =IF('[1]MONE(M)CAPARD'!AV19="","",'[1]MONE(M)CAPARD'!AV19) -> n.d. | BN12: =IF('[1]MONE(M)CAPARD'!AW19="","",'[1]MONE(M)CAPARD'!AW19) -> n.a. | BO12: =IF('[1]MONE(M)CAPARD'!AX19="","",'[1]MONE(M)CAPARD'!AX19) -> n.d. | BP12: =IF('[1]MONE(M)CAPARD'!AY19="","",'[1]MONE(M)CAPARD'!AY19) -> n.a. | BQ12: =IF('[1]FISCAL(M)'!$K19="","",'[1]FISCAL(M)'!$K19) -> n.d. | BR12: =IF('[1]FISCAL(M)'!$L19="","",'[1]FISCAL(M)'!$L19) -> n.d. | BS12: =IF('[1]FISCAL(M)'!$AY19="","",'[1]FISCAL(M)'!$AY19) -> n.d. | BT12: =IF('[1]FISCAL(M)'!$BI19="","",'[1]FISCAL(M)'!$BI19) -> n.d. | BU12: =IF('[1]FISCAL(M)'!$BS19="","",'[1]FISCAL(M)'!$BS19) -> n.d. | BV12: =IF('[1]FISCAL(M)'!$AZ19="","",'[1]FISCAL(M)'!$AZ19) -> n.d. | BW12: =IF('[1]FISCAL(M)'!$BJ19="","",'[1]FISCAL(M)'!$BJ19) -> n.d. | BX12: =IF('[1]FISCAL(M)'!$BT19="","",'[1]FISCAL(M)'!$BT19) -> n.d. | BY12: =IF('[2]MONE(M)'!$AO19="","",'[2]MONE(M)'!$AO19) -> n.d. | BZ12: =IF('[3]MONE(M)'!$AO19="","",'[3]MONE(M)'!$AO19) -> n.d. | CA12: =IF('[4]MONE(M)'!$AO19="","",'[4]MONE(M)'!$AO19) -> n.d. | CB12: =IF('[5]MONE(M)'!$AO19="","",'[5]MONE(M)'!$AO19) -> n.d. | CC12: =IF('[6]MONE(M)'!$AO19="","",'[6]MONE(M)'!$AO19) -> n.d. | CD12: =IF('[7]MONE(M)'!$AO19="","",'[7]MONE(M)'!$AO19) -> n.d. | CE12: =IF('[8]MONE(M)'!$AO19="","",'[8]MONE(M)'!$AO19) -> n.d. | CF12: n.d. | CG12: n.d. | CH12: n.d. | CI12: n.d. | CJ12: n.d. | CK12: n.d. | CL12: n.d. | CM12: =IF('[1]FISCAL(M)'!$K19="","",'[1]FISCAL(M)'!$K19) -> n.d. | CN12: n.d. | CO12: n.d. | CP12: =IF('[1]FISCAL(M)'!$L19="","",'[1]FISCAL(M)'!$L19) -> n.d. | CQ12: n.d. | CR12: n.d. | CS12: n.d. | CT12: n.d. | CU12: n.d. | CV12: n.d. | CW12: n.d. | CX12: n.d. | CY12: n.d. | CZ12: n.d. | DA12: n.d. | DB12: n.d. | DC12: n.d. | DD12: n.d. | DE12: n.d. | DF12: n.d. | DG12: n.d. | DH12: n.d.
A13: 1990 | B13: noviembre | C13: 1990-noviembre | D13: =IF('[1]REAL IPC(M)'!$AL20="","",+'[1]REAL IPC(M)'!$AL20) -> n.d. | E13: =IF('[1]REAL IPC(M)'!$BE20="","",+'[1]REAL IPC(M)'!$BE20) -> n.d. | F13: =IF('[1]REAL IPC(M)'!$AM20="","",+'[1]REAL IPC(M)'!$AM20) -> n.d. | G13: =IF('[1]REAL IPC(M)'!$BI20="","",+'[1]REAL IPC(M)'!$BI20) -> n.d. | H13: =IF('[1]REAL IMAE(M)'!BJ20="","",'[1]REAL IMAE(M)'!BJ20) -> n.d. | I13: =IF('[1]REAL IMAE(M)'!BK20="","",'[1]REAL IMAE(M)'!BK20) -> n.d. | J13: =IF('[1]REAL IMAE(M)'!BN20="","",'[1]REAL IMAE(M)'!BN20) -> n.d. | K13: =IF('[1]REAL IMAE(M)'!BO20="","",'[1]REAL IMAE(M)'!BO20) -> n.d. | L13: =IF('[1]EXT RIN(M)'!$K20="","",'[1]EXT RIN(M)'!$K20) -> n.d. | N13: =IF('[1]EXT RIN(M)'!$L20="","",'[1]EXT RIN(M)'!$L20) -> n.d. | P13: =IF('[1]MONE(M)CARD'!EG20="","",'[1]MONE(M)CARD'!EG20) -> n.d. | Q13: =IF('[1]MONE(M)CARD'!EK20="","",'[1]MONE(M)CARD'!EK20) -> n.d. | R13: =IF('[1]MONE(M)CARD'!EP20="","",'[1]MONE(M)CARD'!EP20) -> n.d. | S13: =IF('[1]MONE(M)CARD'!ES20="","",'[1]MONE(M)CARD'!ES20) -> n.d. | T13: =IF('[1]MONE(M)CARD'!EV20="","",'[1]MONE(M)CARD'!EV20) -> n.d. | U13: =IF('[1]MONE(M)CARD'!EZ20="","",'[1]MONE(M)CARD'!EZ20) -> n.d. | V13: =IF('[1]MONE(M)CAPARD'!FC20="","",'[1]MONE(M)CAPARD'!FC20) -> n.d. | W13: =IF('[1]MONE(M)CAPARD'!FG20="","",'[1]MONE(M)CAPARD'!FG20) -> n.d. | X13: =IF('[1]MONE(M)CAPARD'!FL20="","",'[1]MONE(M)CAPARD'!FL20) -> n.d. | Y13: =IF('[1]MONE(M)CAPARD'!FO20="","",'[1]MONE(M)CAPARD'!FO20) -> n.d. | Z13: =IF('[1]MONE(M)CAPARD'!FR20="","",'[1]MONE(M)CAPARD'!FR20) -> n.d. | AA13: =IF('[1]MONE(M)CAPARD'!FV20="","",'[1]MONE(M)CAPARD'!FV20) -> n.d. | AB13: =IF('[1]MONE(M)CARD'!FV20="","",'[1]MONE(M)CARD'!FV20) ->  | AC13: =IF('[1]MONE(M)CARD'!GD20="","",'[1]MONE(M)CARD'!GD20) -> n.d. | AD13: =IF('[1]MONE(M)CARD'!GE20="","",'[1]MONE(M)CARD'!GE20) -> n.d. | AE13: n.d. | AF13: n.d. | AG13: n.d. | AH13: n.d. | AI13: n.d. | AJ13: n.d. | AK13: n.d. | AL13: n.d. | AN13: n.d. | AO13: n.d. | AP13: n.d. | AQ13: n.d. | AR13: n.d. | AS13: =IF('[1]MONE(M)CAPARD'!GS20="","",'[1]MONE(M)CAPARD'!GS20) -> n.d. | AT13: =IF('[1]MONE(M)CARD'!HA20="","",'[1]MONE(M)CAPARD'!HA20) -> n.d. | AU13: =IF('[1]MONE(M)CAPARD'!HB20="","",'[1]MONE(M)CAPARD'!HB20) -> n.d. | AV13: n.d. | AW13: n.d. | AX13: n.d. | AY13: n.d. | AZ13: n.d. | BA13: n.d. | BB13: n.d. | BC13: n.d. | BD13: n.d. | BE13: n.d. | BF13: n.d. | BG13: n.d. | BH13: n.d. | BI13: n.d. | BJ13: =IF('[1]MONE(M)CAPARD'!AS20="","",'[1]MONE(M)CAPARD'!AS20) -> n.d. | BK13: =IF('[1]MONE(M)CAPARD'!AT20="","",'[1]MONE(M)CAPARD'!AT20) -> n.a. | BL13: =IF('[1]MONE(M)CAPARD'!AU20="","",'[1]MONE(M)CAPARD'!AU20) -> n.d. | BM13: =IF('[1]MONE(M)CAPARD'!AV20="","",'[1]MONE(M)CAPARD'!AV20) -> n.d. | BN13: =IF('[1]MONE(M)CAPARD'!AW20="","",'[1]MONE(M)CAPARD'!AW20) -> n.a. | BO13: =IF('[1]MONE(M)CAPARD'!AX20="","",'[1]MONE(M)CAPARD'!AX20) -> n.d. | BP13: =IF('[1]MONE(M)CAPARD'!AY20="","",'[1]MONE(M)CAPARD'!AY20) -> n.a. | BQ13: =IF('[1]FISCAL(M)'!$K20="","",'[1]FISCAL(M)'!$K20) -> n.d. | BR13: =IF('[1]FISCAL(M)'!$L20="","",'[1]FISCAL(M)'!$L20) -> n.d. | BS13: =IF('[1]FISCAL(M)'!$AY20="","",'[1]FISCAL(M)'!$AY20) -> n.d. | BT13: =IF('[1]FISCAL(M)'!$BI20="","",'[1]FISCAL(M)'!$BI20) -> n.d. | BU13: =IF('[1]FISCAL(M)'!$BS20="","",'[1]FISCAL(M)'!$BS20) -> n.d. | BV13: =IF('[1]FISCAL(M)'!$AZ20="","",'[1]FISCAL(M)'!$AZ20) -> n.d. | BW13: =IF('[1]FISCAL(M)'!$BJ20="","",'[1]FISCAL(M)'!$BJ20) -> n.d. | BX13: =IF('[1]FISCAL(M)'!$BT20="","",'[1]FISCAL(M)'!$BT20) -> n.d. | BY13: =IF('[2]MONE(M)'!$AO20="","",'[2]MONE(M)'!$AO20) -> n.d. | BZ13: =IF('[3]MONE(M)'!$AO20="","",'[3]MONE(M)'!$AO20) -> n.d. | CA13: =IF('[4]MONE(M)'!$AO20="","",'[4]MONE(M)'!$AO20) -> n.d. | CB13: =IF('[5]MONE(M)'!$AO20="","",'[5]MONE(M)'!$AO20) -> n.d. | CC13: =IF('[6]MONE(M)'!$AO20="","",'[6]MONE(M)'!$AO20) -> n.d. | CD13: =IF('[7]MONE(M)'!$AO20="","",'[7]MONE(M)'!$AO20) -> n.d. | CE13: =IF('[8]MONE(M)'!$AO20="","",'[8]MONE(M)'!$AO20) -> n.d. | CF13: n.d. | CG13: n.d. | CH13: n.d. | CI13: n.d. | CJ13: n.d. | CK13: n.d. | CL13: n.d. | CM13: =IF('[1]FISCAL(M)'!$K20="","",'[1]FISCAL(M)'!$K20) -> n.d. | CN13: n.d. | CO13: n.d. | CP13: =IF('[1]FISCAL(M)'!$L20="","",'[1]FISCAL(M)'!$L20) -> n.d. | CQ13: n.d. | CR13: n.d. | CS13: n.d. | CT13: n.d. | CU13: n.d. | CV13: n.d. | CW13: n.d. | CX13: n.d. | CY13: n.d. | CZ13: n.d. | DA13: n.d. | DB13: n.d. | DC13: n.d. | DD13: n.d. | DE13: n.d. | DF13: n.d. | DG13: n.d. | DH13: n.d.
A14: 1990 | B14: diciembre | C14: 1990-diciembre | D14: =IF('[1]REAL IPC(M)'!$AL21="","",+'[1]REAL IPC(M)'!$AL21) -> n.d. | E14: =IF('[1]REAL IPC(M)'!$BE21="","",+'[1]REAL IPC(M)'!$BE21) -> n.d. | F14: =IF('[1]REAL IPC(M)'!$AM21="","",+'[1]REAL IPC(M)'!$AM21) -> n.d. | G14: =IF('[1]REAL IPC(M)'!$BI21="","",+'[1]REAL IPC(M)'!$BI21) -> n.d. | H14: =IF('[1]REAL IMAE(M)'!BJ21="","",'[1]REAL IMAE(M)'!BJ21) -> n.d. | I14: =IF('[1]REAL IMAE(M)'!BK21="","",'[1]REAL IMAE(M)'!BK21) -> n.d. | J14: =IF('[1]REAL IMAE(M)'!BN21="","",'[1]REAL IMAE(M)'!BN21) -> n.d. | K14: =IF('[1]REAL IMAE(M)'!BO21="","",'[1]REAL IMAE(M)'!BO21) -> n.d. | L14: =IF('[1]EXT RIN(M)'!$K21="","",'[1]EXT RIN(M)'!$K21) -> n.d. | M14: n.d. | N14: =IF('[1]EXT RIN(M)'!$L21="","",'[1]EXT RIN(M)'!$L21) -> n.d. | O14: n.d. | P14: =IF('[1]MONE(M)CARD'!EG21="","",'[1]MONE(M)CARD'!EG21) -> n.d. | Q14: =IF('[1]MONE(M)CARD'!EK21="","",'[1]MONE(M)CARD'!EK21) -> n.d. | R14: =IF('[1]MONE(M)CARD'!EP21="","",'[1]MONE(M)CARD'!EP21) -> n.d. | S14: =IF('[1]MONE(M)CARD'!ES21="","",'[1]MONE(M)CARD'!ES21) -> n.d. | T14: =IF('[1]MONE(M)CARD'!EV21="","",'[1]MONE(M)CARD'!EV21) -> n.d. | U14: =IF('[1]MONE(M)CARD'!EZ21="","",'[1]MONE(M)CARD'!EZ21) -> n.d. | V14: =IF('[1]MONE(M)CAPARD'!FC21="","",'[1]MONE(M)CAPARD'!FC21) -> n.d. | W14: =IF('[1]MONE(M)CAPARD'!FG21="","",'[1]MONE(M)CAPARD'!FG21) -> n.d. | X14: =IF('[1]MONE(M)CAPARD'!FL21="","",'[1]MONE(M)CAPARD'!FL21) -> n.d. | Y14: =IF('[1]MONE(M)CAPARD'!FO21="","",'[1]MONE(M)CAPARD'!FO21) -> n.d. | Z14: =IF('[1]MONE(M)CAPARD'!FR21="","",'[1]MONE(M)CAPARD'!FR21) -> n.d. | AA14: =IF('[1]MONE(M)CAPARD'!FV21="","",'[1]MONE(M)CAPARD'!FV21) -> n.d. | AB14: =IF('[1]MONE(M)CARD'!FV21="","",'[1]MONE(M)CARD'!FV21) ->  | AC14: =IF('[1]MONE(M)CARD'!GD21="","",'[1]MONE(M)CARD'!GD21) -> n.d. | AD14: =IF('[1]MONE(M)CARD'!GE21="","",'[1]MONE(M)CARD'!GE21) -> n.d. | AE14: n.d. | AF14: n.d. | AG14: n.d. | AH14: n.d. | AI14: n.d. | AJ14: n.d. | AK14: n.d. | AL14: n.d. | AN14: n.d. | AO14: n.d. | AP14: n.d. | AQ14: n.d. | AR14: n.d. | AS14: =IF('[1]MONE(M)CAPARD'!GS21="","",'[1]MONE(M)CAPARD'!GS21) -> n.d. | AT14: =IF('[1]MONE(M)CARD'!HA21="","",'[1]MONE(M)CAPARD'!HA21) -> n.d. | AU14: =IF('[1]MONE(M)CAPARD'!HB21="","",'[1]MONE(M)CAPARD'!HB21) -> n.d. | AV14: n.d. | AW14: n.d. | AX14: n.d. | AY14: n.d. | AZ14: n.d. | BA14: n.d. | BB14: n.d. | BC14: n.d. | BD14: n.d. | BE14: n.d. | BF14: n.d. | BG14: n.d. | BH14: n.d. | BI14: n.d. | BJ14: =IF('[1]MONE(M)CAPARD'!AS21="","",'[1]MONE(M)CAPARD'!AS21) -> n.d. | BK14: =IF('[1]MONE(M)CAPARD'!AT21="","",'[1]MONE(M)CAPARD'!AT21) -> n.a. | BL14: =IF('[1]MONE(M)CAPARD'!AU21="","",'[1]MONE(M)CAPARD'!AU21) -> n.d. | BM14: =IF('[1]MONE(M)CAPARD'!AV21="","",'[1]MONE(M)CAPARD'!AV21) -> n.d. | BN14: =IF('[1]MONE(M)CAPARD'!AW21="","",'[1]MONE(M)CAPARD'!AW21) -> n.a. | BO14: =IF('[1]MONE(M)CAPARD'!AX21="","",'[1]MONE(M)CAPARD'!AX21) -> n.d. | BP14: =IF('[1]MONE(M)CAPARD'!AY21="","",'[1]MONE(M)CAPARD'!AY21) -> n.a. | BQ14: =IF('[1]FISCAL(M)'!$K21="","",'[1]FISCAL(M)'!$K21) -> n.d. | BR14: =IF('[1]FISCAL(M)'!$L21="","",'[1]FISCAL(M)'!$L21) -> n.d. | BS14: =IF('[1]FISCAL(M)'!$AY21="","",'[1]FISCAL(M)'!$AY21) -> n.d. | BT14: =IF('[1]FISCAL(M)'!$BI21="","",'[1]FISCAL(M)'!$BI21) -> n.d. | BU14: =IF('[1]FISCAL(M)'!$BS21="","",'[1]FISCAL(M)'!$BS21) -> n.d. | BV14: =IF('[1]FISCAL(M)'!$AZ21="","",'[1]FISCAL(M)'!$AZ21) -> n.d. | BW14: =IF('[1]FISCAL(M)'!$BJ21="","",'[1]FISCAL(M)'!$BJ21) -> n.d. | BX14: =IF('[1]FISCAL(M)'!$BT21="","",'[1]FISCAL(M)'!$BT21) -> n.d. | BY14: =IF('[2]MONE(M)'!$AO21="","",'[2]MONE(M)'!$AO21) -> n.d. | BZ14: =IF('[3]MONE(M)'!$AO21="","",'[3]MONE(M)'!$AO21) -> n.d. | CA14: =IF('[4]MONE(M)'!$AO21="","",'[4]MONE(M)'!$AO21) -> n.d. | CB14: =IF('[5]MONE(M)'!$AO21="","",'[5]MONE(M)'!$AO21) -> n.d. | CC14: =IF('[6]MONE(M)'!$AO21="","",'[6]MONE(M)'!$AO21) -> n.d. | CD14: =IF('[7]MONE(M)'!$AO21="","",'[7]MONE(M)'!$AO21) -> n.d. | CE14: =IF('[8]MONE(M)'!$AO21="","",'[8]MONE(M)'!$AO21) -> n.d. | CF14: n.d. | CG14: n.d. | CH14: n.d. | CI14: n.d. | CJ14: n.d. | CK14: n.d. | CL14: n.d. | CM14: =IF('[1]FISCAL(M)'!$K21="","",'[1]FISCAL(M)'!$K21) -> n.d. | CN14: n.d. | CO14: n.d. | CP14: =IF('[1]FISCAL(M)'!$L21="","",'[1]FISCAL(M)'!$L21) -> n.d. | CQ14: n.d. | CR14: n.d. | CS14: n.d. | CT14: n.d. | CU14: n.d. | CV14: n.d. | CW14: n.d. | CX14: n.d. | CY14: n.d. | CZ14: n.d. | DA14: n.d. | DB14: n.d. | DC14: n.d. | DD14: n.d. | DE14: n.d. | DF14: n.d. | DG14: n.d. | DH14: n.d.
A15: 1991 | B15: enero | C15: 1991-enero | D15: =IF('[1]REAL IPC(M)'!$AL22="","",+'[1]REAL IPC(M)'!$AL22) -> n.d. | E15: =IF('[1]REAL IPC(M)'!$BE22="","",+'[1]REAL IPC(M)'!$BE22) -> n.d. | F15: =IF('[1]REAL IPC(M)'!$AM22="","",+'[1]REAL IPC(M)'!$AM22) -> n.d. | G15: =IF('[1]REAL IPC(M)'!$BI22="","",+'[1]REAL IPC(M)'!$BI22) -> n.d. | H15: =IF('[1]REAL IMAE(M)'!BJ22="","",'[1]REAL IMAE(M)'!BJ22) -> n.d. | I15: =IF('[1]REAL IMAE(M)'!BK22="","",'[1]REAL IMAE(M)'!BK22) -> n.d. | J15: =IF('[1]REAL IMAE(M)'!BN22="","",'[1]REAL IMAE(M)'!BN22) -> n.d. | K15: =IF('[1]REAL IMAE(M)'!BO22="","",'[1]REAL IMAE(M)'!BO22) -> n.d. | L15: =IF('[1]EXT RIN(M)'!$K22="","",'[1]EXT RIN(M)'!$K22) -> n.d. | N15: =IF('[1]EXT RIN(M)'!$L22="","",'[1]EXT RIN(M)'!$L22) -> n.d. | P15: =IF('[1]MONE(M)CARD'!EG22="","",'[1]MONE(M)CARD'!EG22) -> n.d. | Q15: =IF('[1]MONE(M)CARD'!EK22="","",'[1]MONE(M)CARD'!EK22) -> n.d. | R15: =IF('[1]MONE(M)CARD'!EP22="","",'[1]MONE(M)CARD'!EP22) -> n.d. | S15: =IF('[1]MONE(M)CARD'!ES22="","",'[1]MONE(M)CARD'!ES22) -> n.d. | T15: =IF('[1]MONE(M)CARD'!EV22="","",'[1]MONE(M)CARD'!EV22) -> n.d. | U15: =IF('[1]MONE(M)CARD'!EZ22="","",'[1]MONE(M)CARD'!EZ22) -> n.d. | V15: =IF('[1]MONE(M)CAPARD'!FC22="","",'[1]MONE(M)CAPARD'!FC22) -> n.d. | W15: =IF('[1]MONE(M)CAPARD'!FG22="","",'[1]MONE(M)CAPARD'!FG22) -> n.d. | X15: =IF('[1]MONE(M)CAPARD'!FL22="","",'[1]MONE(M)CAPARD'!FL22) -> n.d. | Y15: =IF('[1]MONE(M)CAPARD'!FO22="","",'[1]MONE(M)CAPARD'!FO22) -> n.d. | Z15: =IF('[1]MONE(M)CAPARD'!FR22="","",'[1]MONE(M)CAPARD'!FR22) -> n.d. | AA15: =IF('[1]MONE(M)CAPARD'!FV22="","",'[1]MONE(M)CAPARD'!FV22) -> n.d. | AB15: =IF('[1]MONE(M)CARD'!FV22="","",'[1]MONE(M)CARD'!FV22) ->  | AC15: =IF('[1]MONE(M)CARD'!GD22="","",'[1]MONE(M)CARD'!GD22) -> n.d. | AD15: =IF('[1]MONE(M)CARD'!GE22="","",'[1]MONE(M)CARD'!GE22) -> n.d. | AE15: n.d. | AF15: n.d. | AG15: n.d. | AH15: n.d. | AI15: n.d. | AJ15: n.d. | AK15: n.d. | AL15: n.d. | AN15: n.d. | AO15: n.d. | AP15: n.d. | AQ15: n.d. | AR15: n.d. | AS15: =IF('[1]MONE(M)CAPARD'!GS22="","",'[1]MONE(M)CAPARD'!GS22) -> n.d. | AT15: =IF('[1]MONE(M)CARD'!HA22="","",'[1]MONE(M)CAPARD'!HA22) -> n.d. | AU15: =IF('[1]MONE(M)CAPARD'!HB22="","",'[1]MONE(M)CAPARD'!HB22) -> n.d. | AV15: n.d. | AW15: n.d. | AX15: n.d. | AY15: n.d. | AZ15: n.d. | BA15: n.d. | BB15: n.d. | BC15: n.d. | BD15: n.d. | BE15: n.d. | BF15: n.d. | BG15: n.d. | BH15: n.d. | BI15: n.d. | BJ15: =IF('[1]MONE(M)CAPARD'!AS22="","",'[1]MONE(M)CAPARD'!AS22) -> n.d. | BK15: =IF('[1]MONE(M)CAPARD'!AT22="","",'[1]MONE(M)CAPARD'!AT22) -> n.a. | BL15: =IF('[1]MONE(M)CAPARD'!AU22="","",'[1]MONE(M)CAPARD'!AU22) -> n.d. | BM15: =IF('[1]MONE(M)CAPARD'!AV22="","",'[1]MONE(M)CAPARD'!AV22) -> n.d. | BN15: =IF('[1]MONE(M)CAPARD'!AW22="","",'[1]MONE(M)CAPARD'!AW22) -> n.a. | BO15: =IF('[1]MONE(M)CAPARD'!AX22="","",'[1]MONE(M)CAPARD'!AX22) -> n.d. | BP15: =IF('[1]MONE(M)CAPARD'!AY22="","",'[1]MONE(M)CAPARD'!AY22) -> n.a. | BQ15: =IF('[1]FISCAL(M)'!$K22="","",'[1]FISCAL(M)'!$K22) -> n.d. | BR15: =IF('[1]FISCAL(M)'!$L22="","",'[1]FISCAL(M)'!$L22) -> n.d. | BS15: =IF('[1]FISCAL(M)'!$AY22="","",'[1]FISCAL(M)'!$AY22) -> n.d. | BT15: =IF('[1]FISCAL(M)'!$BI22="","",'[1]FISCAL(M)'!$BI22) -> n.d. | BU15: =IF('[1]FISCAL(M)'!$BS22="","",'[1]FISCAL(M)'!$BS22) -> n.d. | BV15: =IF('[1]FISCAL(M)'!$AZ22="","",'[1]FISCAL(M)'!$AZ22) -> n.d. | BW15: =IF('[1]FISCAL(M)'!$BJ22="","",'[1]FISCAL(M)'!$BJ22) -> n.d. | BX15: =IF('[1]FISCAL(M)'!$BT22="","",'[1]FISCAL(M)'!$BT22) -> n.d. | BY15: =IF('[2]MONE(M)'!$AO22="","",'[2]MONE(M)'!$AO22) -> n.d. | BZ15: =IF('[3]MONE(M)'!$AO22="","",'[3]MONE(M)'!$AO22) -> n.d. | CA15: =IF('[4]MONE(M)'!$AO22="","",'[4]MONE(M)'!$AO22) -> n.d. | CB15: =IF('[5]MONE(M)'!$AO22="","",'[5]MONE(M)'!$AO22) -> n.d. | CC15: =IF('[6]MONE(M)'!$AO22="","",'[6]MONE(M)'!$AO22) -> n.d. | CD15: =IF('[7]MONE(M)'!$AO22="","",'[7]MONE(M)'!$AO22) -> n.d. | CE15: =IF('[8]MONE(M)'!$AO22="","",'[8]MONE(M)'!$AO22) -> n.d. | CF15: n.d. | CG15: n.d. | CH15: n.d. | CI15: n.d. | CJ15: n.d. | CK15: n.d. | CL15: n.d. | CM15: =IF('[1]FISCAL(M)'!$K22="","",'[1]FISCAL(M)'!$K22) -> n.d. | CN15: n.d. | CO15: n.d. | CP15: =IF('[1]FISCAL(M)'!$L22="","",'[1]FISCAL(M)'!$L22) -> n.d. | CQ15: n.d. | CR15: n.d. | CS15: n.d. | CT15: n.d. | CU15: n.d. | CV15: n.d. | CW15: n.d. | CX15: n.d. | CY15: n.d. | CZ15: n.d. | DA15: n.d. | DB15: n.d. | DC15: n.d. | DD15: n.d. | DE15: n.d. | DF15: n.d. | DG15: n.d. | DH15: n.d.
A16: 1991 | B16: febrero | C16: 1991-febrero | D16: =IF('[1]REAL IPC(M)'!$AL23="","",+'[1]REAL IPC(M)'!$AL23) -> n.d. | E16: =IF('[1]REAL IPC(M)'!$BE23="","",+'[1]REAL IPC(M)'!$BE23) -> n.d. | F16: =IF('[1]REAL IPC(M)'!$AM23="","",+'[1]REAL IPC(M)'!$AM23) -> n.d. | G16: =IF('[1]REAL IPC(M)'!$BI23="","",+'[1]REAL IPC(M)'!$BI23) -> n.d. | H16: =IF('[1]REAL IMAE(M)'!BJ23="","",'[1]REAL IMAE(M)'!BJ23) -> n.d. | I16: =IF('[1]REAL IMAE(M)'!BK23="","",'[1]REAL IMAE(M)'!BK23) -> n.d. | J16: =IF('[1]REAL IMAE(M)'!BN23="","",'[1]REAL IMAE(M)'!BN23) -> n.d. | K16: =IF('[1]REAL IMAE(M)'!BO23="","",'[1]REAL IMAE(M)'!BO23) -> n.d. | L16: =IF('[1]EXT RIN(M)'!$K23="","",'[1]EXT RIN(M)'!$K23) -> n.d. | N16: =IF('[1]EXT RIN(M)'!$L23="","",'[1]EXT RIN(M)'!$L23) -> n.d. | P16: =IF('[1]MONE(M)CARD'!EG23="","",'[1]MONE(M)CARD'!EG23) -> n.d. | Q16: =IF('[1]MONE(M)CARD'!EK23="","",'[1]MONE(M)CARD'!EK23) -> n.d. | R16: =IF('[1]MONE(M)CARD'!EP23="","",'[1]MONE(M)CARD'!EP23) -> n.d. | S16: =IF('[1]MONE(M)CARD'!ES23="","",'[1]MONE(M)CARD'!ES23) -> n.d. | T16: =IF('[1]MONE(M)CARD'!EV23="","",'[1]MONE(M)CARD'!EV23) -> n.d. | U16: =IF('[1]MONE(M)CARD'!EZ23="","",'[1]MONE(M)CARD'!EZ23) -> n.d. | V16: =IF('[1]MONE(M)CAPARD'!FC23="","",'[1]MONE(M)CAPARD'!FC23) -> n.d. | W16: =IF('[1]MONE(M)CAPARD'!FG23="","",'[1]MONE(M)CAPARD'!FG23) -> n.d. | X16: =IF('[1]MONE(M)CAPARD'!FL23="","",'[1]MONE(M)CAPARD'!FL23) -> n.d. | Y16: =IF('[1]MONE(M)CAPARD'!FO23="","",'[1]MONE(M)CAPARD'!FO23) -> n.d. | Z16: =IF('[1]MONE(M)CAPARD'!FR23="","",'[1]MONE(M)CAPARD'!FR23) -> n.d. | AA16: =IF('[1]MONE(M)CAPARD'!FV23="","",'[1]MONE(M)CAPARD'!FV23) -> n.d. | AB16: =IF('[1]MONE(M)CARD'!FV23="","",'[1]MONE(M)CARD'!FV23) ->  | AC16: =IF('[1]MONE(M)CARD'!GD23="","",'[1]MONE(M)CARD'!GD23) -> n.d. | AD16: =IF('[1]MONE(M)CARD'!GE23="","",'[1]MONE(M)CARD'!GE23) -> n.d. | AE16: n.d. | AF16: n.d. | AG16: n.d. | AH16: n.d. | AI16: n.d. | AJ16: n.d. | AK16: n.d. | AL16: n.d. | AN16: n.d. | AO16: n.d. | AP16: n.d. | AQ16: n.d. | AR16: n.d. | AS16: =IF('[1]MONE(M)CAPARD'!GS23="","",'[1]MONE(M)CAPARD'!GS23) -> n.d. | AT16: =IF('[1]MONE(M)CARD'!HA23="","",'[1]MONE(M)CAPARD'!HA23) -> n.d. | AU16: =IF('[1]MONE(M)CAPARD'!HB23="","",'[1]MONE(M)CAPARD'!HB23) -> n.d. | AV16: n.d. | AW16: n.d. | AX16: n.d. | AY16: n.d. | AZ16: n.d. | BA16: n.d. | BB16: n.d. | BC16: n.d. | BD16: n.d. | BE16: n.d. | BF16: n.d. | BG16: n.d. | BH16: n.d. | BI16: n.d. | BJ16: =IF('[1]MONE(M)CAPARD'!AS23="","",'[1]MONE(M)CAPARD'!AS23) -> n.d. | BK16: =IF('[1]MONE(M)CAPARD'!AT23="","",'[1]MONE(M)CAPARD'!AT23) -> n.a. | BL16: =IF('[1]MONE(M)CAPARD'!AU23="","",'[1]MONE(M)CAPARD'!AU23) -> n.d. | BM16: =IF('[1]MONE(M)CAPARD'!AV23="","",'[1]MONE(M)CAPARD'!AV23) -> n.d. | BN16: =IF('[1]MONE(M)CAPARD'!AW23="","",'[1]MONE(M)CAPARD'!AW23) -> n.a. | BO16: =IF('[1]MONE(M)CAPARD'!AX23="","",'[1]MONE(M)CAPARD'!AX23) -> n.d. | BP16: =IF('[1]MONE(M)CAPARD'!AY23="","",'[1]MONE(M)CAPARD'!AY23) -> n.a. | BQ16: =IF('[1]FISCAL(M)'!$K23="","",'[1]FISCAL(M)'!$K23) -> n.d. | BR16: =IF('[1]FISCAL(M)'!$L23="","",'[1]FISCAL(M)'!$L23) -> n.d. | BS16: =IF('[1]FISCAL(M)'!$AY23="","",'[1]FISCAL(M)'!$AY23) -> n.d. | BT16: =IF('[1]FISCAL(M)'!$BI23="","",'[1]FISCAL(M)'!$BI23) -> n.d. | BU16: =IF('[1]FISCAL(M)'!$BS23="","",'[1]FISCAL(M)'!$BS23) -> n.d. | BV16: =IF('[1]FISCAL(M)'!$AZ23="","",'[1]FISCAL(M)'!$AZ23) -> n.d. | BW16: =IF('[1]FISCAL(M)'!$BJ23="","",'[1]FISCAL(M)'!$BJ23) -> n.d. | BX16: =IF('[1]FISCAL(M)'!$BT23="","",'[1]FISCAL(M)'!$BT23) -> n.d. | BY16: =IF('[2]MONE(M)'!$AO23="","",'[2]MONE(M)'!$AO23) -> n.d. | BZ16: =IF('[3]MONE(M)'!$AO23="","",'[3]MONE(M)'!$AO23) -> n.d. | CA16: =IF('[4]MONE(M)'!$AO23="","",'[4]MONE(M)'!$AO23) -> n.d. | CB16: =IF('[5]MONE(M)'!$AO23="","",'[5]MONE(M)'!$AO23) -> n.d. | CC16: =IF('[6]MONE(M)'!$AO23="","",'[6]MONE(M)'!$AO23) -> n.d. | CD16: =IF('[7]MONE(M)'!$AO23="","",'[7]MONE(M)'!$AO23) -> n.d. | CE16: =IF('[8]MONE(M)'!$AO23="","",'[8]MONE(M)'!$AO23) -> n.d. | CF16: n.d. | CG16: n.d. | CH16: n.d. | CI16: n.d. | CJ16: n.d. | CK16: n.d. | CL16: n.d. | CM16: =IF('[1]FISCAL(M)'!$K23="","",'[1]FISCAL(M)'!$K23) -> n.d. | CN16: n.d. | CO16: n.d. | CP16: =IF('[1]FISCAL(M)'!$L23="","",'[1]FISCAL(M)'!$L23) -> n.d. | CQ16: n.d. | CR16: n.d. | CS16: n.d. | CT16: n.d. | CU16: n.d. | CV16: n.d. | CW16: n.d. | CX16: n.d. | CY16: n.d. | CZ16: n.d. | DA16: n.d. | DB16: n.d. | DC16: n.d. | DD16: n.d. | DE16: n.d. | DF16: n.d. | DG16: n.d. | DH16: n.d.
A17: 1991 | B17: marzo | C17: 1991-marzo | D17: =IF('[1]REAL IPC(M)'!$AL24="","",+'[1]REAL IPC(M)'!$AL24) -> n.d. | E17: =IF('[1]REAL IPC(M)'!$BE24="","",+'[1]REAL IPC(M)'!$BE24) -> n.d. | F17: =IF('[1]REAL IPC(M)'!$AM24="","",+'[1]REAL IPC(M)'!$AM24) -> n.d. | G17: =IF('[1]REAL IPC(M)'!$BI24="","",+'[1]REAL IPC(M)'!$BI24) -> n.d. | H17: =IF('[1]REAL IMAE(M)'!BJ24="","",'[1]REAL IMAE(M)'!BJ24) -> n.d. | I17: =IF('[1]REAL IMAE(M)'!BK24="","",'[1]REAL IMAE(M)'!BK24) -> n.d. | J17: =IF('[1]REAL IMAE(M)'!BN24="","",'[1]REAL IMAE(M)'!BN24) -> n.d. | K17: =IF('[1]REAL IMAE(M)'!BO24="","",'[1]REAL IMAE(M)'!BO24) -> n.d. | L17: =IF('[1]EXT RIN(M)'!$K24="","",'[1]EXT RIN(M)'!$K24) -> n.d. | N17: =IF('[1]EXT RIN(M)'!$L24="","",'[1]EXT RIN(M)'!$L24) -> n.d. | P17: =IF('[1]MONE(M)CARD'!EG24="","",'[1]MONE(M)CARD'!EG24) -> n.d. | Q17: =IF('[1]MONE(M)CARD'!EK24="","",'[1]MONE(M)CARD'!EK24) -> n.d. | R17: =IF('[1]MONE(M)CARD'!EP24="","",'[1]MONE(M)CARD'!EP24) -> n.d. | S17: =IF('[1]MONE(M)CARD'!ES24="","",'[1]MONE(M)CARD'!ES24) -> n.d. | T17: =IF('[1]MONE(M)CARD'!EV24="","",'[1]MONE(M)CARD'!EV24) -> n.d. | U17: =IF('[1]MONE(M)CARD'!EZ24="","",'[1]MONE(M)CARD'!EZ24) -> n.d. | V17: =IF('[1]MONE(M)CAPARD'!FC24="","",'[1]MONE(M)CAPARD'!FC24) -> n.d. | W17: =IF('[1]MONE(M)CAPARD'!FG24="","",'[1]MONE(M)CAPARD'!FG24) -> n.d. | X17: =IF('[1]MONE(M)CAPARD'!FL24="","",'[1]MONE(M)CAPARD'!FL24) -> n.d. | Y17: =IF('[1]MONE(M)CAPARD'!FO24="","",'[1]MONE(M)CAPARD'!FO24) -> n.d. | Z17: =IF('[1]MONE(M)CAPARD'!FR24="","",'[1]MONE(M)CAPARD'!FR24) -> n.d. | AA17: =IF('[1]MONE(M)CAPARD'!FV24="","",'[1]MONE(M)CAPARD'!FV24) -> n.d. | AB17: =IF('[1]MONE(M)CARD'!FV24="","",'[1]MONE(M)CARD'!FV24) ->  | AC17: =IF('[1]MONE(M)CARD'!GD24="","",'[1]MONE(M)CARD'!GD24) -> n.d. | AD17: =IF('[1]MONE(M)CARD'!GE24="","",'[1]MONE(M)CARD'!GE24) -> n.d. | AE17: n.d. | AF17: n.d. | AG17: n.d. | AH17: n.d. | AI17: n.d. | AJ17: n.d. | AK17: n.d. | AL17: n.d. | AN17: n.d. | AO17: n.d. | AP17: n.d. | AQ17: n.d. | AR17: n.d. | AS17: =IF('[1]MONE(M)CAPARD'!GS24="","",'[1]MONE(M)CAPARD'!GS24) -> n.d. | AT17: =IF('[1]MONE(M)CARD'!HA24="","",'[1]MONE(M)CAPARD'!HA24) -> n.d. | AU17: =IF('[1]MONE(M)CAPARD'!HB24="","",'[1]MONE(M)CAPARD'!HB24) -> n.d. | AV17: n.d. | AW17: n.d. | AX17: n.d. | AY17: n.d. | AZ17: n.d. | BA17: n.d. | BB17: n.d. | BC17: n.d. | BD17: n.d. | BE17: n.d. | BF17: n.d. | BG17: n.d. | BH17: n.d. | BI17: n.d. | BJ17: =IF('[1]MONE(M)CAPARD'!AS24="","",'[1]MONE(M)CAPARD'!AS24) -> n.d. | BK17: =IF('[1]MONE(M)CAPARD'!AT24="","",'[1]MONE(M)CAPARD'!AT24) -> n.a. | BL17: =IF('[1]MONE(M)CAPARD'!AU24="","",'[1]MONE(M)CAPARD'!AU24) -> n.d. | BM17: =IF('[1]MONE(M)CAPARD'!AV24="","",'[1]MONE(M)CAPARD'!AV24) -> n.d. | BN17: =IF('[1]MONE(M)CAPARD'!AW24="","",'[1]MONE(M)CAPARD'!AW24) -> n.a. | BO17: =IF('[1]MONE(M)CAPARD'!AX24="","",'[1]MONE(M)CAPARD'!AX24) -> n.d. | BP17: =IF('[1]MONE(M)CAPARD'!AY24="","",'[1]MONE(M)CAPARD'!AY24) -> n.a. | BQ17: =IF('[1]FISCAL(M)'!$K24="","",'[1]FISCAL(M)'!$K24) -> n.d. | BR17: =IF('[1]FISCAL(M)'!$L24="","",'[1]FISCAL(M)'!$L24) -> n.d. | BS17: =IF('[1]FISCAL(M)'!$AY24="","",'[1]FISCAL(M)'!$AY24) -> n.d. | BT17: =IF('[1]FISCAL(M)'!$BI24="","",'[1]FISCAL(M)'!$BI24) -> n.d. | BU17: =IF('[1]FISCAL(M)'!$BS24="","",'[1]FISCAL(M)'!$BS24) -> n.d. | BV17: =IF('[1]FISCAL(M)'!$AZ24="","",'[1]FISCAL(M)'!$AZ24) -> n.d. | BW17: =IF('[1]FISCAL(M)'!$BJ24="","",'[1]FISCAL(M)'!$BJ24) -> n.d. | BX17: =IF('[1]FISCAL(M)'!$BT24="","",'[1]FISCAL(M)'!$BT24) -> n.d. | BY17: =IF('[2]MONE(M)'!$AO24="","",'[2]MONE(M)'!$AO24) -> n.d. | BZ17: =IF('[3]MONE(M)'!$AO24="","",'[3]MONE(M)'!$AO24) -> n.d. | CA17: =IF('[4]MONE(M)'!$AO24="","",'[4]MONE(M)'!$AO24) -> n.d. | CB17: =IF('[5]MONE(M)'!$AO24="","",'[5]MONE(M)'!$AO24) -> n.d. | CC17: =IF('[6]MONE(M)'!$AO24="","",'[6]MONE(M)'!$AO24) -> n.d. | CD17: =IF('[7]MONE(M)'!$AO24="","",'[7]MONE(M)'!$AO24) -> n.d. | CE17: =IF('[8]MONE(M)'!$AO24="","",'[8]MONE(M)'!$AO24) -> n.d. | CF17: n.d. | CG17: n.d. | CH17: n.d. | CI17: n.d. | CJ17: n.d. | CK17: n.d. | CL17: n.d. | CM17: =IF('[1]FISCAL(M)'!$K24="","",'[1]FISCAL(M)'!$K24) -> n.d. | CN17: n.d. | CO17: n.d. | CP17: =IF('[1]FISCAL(M)'!$L24="","",'[1]FISCAL(M)'!$L24) -> n.d. | CQ17: n.d. | CR17: n.d. | CS17: n.d. | CT17: n.d. | CU17: n.d. | CV17: n.d. | CW17: n.d. | CX17: n.d. | CY17: n.d. | CZ17: n.d. | DA17: n.d. | DB17: n.d. | DC17: n.d. | DD17: n.d. | DE17: n.d. | DF17: n.d. | DG17: n.d. | DH17: n.d.
A18: 1991 | B18: abril | C18: 1991-abril | D18: =IF('[1]REAL IPC(M)'!$AL25="","",+'[1]REAL IPC(M)'!$AL25) -> n.d. | E18: =IF('[1]REAL IPC(M)'!$BE25="","",+'[1]REAL IPC(M)'!$BE25) -> n.d. | F18: =IF('[1]REAL IPC(M)'!$AM25="","",+'[1]REAL IPC(M)'!$AM25) -> n.d. | G18: =IF('[1]REAL IPC(M)'!$BI25="","",+'[1]REAL IPC(M)'!$BI25) -> n.d. | H18: =IF('[1]REAL IMAE(M)'!BJ25="","",'[1]REAL IMAE(M)'!BJ25) -> n.d. | I18: =IF('[1]REAL IMAE(M)'!BK25="","",'[1]REAL IMAE(M)'!BK25) -> n.d. | J18: =IF('[1]REAL IMAE(M)'!BN25="","",'[1]REAL IMAE(M)'!BN25) -> n.d. | K18: =IF('[1]REAL IMAE(M)'!BO25="","",'[1]REAL IMAE(M)'!BO25) -> n.d. | L18: =IF('[1]EXT RIN(M)'!$K25="","",'[1]EXT RIN(M)'!$K25) -> n.d. | N18: =IF('[1]EXT RIN(M)'!$L25="","",'[1]EXT RIN(M)'!$L25) -> n.d. | P18: =IF('[1]MONE(M)CARD'!EG25="","",'[1]MONE(M)CARD'!EG25) -> n.d. | Q18: =IF('[1]MONE(M)CARD'!EK25="","",'[1]MONE(M)CARD'!EK25) -> n.d. | R18: =IF('[1]MONE(M)CARD'!EP25="","",'[1]MONE(M)CARD'!EP25) -> n.d. | S18: =IF('[1]MONE(M)CARD'!ES25="","",'[1]MONE(M)CARD'!ES25) -> n.d. | T18: =IF('[1]MONE(M)CARD'!EV25="","",'[1]MONE(M)CARD'!EV25) -> n.d. | U18: =IF('[1]MONE(M)CARD'!EZ25="","",'[1]MONE(M)CARD'!EZ25) -> n.d. | V18: =IF('[1]MONE(M)CAPARD'!FC25="","",'[1]MONE(M)CAPARD'!FC25) -> n.d. | W18: =IF('[1]MONE(M)CAPARD'!FG25="","",'[1]MONE(M)CAPARD'!FG25) -> n.d. | X18: =IF('[1]MONE(M)CAPARD'!FL25="","",'[1]MONE(M)CAPARD'!FL25) -> n.d. | Y18: =IF('[1]MONE(M)CAPARD'!FO25="","",'[1]MONE(M)CAPARD'!FO25) -> n.d. | Z18: =IF('[1]MONE(M)CAPARD'!FR25="","",'[1]MONE(M)CAPARD'!FR25) -> n.d. | AA18: =IF('[1]MONE(M)CAPARD'!FV25="","",'[1]MONE(M)CAPARD'!FV25) -> n.d. | AB18: =IF('[1]MONE(M)CARD'!FV25="","",'[1]MONE(M)CARD'!FV25) ->  | AC18: =IF('[1]MONE(M)CARD'!GD25="","",'[1]MONE(M)CARD'!GD25) -> n.d. | AD18: =IF('[1]MONE(M)CARD'!GE25="","",'[1]MONE(M)CARD'!GE25) -> n.d. | AE18: n.d. | AF18: n.d. | AG18: n.d. | AH18: n.d. | AI18: n.d. | AJ18: n.d. | AK18: n.d. | AL18: n.d. | AN18: n.d. | AO18: n.d. | AP18: n.d. | AQ18: n.d. | AR18: n.d. | AS18: =IF('[1]MONE(M)CAPARD'!GS25="","",'[1]MONE(M)CAPARD'!GS25) -> n.d. | AT18: =IF('[1]MONE(M)CARD'!HA25="","",'[1]MONE(M)CAPARD'!HA25) -> n.d. | AU18: =IF('[1]MONE(M)CAPARD'!HB25="","",'[1]MONE(M)CAPARD'!HB25) -> n.d. | AV18: n.d. | AW18: n.d. | AX18: n.d. | AY18: n.d. | AZ18: n.d. | BA18: n.d. | BB18: n.d. | BC18: n.d. | BD18: n.d. | BE18: n.d. | BF18: n.d. | BG18: n.d. | BH18: n.d. | BI18: n.d. | BJ18: =IF('[1]MONE(M)CAPARD'!AS25="","",'[1]MONE(M)CAPARD'!AS25) -> n.d. | BK18: =IF('[1]MONE(M)CAPARD'!AT25="","",'[1]MONE(M)CAPARD'!AT25) -> n.a. | BL18: =IF('[1]MONE(M)CAPARD'!AU25="","",'[1]MONE(M)CAPARD'!AU25) -> n.d. | BM18: =IF('[1]MONE(M)CAPARD'!AV25="","",'[1]MONE(M)CAPARD'!AV25) -> n.d. | BN18: =IF('[1]MONE(M)CAPARD'!AW25="","",'[1]MONE(M)CAPARD'!AW25) -> n.a. | BO18: =IF('[1]MONE(M)CAPARD'!AX25="","",'[1]MONE(M)CAPARD'!AX25) -> n.d. | BP18: =IF('[1]MONE(M)CAPARD'!AY25="","",'[1]MONE(M)CAPARD'!AY25) -> n.a. | BQ18: =IF('[1]FISCAL(M)'!$K25="","",'[1]FISCAL(M)'!$K25) -> n.d. | BR18: =IF('[1]FISCAL(M)'!$L25="","",'[1]FISCAL(M)'!$L25) -> n.d. | BS18: =IF('[1]FISCAL(M)'!$AY25="","",'[1]FISCAL(M)'!$AY25) -> n.d. | BT18: =IF('[1]FISCAL(M)'!$BI25="","",'[1]FISCAL(M)'!$BI25) -> n.d. | BU18: =IF('[1]FISCAL(M)'!$BS25="","",'[1]FISCAL(M)'!$BS25) -> n.d. | BV18: =IF('[1]FISCAL(M)'!$AZ25="","",'[1]FISCAL(M)'!$AZ25) -> n.d. | BW18: =IF('[1]FISCAL(M)'!$BJ25="","",'[1]FISCAL(M)'!$BJ25) -> n.d. | BX18: =IF('[1]FISCAL(M)'!$BT25="","",'[1]FISCAL(M)'!$BT25) -> n.d. | BY18: =IF('[2]MONE(M)'!$AO25="","",'[2]MONE(M)'!$AO25) -> n.d. | BZ18: =IF('[3]MONE(M)'!$AO25="","",'[3]MONE(M)'!$AO25) -> n.d. | CA18: =IF('[4]MONE(M)'!$AO25="","",'[4]MONE(M)'!$AO25) -> n.d. | CB18: =IF('[5]MONE(M)'!$AO25="","",'[5]MONE(M)'!$AO25) -> n.d. | CC18: =IF('[6]MONE(M)'!$AO25="","",'[6]MONE(M)'!$AO25) -> n.d. | CD18: =IF('[7]MONE(M)'!$AO25="","",'[7]MONE(M)'!$AO25) -> n.d. | CE18: =IF('[8]MONE(M)'!$AO25="","",'[8]MONE(M)'!$AO25) -> n.d. | CF18: n.d. | CG18: n.d. | CH18: n.d. | CI18: n.d. | CJ18: n.d. | CK18: n.d. | CL18: n.d. | CM18: =IF('[1]FISCAL(M)'!$K25="","",'[1]FISCAL(M)'!$K25) -> n.d. | CN18: n.d. | CO18: n.d. | CP18: =IF('[1]FISCAL(M)'!$L25="","",'[1]FISCAL(M)'!$L25) -> n.d. | CQ18: n.d. | CR18: n.d. | CS18: n.d. | CT18: n.d. | CU18: n.d. | CV18: n.d. | CW18: n.d. | CX18: n.d. | CY18: n.d. | CZ18: n.d. | DA18: n.d. | DB18: n.d. | DC18: n.d. | DD18: n.d. | DE18: n.d. | DF18: n.d. | DG18: n.d. | DH18: n.d.
A19: 1991 | B19: mayo | C19: 1991-mayo | D19: =IF('[1]REAL IPC(M)'!$AL26="","",+'[1]REAL IPC(M)'!$AL26) -> n.d. | E19: =IF('[1]REAL IPC(M)'!$BE26="","",+'[1]REAL IPC(M)'!$BE26) -> n.d. | F19: =IF('[1]REAL IPC(M)'!$AM26="","",+'[1]REAL IPC(M)'!$AM26) -> n.d. | G19: =IF('[1]REAL IPC(M)'!$BI26="","",+'[1]REAL IPC(M)'!$BI26) -> n.d. | H19: =IF('[1]REAL IMAE(M)'!BJ26="","",'[1]REAL IMAE(M)'!BJ26) -> n.d. | I19: =IF('[1]REAL IMAE(M)'!BK26="","",'[1]REAL IMAE(M)'!BK26) -> n.d. | J19: =IF('[1]REAL IMAE(M)'!BN26="","",'[1]REAL IMAE(M)'!BN26) -> n.d. | K19: =IF('[1]REAL IMAE(M)'!BO26="","",'[1]REAL IMAE(M)'!BO26) -> n.d. | L19: =IF('[1]EXT RIN(M)'!$K26="","",'[1]EXT RIN(M)'!$K26) -> n.d. | N19: =IF('[1]EXT RIN(M)'!$L26="","",'[1]EXT RIN(M)'!$L26) -> n.d. | P19: =IF('[1]MONE(M)CARD'!EG26="","",'[1]MONE(M)CARD'!EG26) -> n.d. | Q19: =IF('[1]MONE(M)CARD'!EK26="","",'[1]MONE(M)CARD'!EK26) -> n.d. | R19: =IF('[1]MONE(M)CARD'!EP26="","",'[1]MONE(M)CARD'!EP26) -> n.d. | S19: =IF('[1]MONE(M)CARD'!ES26="","",'[1]MONE(M)CARD'!ES26) -> n.d. | T19: =IF('[1]MONE(M)CARD'!EV26="","",'[1]MONE(M)CARD'!EV26) -> n.d. | U19: =IF('[1]MONE(M)CARD'!EZ26="","",'[1]MONE(M)CARD'!EZ26) -> n.d. | V19: =IF('[1]MONE(M)CAPARD'!FC26="","",'[1]MONE(M)CAPARD'!FC26) -> n.d. | W19: =IF('[1]MONE(M)CAPARD'!FG26="","",'[1]MONE(M)CAPARD'!FG26) -> n.d. | X19: =IF('[1]MONE(M)CAPARD'!FL26="","",'[1]MONE(M)CAPARD'!FL26) -> n.d. | Y19: =IF('[1]MONE(M)CAPARD'!FO26="","",'[1]MONE(M)CAPARD'!FO26) -> n.d. | Z19: =IF('[1]MONE(M)CAPARD'!FR26="","",'[1]MONE(M)CAPARD'!FR26) -> n.d. | AA19: =IF('[1]MONE(M)CAPARD'!FV26="","",'[1]MONE(M)CAPARD'!FV26) -> n.d. | AB19: =IF('[1]MONE(M)CARD'!FV26="","",'[1]MONE(M)CARD'!FV26) ->  | AC19: =IF('[1]MONE(M)CARD'!GD26="","",'[1]MONE(M)CARD'!GD26) -> n.d. | AD19: =IF('[1]MONE(M)CARD'!GE26="","",'[1]MONE(M)CARD'!GE26) -> n.d. | AE19: n.d. | AF19: n.d. | AG19: n.d. | AH19: n.d. | AI19: n.d. | AJ19: n.d. | AK19: n.d. | AL19: n.d. | AN19: n.d. | AO19: n.d. | AP19: n.d. | AQ19: n.d. | AR19: n.d. | AS19: =IF('[1]MONE(M)CAPARD'!GS26="","",'[1]MONE(M)CAPARD'!GS26) -> n.d. | AT19: =IF('[1]MONE(M)CARD'!HA26="","",'[1]MONE(M)CAPARD'!HA26) -> n.d. | AU19: =IF('[1]MONE(M)CAPARD'!HB26="","",'[1]MONE(M)CAPARD'!HB26) -> n.d. | AV19: n.d. | AW19: n.d. | AX19: n.d. | AY19: n.d. | AZ19: n.d. | BA19: n.d. | BB19: n.d. | BC19: n.d. | BD19: n.d. | BE19: n.d. | BF19: n.d. | BG19: n.d. | BH19: n.d. | BI19: n.d. | BJ19: =IF('[1]MONE(M)CAPARD'!AS26="","",'[1]MONE(M)CAPARD'!AS26) -> n.d. | BK19: =IF('[1]MONE(M)CAPARD'!AT26="","",'[1]MONE(M)CAPARD'!AT26) -> n.a. | BL19: =IF('[1]MONE(M)CAPARD'!AU26="","",'[1]MONE(M)CAPARD'!AU26) -> n.d. | BM19: =IF('[1]MONE(M)CAPARD'!AV26="","",'[1]MONE(M)CAPARD'!AV26) -> n.d. | BN19: =IF('[1]MONE(M)CAPARD'!AW26="","",'[1]MONE(M)CAPARD'!AW26) -> n.a. | BO19: =IF('[1]MONE(M)CAPARD'!AX26="","",'[1]MONE(M)CAPARD'!AX26) -> n.d. | BP19: =IF('[1]MONE(M)CAPARD'!AY26="","",'[1]MONE(M)CAPARD'!AY26) -> n.a. | BQ19: =IF('[1]FISCAL(M)'!$K26="","",'[1]FISCAL(M)'!$K26) -> n.d. | BR19: =IF('[1]FISCAL(M)'!$L26="","",'[1]FISCAL(M)'!$L26) -> n.d. | BS19: =IF('[1]FISCAL(M)'!$AY26="","",'[1]FISCAL(M)'!$AY26) -> n.d. | BT19: =IF('[1]FISCAL(M)'!$BI26="","",'[1]FISCAL(M)'!$BI26) -> n.d. | BU19: =IF('[1]FISCAL(M)'!$BS26="","",'[1]FISCAL(M)'!$BS26) -> n.d. | BV19: =IF('[1]FISCAL(M)'!$AZ26="","",'[1]FISCAL(M)'!$AZ26) -> n.d. | BW19: =IF('[1]FISCAL(M)'!$BJ26="","",'[1]FISCAL(M)'!$BJ26) -> n.d. | BX19: =IF('[1]FISCAL(M)'!$BT26="","",'[1]FISCAL(M)'!$BT26) -> n.d. | BY19: =IF('[2]MONE(M)'!$AO26="","",'[2]MONE(M)'!$AO26) -> n.d. | BZ19: =IF('[3]MONE(M)'!$AO26="","",'[3]MONE(M)'!$AO26) -> n.d. | CA19: =IF('[4]MONE(M)'!$AO26="","",'[4]MONE(M)'!$AO26) -> n.d. | CB19: =IF('[5]MONE(M)'!$AO26="","",'[5]MONE(M)'!$AO26) -> n.d. | CC19: =IF('[6]MONE(M)'!$AO26="","",'[6]MONE(M)'!$AO26) -> n.d. | CD19: =IF('[7]MONE(M)'!$AO26="","",'[7]MONE(M)'!$AO26) -> n.d. | CE19: =IF('[8]MONE(M)'!$AO26="","",'[8]MONE(M)'!$AO26) -> n.d. | CF19: n.d. | CG19: n.d. | CH19: n.d. | CI19: n.d. | CJ19: n.d. | CK19: n.d. | CL19: n.d. | CM19: =IF('[1]FISCAL(M)'!$K26="","",'[1]FISCAL(M)'!$K26) -> n.d. | CN19: n.d. | CO19: n.d. | CP19: =IF('[1]FISCAL(M)'!$L26="","",'[1]FISCAL(M)'!$L26) -> n.d. | CQ19: n.d. | CR19: n.d. | CS19: n.d. | CT19: n.d. | CU19: n.d. | CV19: n.d. | CW19: n.d. | CX19: n.d. | CY19: n.d. | CZ19: n.d. | DA19: n.d. | DB19: n.d. | DC19: n.d. | DD19: n.d. | DE19: n.d. | DF19: n.d. | DG19: n.d. | DH19: n.d.
A20: 1991 | B20: junio | C20: 1991-junio | D20: =IF('[1]REAL IPC(M)'!$AL27="","",+'[1]REAL IPC(M)'!$AL27) -> n.d. | E20: =IF('[1]REAL IPC(M)'!$BE27="","",+'[1]REAL IPC(M)'!$BE27) -> n.d. | F20: =IF('[1]REAL IPC(M)'!$AM27="","",+'[1]REAL IPC(M)'!$AM27) -> n.d. | G20: =IF('[1]REAL IPC(M)'!$BI27="","",+'[1]REAL IPC(M)'!$BI27) -> n.d. | H20: =IF('[1]REAL IMAE(M)'!BJ27="","",'[1]REAL IMAE(M)'!BJ27) -> n.d. | I20: =IF('[1]REAL IMAE(M)'!BK27="","",'[1]REAL IMAE(M)'!BK27) -> n.d. | J20: =IF('[1]REAL IMAE(M)'!BN27="","",'[1]REAL IMAE(M)'!BN27) -> n.d. | K20: =IF('[1]REAL IMAE(M)'!BO27="","",'[1]REAL IMAE(M)'!BO27) -> n.d. | L20: =IF('[1]EXT RIN(M)'!$K27="","",'[1]EXT RIN(M)'!$K27) -> n.d. | N20: =IF('[1]EXT RIN(M)'!$L27="","",'[1]EXT RIN(M)'!$L27) -> n.d. | P20: =IF('[1]MONE(M)CARD'!EG27="","",'[1]MONE(M)CARD'!EG27) -> n.d. | Q20: =IF('[1]MONE(M)CARD'!EK27="","",'[1]MONE(M)CARD'!EK27) -> n.d. | R20: =IF('[1]MONE(M)CARD'!EP27="","",'[1]MONE(M)CARD'!EP27) -> n.d. | S20: =IF('[1]MONE(M)CARD'!ES27="","",'[1]MONE(M)CARD'!ES27) -> n.d. | T20: =IF('[1]MONE(M)CARD'!EV27="","",'[1]MONE(M)CARD'!EV27) -> n.d. | U20: =IF('[1]MONE(M)CARD'!EZ27="","",'[1]MONE(M)CARD'!EZ27) -> n.d. | V20: =IF('[1]MONE(M)CAPARD'!FC27="","",'[1]MONE(M)CAPARD'!FC27) -> n.d. | W20: =IF('[1]MONE(M)CAPARD'!FG27="","",'[1]MONE(M)CAPARD'!FG27) -> n.d. | X20: =IF('[1]MONE(M)CAPARD'!FL27="","",'[1]MONE(M)CAPARD'!FL27) -> n.d. | Y20: =IF('[1]MONE(M)CAPARD'!FO27="","",'[1]MONE(M)CAPARD'!FO27) -> n.d. | Z20: =IF('[1]MONE(M)CAPARD'!FR27="","",'[1]MONE(M)CAPARD'!FR27) -> n.d. | AA20: =IF('[1]MONE(M)CAPARD'!FV27="","",'[1]MONE(M)CAPARD'!FV27) -> n.d. | AB20: =IF('[1]MONE(M)CARD'!FV27="","",'[1]MONE(M)CARD'!FV27) ->  | AC20: =IF('[1]MONE(M)CARD'!GD27="","",'[1]MONE(M)CARD'!GD27) -> n.d. | AD20: =IF('[1]MONE(M)CARD'!GE27="","",'[1]MONE(M)CARD'!GE27) -> n.d. | AE20: n.d. | AF20: n.d. | AG20: n.d. | AH20: n.d. | AI20: n.d. | AJ20: n.d. | AK20: n.d. | AL20: n.d. | AN20: n.d. | AO20: n.d. | AP20: n.d. | AQ20: n.d. | AR20: n.d. | AS20: =IF('[1]MONE(M)CAPARD'!GS27="","",'[1]MONE(M)CAPARD'!GS27) -> n.d. | AT20: =IF('[1]MONE(M)CARD'!HA27="","",'[1]MONE(M)CAPARD'!HA27) -> n.d. | AU20: =IF('[1]MONE(M)CAPARD'!HB27="","",'[1]MONE(M)CAPARD'!HB27) -> n.d. | AV20: n.d. | AW20: n.d. | AX20: n.d. | AY20: n.d. | AZ20: n.d. | BA20: n.d. | BB20: n.d. | BC20: n.d. | BD20: n.d. | BE20: n.d. | BF20: n.d. | BG20: n.d. | BH20: n.d. | BI20: n.d. | BJ20: =IF('[1]MONE(M)CAPARD'!AS27="","",'[1]MONE(M)CAPARD'!AS27) -> n.d. | BK20: =IF('[1]MONE(M)CAPARD'!AT27="","",'[1]MONE(M)CAPARD'!AT27) -> n.a. | BL20: =IF('[1]MONE(M)CAPARD'!AU27="","",'[1]MONE(M)CAPARD'!AU27) -> n.d. | BM20: =IF('[1]MONE(M)CAPARD'!AV27="","",'[1]MONE(M)CAPARD'!AV27) -> n.d. | BN20: =IF('[1]MONE(M)CAPARD'!AW27="","",'[1]MONE(M)CAPARD'!AW27) -> n.a. | BO20: =IF('[1]MONE(M)CAPARD'!AX27="","",'[1]MONE(M)CAPARD'!AX27) -> n.d. | BP20: =IF('[1]MONE(M)CAPARD'!AY27="","",'[1]MONE(M)CAPARD'!AY27) -> n.a. | BQ20: =IF('[1]FISCAL(M)'!$K27="","",'[1]FISCAL(M)'!$K27) -> n.d. | BR20: =IF('[1]FISCAL(M)'!$L27="","",'[1]FISCAL(M)'!$L27) -> n.d. | BS20: =IF('[1]FISCAL(M)'!$AY27="","",'[1]FISCAL(M)'!$AY27) -> n.d. | BT20: =IF('[1]FISCAL(M)'!$BI27="","",'[1]FISCAL(M)'!$BI27) -> n.d. | BU20: =IF('[1]FISCAL(M)'!$BS27="","",'[1]FISCAL(M)'!$BS27) -> n.d. | BV20: =IF('[1]FISCAL(M)'!$AZ27="","",'[1]FISCAL(M)'!$AZ27) -> n.d. | BW20: =IF('[1]FISCAL(M)'!$BJ27="","",'[1]FISCAL(M)'!$BJ27) -> n.d. | BX20: =IF('[1]FISCAL(M)'!$BT27="","",'[1]FISCAL(M)'!$BT27) -> n.d. | BY20: =IF('[2]MONE(M)'!$AO27="","",'[2]MONE(M)'!$AO27) -> n.d. | BZ20: =IF('[3]MONE(M)'!$AO27="","",'[3]MONE(M)'!$AO27) -> n.d. | CA20: =IF('[4]MONE(M)'!$AO27="","",'[4]MONE(M)'!$AO27) -> n.d. | CB20: =IF('[5]MONE(M)'!$AO27="","",'[5]MONE(M)'!$AO27) -> n.d. | CC20: =IF('[6]MONE(M)'!$AO27="","",'[6]MONE(M)'!$AO27) -> n.d. | CD20: =IF('[7]MONE(M)'!$AO27="","",'[7]MONE(M)'!$AO27) -> n.d. | CE20: =IF('[8]MONE(M)'!$AO27="","",'[8]MONE(M)'!$AO27) -> n.d. | CF20: n.d. | CG20: n.d. | CH20: n.d. | CI20: n.d. | CJ20: n.d. | CK20: n.d. | CL20: n.d. | CM20: =IF('[1]FISCAL(M)'!$K27="","",'[1]FISCAL(M)'!$K27) -> n.d. | CN20: n.d. | CO20: n.d. | CP20: =IF('[1]FISCAL(M)'!$L27="","",'[1]FISCAL(M)'!$L27) -> n.d. | CQ20: n.d. | CR20: n.d. | CS20: n.d. | CT20: n.d. | CU20: n.d. | CV20: n.d. | CW20: n.d. | CX20: n.d. | CY20: n.d. | CZ20: n.d. | DA20: n.d. | DB20: n.d. | DC20: n.d. | DD20: n.d. | DE20: n.d. | DF20: n.d. | DG20: n.d. | DH20: n.d.
A21: 1991 | B21: julio | C21: 1991-julio | D21: =IF('[1]REAL IPC(M)'!$AL28="","",+'[1]REAL IPC(M)'!$AL28) -> n.d. | E21: =IF('[1]REAL IPC(M)'!$BE28="","",+'[1]REAL IPC(M)'!$BE28) -> n.d. | F21: =IF('[1]REAL IPC(M)'!$AM28="","",+'[1]REAL IPC(M)'!$AM28) -> n.d. | G21: =IF('[1]REAL IPC(M)'!$BI28="","",+'[1]REAL IPC(M)'!$BI28) -> n.d. | H21: =IF('[1]REAL IMAE(M)'!BJ28="","",'[1]REAL IMAE(M)'!BJ28) -> n.d. | I21: =IF('[1]REAL IMAE(M)'!BK28="","",'[1]REAL IMAE(M)'!BK28) -> n.d. | J21: =IF('[1]REAL IMAE(M)'!BN28="","",'[1]REAL IMAE(M)'!BN28) -> n.d. | K21: =IF('[1]REAL IMAE(M)'!BO28="","",'[1]REAL IMAE(M)'!BO28) -> n.d. | L21: =IF('[1]EXT RIN(M)'!$K28="","",'[1]EXT RIN(M)'!$K28) -> n.d. | N21: =IF('[1]EXT RIN(M)'!$L28="","",'[1]EXT RIN(M)'!$L28) -> n.d. | P21: =IF('[1]MONE(M)CARD'!EG28="","",'[1]MONE(M)CARD'!EG28) -> n.d. | Q21: =IF('[1]MONE(M)CARD'!EK28="","",'[1]MONE(M)CARD'!EK28) -> n.d. | R21: =IF('[1]MONE(M)CARD'!EP28="","",'[1]MONE(M)CARD'!EP28) -> n.d. | S21: =IF('[1]MONE(M)CARD'!ES28="","",'[1]MONE(M)CARD'!ES28) -> n.d. | T21: =IF('[1]MONE(M)CARD'!EV28="","",'[1]MONE(M)CARD'!EV28) -> n.d. | U21: =IF('[1]MONE(M)CARD'!EZ28="","",'[1]MONE(M)CARD'!EZ28) -> n.d. | V21: =IF('[1]MONE(M)CAPARD'!FC28="","",'[1]MONE(M)CAPARD'!FC28) -> n.d. | W21: =IF('[1]MONE(M)CAPARD'!FG28="","",'[1]MONE(M)CAPARD'!FG28) -> n.d. | X21: =IF('[1]MONE(M)CAPARD'!FL28="","",'[1]MONE(M)CAPARD'!FL28) -> n.d. | Y21: =IF('[1]MONE(M)CAPARD'!FO28="","",'[1]MONE(M)CAPARD'!FO28) -> n.d. | Z21: =IF('[1]MONE(M)CAPARD'!FR28="","",'[1]MONE(M)CAPARD'!FR28) -> n.d. | AA21: =IF('[1]MONE(M)CAPARD'!FV28="","",'[1]MONE(M)CAPARD'!FV28) -> n.d. | AB21: =IF('[1]MONE(M)CARD'!FV28="","",'[1]MONE(M)CARD'!FV28) ->  | AC21: =IF('[1]MONE(M)CARD'!GD28="","",'[1]MONE(M)CARD'!GD28) -> n.d. | AD21: =IF('[1]MONE(M)CARD'!GE28="","",'[1]MONE(M)CARD'!GE28) -> n.d. | AE21: n.d. | AF21: n.d. | AG21: n.d. | AH21: n.d. | AI21: n.d. | AJ21: n.d. | AK21: n.d. | AL21: n.d. | AN21: n.d. | AO21: n.d. | AP21: n.d. | AQ21: n.d. | AR21: n.d. | AS21: =IF('[1]MONE(M)CAPARD'!GS28="","",'[1]MONE(M)CAPARD'!GS28) -> n.d. | AT21: =IF('[1]MONE(M)CARD'!HA28="","",'[1]MONE(M)CAPARD'!HA28) -> n.d. | AU21: =IF('[1]MONE(M)CAPARD'!HB28="","",'[1]MONE(M)CAPARD'!HB28) -> n.d. | AV21: n.d. | AW21: n.d. | AX21: n.d. | AY21: n.d. | AZ21: n.d. | BA21: n.d. | BB21: n.d. | BC21: n.d. | BD21: n.d. | BE21: n.d. | BF21: n.d. | BG21: n.d. | BH21: n.d. | BI21: n.d. | BJ21: =IF('[1]MONE(M)CAPARD'!AS28="","",'[1]MONE(M)CAPARD'!AS28) -> n.d. | BK21: =IF('[1]MONE(M)CAPARD'!AT28="","",'[1]MONE(M)CAPARD'!AT28) -> n.a. | BL21: =IF('[1]MONE(M)CAPARD'!AU28="","",'[1]MONE(M)CAPARD'!AU28) -> n.d. | BM21: =IF('[1]MONE(M)CAPARD'!AV28="","",'[1]MONE(M)CAPARD'!AV28) -> n.d. | BN21: =IF('[1]MONE(M)CAPARD'!AW28="","",'[1]MONE(M)CAPARD'!AW28) -> n.a. | BO21: =IF('[1]MONE(M)CAPARD'!AX28="","",'[1]MONE(M)CAPARD'!AX28) -> n.d. | BP21: =IF('[1]MONE(M)CAPARD'!AY28="","",'[1]MONE(M)CAPARD'!AY28) -> n.a. | BQ21: =IF('[1]FISCAL(M)'!$K28="","",'[1]FISCAL(M)'!$K28) -> n.d. | BR21: =IF('[1]FISCAL(M)'!$L28="","",'[1]FISCAL(M)'!$L28) -> n.d. | BS21: =IF('[1]FISCAL(M)'!$AY28="","",'[1]FISCAL(M)'!$AY28) -> n.d. | BT21: =IF('[1]FISCAL(M)'!$BI28="","",'[1]FISCAL(M)'!$BI28) -> n.d. | BU21: =IF('[1]FISCAL(M)'!$BS28="","",'[1]FISCAL(M)'!$BS28) -> n.d. | BV21: =IF('[1]FISCAL(M)'!$AZ28="","",'[1]FISCAL(M)'!$AZ28) -> n.d. | BW21: =IF('[1]FISCAL(M)'!$BJ28="","",'[1]FISCAL(M)'!$BJ28) -> n.d. | BX21: =IF('[1]FISCAL(M)'!$BT28="","",'[1]FISCAL(M)'!$BT28) -> n.d. | BY21: =IF('[2]MONE(M)'!$AO28="","",'[2]MONE(M)'!$AO28) -> n.d. | BZ21: =IF('[3]MONE(M)'!$AO28="","",'[3]MONE(M)'!$AO28) -> n.d. | CA21: =IF('[4]MONE(M)'!$AO28="","",'[4]MONE(M)'!$AO28) -> n.d. | CB21: =IF('[5]MONE(M)'!$AO28="","",'[5]MONE(M)'!$AO28) -> n.d. | CC21: =IF('[6]MONE(M)'!$AO28="","",'[6]MONE(M)'!$AO28) -> n.d. | CD21: =IF('[7]MONE(M)'!$AO28="","",'[7]MONE(M)'!$AO28) -> n.d. | CE21: =IF('[8]MONE(M)'!$AO28="","",'[8]MONE(M)'!$AO28) -> n.d. | CF21: n.d. | CG21: n.d. | CH21: n.d. | CI21: n.d. | CJ21: n.d. | CK21: n.d. | CL21: n.d. | CM21: =IF('[1]FISCAL(M)'!$K28="","",'[1]FISCAL(M)'!$K28) -> n.d. | CN21: n.d. | CO21: n.d. | CP21: =IF('[1]FISCAL(M)'!$L28="","",'[1]FISCAL(M)'!$L28) -> n.d. | CQ21: n.d. | CR21: n.d. | CS21: n.d. | CT21: n.d. | CU21: n.d. | CV21: n.d. | CW21: n.d. | CX21: n.d. | CY21: n.d. | CZ21: n.d. | DA21: n.d. | DB21: n.d. | DC21: n.d. | DD21: n.d. | DE21: n.d. | DF21: n.d. | DG21: n.d. | DH21: n.d.
A22: 1991 | B22: agosto | C22: 1991-agosto | D22: =IF('[1]REAL IPC(M)'!$AL29="","",+'[1]REAL IPC(M)'!$AL29) -> n.d. | E22: =IF('[1]REAL IPC(M)'!$BE29="","",+'[1]REAL IPC(M)'!$BE29) -> n.d. | F22: =IF('[1]REAL IPC(M)'!$AM29="","",+'[1]REAL IPC(M)'!$AM29) -> n.d. | G22: =IF('[1]REAL IPC(M)'!$BI29="","",+'[1]REAL IPC(M)'!$BI29) -> n.d. | H22: =IF('[1]REAL IMAE(M)'!BJ29="","",'[1]REAL IMAE(M)'!BJ29) -> n.d. | I22: =IF('[1]REAL IMAE(M)'!BK29="","",'[1]REAL IMAE(M)'!BK29) -> n.d. | J22: =IF('[1]REAL IMAE(M)'!BN29="","",'[1]REAL IMAE(M)'!BN29) -> n.d. | K22: =IF('[1]REAL IMAE(M)'!BO29="","",'[1]REAL IMAE(M)'!BO29) -> n.d. | L22: =IF('[1]EXT RIN(M)'!$K29="","",'[1]EXT RIN(M)'!$K29) -> n.d. | N22: =IF('[1]EXT RIN(M)'!$L29="","",'[1]EXT RIN(M)'!$L29) -> n.d. | P22: =IF('[1]MONE(M)CARD'!EG29="","",'[1]MONE(M)CARD'!EG29) -> n.d. | Q22: =IF('[1]MONE(M)CARD'!EK29="","",'[1]MONE(M)CARD'!EK29) -> n.d. | R22: =IF('[1]MONE(M)CARD'!EP29="","",'[1]MONE(M)CARD'!EP29) -> n.d. | S22: =IF('[1]MONE(M)CARD'!ES29="","",'[1]MONE(M)CARD'!ES29) -> n.d. | T22: =IF('[1]MONE(M)CARD'!EV29="","",'[1]MONE(M)CARD'!EV29) -> n.d. | U22: =IF('[1]MONE(M)CARD'!EZ29="","",'[1]MONE(M)CARD'!EZ29) -> n.d. | V22: =IF('[1]MONE(M)CAPARD'!FC29="","",'[1]MONE(M)CAPARD'!FC29) -> n.d. | W22: =IF('[1]MONE(M)CAPARD'!FG29="","",'[1]MONE(M)CAPARD'!FG29) -> n.d. | X22: =IF('[1]MONE(M)CAPARD'!FL29="","",'[1]MONE(M)CAPARD'!FL29) -> n.d. | Y22: =IF('[1]MONE(M)CAPARD'!FO29="","",'[1]MONE(M)CAPARD'!FO29) -> n.d. | Z22: =IF('[1]MONE(M)CAPARD'!FR29="","",'[1]MONE(M)CAPARD'!FR29) -> n.d. | AA22: =IF('[1]MONE(M)CAPARD'!FV29="","",'[1]MONE(M)CAPARD'!FV29) -> n.d. | AB22: =IF('[1]MONE(M)CARD'!FV29="","",'[1]MONE(M)CARD'!FV29) ->  | AC22: =IF('[1]MONE(M)CARD'!GD29="","",'[1]MONE(M)CARD'!GD29) -> n.d. | AD22: =IF('[1]MONE(M)CARD'!GE29="","",'[1]MONE(M)CARD'!GE29) -> n.d. | AE22: n.d. | AF22: n.d. | AG22: n.d. | AH22: n.d. | AI22: n.d. | AJ22: n.d. | AK22: n.d. | AL22: n.d. | AN22: n.d. | AO22: n.d. | AP22: n.d. | AQ22: n.d. | AR22: n.d. | AS22: =IF('[1]MONE(M)CAPARD'!GS29="","",'[1]MONE(M)CAPARD'!GS29) -> n.d. | AT22: =IF('[1]MONE(M)CARD'!HA29="","",'[1]MONE(M)CAPARD'!HA29) -> n.d. | AU22: =IF('[1]MONE(M)CAPARD'!HB29="","",'[1]MONE(M)CAPARD'!HB29) -> n.d. | AV22: n.d. | AW22: n.d. | AX22: n.d. | AY22: n.d. | AZ22: n.d. | BA22: n.d. | BB22: n.d. | BC22: n.d. | BD22: n.d. | BE22: n.d. | BF22: n.d. | BG22: n.d. | BH22: n.d. | BI22: n.d. | BJ22: =IF('[1]MONE(M)CAPARD'!AS29="","",'[1]MONE(M)CAPARD'!AS29) -> n.d. | BK22: =IF('[1]MONE(M)CAPARD'!AT29="","",'[1]MONE(M)CAPARD'!AT29) -> n.a. | BL22: =IF('[1]MONE(M)CAPARD'!AU29="","",'[1]MONE(M)CAPARD'!AU29) -> n.d. | BM22: =IF('[1]MONE(M)CAPARD'!AV29="","",'[1]MONE(M)CAPARD'!AV29) -> n.d. | BN22: =IF('[1]MONE(M)CAPARD'!AW29="","",'[1]MONE(M)CAPARD'!AW29) -> n.a. | BO22: =IF('[1]MONE(M)CAPARD'!AX29="","",'[1]MONE(M)CAPARD'!AX29) -> n.d. | BP22: =IF('[1]MONE(M)CAPARD'!AY29="","",'[1]MONE(M)CAPARD'!AY29) -> n.a. | BQ22: =IF('[1]FISCAL(M)'!$K29="","",'[1]FISCAL(M)'!$K29) -> n.d. | BR22: =IF('[1]FISCAL(M)'!$L29="","",'[1]FISCAL(M)'!$L29) -> n.d. | BS22: =IF('[1]FISCAL(M)'!$AY29="","",'[1]FISCAL(M)'!$AY29) -> n.d. | BT22: =IF('[1]FISCAL(M)'!$BI29="","",'[1]FISCAL(M)'!$BI29) -> n.d. | BU22: =IF('[1]FISCAL(M)'!$BS29="","",'[1]FISCAL(M)'!$BS29) -> n.d. | BV22: =IF('[1]FISCAL(M)'!$AZ29="","",'[1]FISCAL(M)'!$AZ29) -> n.d. | BW22: =IF('[1]FISCAL(M)'!$BJ29="","",'[1]FISCAL(M)'!$BJ29) -> n.d. | BX22: =IF('[1]FISCAL(M)'!$BT29="","",'[1]FISCAL(M)'!$BT29) -> n.d. | BY22: =IF('[2]MONE(M)'!$AO29="","",'[2]MONE(M)'!$AO29) -> n.d. | BZ22: =IF('[3]MONE(M)'!$AO29="","",'[3]MONE(M)'!$AO29) -> n.d. | CA22: =IF('[4]MONE(M)'!$AO29="","",'[4]MONE(M)'!$AO29) -> n.d. | CB22: =IF('[5]MONE(M)'!$AO29="","",'[5]MONE(M)'!$AO29) -> n.d. | CC22: =IF('[6]MONE(M)'!$AO29="","",'[6]MONE(M)'!$AO29) -> n.d. | CD22: =IF('[7]MONE(M)'!$AO29="","",'[7]MONE(M)'!$AO29) -> n.d. | CE22: =IF('[8]MONE(M)'!$AO29="","",'[8]MONE(M)'!$AO29) -> n.d. | CF22: n.d. | CG22: n.d. | CH22: n.d. | CI22: n.d. | CJ22: n.d. | CK22: n.d. | CL22: n.d. | CM22: =IF('[1]FISCAL(M)'!$K29="","",'[1]FISCAL(M)'!$K29) -> n.d. | CN22: n.d. | CO22: n.d. | CP22: =IF('[1]FISCAL(M)'!$L29="","",'[1]FISCAL(M)'!$L29) -> n.d. | CQ22: n.d. | CR22: n.d. | CS22: n.d. | CT22: n.d. | CU22: n.d. | CV22: n.d. | CW22: n.d. | CX22: n.d. | CY22: n.d. | CZ22: n.d. | DA22: n.d. | DB22: n.d. | DC22: n.d. | DD22: n.d. | DE22: n.d. | DF22: n.d. | DG22: n.d. | DH22: n.d.
A23: 1991 | B23: septiembre | C23: 1991-septiembre | D23: =IF('[1]REAL IPC(M)'!$AL30="","",+'[1]REAL IPC(M)'!$AL30) -> n.d. | E23: =IF('[1]REAL IPC(M)'!$BE30="","",+'[1]REAL IPC(M)'!$BE30) -> n.d. | F23: =IF('[1]REAL IPC(M)'!$AM30="","",+'[1]REAL IPC(M)'!$AM30) -> n.d. | G23: =IF('[1]REAL IPC(M)'!$BI30="","",+'[1]REAL IPC(M)'!$BI30) -> n.d. | H23: =IF('[1]REAL IMAE(M)'!BJ30="","",'[1]REAL IMAE(M)'!BJ30) -> n.d. | I23: =IF('[1]REAL IMAE(M)'!BK30="","",'[1]REAL IMAE(M)'!BK30) -> n.d. | J23: =IF('[1]REAL IMAE(M)'!BN30="","",'[1]REAL IMAE(M)'!BN30) -> n.d. | K23: =IF('[1]REAL IMAE(M)'!BO30="","",'[1]REAL IMAE(M)'!BO30) -> n.d. | L23: =IF('[1]EXT RIN(M)'!$K30="","",'[1]EXT RIN(M)'!$K30) -> n.d. | N23: =IF('[1]EXT RIN(M)'!$L30="","",'[1]EXT RIN(M)'!$L30) -> n.d. | P23: =IF('[1]MONE(M)CARD'!EG30="","",'[1]MONE(M)CARD'!EG30) -> n.d. | Q23: =IF('[1]MONE(M)CARD'!EK30="","",'[1]MONE(M)CARD'!EK30) -> n.d. | R23: =IF('[1]MONE(M)CARD'!EP30="","",'[1]MONE(M)CARD'!EP30) -> n.d. | S23: =IF('[1]MONE(M)CARD'!ES30="","",'[1]MONE(M)CARD'!ES30) -> n.d. | T23: =IF('[1]MONE(M)CARD'!EV30="","",'[1]MONE(M)CARD'!EV30) -> n.d. | U23: =IF('[1]MONE(M)CARD'!EZ30="","",'[1]MONE(M)CARD'!EZ30) -> n.d. | V23: =IF('[1]MONE(M)CAPARD'!FC30="","",'[1]MONE(M)CAPARD'!FC30) -> n.d. | W23: =IF('[1]MONE(M)CAPARD'!FG30="","",'[1]MONE(M)CAPARD'!FG30) -> n.d. | X23: =IF('[1]MONE(M)CAPARD'!FL30="","",'[1]MONE(M)CAPARD'!FL30) -> n.d. | Y23: =IF('[1]MONE(M)CAPARD'!FO30="","",'[1]MONE(M)CAPARD'!FO30) -> n.d. | Z23: =IF('[1]MONE(M)CAPARD'!FR30="","",'[1]MONE(M)CAPARD'!FR30) -> n.d. | AA23: =IF('[1]MONE(M)CAPARD'!FV30="","",'[1]MONE(M)CAPARD'!FV30) -> n.d. | AB23: =IF('[1]MONE(M)CARD'!FV30="","",'[1]MONE(M)CARD'!FV30) ->  | AC23: =IF('[1]MONE(M)CARD'!GD30="","",'[1]MONE(M)CARD'!GD30) -> n.d. | AD23: =IF('[1]MONE(M)CARD'!GE30="","",'[1]MONE(M)CARD'!GE30) -> n.d. | AE23: n.d. | AF23: n.d. | AG23: n.d. | AH23: n.d. | AI23: n.d. | AJ23: n.d. | AK23: n.d. | AL23: n.d. | AN23: n.d. | AO23: n.d. | AP23: n.d. | AQ23: n.d. | AR23: n.d. | AS23: =IF('[1]MONE(M)CAPARD'!GS30="","",'[1]MONE(M)CAPARD'!GS30) -> n.d. | AT23: =IF('[1]MONE(M)CARD'!HA30="","",'[1]MONE(M)CAPARD'!HA30) -> n.d. | AU23: =IF('[1]MONE(M)CAPARD'!HB30="","",'[1]MONE(M)CAPARD'!HB30) -> n.d. | AV23: n.d. | AW23: n.d. | AX23: n.d. | AY23: n.d. | AZ23: n.d. | BA23: n.d. | BB23: n.d. | BC23: n.d. | BD23: n.d. | BE23: n.d. | BF23: n.d. | BG23: n.d. | BH23: n.d. | BI23: n.d. | BJ23: =IF('[1]MONE(M)CAPARD'!AS30="","",'[1]MONE(M)CAPARD'!AS30) -> n.d. | BK23: =IF('[1]MONE(M)CAPARD'!AT30="","",'[1]MONE(M)CAPARD'!AT30) -> n.a. | BL23: =IF('[1]MONE(M)CAPARD'!AU30="","",'[1]MONE(M)CAPARD'!AU30) -> n.d. | BM23: =IF('[1]MONE(M)CAPARD'!AV30="","",'[1]MONE(M)CAPARD'!AV30) -> n.d. | BN23: =IF('[1]MONE(M)CAPARD'!AW30="","",'[1]MONE(M)CAPARD'!AW30) -> n.a. | BO23: =IF('[1]MONE(M)CAPARD'!AX30="","",'[1]MONE(M)CAPARD'!AX30) -> n.d. | BP23: =IF('[1]MONE(M)CAPARD'!AY30="","",'[1]MONE(M)CAPARD'!AY30) -> n.a. | BQ23: =IF('[1]FISCAL(M)'!$K30="","",'[1]FISCAL(M)'!$K30) -> n.d. | BR23: =IF('[1]FISCAL(M)'!$L30="","",'[1]FISCAL(M)'!$L30) -> n.d. | BS23: =IF('[1]FISCAL(M)'!$AY30="","",'[1]FISCAL(M)'!$AY30) -> n.d. | BT23: =IF('[1]FISCAL(M)'!$BI30="","",'[1]FISCAL(M)'!$BI30) -> n.d. | BU23: =IF('[1]FISCAL(M)'!$BS30="","",'[1]FISCAL(M)'!$BS30) -> n.d. | BV23: =IF('[1]FISCAL(M)'!$AZ30="","",'[1]FISCAL(M)'!$AZ30) -> n.d. | BW23: =IF('[1]FISCAL(M)'!$BJ30="","",'[1]FISCAL(M)'!$BJ30) -> n.d. | BX23: =IF('[1]FISCAL(M)'!$BT30="","",'[1]FISCAL(M)'!$BT30) -> n.d. | BY23: =IF('[2]MONE(M)'!$AO30="","",'[2]MONE(M)'!$AO30) -> n.d. | BZ23: =IF('[3]MONE(M)'!$AO30="","",'[3]MONE(M)'!$AO30) -> n.d. | CA23: =IF('[4]MONE(M)'!$AO30="","",'[4]MONE(M)'!$AO30) -> n.d. | CB23: =IF('[5]MONE(M)'!$AO30="","",'[5]MONE(M)'!$AO30) -> n.d. | CC23: =IF('[6]MONE(M)'!$AO30="","",'[6]MONE(M)'!$AO30) -> n.d. | CD23: =IF('[7]MONE(M)'!$AO30="","",'[7]MONE(M)'!$AO30) -> n.d. | CE23: =IF('[8]MONE(M)'!$AO30="","",'[8]MONE(M)'!$AO30) -> n.d. | CF23: n.d. | CG23: n.d. | CH23: n.d. | CI23: n.d. | CJ23: n.d. | CK23: n.d. | CL23: n.d. | CM23: =IF('[1]FISCAL(M)'!$K30="","",'[1]FISCAL(M)'!$K30) -> n.d. | CN23: n.d. | CO23: n.d. | CP23: =IF('[1]FISCAL(M)'!$L30="","",'[1]FISCAL(M)'!$L30) -> n.d. | CQ23: n.d. | CR23: n.d. | CS23: n.d. | CT23: n.d. | CU23: n.d. | CV23: n.d. | CW23: n.d. | CX23: n.d. | CY23: n.d. | CZ23: n.d. | DA23: n.d. | DB23: n.d. | DC23: n.d. | DD23: n.d. | DE23: n.d. | DF23: n.d. | DG23: n.d. | DH23: n.d.
A24: 1991 | B24: octubre | C24: 1991-octubre | D24: =IF('[1]REAL IPC(M)'!$AL31="","",+'[1]REAL IPC(M)'!$AL31) -> n.d. | E24: =IF('[1]REAL IPC(M)'!$BE31="","",+'[1]REAL IPC(M)'!$BE31) -> n.d. | F24: =IF('[1]REAL IPC(M)'!$AM31="","",+'[1]REAL IPC(M)'!$AM31) -> n.d. | G24: =IF('[1]REAL IPC(M)'!$BI31="","",+'[1]REAL IPC(M)'!$BI31) -> n.d. | H24: =IF('[1]REAL IMAE(M)'!BJ31="","",'[1]REAL IMAE(M)'!BJ31) -> n.d. | I24: =IF('[1]REAL IMAE(M)'!BK31="","",'[1]REAL IMAE(M)'!BK31) -> n.d. | J24: =IF('[1]REAL IMAE(M)'!BN31="","",'[1]REAL IMAE(M)'!BN31) -> n.d. | K24: =IF('[1]REAL IMAE(M)'!BO31="","",'[1]REAL IMAE(M)'!BO31) -> n.d. | L24: =IF('[1]EXT RIN(M)'!$K31="","",'[1]EXT RIN(M)'!$K31) -> n.d. | N24: =IF('[1]EXT RIN(M)'!$L31="","",'[1]EXT RIN(M)'!$L31) -> n.d. | P24: =IF('[1]MONE(M)CARD'!EG31="","",'[1]MONE(M)CARD'!EG31) -> n.d. | Q24: =IF('[1]MONE(M)CARD'!EK31="","",'[1]MONE(M)CARD'!EK31) -> n.d. | R24: =IF('[1]MONE(M)CARD'!EP31="","",'[1]MONE(M)CARD'!EP31) -> n.d. | S24: =IF('[1]MONE(M)CARD'!ES31="","",'[1]MONE(M)CARD'!ES31) -> n.d. | T24: =IF('[1]MONE(M)CARD'!EV31="","",'[1]MONE(M)CARD'!EV31) -> n.d. | U24: =IF('[1]MONE(M)CARD'!EZ31="","",'[1]MONE(M)CARD'!EZ31) -> n.d. | V24: =IF('[1]MONE(M)CAPARD'!FC31="","",'[1]MONE(M)CAPARD'!FC31) -> n.d. | W24: =IF('[1]MONE(M)CAPARD'!FG31="","",'[1]MONE(M)CAPARD'!FG31) -> n.d. | X24: =IF('[1]MONE(M)CAPARD'!FL31="","",'[1]MONE(M)CAPARD'!FL31) -> n.d. | Y24: =IF('[1]MONE(M)CAPARD'!FO31="","",'[1]MONE(M)CAPARD'!FO31) -> n.d. | Z24: =IF('[1]MONE(M)CAPARD'!FR31="","",'[1]MONE(M)CAPARD'!FR31) -> n.d. | AA24: =IF('[1]MONE(M)CAPARD'!FV31="","",'[1]MONE(M)CAPARD'!FV31) -> n.d. | AB24: =IF('[1]MONE(M)CARD'!FV31="","",'[1]MONE(M)CARD'!FV31) ->  | AC24: =IF('[1]MONE(M)CARD'!GD31="","",'[1]MONE(M)CARD'!GD31) -> n.d. | AD24: =IF('[1]MONE(M)CARD'!GE31="","",'[1]MONE(M)CARD'!GE31) -> n.d. | AE24: n.d. | AF24: n.d. | AG24: n.d. | AH24: n.d. | AI24: n.d. | AJ24: n.d. | AK24: n.d. | AL24: n.d. | AN24: n.d. | AO24: n.d. | AP24: n.d. | AQ24: n.d. | AR24: n.d. | AS24: =IF('[1]MONE(M)CAPARD'!GS31="","",'[1]MONE(M)CAPARD'!GS31) -> n.d. | AT24: =IF('[1]MONE(M)CARD'!HA31="","",'[1]MONE(M)CAPARD'!HA31) -> n.d. | AU24: =IF('[1]MONE(M)CAPARD'!HB31="","",'[1]MONE(M)CAPARD'!HB31) -> n.d. | AV24: n.d. | AW24: n.d. | AX24: n.d. | AY24: n.d. | AZ24: n.d. | BA24: n.d. | BB24: n.d. | BC24: n.d. | BD24: n.d. | BE24: n.d. | BF24: n.d. | BG24: n.d. | BH24: n.d. | BI24: n.d. | BJ24: =IF('[1]MONE(M)CAPARD'!AS31="","",'[1]MONE(M)CAPARD'!AS31) -> n.d. | BK24: =IF('[1]MONE(M)CAPARD'!AT31="","",'[1]MONE(M)CAPARD'!AT31) -> n.a. | BL24: =IF('[1]MONE(M)CAPARD'!AU31="","",'[1]MONE(M)CAPARD'!AU31) -> n.d. | BM24: =IF('[1]MONE(M)CAPARD'!AV31="","",'[1]MONE(M)CAPARD'!AV31) -> n.d. | BN24: =IF('[1]MONE(M)CAPARD'!AW31="","",'[1]MONE(M)CAPARD'!AW31) -> n.a. | BO24: =IF('[1]MONE(M)CAPARD'!AX31="","",'[1]MONE(M)CAPARD'!AX31) -> n.d. | BP24: =IF('[1]MONE(M)CAPARD'!AY31="","",'[1]MONE(M)CAPARD'!AY31) -> n.a. | BQ24: =IF('[1]FISCAL(M)'!$K31="","",'[1]FISCAL(M)'!$K31) -> n.d. | BR24: =IF('[1]FISCAL(M)'!$L31="","",'[1]FISCAL(M)'!$L31) -> n.d. | BS24: =IF('[1]FISCAL(M)'!$AY31="","",'[1]FISCAL(M)'!$AY31) -> n.d. | BT24: =IF('[1]FISCAL(M)'!$BI31="","",'[1]FISCAL(M)'!$BI31) -> n.d. | BU24: =IF('[1]FISCAL(M)'!$BS31="","",'[1]FISCAL(M)'!$BS31) -> n.d. | BV24: =IF('[1]FISCAL(M)'!$AZ31="","",'[1]FISCAL(M)'!$AZ31) -> n.d. | BW24: =IF('[1]FISCAL(M)'!$BJ31="","",'[1]FISCAL(M)'!$BJ31) -> n.d. | BX24: =IF('[1]FISCAL(M)'!$BT31="","",'[1]FISCAL(M)'!$BT31) -> n.d. | BY24: =IF('[2]MONE(M)'!$AO31="","",'[2]MONE(M)'!$AO31) -> n.d. | BZ24: =IF('[3]MONE(M)'!$AO31="","",'[3]MONE(M)'!$AO31) -> n.d. | CA24: =IF('[4]MONE(M)'!$AO31="","",'[4]MONE(M)'!$AO31) -> n.d. | CB24: =IF('[5]MONE(M)'!$AO31="","",'[5]MONE(M)'!$AO31) -> n.d. | CC24: =IF('[6]MONE(M)'!$AO31="","",'[6]MONE(M)'!$AO31) -> n.d. | CD24: =IF('[7]MONE(M)'!$AO31="","",'[7]MONE(M)'!$AO31) -> n.d. | CE24: =IF('[8]MONE(M)'!$AO31="","",'[8]MONE(M)'!$AO31) -> n.d. | CF24: n.d. | CG24: n.d. | CH24: n.d. | CI24: n.d. | CJ24: n.d. | CK24: n.d. | CL24: n.d. | CM24: =IF('[1]FISCAL(M)'!$K31="","",'[1]FISCAL(M)'!$K31) -> n.d. | CN24: n.d. | CO24: n.d. | CP24: =IF('[1]FISCAL(M)'!$L31="","",'[1]FISCAL(M)'!$L31) -> n.d. | CQ24: n.d. | CR24: n.d. | CS24: n.d. | CT24: n.d. | CU24: n.d. | CV24: n.d. | CW24: n.d. | CX24: n.d. | CY24: n.d. | CZ24: n.d. | DA24: n.d. | DB24: n.d. | DC24: n.d. | DD24: n.d. | DE24: n.d. | DF24: n.d. | DG24: n.d. | DH24: n.d.
A25: 1991 | B25: noviembre | C25: 1991-noviembre | D25: =IF('[1]REAL IPC(M)'!$AL32="","",+'[1]REAL IPC(M)'!$AL32) -> n.d. | E25: =IF('[1]REAL IPC(M)'!$BE32="","",+'[1]REAL IPC(M)'!$BE32) -> n.d. | F25: =IF('[1]REAL IPC(M)'!$AM32="","",+'[1]REAL IPC(M)'!$AM32) -> n.d. | G25: =IF('[1]REAL IPC(M)'!$BI32="","",+'[1]REAL IPC(M)'!$BI32) -> n.d. | H25: =IF('[1]REAL IMAE(M)'!BJ32="","",'[1]REAL IMAE(M)'!BJ32) -> n.d. | I25: =IF('[1]REAL IMAE(M)'!BK32="","",'[1]REAL IMAE(M)'!BK32) -> n.d. | J25: =IF('[1]REAL IMAE(M)'!BN32="","",'[1]REAL IMAE(M)'!BN32) -> n.d. | K25: =IF('[1]REAL IMAE(M)'!BO32="","",'[1]REAL IMAE(M)'!BO32) -> n.d. | L25: =IF('[1]EXT RIN(M)'!$K32="","",'[1]EXT RIN(M)'!$K32) -> n.d. | N25: =IF('[1]EXT RIN(M)'!$L32="","",'[1]EXT RIN(M)'!$L32) -> n.d. | P25: =IF('[1]MONE(M)CARD'!EG32="","",'[1]MONE(M)CARD'!EG32) -> n.d. | Q25: =IF('[1]MONE(M)CARD'!EK32="","",'[1]MONE(M)CARD'!EK32) -> n.d. | R25: =IF('[1]MONE(M)CARD'!EP32="","",'[1]MONE(M)CARD'!EP32) -> n.d. | S25: =IF('[1]MONE(M)CARD'!ES32="","",'[1]MONE(M)CARD'!ES32) -> n.d. | T25: =IF('[1]MONE(M)CARD'!EV32="","",'[1]MONE(M)CARD'!EV32) -> n.d. | U25: =IF('[1]MONE(M)CARD'!EZ32="","",'[1]MONE(M)CARD'!EZ32) -> n.d. | V25: =IF('[1]MONE(M)CAPARD'!FC32="","",'[1]MONE(M)CAPARD'!FC32) -> n.d. | W25: =IF('[1]MONE(M)CAPARD'!FG32="","",'[1]MONE(M)CAPARD'!FG32) -> n.d. | X25: =IF('[1]MONE(M)CAPARD'!FL32="","",'[1]MONE(M)CAPARD'!FL32) -> n.d. | Y25: =IF('[1]MONE(M)CAPARD'!FO32="","",'[1]MONE(M)CAPARD'!FO32) -> n.d. | Z25: =IF('[1]MONE(M)CAPARD'!FR32="","",'[1]MONE(M)CAPARD'!FR32) -> n.d. | AA25: =IF('[1]MONE(M)CAPARD'!FV32="","",'[1]MONE(M)CAPARD'!FV32) -> n.d. | AB25: =IF('[1]MONE(M)CARD'!FV32="","",'[1]MONE(M)CARD'!FV32) ->  | AC25: =IF('[1]MONE(M)CARD'!GD32="","",'[1]MONE(M)CARD'!GD32) -> n.d. | AD25: =IF('[1]MONE(M)CARD'!GE32="","",'[1]MONE(M)CARD'!GE32) -> n.d. | AE25: n.d. | AF25: n.d. | AG25: n.d. | AH25: n.d. | AI25: n.d. | AJ25: n.d. | AK25: n.d. | AL25: n.d. | AN25: n.d. | AO25: n.d. | AP25: n.d. | AQ25: n.d. | AR25: n.d. | AS25: =IF('[1]MONE(M)CAPARD'!GS32="","",'[1]MONE(M)CAPARD'!GS32) -> n.d. | AT25: =IF('[1]MONE(M)CARD'!HA32="","",'[1]MONE(M)CAPARD'!HA32) -> n.d. | AU25: =IF('[1]MONE(M)CAPARD'!HB32="","",'[1]MONE(M)CAPARD'!HB32) -> n.d. | AV25: n.d. | AW25: n.d. | AX25: n.d. | AY25: n.d. | AZ25: n.d. | BA25: n.d. | BB25: n.d. | BC25: n.d. | BD25: n.d. | BE25: n.d. | BF25: n.d. | BG25: n.d. | BH25: n.d. | BI25: n.d. | BJ25: =IF('[1]MONE(M)CAPARD'!AS32="","",'[1]MONE(M)CAPARD'!AS32) -> n.d. | BK25: =IF('[1]MONE(M)CAPARD'!AT32="","",'[1]MONE(M)CAPARD'!AT32) -> n.a. | BL25: =IF('[1]MONE(M)CAPARD'!AU32="","",'[1]MONE(M)CAPARD'!AU32) -> n.d. | BM25: =IF('[1]MONE(M)CAPARD'!AV32="","",'[1]MONE(M)CAPARD'!AV32) -> n.d. | BN25: =IF('[1]MONE(M)CAPARD'!AW32="","",'[1]MONE(M)CAPARD'!AW32) -> n.a. | BO25: =IF('[1]MONE(M)CAPARD'!AX32="","",'[1]MONE(M)CAPARD'!AX32) -> n.d. | BP25: =IF('[1]MONE(M)CAPARD'!AY32="","",'[1]MONE(M)CAPARD'!AY32) -> n.a. | BQ25: =IF('[1]FISCAL(M)'!$K32="","",'[1]FISCAL(M)'!$K32) -> n.d. | BR25: =IF('[1]FISCAL(M)'!$L32="","",'[1]FISCAL(M)'!$L32) -> n.d. | BS25: =IF('[1]FISCAL(M)'!$AY32="","",'[1]FISCAL(M)'!$AY32) -> n.d. | BT25: =IF('[1]FISCAL(M)'!$BI32="","",'[1]FISCAL(M)'!$BI32) -> n.d. | BU25: =IF('[1]FISCAL(M)'!$BS32="","",'[1]FISCAL(M)'!$BS32) -> n.d. | BV25: =IF('[1]FISCAL(M)'!$AZ32="","",'[1]FISCAL(M)'!$AZ32) -> n.d. | BW25: =IF('[1]FISCAL(M)'!$BJ32="","",'[1]FISCAL(M)'!$BJ32) -> n.d. | BX25: =IF('[1]FISCAL(M)'!$BT32="","",'[1]FISCAL(M)'!$BT32) -> n.d. | BY25: =IF('[2]MONE(M)'!$AO32="","",'[2]MONE(M)'!$AO32) -> n.d. | BZ25: =IF('[3]MONE(M)'!$AO32="","",'[3]MONE(M)'!$AO32) -> n.d. | CA25: =IF('[4]MONE(M)'!$AO32="","",'[4]MONE(M)'!$AO32) -> n.d. | CB25: =IF('[5]MONE(M)'!$AO32="","",'[5]MONE(M)'!$AO32) -> n.d. | CC25: =IF('[6]MONE(M)'!$AO32="","",'[6]MONE(M)'!$AO32) -> n.d. | CD25: =IF('[7]MONE(M)'!$AO32="","",'[7]MONE(M)'!$AO32) -> n.d. | CE25: =IF('[8]MONE(M)'!$AO32="","",'[8]MONE(M)'!$AO32) -> n.d. | CF25: n.d. | CG25: n.d. | CH25: n.d. | CI25: n.d. | CJ25: n.d. | CK25: n.d. | CL25: n.d. | CM25: =IF('[1]FISCAL(M)'!$K32="","",'[1]FISCAL(M)'!$K32) -> n.d. | CN25: n.d. | CO25: n.d. | CP25: =IF('[1]FISCAL(M)'!$L32="","",'[1]FISCAL(M)'!$L32) -> n.d. | CQ25: n.d. | CR25: n.d. | CS25: n.d. | CT25: n.d. | CU25: n.d. | CV25: n.d. | CW25: n.d. | CX25: n.d. | CY25: n.d. | CZ25: n.d. | DA25: n.d. | DB25: n.d. | DC25: n.d. | DD25: n.d. | DE25: n.d. | DF25: n.d. | DG25: n.d. | DH25: n.d.
A26: 1991 | B26: diciembre | C26: 1991-diciembre | D26: =IF('[1]REAL IPC(M)'!$AL33="","",+'[1]REAL IPC(M)'!$AL33) -> n.d. | E26: =IF('[1]REAL IPC(M)'!$BE33="","",+'[1]REAL IPC(M)'!$BE33) -> n.d. | F26: =IF('[1]REAL IPC(M)'!$AM33="","",+'[1]REAL IPC(M)'!$AM33) -> n.d. | G26: =IF('[1]REAL IPC(M)'!$BI33="","",+'[1]REAL IPC(M)'!$BI33) -> n.d. | H26: =IF('[1]REAL IMAE(M)'!BJ33="","",'[1]REAL IMAE(M)'!BJ33) -> n.d. | I26: =IF('[1]REAL IMAE(M)'!BK33="","",'[1]REAL IMAE(M)'!BK33) -> n.d. | J26: =IF('[1]REAL IMAE(M)'!BN33="","",'[1]REAL IMAE(M)'!BN33) -> n.d. | K26: =IF('[1]REAL IMAE(M)'!BO33="","",'[1]REAL IMAE(M)'!BO33) -> n.d. | L26: =IF('[1]EXT RIN(M)'!$K33="","",'[1]EXT RIN(M)'!$K33) -> n.d. | M26: n.d. | N26: =IF('[1]EXT RIN(M)'!$L33="","",'[1]EXT RIN(M)'!$L33) -> n.d. | O26: n.d. | P26: =IF('[1]MONE(M)CARD'!EG33="","",'[1]MONE(M)CARD'!EG33) -> n.d. | Q26: =IF('[1]MONE(M)CARD'!EK33="","",'[1]MONE(M)CARD'!EK33) -> n.d. | R26: =IF('[1]MONE(M)CARD'!EP33="","",'[1]MONE(M)CARD'!EP33) -> n.d. | S26: =IF('[1]MONE(M)CARD'!ES33="","",'[1]MONE(M)CARD'!ES33) -> n.d. | T26: =IF('[1]MONE(M)CARD'!EV33="","",'[1]MONE(M)CARD'!EV33) -> n.d. | U26: =IF('[1]MONE(M)CARD'!EZ33="","",'[1]MONE(M)CARD'!EZ33) -> n.d. | V26: =IF('[1]MONE(M)CAPARD'!FC33="","",'[1]MONE(M)CAPARD'!FC33) -> n.d. | W26: =IF('[1]MONE(M)CAPARD'!FG33="","",'[1]MONE(M)CAPARD'!FG33) -> n.d. | X26: =IF('[1]MONE(M)CAPARD'!FL33="","",'[1]MONE(M)CAPARD'!FL33) -> n.d. | Y26: =IF('[1]MONE(M)CAPARD'!FO33="","",'[1]MONE(M)CAPARD'!FO33) -> n.d. | Z26: =IF('[1]MONE(M)CAPARD'!FR33="","",'[1]MONE(M)CAPARD'!FR33) -> n.d. | AA26: =IF('[1]MONE(M)CAPARD'!FV33="","",'[1]MONE(M)CAPARD'!FV33) -> n.d. | AB26: =IF('[1]MONE(M)CARD'!FV33="","",'[1]MONE(M)CARD'!FV33) ->  | AC26: =IF('[1]MONE(M)CARD'!GD33="","",'[1]MONE(M)CARD'!GD33) -> n.d. | AD26: =IF('[1]MONE(M)CARD'!GE33="","",'[1]MONE(M)CARD'!GE33) -> n.d. | AE26: n.d. | AF26: n.d. | AG26: n.d. | AH26: n.d. | AI26: n.d. | AJ26: n.d. | AK26: n.d. | AL26: n.d. | AN26: n.d. | AO26: n.d. | AP26: n.d. | AQ26: n.d. | AR26: n.d. | AS26: =IF('[1]MONE(M)CAPARD'!GS33="","",'[1]MONE(M)CAPARD'!GS33) -> n.d. | AT26: =IF('[1]MONE(M)CARD'!HA33="","",'[1]MONE(M)CAPARD'!HA33) -> n.d. | AU26: =IF('[1]MONE(M)CAPARD'!HB33="","",'[1]MONE(M)CAPARD'!HB33) -> n.d. | AV26: n.d. | AW26: n.d. | AX26: n.d. | AY26: n.d. | AZ26: n.d. | BA26: n.d. | BB26: n.d. | BC26: n.d. | BD26: n.d. | BE26: n.d. | BF26: n.d. | BG26: n.d. | BH26: n.d. | BI26: n.d. | BJ26: =IF('[1]MONE(M)CAPARD'!AS33="","",'[1]MONE(M)CAPARD'!AS33) -> n.d. | BK26: =IF('[1]MONE(M)CAPARD'!AT33="","",'[1]MONE(M)CAPARD'!AT33) -> n.a. | BL26: =IF('[1]MONE(M)CAPARD'!AU33="","",'[1]MONE(M)CAPARD'!AU33) -> n.d. | BM26: =IF('[1]MONE(M)CAPARD'!AV33="","",'[1]MONE(M)CAPARD'!AV33) -> n.d. | BN26: =IF('[1]MONE(M)CAPARD'!AW33="","",'[1]MONE(M)CAPARD'!AW33) -> n.a. | BO26: =IF('[1]MONE(M)CAPARD'!AX33="","",'[1]MONE(M)CAPARD'!AX33) -> n.d. | BP26: =IF('[1]MONE(M)CAPARD'!AY33="","",'[1]MONE(M)CAPARD'!AY33) -> n.a. | BQ26: =IF('[1]FISCAL(M)'!$K33="","",'[1]FISCAL(M)'!$K33) -> n.d. | BR26: =IF('[1]FISCAL(M)'!$L33="","",'[1]FISCAL(M)'!$L33) -> n.d. | BS26: =IF('[1]FISCAL(M)'!$AY33="","",'[1]FISCAL(M)'!$AY33) -> n.d. | BT26: =IF('[1]FISCAL(M)'!$BI33="","",'[1]FISCAL(M)'!$BI33) -> n.d. | BU26: =IF('[1]FISCAL(M)'!$BS33="","",'[1]FISCAL(M)'!$BS33) -> n.d. | BV26: =IF('[1]FISCAL(M)'!$AZ33="","",'[1]FISCAL(M)'!$AZ33) -> n.d. | BW26: =IF('[1]FISCAL(M)'!$BJ33="","",'[1]FISCAL(M)'!$BJ33) -> n.d. | BX26: =IF('[1]FISCAL(M)'!$BT33="","",'[1]FISCAL(M)'!$BT33) -> n.d. | BY26: =IF('[2]MONE(M)'!$AO33="","",'[2]MONE(M)'!$AO33) -> n.d. | BZ26: =IF('[3]MONE(M)'!$AO33="","",'[3]MONE(M)'!$AO33) -> n.d. | CA26: =IF('[4]MONE(M)'!$AO33="","",'[4]MONE(M)'!$AO33) -> n.d. | CB26: =IF('[5]MONE(M)'!$AO33="","",'[5]MONE(M)'!$AO33) -> n.d. | CC26: =IF('[6]MONE(M)'!$AO33="","",'[6]MONE(M)'!$AO33) -> n.d. | CD26: =IF('[7]MONE(M)'!$AO33="","",'[7]MONE(M)'!$AO33) -> n.d. | CE26: =IF('[8]MONE(M)'!$AO33="","",'[8]MONE(M)'!$AO33) -> n.d. | CF26: n.d. | CG26: n.d. | CH26: n.d. | CI26: n.d. | CJ26: n.d. | CK26: n.d. | CL26: n.d. | CM26: =IF('[1]FISCAL(M)'!$K33="","",'[1]FISCAL(M)'!$K33) -> n.d. | CN26: n.d. | CO26: n.d. | CP26: =IF('[1]FISCAL(M)'!$L33="","",'[1]FISCAL(M)'!$L33) -> n.d. | CQ26: n.d. | CR26: n.d. | CS26: n.d. | CT26: n.d. | CU26: n.d. | CV26: n.d. | CW26: n.d. | CX26: n.d. | CY26: n.d. | CZ26: n.d. | DA26: n.d. | DB26: n.d. | DC26: n.d. | DD26: n.d. | DE26: n.d. | DF26: n.d. | DG26: n.d. | DH26: n.d.
A27: 1992 | B27: enero | C27: 1992-enero | D27: =IF('[1]REAL IPC(M)'!$AL34="","",+'[1]REAL IPC(M)'!$AL34) -> n.d. | E27: =IF('[1]REAL IPC(M)'!$BE34="","",+'[1]REAL IPC(M)'!$BE34) -> n.d. | F27: =IF('[1]REAL IPC(M)'!$AM34="","",+'[1]REAL IPC(M)'!$AM34) -> n.d. | G27: =IF('[1]REAL IPC(M)'!$BI34="","",+'[1]REAL IPC(M)'!$BI34) -> n.d. | H27: =IF('[1]REAL IMAE(M)'!BJ34="","",'[1]REAL IMAE(M)'!BJ34) -> n.d. | I27: =IF('[1]REAL IMAE(M)'!BK34="","",'[1]REAL IMAE(M)'!BK34) -> n.d. | J27: =IF('[1]REAL IMAE(M)'!BN34="","",'[1]REAL IMAE(M)'!BN34) -> n.d. | K27: =IF('[1]REAL IMAE(M)'!BO34="","",'[1]REAL IMAE(M)'!BO34) -> n.d. | L27: =IF('[1]EXT RIN(M)'!$K34="","",'[1]EXT RIN(M)'!$K34) -> n.d. | N27: =IF('[1]EXT RIN(M)'!$L34="","",'[1]EXT RIN(M)'!$L34) -> n.d. | P27: =IF('[1]MONE(M)CARD'!EG34="","",'[1]MONE(M)CARD'!EG34) -> n.d. | Q27: =IF('[1]MONE(M)CARD'!EK34="","",'[1]MONE(M)CARD'!EK34) -> n.d. | R27: =IF('[1]MONE(M)CARD'!EP34="","",'[1]MONE(M)CARD'!EP34) -> n.d. | S27: =IF('[1]MONE(M)CARD'!ES34="","",'[1]MONE(M)CARD'!ES34) -> n.d. | T27: =IF('[1]MONE(M)CARD'!EV34="","",'[1]MONE(M)CARD'!EV34) -> n.d. | U27: =IF('[1]MONE(M)CARD'!EZ34="","",'[1]MONE(M)CARD'!EZ34) -> n.d. | V27: =IF('[1]MONE(M)CAPARD'!FC34="","",'[1]MONE(M)CAPARD'!FC34) -> n.d. | W27: =IF('[1]MONE(M)CAPARD'!FG34="","",'[1]MONE(M)CAPARD'!FG34) -> n.d. | X27: =IF('[1]MONE(M)CAPARD'!FL34="","",'[1]MONE(M)CAPARD'!FL34) -> n.d. | Y27: =IF('[1]MONE(M)CAPARD'!FO34="","",'[1]MONE(M)CAPARD'!FO34) -> n.d. | Z27: =IF('[1]MONE(M)CAPARD'!FR34="","",'[1]MONE(M)CAPARD'!FR34) -> n.d. | AA27: =IF('[1]MONE(M)CAPARD'!FV34="","",'[1]MONE(M)CAPARD'!FV34) -> n.d. | AB27: =IF('[1]MONE(M)CARD'!FV34="","",'[1]MONE(M)CARD'!FV34) ->  | AC27: =IF('[1]MONE(M)CARD'!GD34="","",'[1]MONE(M)CARD'!GD34) -> n.d. | AD27: =IF('[1]MONE(M)CARD'!GE34="","",'[1]MONE(M)CARD'!GE34) -> n.d. | AE27: n.d. | AF27: n.d. | AG27: n.d. | AH27: n.d. | AI27: n.d. | AJ27: n.d. | AK27: n.d. | AL27: n.d. | AN27: n.d. | AO27: n.d. | AP27: n.d. | AQ27: n.d. | AR27: n.d. | AS27: =IF('[1]MONE(M)CAPARD'!GS34="","",'[1]MONE(M)CAPARD'!GS34) -> n.d. | AT27: =IF('[1]MONE(M)CARD'!HA34="","",'[1]MONE(M)CAPARD'!HA34) -> n.d. | AU27: =IF('[1]MONE(M)CAPARD'!HB34="","",'[1]MONE(M)CAPARD'!HB34) -> n.d. | AV27: n.d. | AW27: n.d. | AX27: n.d. | AY27: n.d. | AZ27: n.d. | BA27: n.d. | BB27: n.d. | BC27: n.d. | BD27: n.d. | BE27: n.d. | BF27: n.d. | BG27: n.d. | BH27: n.d. | BI27: n.d. | BJ27: =IF('[1]MONE(M)CAPARD'!AS34="","",'[1]MONE(M)CAPARD'!AS34) -> n.d. | BK27: =IF('[1]MONE(M)CAPARD'!AT34="","",'[1]MONE(M)CAPARD'!AT34) -> n.a. | BL27: =IF('[1]MONE(M)CAPARD'!AU34="","",'[1]MONE(M)CAPARD'!AU34) -> n.d. | BM27: =IF('[1]MONE(M)CAPARD'!AV34="","",'[1]MONE(M)CAPARD'!AV34) -> n.d. | BN27: =IF('[1]MONE(M)CAPARD'!AW34="","",'[1]MONE(M)CAPARD'!AW34) -> n.a. | BO27: =IF('[1]MONE(M)CAPARD'!AX34="","",'[1]MONE(M)CAPARD'!AX34) -> n.d. | BP27: =IF('[1]MONE(M)CAPARD'!AY34="","",'[1]MONE(M)CAPARD'!AY34) -> n.a. | BQ27: =IF('[1]FISCAL(M)'!$K34="","",'[1]FISCAL(M)'!$K34) -> n.d. | BR27: =IF('[1]FISCAL(M)'!$L34="","",'[1]FISCAL(M)'!$L34) -> n.d. | BS27: =IF('[1]FISCAL(M)'!$AY34="","",'[1]FISCAL(M)'!$AY34) -> n.d. | BT27: =IF('[1]FISCAL(M)'!$BI34="","",'[1]FISCAL(M)'!$BI34) -> n.d. | BU27: =IF('[1]FISCAL(M)'!$BS34="","",'[1]FISCAL(M)'!$BS34) -> n.d. | BV27: =IF('[1]FISCAL(M)'!$AZ34="","",'[1]FISCAL(M)'!$AZ34) -> n.d. | BW27: =IF('[1]FISCAL(M)'!$BJ34="","",'[1]FISCAL(M)'!$BJ34) -> n.d. | BX27: =IF('[1]FISCAL(M)'!$BT34="","",'[1]FISCAL(M)'!$BT34) -> n.d. | BY27: =IF('[2]MONE(M)'!$AO34="","",'[2]MONE(M)'!$AO34) -> n.d. | BZ27: =IF('[3]MONE(M)'!$AO34="","",'[3]MONE(M)'!$AO34) -> n.d. | CA27: =IF('[4]MONE(M)'!$AO34="","",'[4]MONE(M)'!$AO34) -> n.d. | CB27: =IF('[5]MONE(M)'!$AO34="","",'[5]MONE(M)'!$AO34) -> n.d. | CC27: =IF('[6]MONE(M)'!$AO34="","",'[6]MONE(M)'!$AO34) -> n.d. | CD27: =IF('[7]MONE(M)'!$AO34="","",'[7]MONE(M)'!$AO34) -> n.d. | CE27: =IF('[8]MONE(M)'!$AO34="","",'[8]MONE(M)'!$AO34) -> n.d. | CF27: n.d. | CG27: n.d. | CH27: n.d. | CI27: n.d. | CJ27: n.d. | CK27: n.d. | CL27: n.d. | CM27: =IF('[1]FISCAL(M)'!$K34="","",'[1]FISCAL(M)'!$K34) -> n.d. | CN27: n.d. | CO27: n.d. | CP27: =IF('[1]FISCAL(M)'!$L34="","",'[1]FISCAL(M)'!$L34) -> n.d. | CQ27: n.d. | CR27: n.d. | CS27: n.d. | CT27: n.d. | CU27: n.d. | CV27: n.d. | CW27: n.d. | CX27: n.d. | CY27: n.d. | CZ27: n.d. | DA27: n.d. | DB27: n.d. | DC27: n.d. | DD27: n.d. | DE27: n.d. | DF27: n.d. | DG27: n.d. | DH27: n.d.
A28: 1992 | B28: febrero | C28: 1992-febrero | D28: =IF('[1]REAL IPC(M)'!$AL35="","",+'[1]REAL IPC(M)'!$AL35) -> n.d. | E28: =IF('[1]REAL IPC(M)'!$BE35="","",+'[1]REAL IPC(M)'!$BE35) -> n.d. | F28: =IF('[1]REAL IPC(M)'!$AM35="","",+'[1]REAL IPC(M)'!$AM35) -> n.d. | G28: =IF('[1]REAL IPC(M)'!$BI35="","",+'[1]REAL IPC(M)'!$BI35) -> n.d. | H28: =IF('[1]REAL IMAE(M)'!BJ35="","",'[1]REAL IMAE(M)'!BJ35) -> n.d. | I28: =IF('[1]REAL IMAE(M)'!BK35="","",'[1]REAL IMAE(M)'!BK35) -> n.d. | J28: =IF('[1]REAL IMAE(M)'!BN35="","",'[1]REAL IMAE(M)'!BN35) -> n.d. | K28: =IF('[1]REAL IMAE(M)'!BO35="","",'[1]REAL IMAE(M)'!BO35) -> n.d. | L28: =IF('[1]EXT RIN(M)'!$K35="","",'[1]EXT RIN(M)'!$K35) -> n.d. | N28: =IF('[1]EXT RIN(M)'!$L35="","",'[1]EXT RIN(M)'!$L35) -> n.d. | P28: =IF('[1]MONE(M)CARD'!EG35="","",'[1]MONE(M)CARD'!EG35) -> n.d. | Q28: =IF('[1]MONE(M)CARD'!EK35="","",'[1]MONE(M)CARD'!EK35) -> n.d. | R28: =IF('[1]MONE(M)CARD'!EP35="","",'[1]MONE(M)CARD'!EP35) -> n.d. | S28: =IF('[1]MONE(M)CARD'!ES35="","",'[1]MONE(M)CARD'!ES35) -> n.d. | T28: =IF('[1]MONE(M)CARD'!EV35="","",'[1]MONE(M)CARD'!EV35) -> n.d. | U28: =IF('[1]MONE(M)CARD'!EZ35="","",'[1]MONE(M)CARD'!EZ35) -> n.d. | V28: =IF('[1]MONE(M)CAPARD'!FC35="","",'[1]MONE(M)CAPARD'!FC35) -> n.d. | W28: =IF('[1]MONE(M)CAPARD'!FG35="","",'[1]MONE(M)CAPARD'!FG35) -> n.d. | X28: =IF('[1]MONE(M)CAPARD'!FL35="","",'[1]MONE(M)CAPARD'!FL35) -> n.d. | Y28: =IF('[1]MONE(M)CAPARD'!FO35="","",'[1]MONE(M)CAPARD'!FO35) -> n.d. | Z28: =IF('[1]MONE(M)CAPARD'!FR35="","",'[1]MONE(M)CAPARD'!FR35) -> n.d. | AA28: =IF('[1]MONE(M)CAPARD'!FV35="","",'[1]MONE(M)CAPARD'!FV35) -> n.d. | AB28: =IF('[1]MONE(M)CARD'!FV35="","",'[1]MONE(M)CARD'!FV35) ->  | AC28: =IF('[1]MONE(M)CARD'!GD35="","",'[1]MONE(M)CARD'!GD35) -> n.d. | AD28: =IF('[1]MONE(M)CARD'!GE35="","",'[1]MONE(M)CARD'!GE35) -> n.d. | AE28: n.d. | AF28: n.d. | AG28: n.d. | AH28: n.d. | AI28: n.d. | AJ28: n.d. | AK28: n.d. | AL28: n.d. | AN28: n.d. | AO28: n.d. | AP28: n.d. | AQ28: n.d. | AR28: n.d. | AS28: =IF('[1]MONE(M)CAPARD'!GS35="","",'[1]MONE(M)CAPARD'!GS35) -> n.d. | AT28: =IF('[1]MONE(M)CARD'!HA35="","",'[1]MONE(M)CAPARD'!HA35) -> n.d. | AU28: =IF('[1]MONE(M)CAPARD'!HB35="","",'[1]MONE(M)CAPARD'!HB35) -> n.d. | AV28: n.d. | AW28: n.d. | AX28: n.d. | AY28: n.d. | AZ28: n.d. | BA28: n.d. | BB28: n.d. | BC28: n.d. | BD28: n.d. | BE28: n.d. | BF28: n.d. | BG28: n.d. | BH28: n.d. | BI28: n.d. | BJ28: =IF('[1]MONE(M)CAPARD'!AS35="","",'[1]MONE(M)CAPARD'!AS35) -> n.d. | BK28: =IF('[1]MONE(M)CAPARD'!AT35="","",'[1]MONE(M)CAPARD'!AT35) -> n.a. | BL28: =IF('[1]MONE(M)CAPARD'!AU35="","",'[1]MONE(M)CAPARD'!AU35) -> n.d. | BM28: =IF('[1]MONE(M)CAPARD'!AV35="","",'[1]MONE(M)CAPARD'!AV35) -> n.d. | BN28: =IF('[1]MONE(M)CAPARD'!AW35="","",'[1]MONE(M)CAPARD'!AW35) -> n.a. | BO28: =IF('[1]MONE(M)CAPARD'!AX35="","",'[1]MONE(M)CAPARD'!AX35) -> n.d. | BP28: =IF('[1]MONE(M)CAPARD'!AY35="","",'[1]MONE(M)CAPARD'!AY35) -> n.a. | BQ28: =IF('[1]FISCAL(M)'!$K35="","",'[1]FISCAL(M)'!$K35) -> n.d. | BR28: =IF('[1]FISCAL(M)'!$L35="","",'[1]FISCAL(M)'!$L35) -> n.d. | BS28: =IF('[1]FISCAL(M)'!$AY35="","",'[1]FISCAL(M)'!$AY35) -> n.d. | BT28: =IF('[1]FISCAL(M)'!$BI35="","",'[1]FISCAL(M)'!$BI35) -> n.d. | BU28: =IF('[1]FISCAL(M)'!$BS35="","",'[1]FISCAL(M)'!$BS35) -> n.d. | BV28: =IF('[1]FISCAL(M)'!$AZ35="","",'[1]FISCAL(M)'!$AZ35) -> n.d. | BW28: =IF('[1]FISCAL(M)'!$BJ35="","",'[1]FISCAL(M)'!$BJ35) -> n.d. | BX28: =IF('[1]FISCAL(M)'!$BT35="","",'[1]FISCAL(M)'!$BT35) -> n.d. | BY28: =IF('[2]MONE(M)'!$AO35="","",'[2]MONE(M)'!$AO35) -> n.d. | BZ28: =IF('[3]MONE(M)'!$AO35="","",'[3]MONE(M)'!$AO35) -> n.d. | CA28: =IF('[4]MONE(M)'!$AO35="","",'[4]MONE(M)'!$AO35) -> n.d. | CB28: =IF('[5]MONE(M)'!$AO35="","",'[5]MONE(M)'!$AO35) -> n.d. | CC28: =IF('[6]MONE(M)'!$AO35="","",'[6]MONE(M)'!$AO35) -> n.d. | CD28: =IF('[7]MONE(M)'!$AO35="","",'[7]MONE(M)'!$AO35) -> n.d. | CE28: =IF('[8]MONE(M)'!$AO35="","",'[8]MONE(M)'!$AO35) -> n.d. | CF28: n.d. | CG28: n.d. | CH28: n.d. | CI28: n.d. | CJ28: n.d. | CK28: n.d. | CL28: n.d. | CM28: =IF('[1]FISCAL(M)'!$K35="","",'[1]FISCAL(M)'!$K35) -> n.d. | CN28: n.d. | CO28: n.d. | CP28: =IF('[1]FISCAL(M)'!$L35="","",'[1]FISCAL(M)'!$L35) -> n.d. | CQ28: n.d. | CR28: n.d. | CS28: n.d. | CT28: n.d. | CU28: n.d. | CV28: n.d. | CW28: n.d. | CX28: n.d. | CY28: n.d. | CZ28: n.d. | DA28: n.d. | DB28: n.d. | DC28: n.d. | DD28: n.d. | DE28: n.d. | DF28: n.d. | DG28: n.d. | DH28: n.d.
A29: 1992 | B29: marzo | C29: 1992-marzo | D29: =IF('[1]REAL IPC(M)'!$AL36="","",+'[1]REAL IPC(M)'!$AL36) -> n.d. | E29: =IF('[1]REAL IPC(M)'!$BE36="","",+'[1]REAL IPC(M)'!$BE36) -> n.d. | F29: =IF('[1]REAL IPC(M)'!$AM36="","",+'[1]REAL IPC(M)'!$AM36) -> n.d. | G29: =IF('[1]REAL IPC(M)'!$BI36="","",+'[1]REAL IPC(M)'!$BI36) -> n.d. | H29: =IF('[1]REAL IMAE(M)'!BJ36="","",'[1]REAL IMAE(M)'!BJ36) -> n.d. | I29: =IF('[1]REAL IMAE(M)'!BK36="","",'[1]REAL IMAE(M)'!BK36) -> n.d. | J29: =IF('[1]REAL IMAE(M)'!BN36="","",'[1]REAL IMAE(M)'!BN36) -> n.d. | K29: =IF('[1]REAL IMAE(M)'!BO36="","",'[1]REAL IMAE(M)'!BO36) -> n.d. | L29: =IF('[1]EXT RIN(M)'!$K36="","",'[1]EXT RIN(M)'!$K36) -> n.d. | N29: =IF('[1]EXT RIN(M)'!$L36="","",'[1]EXT RIN(M)'!$L36) -> n.d. | P29: =IF('[1]MONE(M)CARD'!EG36="","",'[1]MONE(M)CARD'!EG36) -> n.d. | Q29: =IF('[1]MONE(M)CARD'!EK36="","",'[1]MONE(M)CARD'!EK36) -> n.d. | R29: =IF('[1]MONE(M)CARD'!EP36="","",'[1]MONE(M)CARD'!EP36) -> n.d. | S29: =IF('[1]MONE(M)CARD'!ES36="","",'[1]MONE(M)CARD'!ES36) -> n.d. | T29: =IF('[1]MONE(M)CARD'!EV36="","",'[1]MONE(M)CARD'!EV36) -> n.d. | U29: =IF('[1]MONE(M)CARD'!EZ36="","",'[1]MONE(M)CARD'!EZ36) -> n.d. | V29: =IF('[1]MONE(M)CAPARD'!FC36="","",'[1]MONE(M)CAPARD'!FC36) -> n.d. | W29: =IF('[1]MONE(M)CAPARD'!FG36="","",'[1]MONE(M)CAPARD'!FG36) -> n.d. | X29: =IF('[1]MONE(M)CAPARD'!FL36="","",'[1]MONE(M)CAPARD'!FL36) -> n.d. | Y29: =IF('[1]MONE(M)CAPARD'!FO36="","",'[1]MONE(M)CAPARD'!FO36) -> n.d. | Z29: =IF('[1]MONE(M)CAPARD'!FR36="","",'[1]MONE(M)CAPARD'!FR36) -> n.d. | AA29: =IF('[1]MONE(M)CAPARD'!FV36="","",'[1]MONE(M)CAPARD'!FV36) -> n.d. | AB29: =IF('[1]MONE(M)CARD'!FV36="","",'[1]MONE(M)CARD'!FV36) ->  | AC29: =IF('[1]MONE(M)CARD'!GD36="","",'[1]MONE(M)CARD'!GD36) -> n.d. | AD29: =IF('[1]MONE(M)CARD'!GE36="","",'[1]MONE(M)CARD'!GE36) -> n.d. | AE29: n.d. | AF29: n.d. | AG29: n.d. | AH29: n.d. | AI29: n.d. | AJ29: n.d. | AK29: n.d. | AL29: n.d. | AN29: n.d. | AO29: n.d. | AP29: n.d. | AQ29: n.d. | AR29: n.d. | AS29: =IF('[1]MONE(M)CAPARD'!GS36="","",'[1]MONE(M)CAPARD'!GS36) -> n.d. | AT29: =IF('[1]MONE(M)CARD'!HA36="","",'[1]MONE(M)CAPARD'!HA36) -> n.d. | AU29: =IF('[1]MONE(M)CAPARD'!HB36="","",'[1]MONE(M)CAPARD'!HB36) -> n.d. | AV29: n.d. | AW29: n.d. | AX29: n.d. | AY29: n.d. | AZ29: n.d. | BA29: n.d. | BB29: n.d. | BC29: n.d. | BD29: n.d. | BE29: n.d. | BF29: n.d. | BG29: n.d. | BH29: n.d. | BI29: n.d. | BJ29: =IF('[1]MONE(M)CAPARD'!AS36="","",'[1]MONE(M)CAPARD'!AS36) -> n.d. | BK29: =IF('[1]MONE(M)CAPARD'!AT36="","",'[1]MONE(M)CAPARD'!AT36) -> n.a. | BL29: =IF('[1]MONE(M)CAPARD'!AU36="","",'[1]MONE(M)CAPARD'!AU36) -> n.d. | BM29: =IF('[1]MONE(M)CAPARD'!AV36="","",'[1]MONE(M)CAPARD'!AV36) -> n.d. | BN29: =IF('[1]MONE(M)CAPARD'!AW36="","",'[1]MONE(M)CAPARD'!AW36) -> n.a. | BO29: =IF('[1]MONE(M)CAPARD'!AX36="","",'[1]MONE(M)CAPARD'!AX36) -> n.d. | BP29: =IF('[1]MONE(M)CAPARD'!AY36="","",'[1]MONE(M)CAPARD'!AY36) -> n.a. | BQ29: =IF('[1]FISCAL(M)'!$K36="","",'[1]FISCAL(M)'!$K36) -> n.d. | BR29: =IF('[1]FISCAL(M)'!$L36="","",'[1]FISCAL(M)'!$L36) -> n.d. | BS29: =IF('[1]FISCAL(M)'!$AY36="","",'[1]FISCAL(M)'!$AY36) -> n.d. | BT29: =IF('[1]FISCAL(M)'!$BI36="","",'[1]FISCAL(M)'!$BI36) -> n.d. | BU29: =IF('[1]FISCAL(M)'!$BS36="","",'[1]FISCAL(M)'!$BS36) -> n.d. | BV29: =IF('[1]FISCAL(M)'!$AZ36="","",'[1]FISCAL(M)'!$AZ36) -> n.d. | BW29: =IF('[1]FISCAL(M)'!$BJ36="","",'[1]FISCAL(M)'!$BJ36) -> n.d. | BX29: =IF('[1]FISCAL(M)'!$BT36="","",'[1]FISCAL(M)'!$BT36) -> n.d. | BY29: =IF('[2]MONE(M)'!$AO36="","",'[2]MONE(M)'!$AO36) -> n.d. | BZ29: =IF('[3]MONE(M)'!$AO36="","",'[3]MONE(M)'!$AO36) -> n.d. | CA29: =IF('[4]MONE(M)'!$AO36="","",'[4]MONE(M)'!$AO36) -> n.d. | CB29: =IF('[5]MONE(M)'!$AO36="","",'[5]MONE(M)'!$AO36) -> n.d. | CC29: =IF('[6]MONE(M)'!$AO36="","",'[6]MONE(M)'!$AO36) -> n.d. | CD29: =IF('[7]MONE(M)'!$AO36="","",'[7]MONE(M)'!$AO36) -> n.d. | CE29: =IF('[8]MONE(M)'!$AO36="","",'[8]MONE(M)'!$AO36) -> n.d. | CF29: n.d. | CG29: n.d. | CH29: n.d. | CI29: n.d. | CJ29: n.d. | CK29: n.d. | CL29: n.d. | CM29: =IF('[1]FISCAL(M)'!$K36="","",'[1]FISCAL(M)'!$K36) -> n.d. | CN29: n.d. | CO29: n.d. | CP29: =IF('[1]FISCAL(M)'!$L36="","",'[1]FISCAL(M)'!$L36) -> n.d. | CQ29: n.d. | CR29: n.d. | CS29: n.d. | CT29: n.d. | CU29: n.d. | CV29: n.d. | CW29: n.d. | CX29: n.d. | CY29: n.d. | CZ29: n.d. | DA29: n.d. | DB29: n.d. | DC29: n.d. | DD29: n.d. | DE29: n.d. | DF29: n.d. | DG29: n.d. | DH29: n.d.
A30: 1992 | B30: abril | C30: 1992-abril | D30: =IF('[1]REAL IPC(M)'!$AL37="","",+'[1]REAL IPC(M)'!$AL37) -> n.d. | E30: =IF('[1]REAL IPC(M)'!$BE37="","",+'[1]REAL IPC(M)'!$BE37) -> n.d. | F30: =IF('[1]REAL IPC(M)'!$AM37="","",+'[1]REAL IPC(M)'!$AM37) -> n.d. | G30: =IF('[1]REAL IPC(M)'!$BI37="","",+'[1]REAL IPC(M)'!$BI37) -> n.d. | H30: =IF('[1]REAL IMAE(M)'!BJ37="","",'[1]REAL IMAE(M)'!BJ37) -> n.d. | I30: =IF('[1]REAL IMAE(M)'!BK37="","",'[1]REAL IMAE(M)'!BK37) -> n.d. | J30: =IF('[1]REAL IMAE(M)'!BN37="","",'[1]REAL IMAE(M)'!BN37) -> n.d. | K30: =IF('[1]REAL IMAE(M)'!BO37="","",'[1]REAL IMAE(M)'!BO37) -> n.d. | L30: =IF('[1]EXT RIN(M)'!$K37="","",'[1]EXT RIN(M)'!$K37) -> n.d. | N30: =IF('[1]EXT RIN(M)'!$L37="","",'[1]EXT RIN(M)'!$L37) -> n.d. | P30: =IF('[1]MONE(M)CARD'!EG37="","",'[1]MONE(M)CARD'!EG37) -> n.d. | Q30: =IF('[1]MONE(M)CARD'!EK37="","",'[1]MONE(M)CARD'!EK37) -> n.d. | R30: =IF('[1]MONE(M)CARD'!EP37="","",'[1]MONE(M)CARD'!EP37) -> n.d. | S30: =IF('[1]MONE(M)CARD'!ES37="","",'[1]MONE(M)CARD'!ES37) -> n.d. | T30: =IF('[1]MONE(M)CARD'!EV37="","",'[1]MONE(M)CARD'!EV37) -> n.d. | U30: =IF('[1]MONE(M)CARD'!EZ37="","",'[1]MONE(M)CARD'!EZ37) -> n.d. | V30: =IF('[1]MONE(M)CAPARD'!FC37="","",'[1]MONE(M)CAPARD'!FC37) -> n.d. | W30: =IF('[1]MONE(M)CAPARD'!FG37="","",'[1]MONE(M)CAPARD'!FG37) -> n.d. | X30: =IF('[1]MONE(M)CAPARD'!FL37="","",'[1]MONE(M)CAPARD'!FL37) -> n.d. | Y30: =IF('[1]MONE(M)CAPARD'!FO37="","",'[1]MONE(M)CAPARD'!FO37) -> n.d. | Z30: =IF('[1]MONE(M)CAPARD'!FR37="","",'[1]MONE(M)CAPARD'!FR37) -> n.d. | AA30: =IF('[1]MONE(M)CAPARD'!FV37="","",'[1]MONE(M)CAPARD'!FV37) -> n.d. | AB30: =IF('[1]MONE(M)CARD'!FV37="","",'[1]MONE(M)CARD'!FV37) ->  | AC30: =IF('[1]MONE(M)CARD'!GD37="","",'[1]MONE(M)CARD'!GD37) -> n.d. | AD30: =IF('[1]MONE(M)CARD'!GE37="","",'[1]MONE(M)CARD'!GE37) -> n.d. | AE30: n.d. | AF30: n.d. | AG30: n.d. | AH30: n.d. | AI30: n.d. | AJ30: n.d. | AK30: n.d. | AL30: n.d. | AN30: n.d. | AO30: n.d. | AP30: n.d. | AQ30: n.d. | AR30: n.d. | AS30: =IF('[1]MONE(M)CAPARD'!GS37="","",'[1]MONE(M)CAPARD'!GS37) -> n.d. | AT30: =IF('[1]MONE(M)CARD'!HA37="","",'[1]MONE(M)CAPARD'!HA37) -> n.d. | AU30: =IF('[1]MONE(M)CAPARD'!HB37="","",'[1]MONE(M)CAPARD'!HB37) -> n.d. | AV30: n.d. | AW30: n.d. | AX30: n.d. | AY30: n.d. | AZ30: n.d. | BA30: n.d. | BB30: n.d. | BC30: n.d. | BD30: n.d. | BE30: n.d. | BF30: n.d. | BG30: n.d. | BH30: n.d. | BI30: n.d. | BJ30: =IF('[1]MONE(M)CAPARD'!AS37="","",'[1]MONE(M)CAPARD'!AS37) -> n.d. | BK30: =IF('[1]MONE(M)CAPARD'!AT37="","",'[1]MONE(M)CAPARD'!AT37) -> n.a. | BL30: =IF('[1]MONE(M)CAPARD'!AU37="","",'[1]MONE(M)CAPARD'!AU37) -> n.d. | BM30: =IF('[1]MONE(M)CAPARD'!AV37="","",'[1]MONE(M)CAPARD'!AV37) -> n.d. | BN30: =IF('[1]MONE(M)CAPARD'!AW37="","",'[1]MONE(M)CAPARD'!AW37) -> n.a. | BO30: =IF('[1]MONE(M)CAPARD'!AX37="","",'[1]MONE(M)CAPARD'!AX37) -> n.d. | BP30: =IF('[1]MONE(M)CAPARD'!AY37="","",'[1]MONE(M)CAPARD'!AY37) -> n.a. | BQ30: =IF('[1]FISCAL(M)'!$K37="","",'[1]FISCAL(M)'!$K37) -> n.d. | BR30: =IF('[1]FISCAL(M)'!$L37="","",'[1]FISCAL(M)'!$L37) -> n.d. | BS30: =IF('[1]FISCAL(M)'!$AY37="","",'[1]FISCAL(M)'!$AY37) -> n.d. | BT30: =IF('[1]FISCAL(M)'!$BI37="","",'[1]FISCAL(M)'!$BI37) -> n.d. | BU30: =IF('[1]FISCAL(M)'!$BS37="","",'[1]FISCAL(M)'!$BS37) -> n.d. | BV30: =IF('[1]FISCAL(M)'!$AZ37="","",'[1]FISCAL(M)'!$AZ37) -> n.d. | BW30: =IF('[1]FISCAL(M)'!$BJ37="","",'[1]FISCAL(M)'!$BJ37) -> n.d. | BX30: =IF('[1]FISCAL(M)'!$BT37="","",'[1]FISCAL(M)'!$BT37) -> n.d. | BY30: =IF('[2]MONE(M)'!$AO37="","",'[2]MONE(M)'!$AO37) -> n.d. | BZ30: =IF('[3]MONE(M)'!$AO37="","",'[3]MONE(M)'!$AO37) -> n.d. | CA30: =IF('[4]MONE(M)'!$AO37="","",'[4]MONE(M)'!$AO37) -> n.d. | CB30: =IF('[5]MONE(M)'!$AO37="","",'[5]MONE(M)'!$AO37) -> n.d. | CC30: =IF('[6]MONE(M)'!$AO37="","",'[6]MONE(M)'!$AO37) -> n.d. | CD30: =IF('[7]MONE(M)'!$AO37="","",'[7]MONE(M)'!$AO37) -> n.d. | CE30: =IF('[8]MONE(M)'!$AO37="","",'[8]MONE(M)'!$AO37) -> n.d. | CF30: n.d. | CG30: n.d. | CH30: n.d. | CI30: n.d. | CJ30: n.d. | CK30: n.d. | CL30: n.d. | CM30: =IF('[1]FISCAL(M)'!$K37="","",'[1]FISCAL(M)'!$K37) -> n.d. | CN30: n.d. | CO30: n.d. | CP30: =IF('[1]FISCAL(M)'!$L37="","",'[1]FISCAL(M)'!$L37) -> n.d. | CQ30: n.d. | CR30: n.d. | CS30: n.d. | CT30: n.d. | CU30: n.d. | CV30: n.d. | CW30: n.d. | CX30: n.d. | CY30: n.d. | CZ30: n.d. | DA30: n.d. | DB30: n.d. | DC30: n.d. | DD30: n.d. | DE30: n.d. | DF30: n.d. | DG30: n.d. | DH30: n.d.
A31: 1992 | B31: mayo | C31: 1992-mayo | D31: =IF('[1]REAL IPC(M)'!$AL38="","",+'[1]REAL IPC(M)'!$AL38) -> n.d. | E31: =IF('[1]REAL IPC(M)'!$BE38="","",+'[1]REAL IPC(M)'!$BE38) -> n.d. | F31: =IF('[1]REAL IPC(M)'!$AM38="","",+'[1]REAL IPC(M)'!$AM38) -> n.d. | G31: =IF('[1]REAL IPC(M)'!$BI38="","",+'[1]REAL IPC(M)'!$BI38) -> n.d. | H31: =IF('[1]REAL IMAE(M)'!BJ38="","",'[1]REAL IMAE(M)'!BJ38) -> n.d. | I31: =IF('[1]REAL IMAE(M)'!BK38="","",'[1]REAL IMAE(M)'!BK38) -> n.d. | J31: =IF('[1]REAL IMAE(M)'!BN38="","",'[1]REAL IMAE(M)'!BN38) -> n.d. | K31: =IF('[1]REAL IMAE(M)'!BO38="","",'[1]REAL IMAE(M)'!BO38) -> n.d. | L31: =IF('[1]EXT RIN(M)'!$K38="","",'[1]EXT RIN(M)'!$K38) -> n.d. | N31: =IF('[1]EXT RIN(M)'!$L38="","",'[1]EXT RIN(M)'!$L38) -> n.d. | P31: =IF('[1]MONE(M)CARD'!EG38="","",'[1]MONE(M)CARD'!EG38) -> n.d. | Q31: =IF('[1]MONE(M)CARD'!EK38="","",'[1]MONE(M)CARD'!EK38) -> n.d. | R31: =IF('[1]MONE(M)CARD'!EP38="","",'[1]MONE(M)CARD'!EP38) -> n.d. | S31: =IF('[1]MONE(M)CARD'!ES38="","",'[1]MONE(M)CARD'!ES38) -> n.d. | T31: =IF('[1]MONE(M)CARD'!EV38="","",'[1]MONE(M)CARD'!EV38) -> n.d. | U31: =IF('[1]MONE(M)CARD'!EZ38="","",'[1]MONE(M)CARD'!EZ38) -> n.d. | V31: =IF('[1]MONE(M)CAPARD'!FC38="","",'[1]MONE(M)CAPARD'!FC38) -> n.d. | W31: =IF('[1]MONE(M)CAPARD'!FG38="","",'[1]MONE(M)CAPARD'!FG38) -> n.d. | X31: =IF('[1]MONE(M)CAPARD'!FL38="","",'[1]MONE(M)CAPARD'!FL38) -> n.d. | Y31: =IF('[1]MONE(M)CAPARD'!FO38="","",'[1]MONE(M)CAPARD'!FO38) -> n.d. | Z31: =IF('[1]MONE(M)CAPARD'!FR38="","",'[1]MONE(M)CAPARD'!FR38) -> n.d. | AA31: =IF('[1]MONE(M)CAPARD'!FV38="","",'[1]MONE(M)CAPARD'!FV38) -> n.d. | AB31: =IF('[1]MONE(M)CARD'!FV38="","",'[1]MONE(M)CARD'!FV38) ->  | AC31: =IF('[1]MONE(M)CARD'!GD38="","",'[1]MONE(M)CARD'!GD38) -> n.d. | AD31: =IF('[1]MONE(M)CARD'!GE38="","",'[1]MONE(M)CARD'!GE38) -> n.d. | AE31: n.d. | AF31: n.d. | AG31: n.d. | AH31: n.d. | AI31: n.d. | AJ31: n.d. | AK31: n.d. | AL31: n.d. | AN31: n.d. | AO31: n.d. | AP31: n.d. | AQ31: n.d. | AR31: n.d. | AS31: =IF('[1]MONE(M)CAPARD'!GS38="","",'[1]MONE(M)CAPARD'!GS38) -> n.d. | AT31: =IF('[1]MONE(M)CARD'!HA38="","",'[1]MONE(M)CAPARD'!HA38) -> n.d. | AU31: =IF('[1]MONE(M)CAPARD'!HB38="","",'[1]MONE(M)CAPARD'!HB38) -> n.d. | AV31: n.d. | AW31: n.d. | AX31: n.d. | AY31: n.d. | AZ31: n.d. | BA31: n.d. | BB31: n.d. | BC31: n.d. | BD31: n.d. | BE31: n.d. | BF31: n.d. | BG31: n.d. | BH31: n.d. | BI31: n.d. | BJ31: =IF('[1]MONE(M)CAPARD'!AS38="","",'[1]MONE(M)CAPARD'!AS38) -> n.d. | BK31: =IF('[1]MONE(M)CAPARD'!AT38="","",'[1]MONE(M)CAPARD'!AT38) -> n.a. | BL31: =IF('[1]MONE(M)CAPARD'!AU38="","",'[1]MONE(M)CAPARD'!AU38) -> n.d. | BM31: =IF('[1]MONE(M)CAPARD'!AV38="","",'[1]MONE(M)CAPARD'!AV38) -> n.d. | BN31: =IF('[1]MONE(M)CAPARD'!AW38="","",'[1]MONE(M)CAPARD'!AW38) -> n.a. | BO31: =IF('[1]MONE(M)CAPARD'!AX38="","",'[1]MONE(M)CAPARD'!AX38) -> n.d. | BP31: =IF('[1]MONE(M)CAPARD'!AY38="","",'[1]MONE(M)CAPARD'!AY38) -> n.a. | BQ31: =IF('[1]FISCAL(M)'!$K38="","",'[1]FISCAL(M)'!$K38) -> n.d. | BR31: =IF('[1]FISCAL(M)'!$L38="","",'[1]FISCAL(M)'!$L38) -> n.d. | BS31: =IF('[1]FISCAL(M)'!$AY38="","",'[1]FISCAL(M)'!$AY38) -> n.d. | BT31: =IF('[1]FISCAL(M)'!$BI38="","",'[1]FISCAL(M)'!$BI38) -> n.d. | BU31: =IF('[1]FISCAL(M)'!$BS38="","",'[1]FISCAL(M)'!$BS38) -> n.d. | BV31: =IF('[1]FISCAL(M)'!$AZ38="","",'[1]FISCAL(M)'!$AZ38) -> n.d. | BW31: =IF('[1]FISCAL(M)'!$BJ38="","",'[1]FISCAL(M)'!$BJ38) -> n.d. | BX31: =IF('[1]FISCAL(M)'!$BT38="","",'[1]FISCAL(M)'!$BT38) -> n.d. | BY31: =IF('[2]MONE(M)'!$AO38="","",'[2]MONE(M)'!$AO38) -> n.d. | BZ31: =IF('[3]MONE(M)'!$AO38="","",'[3]MONE(M)'!$AO38) -> n.d. | CA31: =IF('[4]MONE(M)'!$AO38="","",'[4]MONE(M)'!$AO38) -> n.d. | CB31: =IF('[5]MONE(M)'!$AO38="","",'[5]MONE(M)'!$AO38) -> n.d. | CC31: =IF('[6]MONE(M)'!$AO38="","",'[6]MONE(M)'!$AO38) -> n.d. | CD31: =IF('[7]MONE(M)'!$AO38="","",'[7]MONE(M)'!$AO38) -> n.d. | CE31: =IF('[8]MONE(M)'!$AO38="","",'[8]MONE(M)'!$AO38) -> n.d. | CF31: n.d. | CG31: n.d. | CH31: n.d. | CI31: n.d. | CJ31: n.d. | CK31: n.d. | CL31: n.d. | CM31: =IF('[1]FISCAL(M)'!$K38="","",'[1]FISCAL(M)'!$K38) -> n.d. | CN31: n.d. | CO31: n.d. | CP31: =IF('[1]FISCAL(M)'!$L38="","",'[1]FISCAL(M)'!$L38) -> n.d. | CQ31: n.d. | CR31: n.d. | CS31: n.d. | CT31: n.d. | CU31: n.d. | CV31: n.d. | CW31: n.d. | CX31: n.d. | CY31: n.d. | CZ31: n.d. | DA31: n.d. | DB31: n.d. | DC31: n.d. | DD31: n.d. | DE31: n.d. | DF31: n.d. | DG31: n.d. | DH31: n.d.
A32: 1992 | B32: junio | C32: 1992-junio | D32: =IF('[1]REAL IPC(M)'!$AL39="","",+'[1]REAL IPC(M)'!$AL39) -> n.d. | E32: =IF('[1]REAL IPC(M)'!$BE39="","",+'[1]REAL IPC(M)'!$BE39) -> n.d. | F32: =IF('[1]REAL IPC(M)'!$AM39="","",+'[1]REAL IPC(M)'!$AM39) -> n.d. | G32: =IF('[1]REAL IPC(M)'!$BI39="","",+'[1]REAL IPC(M)'!$BI39) -> n.d. | H32: =IF('[1]REAL IMAE(M)'!BJ39="","",'[1]REAL IMAE(M)'!BJ39) -> n.d. | I32: =IF('[1]REAL IMAE(M)'!BK39="","",'[1]REAL IMAE(M)'!BK39) -> n.d. | J32: =IF('[1]REAL IMAE(M)'!BN39="","",'[1]REAL IMAE(M)'!BN39) -> n.d. | K32: =IF('[1]REAL IMAE(M)'!BO39="","",'[1]REAL IMAE(M)'!BO39) -> n.d. | L32: =IF('[1]EXT RIN(M)'!$K39="","",'[1]EXT RIN(M)'!$K39) -> n.d. | N32: =IF('[1]EXT RIN(M)'!$L39="","",'[1]EXT RIN(M)'!$L39) -> n.d. | P32: =IF('[1]MONE(M)CARD'!EG39="","",'[1]MONE(M)CARD'!EG39) -> n.d. | Q32: =IF('[1]MONE(M)CARD'!EK39="","",'[1]MONE(M)CARD'!EK39) -> n.d. | R32: =IF('[1]MONE(M)CARD'!EP39="","",'[1]MONE(M)CARD'!EP39) -> n.d. | S32: =IF('[1]MONE(M)CARD'!ES39="","",'[1]MONE(M)CARD'!ES39) -> n.d. | T32: =IF('[1]MONE(M)CARD'!EV39="","",'[1]MONE(M)CARD'!EV39) -> n.d. | U32: =IF('[1]MONE(M)CARD'!EZ39="","",'[1]MONE(M)CARD'!EZ39) -> n.d. | V32: =IF('[1]MONE(M)CAPARD'!FC39="","",'[1]MONE(M)CAPARD'!FC39) -> n.d. | W32: =IF('[1]MONE(M)CAPARD'!FG39="","",'[1]MONE(M)CAPARD'!FG39) -> n.d. | X32: =IF('[1]MONE(M)CAPARD'!FL39="","",'[1]MONE(M)CAPARD'!FL39) -> n.d. | Y32: =IF('[1]MONE(M)CAPARD'!FO39="","",'[1]MONE(M)CAPARD'!FO39) -> n.d. | Z32: =IF('[1]MONE(M)CAPARD'!FR39="","",'[1]MONE(M)CAPARD'!FR39) -> n.d. | AA32: =IF('[1]MONE(M)CAPARD'!FV39="","",'[1]MONE(M)CAPARD'!FV39) -> n.d. | AB32: =IF('[1]MONE(M)CARD'!FV39="","",'[1]MONE(M)CARD'!FV39) ->  | AC32: =IF('[1]MONE(M)CARD'!GD39="","",'[1]MONE(M)CARD'!GD39) -> n.d. | AD32: =IF('[1]MONE(M)CARD'!GE39="","",'[1]MONE(M)CARD'!GE39) -> n.d. | AE32: n.d. | AF32: n.d. | AG32: n.d. | AH32: n.d. | AI32: n.d. | AJ32: n.d. | AK32: n.d. | AL32: n.d. | AN32: n.d. | AO32: n.d. | AP32: n.d. | AQ32: n.d. | AR32: n.d. | AS32: =IF('[1]MONE(M)CAPARD'!GS39="","",'[1]MONE(M)CAPARD'!GS39) -> n.d. | AT32: =IF('[1]MONE(M)CARD'!HA39="","",'[1]MONE(M)CAPARD'!HA39) -> n.d. | AU32: =IF('[1]MONE(M)CAPARD'!HB39="","",'[1]MONE(M)CAPARD'!HB39) -> n.d. | AV32: n.d. | AW32: n.d. | AX32: n.d. | AY32: n.d. | AZ32: n.d. | BA32: n.d. | BB32: n.d. | BC32: n.d. | BD32: n.d. | BE32: n.d. | BF32: n.d. | BG32: n.d. | BH32: n.d. | BI32: n.d. | BJ32: =IF('[1]MONE(M)CAPARD'!AS39="","",'[1]MONE(M)CAPARD'!AS39) -> n.d. | BK32: =IF('[1]MONE(M)CAPARD'!AT39="","",'[1]MONE(M)CAPARD'!AT39) -> n.a. | BL32: =IF('[1]MONE(M)CAPARD'!AU39="","",'[1]MONE(M)CAPARD'!AU39) -> n.d. | BM32: =IF('[1]MONE(M)CAPARD'!AV39="","",'[1]MONE(M)CAPARD'!AV39) -> n.d. | BN32: =IF('[1]MONE(M)CAPARD'!AW39="","",'[1]MONE(M)CAPARD'!AW39) -> n.a. | BO32: =IF('[1]MONE(M)CAPARD'!AX39="","",'[1]MONE(M)CAPARD'!AX39) -> n.d. | BP32: =IF('[1]MONE(M)CAPARD'!AY39="","",'[1]MONE(M)CAPARD'!AY39) -> n.a. | BQ32: =IF('[1]FISCAL(M)'!$K39="","",'[1]FISCAL(M)'!$K39) -> n.d. | BR32: =IF('[1]FISCAL(M)'!$L39="","",'[1]FISCAL(M)'!$L39) -> n.d. | BS32: =IF('[1]FISCAL(M)'!$AY39="","",'[1]FISCAL(M)'!$AY39) -> n.d. | BT32: =IF('[1]FISCAL(M)'!$BI39="","",'[1]FISCAL(M)'!$BI39) -> n.d. | BU32: =IF('[1]FISCAL(M)'!$BS39="","",'[1]FISCAL(M)'!$BS39) -> n.d. | BV32: =IF('[1]FISCAL(M)'!$AZ39="","",'[1]FISCAL(M)'!$AZ39) -> n.d. | BW32: =IF('[1]FISCAL(M)'!$BJ39="","",'[1]FISCAL(M)'!$BJ39) -> n.d. | BX32: =IF('[1]FISCAL(M)'!$BT39="","",'[1]FISCAL(M)'!$BT39) -> n.d. | BY32: =IF('[2]MONE(M)'!$AO39="","",'[2]MONE(M)'!$AO39) -> n.d. | BZ32: =IF('[3]MONE(M)'!$AO39="","",'[3]MONE(M)'!$AO39) -> n.d. | CA32: =IF('[4]MONE(M)'!$AO39="","",'[4]MONE(M)'!$AO39) -> n.d. | CB32: =IF('[5]MONE(M)'!$AO39="","",'[5]MONE(M)'!$AO39) -> n.d. | CC32: =IF('[6]MONE(M)'!$AO39="","",'[6]MONE(M)'!$AO39) -> n.d. | CD32: =IF('[7]MONE(M)'!$AO39="","",'[7]MONE(M)'!$AO39) -> n.d. | CE32: =IF('[8]MONE(M)'!$AO39="","",'[8]MONE(M)'!$AO39) -> n.d. | CF32: n.d. | CG32: n.d. | CH32: n.d. | CI32: n.d. | CJ32: n.d. | CK32: n.d. | CL32: n.d. | CM32: =IF('[1]FISCAL(M)'!$K39="","",'[1]FISCAL(M)'!$K39) -> n.d. | CN32: n.d. | CO32: n.d. | CP32: =IF('[1]FISCAL(M)'!$L39="","",'[1]FISCAL(M)'!$L39) -> n.d. | CQ32: n.d. | CR32: n.d. | CS32: n.d. | CT32: n.d. | CU32: n.d. | CV32: n.d. | CW32: n.d. | CX32: n.d. | CY32: n.d. | CZ32: n.d. | DA32: n.d. | DB32: n.d. | DC32: n.d. | DD32: n.d. | DE32: n.d. | DF32: n.d. | DG32: n.d. | DH32: n.d.
A33: 1992 | B33: julio | C33: 1992-julio | D33: =IF('[1]REAL IPC(M)'!$AL40="","",+'[1]REAL IPC(M)'!$AL40) -> n.d. | E33: =IF('[1]REAL IPC(M)'!$BE40="","",+'[1]REAL IPC(M)'!$BE40) -> n.d. | F33: =IF('[1]REAL IPC(M)'!$AM40="","",+'[1]REAL IPC(M)'!$AM40) -> n.d. | G33: =IF('[1]REAL IPC(M)'!$BI40="","",+'[1]REAL IPC(M)'!$BI40) -> n.d. | H33: =IF('[1]REAL IMAE(M)'!BJ40="","",'[1]REAL IMAE(M)'!BJ40) -> n.d. | I33: =IF('[1]REAL IMAE(M)'!BK40="","",'[1]REAL IMAE(M)'!BK40) -> n.d. | J33: =IF('[1]REAL IMAE(M)'!BN40="","",'[1]REAL IMAE(M)'!BN40) -> n.d. | K33: =IF('[1]REAL IMAE(M)'!BO40="","",'[1]REAL IMAE(M)'!BO40) -> n.d. | L33: =IF('[1]EXT RIN(M)'!$K40="","",'[1]EXT RIN(M)'!$K40) -> n.d. | N33: =IF('[1]EXT RIN(M)'!$L40="","",'[1]EXT RIN(M)'!$L40) -> n.d. | P33: =IF('[1]MONE(M)CARD'!EG40="","",'[1]MONE(M)CARD'!EG40) -> n.d. | Q33: =IF('[1]MONE(M)CARD'!EK40="","",'[1]MONE(M)CARD'!EK40) -> n.d. | R33: =IF('[1]MONE(M)CARD'!EP40="","",'[1]MONE(M)CARD'!EP40) -> n.d. | S33: =IF('[1]MONE(M)CARD'!ES40="","",'[1]MONE(M)CARD'!ES40) -> n.d. | T33: =IF('[1]MONE(M)CARD'!EV40="","",'[1]MONE(M)CARD'!EV40) -> n.d. | U33: =IF('[1]MONE(M)CARD'!EZ40="","",'[1]MONE(M)CARD'!EZ40) -> n.d. | V33: =IF('[1]MONE(M)CAPARD'!FC40="","",'[1]MONE(M)CAPARD'!FC40) -> n.d. | W33: =IF('[1]MONE(M)CAPARD'!FG40="","",'[1]MONE(M)CAPARD'!FG40) -> n.d. | X33: =IF('[1]MONE(M)CAPARD'!FL40="","",'[1]MONE(M)CAPARD'!FL40) -> n.d. | Y33: =IF('[1]MONE(M)CAPARD'!FO40="","",'[1]MONE(M)CAPARD'!FO40) -> n.d. | Z33: =IF('[1]MONE(M)CAPARD'!FR40="","",'[1]MONE(M)CAPARD'!FR40) -> n.d. | AA33: =IF('[1]MONE(M)CAPARD'!FV40="","",'[1]MONE(M)CAPARD'!FV40) -> n.d. | AB33: =IF('[1]MONE(M)CARD'!FV40="","",'[1]MONE(M)CARD'!FV40) ->  | AC33: =IF('[1]MONE(M)CARD'!GD40="","",'[1]MONE(M)CARD'!GD40) -> n.d. | AD33: =IF('[1]MONE(M)CARD'!GE40="","",'[1]MONE(M)CARD'!GE40) -> n.d. | AE33: n.d. | AF33: n.d. | AG33: n.d. | AH33: n.d. | AI33: n.d. | AJ33: n.d. | AK33: n.d. | AL33: n.d. | AN33: n.d. | AO33: n.d. | AP33: n.d. | AQ33: n.d. | AR33: n.d. | AS33: =IF('[1]MONE(M)CAPARD'!GS40="","",'[1]MONE(M)CAPARD'!GS40) -> n.d. | AT33: =IF('[1]MONE(M)CARD'!HA40="","",'[1]MONE(M)CAPARD'!HA40) -> n.d. | AU33: =IF('[1]MONE(M)CAPARD'!HB40="","",'[1]MONE(M)CAPARD'!HB40) -> n.d. | AV33: n.d. | AW33: n.d. | AX33: n.d. | AY33: n.d. | AZ33: n.d. | BA33: n.d. | BB33: n.d. | BC33: n.d. | BD33: n.d. | BE33: n.d. | BF33: n.d. | BG33: n.d. | BH33: n.d. | BI33: n.d. | BJ33: =IF('[1]MONE(M)CAPARD'!AS40="","",'[1]MONE(M)CAPARD'!AS40) -> n.d. | BK33: =IF('[1]MONE(M)CAPARD'!AT40="","",'[1]MONE(M)CAPARD'!AT40) -> n.a. | BL33: =IF('[1]MONE(M)CAPARD'!AU40="","",'[1]MONE(M)CAPARD'!AU40) -> n.d. | BM33: =IF('[1]MONE(M)CAPARD'!AV40="","",'[1]MONE(M)CAPARD'!AV40) -> n.d. | BN33: =IF('[1]MONE(M)CAPARD'!AW40="","",'[1]MONE(M)CAPARD'!AW40) -> n.a. | BO33: =IF('[1]MONE(M)CAPARD'!AX40="","",'[1]MONE(M)CAPARD'!AX40) -> n.d. | BP33: =IF('[1]MONE(M)CAPARD'!AY40="","",'[1]MONE(M)CAPARD'!AY40) -> n.a. | BQ33: =IF('[1]FISCAL(M)'!$K40="","",'[1]FISCAL(M)'!$K40) -> n.d. | BR33: =IF('[1]FISCAL(M)'!$L40="","",'[1]FISCAL(M)'!$L40) -> n.d. | BS33: =IF('[1]FISCAL(M)'!$AY40="","",'[1]FISCAL(M)'!$AY40) -> n.d. | BT33: =IF('[1]FISCAL(M)'!$BI40="","",'[1]FISCAL(M)'!$BI40) -> n.d. | BU33: =IF('[1]FISCAL(M)'!$BS40="","",'[1]FISCAL(M)'!$BS40) -> n.d. | BV33: =IF('[1]FISCAL(M)'!$AZ40="","",'[1]FISCAL(M)'!$AZ40) -> n.d. | BW33: =IF('[1]FISCAL(M)'!$BJ40="","",'[1]FISCAL(M)'!$BJ40) -> n.d. | BX33: =IF('[1]FISCAL(M)'!$BT40="","",'[1]FISCAL(M)'!$BT40) -> n.d. | BY33: =IF('[2]MONE(M)'!$AO40="","",'[2]MONE(M)'!$AO40) -> n.d. | BZ33: =IF('[3]MONE(M)'!$AO40="","",'[3]MONE(M)'!$AO40) -> n.d. | CA33: =IF('[4]MONE(M)'!$AO40="","",'[4]MONE(M)'!$AO40) -> n.d. | CB33: =IF('[5]MONE(M)'!$AO40="","",'[5]MONE(M)'!$AO40) -> n.d. | CC33: =IF('[6]MONE(M)'!$AO40="","",'[6]MONE(M)'!$AO40) -> n.d. | CD33: =IF('[7]MONE(M)'!$AO40="","",'[7]MONE(M)'!$AO40) -> n.d. | CE33: =IF('[8]MONE(M)'!$AO40="","",'[8]MONE(M)'!$AO40) -> n.d. | CF33: n.d. | CG33: n.d. | CH33: n.d. | CI33: n.d. | CJ33: n.d. | CK33: n.d. | CL33: n.d. | CM33: =IF('[1]FISCAL(M)'!$K40="","",'[1]FISCAL(M)'!$K40) -> n.d. | CN33: n.d. | CO33: n.d. | CP33: =IF('[1]FISCAL(M)'!$L40="","",'[1]FISCAL(M)'!$L40) -> n.d. | CQ33: n.d. | CR33: n.d. | CS33: n.d. | CT33: n.d. | CU33: n.d. | CV33: n.d. | CW33: n.d. | CX33: n.d. | CY33: n.d. | CZ33: n.d. | DA33: n.d. | DB33: n.d. | DC33: n.d. | DD33: n.d. | DE33: n.d. | DF33: n.d. | DG33: n.d. | DH33: n.d.
A34: 1992 | B34: agosto | C34: 1992-agosto | D34: =IF('[1]REAL IPC(M)'!$AL41="","",+'[1]REAL IPC(M)'!$AL41) -> n.d. | E34: =IF('[1]REAL IPC(M)'!$BE41="","",+'[1]REAL IPC(M)'!$BE41) -> n.d. | F34: =IF('[1]REAL IPC(M)'!$AM41="","",+'[1]REAL IPC(M)'!$AM41) -> n.d. | G34: =IF('[1]REAL IPC(M)'!$BI41="","",+'[1]REAL IPC(M)'!$BI41) -> n.d. | H34: =IF('[1]REAL IMAE(M)'!BJ41="","",'[1]REAL IMAE(M)'!BJ41) -> n.d. | I34: =IF('[1]REAL IMAE(M)'!BK41="","",'[1]REAL IMAE(M)'!BK41) -> n.d. | J34: =IF('[1]REAL IMAE(M)'!BN41="","",'[1]REAL IMAE(M)'!BN41) -> n.d. | K34: =IF('[1]REAL IMAE(M)'!BO41="","",'[1]REAL IMAE(M)'!BO41) -> n.d. | L34: =IF('[1]EXT RIN(M)'!$K41="","",'[1]EXT RIN(M)'!$K41) -> n.d. | N34: =IF('[1]EXT RIN(M)'!$L41="","",'[1]EXT RIN(M)'!$L41) -> n.d. | P34: =IF('[1]MONE(M)CARD'!EG41="","",'[1]MONE(M)CARD'!EG41) -> n.d. | Q34: =IF('[1]MONE(M)CARD'!EK41="","",'[1]MONE(M)CARD'!EK41) -> n.d. | R34: =IF('[1]MONE(M)CARD'!EP41="","",'[1]MONE(M)CARD'!EP41) -> n.d. | S34: =IF('[1]MONE(M)CARD'!ES41="","",'[1]MONE(M)CARD'!ES41) -> n.d. | T34: =IF('[1]MONE(M)CARD'!EV41="","",'[1]MONE(M)CARD'!EV41) -> n.d. | U34: =IF('[1]MONE(M)CARD'!EZ41="","",'[1]MONE(M)CARD'!EZ41) -> n.d. | V34: =IF('[1]MONE(M)CAPARD'!FC41="","",'[1]MONE(M)CAPARD'!FC41) -> n.d. | W34: =IF('[1]MONE(M)CAPARD'!FG41="","",'[1]MONE(M)CAPARD'!FG41) -> n.d. | X34: =IF('[1]MONE(M)CAPARD'!FL41="","",'[1]MONE(M)CAPARD'!FL41) -> n.d. | Y34: =IF('[1]MONE(M)CAPARD'!FO41="","",'[1]MONE(M)CAPARD'!FO41) -> n.d. | Z34: =IF('[1]MONE(M)CAPARD'!FR41="","",'[1]MONE(M)CAPARD'!FR41) -> n.d. | AA34: =IF('[1]MONE(M)CAPARD'!FV41="","",'[1]MONE(M)CAPARD'!FV41) -> n.d. | AB34: =IF('[1]MONE(M)CARD'!FV41="","",'[1]MONE(M)CARD'!FV41) ->  | AC34: =IF('[1]MONE(M)CARD'!GD41="","",'[1]MONE(M)CARD'!GD41) -> n.d. | AD34: =IF('[1]MONE(M)CARD'!GE41="","",'[1]MONE(M)CARD'!GE41) -> n.d. | AE34: n.d. | AF34: n.d. | AG34: n.d. | AH34: n.d. | AI34: n.d. | AJ34: n.d. | AK34: n.d. | AL34: n.d. | AN34: n.d. | AO34: n.d. | AP34: n.d. | AQ34: n.d. | AR34: n.d. | AS34: =IF('[1]MONE(M)CAPARD'!GS41="","",'[1]MONE(M)CAPARD'!GS41) -> n.d. | AT34: =IF('[1]MONE(M)CARD'!HA41="","",'[1]MONE(M)CAPARD'!HA41) -> n.d. | AU34: =IF('[1]MONE(M)CAPARD'!HB41="","",'[1]MONE(M)CAPARD'!HB41) -> n.d. | AV34: n.d. | AW34: n.d. | AX34: n.d. | AY34: n.d. | AZ34: n.d. | BA34: n.d. | BB34: n.d. | BC34: n.d. | BD34: n.d. | BE34: n.d. | BF34: n.d. | BG34: n.d. | BH34: n.d. | BI34: n.d. | BJ34: =IF('[1]MONE(M)CAPARD'!AS41="","",'[1]MONE(M)CAPARD'!AS41) -> n.d. | BK34: =IF('[1]MONE(M)CAPARD'!AT41="","",'[1]MONE(M)CAPARD'!AT41) -> n.a. | BL34: =IF('[1]MONE(M)CAPARD'!AU41="","",'[1]MONE(M)CAPARD'!AU41) -> n.d. | BM34: =IF('[1]MONE(M)CAPARD'!AV41="","",'[1]MONE(M)CAPARD'!AV41) -> n.d. | BN34: =IF('[1]MONE(M)CAPARD'!AW41="","",'[1]MONE(M)CAPARD'!AW41) -> n.a. | BO34: =IF('[1]MONE(M)CAPARD'!AX41="","",'[1]MONE(M)CAPARD'!AX41) -> n.d. | BP34: =IF('[1]MONE(M)CAPARD'!AY41="","",'[1]MONE(M)CAPARD'!AY41) -> n.a. | BQ34: =IF('[1]FISCAL(M)'!$K41="","",'[1]FISCAL(M)'!$K41) -> n.d. | BR34: =IF('[1]FISCAL(M)'!$L41="","",'[1]FISCAL(M)'!$L41) -> n.d. | BS34: =IF('[1]FISCAL(M)'!$AY41="","",'[1]FISCAL(M)'!$AY41) -> n.d. | BT34: =IF('[1]FISCAL(M)'!$BI41="","",'[1]FISCAL(M)'!$BI41) -> n.d. | BU34: =IF('[1]FISCAL(M)'!$BS41="","",'[1]FISCAL(M)'!$BS41) -> n.d. | BV34: =IF('[1]FISCAL(M)'!$AZ41="","",'[1]FISCAL(M)'!$AZ41) -> n.d. | BW34: =IF('[1]FISCAL(M)'!$BJ41="","",'[1]FISCAL(M)'!$BJ41) -> n.d. | BX34: =IF('[1]FISCAL(M)'!$BT41="","",'[1]FISCAL(M)'!$BT41) -> n.d. | BY34: =IF('[2]MONE(M)'!$AO41="","",'[2]MONE(M)'!$AO41) -> n.d. | BZ34: =IF('[3]MONE(M)'!$AO41="","",'[3]MONE(M)'!$AO41) -> n.d. | CA34: =IF('[4]MONE(M)'!$AO41="","",'[4]MONE(M)'!$AO41) -> n.d. | CB34: =IF('[5]MONE(M)'!$AO41="","",'[5]MONE(M)'!$AO41) -> n.d. | CC34: =IF('[6]MONE(M)'!$AO41="","",'[6]MONE(M)'!$AO41) -> n.d. | CD34: =IF('[7]MONE(M)'!$AO41="","",'[7]MONE(M)'!$AO41) -> n.d. | CE34: =IF('[8]MONE(M)'!$AO41="","",'[8]MONE(M)'!$AO41) -> n.d. | CF34: n.d. | CG34: n.d. | CH34: n.d. | CI34: n.d. | CJ34: n.d. | CK34: n.d. | CL34: n.d. | CM34: =IF('[1]FISCAL(M)'!$K41="","",'[1]FISCAL(M)'!$K41) -> n.d. | CN34: n.d. | CO34: n.d. | CP34: =IF('[1]FISCAL(M)'!$L41="","",'[1]FISCAL(M)'!$L41) -> n.d. | CQ34: n.d. | CR34: n.d. | CS34: n.d. | CT34: n.d. | CU34: n.d. | CV34: n.d. | CW34: n.d. | CX34: n.d. | CY34: n.d. | CZ34: n.d. | DA34: n.d. | DB34: n.d. | DC34: n.d. | DD34: n.d. | DE34: n.d. | DF34: n.d. | DG34: n.d. | DH34: n.d.
A35: 1992 | B35: septiembre | C35: 1992-septiembre | D35: =IF('[1]REAL IPC(M)'!$AL42="","",+'[1]REAL IPC(M)'!$AL42) -> n.d. | E35: =IF('[1]REAL IPC(M)'!$BE42="","",+'[1]REAL IPC(M)'!$BE42) -> n.d. | F35: =IF('[1]REAL IPC(M)'!$AM42="","",+'[1]REAL IPC(M)'!$AM42) -> n.d. | G35: =IF('[1]REAL IPC(M)'!$BI42="","",+'[1]REAL IPC(M)'!$BI42) -> n.d. | H35: =IF('[1]REAL IMAE(M)'!BJ42="","",'[1]REAL IMAE(M)'!BJ42) -> n.d. | I35: =IF('[1]REAL IMAE(M)'!BK42="","",'[1]REAL IMAE(M)'!BK42) -> n.d. | J35: =IF('[1]REAL IMAE(M)'!BN42="","",'[1]REAL IMAE(M)'!BN42) -> n.d. | K35: =IF('[1]REAL IMAE(M)'!BO42="","",'[1]REAL IMAE(M)'!BO42) -> n.d. | L35: =IF('[1]EXT RIN(M)'!$K42="","",'[1]EXT RIN(M)'!$K42) -> n.d. | N35: =IF('[1]EXT RIN(M)'!$L42="","",'[1]EXT RIN(M)'!$L42) -> n.d. | P35: =IF('[1]MONE(M)CARD'!EG42="","",'[1]MONE(M)CARD'!EG42) -> n.d. | Q35: =IF('[1]MONE(M)CARD'!EK42="","",'[1]MONE(M)CARD'!EK42) -> n.d. | R35: =IF('[1]MONE(M)CARD'!EP42="","",'[1]MONE(M)CARD'!EP42) -> n.d. | S35: =IF('[1]MONE(M)CARD'!ES42="","",'[1]MONE(M)CARD'!ES42) -> n.d. | T35: =IF('[1]MONE(M)CARD'!EV42="","",'[1]MONE(M)CARD'!EV42) -> n.d. | U35: =IF('[1]MONE(M)CARD'!EZ42="","",'[1]MONE(M)CARD'!EZ42) -> n.d. | V35: =IF('[1]MONE(M)CAPARD'!FC42="","",'[1]MONE(M)CAPARD'!FC42) -> n.d. | W35: =IF('[1]MONE(M)CAPARD'!FG42="","",'[1]MONE(M)CAPARD'!FG42) -> n.d. | X35: =IF('[1]MONE(M)CAPARD'!FL42="","",'[1]MONE(M)CAPARD'!FL42) -> n.d. | Y35: =IF('[1]MONE(M)CAPARD'!FO42="","",'[1]MONE(M)CAPARD'!FO42) -> n.d. | Z35: =IF('[1]MONE(M)CAPARD'!FR42="","",'[1]MONE(M)CAPARD'!FR42) -> n.d. | AA35: =IF('[1]MONE(M)CAPARD'!FV42="","",'[1]MONE(M)CAPARD'!FV42) -> n.d. | AB35: =IF('[1]MONE(M)CARD'!FV42="","",'[1]MONE(M)CARD'!FV42) ->  | AC35: =IF('[1]MONE(M)CARD'!GD42="","",'[1]MONE(M)CARD'!GD42) -> n.d. | AD35: =IF('[1]MONE(M)CARD'!GE42="","",'[1]MONE(M)CARD'!GE42) -> n.d. | AE35: n.d. | AF35: n.d. | AG35: n.d. | AH35: n.d. | AI35: n.d. | AJ35: n.d. | AK35: n.d. | AL35: n.d. | AN35: n.d. | AO35: n.d. | AP35: n.d. | AQ35: n.d. | AR35: n.d. | AS35: =IF('[1]MONE(M)CAPARD'!GS42="","",'[1]MONE(M)CAPARD'!GS42) -> n.d. | AT35: =IF('[1]MONE(M)CARD'!HA42="","",'[1]MONE(M)CAPARD'!HA42) -> n.d. | AU35: =IF('[1]MONE(M)CAPARD'!HB42="","",'[1]MONE(M)CAPARD'!HB42) -> n.d. | AV35: n.d. | AW35: n.d. | AX35: n.d. | AY35: n.d. | AZ35: n.d. | BA35: n.d. | BB35: n.d. | BC35: n.d. | BD35: n.d. | BE35: n.d. | BF35: n.d. | BG35: n.d. | BH35: n.d. | BI35: n.d. | BJ35: =IF('[1]MONE(M)CAPARD'!AS42="","",'[1]MONE(M)CAPARD'!AS42) -> n.d. | BK35: =IF('[1]MONE(M)CAPARD'!AT42="","",'[1]MONE(M)CAPARD'!AT42) -> n.a. | BL35: =IF('[1]MONE(M)CAPARD'!AU42="","",'[1]MONE(M)CAPARD'!AU42) -> n.d. | BM35: =IF('[1]MONE(M)CAPARD'!AV42="","",'[1]MONE(M)CAPARD'!AV42) -> n.d. | BN35: =IF('[1]MONE(M)CAPARD'!AW42="","",'[1]MONE(M)CAPARD'!AW42) -> n.a. | BO35: =IF('[1]MONE(M)CAPARD'!AX42="","",'[1]MONE(M)CAPARD'!AX42) -> n.d. | BP35: =IF('[1]MONE(M)CAPARD'!AY42="","",'[1]MONE(M)CAPARD'!AY42) -> n.a. | BQ35: =IF('[1]FISCAL(M)'!$K42="","",'[1]FISCAL(M)'!$K42) -> n.d. | BR35: =IF('[1]FISCAL(M)'!$L42="","",'[1]FISCAL(M)'!$L42) -> n.d. | BS35: =IF('[1]FISCAL(M)'!$AY42="","",'[1]FISCAL(M)'!$AY42) -> n.d. | BT35: =IF('[1]FISCAL(M)'!$BI42="","",'[1]FISCAL(M)'!$BI42) -> n.d. | BU35: =IF('[1]FISCAL(M)'!$BS42="","",'[1]FISCAL(M)'!$BS42) -> n.d. | BV35: =IF('[1]FISCAL(M)'!$AZ42="","",'[1]FISCAL(M)'!$AZ42) -> n.d. | BW35: =IF('[1]FISCAL(M)'!$BJ42="","",'[1]FISCAL(M)'!$BJ42) -> n.d. | BX35: =IF('[1]FISCAL(M)'!$BT42="","",'[1]FISCAL(M)'!$BT42) -> n.d. | BY35: =IF('[2]MONE(M)'!$AO42="","",'[2]MONE(M)'!$AO42) -> n.d. | BZ35: =IF('[3]MONE(M)'!$AO42="","",'[3]MONE(M)'!$AO42) -> n.d. | CA35: =IF('[4]MONE(M)'!$AO42="","",'[4]MONE(M)'!$AO42) -> n.d. | CB35: =IF('[5]MONE(M)'!$AO42="","",'[5]MONE(M)'!$AO42) -> n.d. | CC35: =IF('[6]MONE(M)'!$AO42="","",'[6]MONE(M)'!$AO42) -> n.d. | CD35: =IF('[7]MONE(M)'!$AO42="","",'[7]MONE(M)'!$AO42) -> n.d. | CE35: =IF('[8]MONE(M)'!$AO42="","",'[8]MONE(M)'!$AO42) -> n.d. | CF35: n.d. | CG35: n.d. | CH35: n.d. | CI35: n.d. | CJ35: n.d. | CK35: n.d. | CL35: n.d. | CM35: =IF('[1]FISCAL(M)'!$K42="","",'[1]FISCAL(M)'!$K42) -> n.d. | CN35: n.d. | CO35: n.d. | CP35: =IF('[1]FISCAL(M)'!$L42="","",'[1]FISCAL(M)'!$L42) -> n.d. | CQ35: n.d. | CR35: n.d. | CS35: n.d. | CT35: n.d. | CU35: n.d. | CV35: n.d. | CW35: n.d. | CX35: n.d. | CY35: n.d. | CZ35: n.d. | DA35: n.d. | DB35: n.d. | DC35: n.d. | DD35: n.d. | DE35: n.d. | DF35: n.d. | DG35: n.d. | DH35: n.d.
